Workbook

Sheet 1. Info
R1: 1
B22: Name: | E22: Toronto Hydro-Electric System Limited
B24: Title: | C24: Title:
B26: Phone Number:
B28: Email Address:

Sheet Incremental Capital Summary
B10: Using the pull-down menu below, please identify what year of the IRM cycle you are in.
B11: 1st Year of IRM Cycle
B13: Name or General Description of Project | K13: Year
B14: C3 Handwell Replacement | K14: 2012
B16: Details of Project | K16: Number of Asset Components
B17: =VLOOKUP(PROJECT_SELECTION,APP_A!$A$46:$B$67,2,FALSE) -> C3 Handwell Replacement | K17: =IFERROR(SUMPRODUCT((C21:C50<>"")*1),1) -> 1
I19: Capital Cost (1/2 year rule applied) | K19: Depreciation Rate
B20: Asset Component (Click on the Number to View the Component Details) | G20: Capital Cost | M20: CCA Class | O20: CCA Rate
B21: 1 | C21: =IFERROR(INDEX(ASSETS_LIST_SELECTED_YEAR,MATCH('Incremental Capital Summary'!$B$14,PROJECTS_LIST_SELECTED_YEAR,0)),"") -> 1830_Poles Towers and Fixtures | G21: =IFERROR(INDEX(ASSET_AMOUNT_SELECTED_YEAR,MATCH('Incremental Capital Summary'!$B$14,PROJECTS_LIST_SELECTED_YEAR,0)),0) -> 12007529.38 | I21: =IF(IRM_CYCLE_YEAR="4th year of IRM cycle", G21/2, 0) -> 0 | K21: =IFERROR(IF(C21="",0,1/INDEX(APP_D!B:B,MATCH('Incremental Capital Summary'!C21,APP_D!P:P,0))),0) -> 0.025 | M21: =IFERROR(IF(C21="",0,INDEX(APP_C!E:E,MATCH('Incremental Capital Summary'!C21,APP_C!K:K,0))),0) -> 47 | O21: =IFERROR(IF(C21="",0,INDEX(APP_C!I:I,MATCH(C21,APP_C!K:K,0))),0) -> 0.08
B22: 2 | C22: =IF(C21="","",IF(INDEX(ASSETS_LIST_SELECTED_YEAR,MATCH('Incremental Capital Summary'!$B$14,PROJECTS_LIST_SELECTED_YEAR,0)+B21)=0,"",INDEX(ASSETS_LIST_SELECTED_YEAR,MATCH('Incremental Capital Summary'!$B$14,PROJECTS_LIST_SELECTED_YEAR,0)+B21))) ->  | G22: =IF(C22="",0,IF(INDEX(ASSET_AMOUNT_SELECTED_YEAR,MATCH('Incremental Capital Summary'!$B$14,PROJECTS_LIST_SELECTED_YEAR,0)+B21)=0,0,INDEX(ASSET_AMOUNT_SELECTED_YEAR,MATCH('Incremental Capital Summary'!$B$14,PROJECTS_LIST_SELECTED_YEAR,0)+B21))) -> 0 | I22: 0 | K22: =IF(C22="",0,1/INDEX(APP_D!B:B,MATCH('Incremental Capital Summary'!C22,APP_D!P:P,0))) -> 0 | M22: =IF(C22="",0,INDEX(APP_C!E:E,MATCH('Incremental Capital Summary'!C22,APP_C!K:K,0))) -> 0 | O22: =IF(C22="",0,INDEX(APP_C!I:I,MATCH(C22,APP_C!K:K,0))) -> 0
B23: 3 | C23: =IF(C22="","",IF(INDEX(ASSETS_LIST_SELECTED_YEAR,MATCH('Incremental Capital Summary'!$B$14,PROJECTS_LIST_SELECTED_YEAR,0)+B22)=0,"",INDEX(ASSETS_LIST_SELECTED_YEAR,MATCH('Incremental Capital Summary'!$B$14,PROJECTS_LIST_SELECTED_YEAR,0)+B22))) ->  | G23: =IF(C23="",0,IF(INDEX(ASSET_AMOUNT_SELECTED_YEAR,MATCH('Incremental Capital Summary'!$B$14,PROJECTS_LIST_SELECTED_YEAR,0)+B22)=0,0,INDEX(ASSET_AMOUNT_SELECTED_YEAR,MATCH('Incremental Capital Summary'!$B$14,PROJECTS_LIST_SELECTED_YEAR,0)+B22))) -> 0 | I23: 0 | K23: =IF(C23="",0,1/INDEX(APP_D!B:B,MATCH('Incremental Capital Summary'!C23,APP_D!P:P,0))) -> 0 | M23: =IF(C23="",0,INDEX(APP_C!E:E,MATCH('Incremental Capital Summary'!C23,APP_C!K:K,0))) -> 0 | O23: =IF(C23="",0,INDEX(APP_C!I:I,MATCH(C23,APP_C!K:K,0))) -> 0
B24: 4 | C24: =IF(C23="","",IF(INDEX(ASSETS_LIST_SELECTED_YEAR,MATCH('Incremental Capital Summary'!$B$14,PROJECTS_LIST_SELECTED_YEAR,0)+B23)=0,"",INDEX(ASSETS_LIST_SELECTED_YEAR,MATCH('Incremental Capital Summary'!$B$14,PROJECTS_LIST_SELECTED_YEAR,0)+B23))) ->  | G24: =IF(C24="",0,IF(INDEX(ASSET_AMOUNT_SELECTED_YEAR,MATCH('Incremental Capital Summary'!$B$14,PROJECTS_LIST_SELECTED_YEAR,0)+B23)=0,0,INDEX(ASSET_AMOUNT_SELECTED_YEAR,MATCH('Incremental Capital Summary'!$B$14,PROJECTS_LIST_SELECTED_YEAR,0)+B23))) -> 0 | I24: 0 | K24: =IF(C24="",0,1/INDEX(APP_D!B:B,MATCH('Incremental Capital Summary'!C24,APP_D!P:P,0))) -> 0 | M24: =IF(C24="",0,INDEX(APP_C!E:E,MATCH('Incremental Capital Summary'!C24,APP_C!K:K,0))) -> 0 | O24: =IF(C24="",0,INDEX(APP_C!I:I,MATCH(C24,APP_C!K:K,0))) -> 0
B25: 5 | C25: =IF(C24="","",IF(INDEX(ASSETS_LIST_SELECTED_YEAR,MATCH('Incremental Capital Summary'!$B$14,PROJECTS_LIST_SELECTED_YEAR,0)+B24)=0,"",INDEX(ASSETS_LIST_SELECTED_YEAR,MATCH('Incremental Capital Summary'!$B$14,PROJECTS_LIST_SELECTED_YEAR,0)+B24))) ->  | G25: =IF(C25="",0,IF(INDEX(ASSET_AMOUNT_SELECTED_YEAR,MATCH('Incremental Capital Summary'!$B$14,PROJECTS_LIST_SELECTED_YEAR,0)+B24)=0,0,INDEX(ASSET_AMOUNT_SELECTED_YEAR,MATCH('Incremental Capital Summary'!$B$14,PROJECTS_LIST_SELECTED_YEAR,0)+B24))) -> 0 | I25: 0 | K25: =IF(C25="",0,1/INDEX(APP_D!B:B,MATCH('Incremental Capital Summary'!C25,APP_D!P:P,0))) -> 0 | M25: =IF(C25="",0,INDEX(APP_C!E:E,MATCH('Incremental Capital Summary'!C25,APP_C!K:K,0))) -> 0 | O25: =IF(C25="",0,INDEX(APP_C!I:I,MATCH(C25,APP_C!K:K,0))) -> 0
B26: 6 | C26: =IF(C25="","",IF(INDEX(ASSETS_LIST_SELECTED_YEAR,MATCH('Incremental Capital Summary'!$B$14,PROJECTS_LIST_SELECTED_YEAR,0)+B25)=0,"",INDEX(ASSETS_LIST_SELECTED_YEAR,MATCH('Incremental Capital Summary'!$B$14,PROJECTS_LIST_SELECTED_YEAR,0)+B25))) ->  | G26: =IF(C26="",0,IF(INDEX(ASSET_AMOUNT_SELECTED_YEAR,MATCH('Incremental Capital Summary'!$B$14,PROJECTS_LIST_SELECTED_YEAR,0)+B25)=0,0,INDEX(ASSET_AMOUNT_SELECTED_YEAR,MATCH('Incremental Capital Summary'!$B$14,PROJECTS_LIST_SELECTED_YEAR,0)+B25))) -> 0 | I26: 0 | K26: =IF(C26="",0,1/INDEX(APP_D!B:B,MATCH('Incremental Capital Summary'!C26,APP_D!P:P,0))) -> 0 | M26: =IF(C26="",0,INDEX(APP_C!E:E,MATCH('Incremental Capital Summary'!C26,APP_C!K:K,0))) -> 0 | O26: =IF(C26="",0,INDEX(APP_C!I:I,MATCH(C26,APP_C!K:K,0))) -> 0
B27: 7 | C27: =IF(C26="","",IF(INDEX(ASSETS_LIST_SELECTED_YEAR,MATCH('Incremental Capital Summary'!$B$14,PROJECTS_LIST_SELECTED_YEAR,0)+B26)=0,"",INDEX(ASSETS_LIST_SELECTED_YEAR,MATCH('Incremental Capital Summary'!$B$14,PROJECTS_LIST_SELECTED_YEAR,0)+B26))) ->  | G27: =IF(C27="",0,IF(INDEX(ASSET_AMOUNT_SELECTED_YEAR,MATCH('Incremental Capital Summary'!$B$14,PROJECTS_LIST_SELECTED_YEAR,0)+B26)=0,0,INDEX(ASSET_AMOUNT_SELECTED_YEAR,MATCH('Incremental Capital Summary'!$B$14,PROJECTS_LIST_SELECTED_YEAR,0)+B26))) -> 0 | I27: 0 | K27: =IF(C27="",0,1/INDEX(APP_D!B:B,MATCH('Incremental Capital Summary'!C27,APP_D!P:P,0))) -> 0 | M27: =IF(C27="",0,INDEX(APP_C!E:E,MATCH('Incremental Capital Summary'!C27,APP_C!K:K,0))) -> 0 | O27: =IF(C27="",0,INDEX(APP_C!I:I,MATCH(C27,APP_C!K:K,0))) -> 0
B28: 8 | C28: =IF(C27="","",IF(INDEX(ASSETS_LIST_SELECTED_YEAR,MATCH('Incremental Capital Summary'!$B$14,PROJECTS_LIST_SELECTED_YEAR,0)+B27)=0,"",INDEX(ASSETS_LIST_SELECTED_YEAR,MATCH('Incremental Capital Summary'!$B$14,PROJECTS_LIST_SELECTED_YEAR,0)+B27))) ->  | G28: =IF(C28="",0,IF(INDEX(ASSET_AMOUNT_SELECTED_YEAR,MATCH('Incremental Capital Summary'!$B$14,PROJECTS_LIST_SELECTED_YEAR,0)+B27)=0,0,INDEX(ASSET_AMOUNT_SELECTED_YEAR,MATCH('Incremental Capital Summary'!$B$14,PROJECTS_LIST_SELECTED_YEAR,0)+B27))) -> 0 | I28: 0 | K28: =IF(C28="",0,1/INDEX(APP_D!B:B,MATCH('Incremental Capital Summary'!C28,APP_D!P:P,0))) -> 0 | M28: =IF(C28="",0,INDEX(APP_C!E:E,MATCH('Incremental Capital Summary'!C28,APP_C!K:K,0))) -> 0 | O28: =IF(C28="",0,INDEX(APP_C!I:I,MATCH(C28,APP_C!K:K,0))) -> 0
B29: 9 | C29: =IF(C28="","",IF(INDEX(ASSETS_LIST_SELECTED_YEAR,MATCH('Incremental Capital Summary'!$B$14,PROJECTS_LIST_SELECTED_YEAR,0)+B28)=0,"",INDEX(ASSETS_LIST_SELECTED_YEAR,MATCH('Incremental Capital Summary'!$B$14,PROJECTS_LIST_SELECTED_YEAR,0)+B28))) ->  | G29: =IF(C29="",0,IF(INDEX(ASSET_AMOUNT_SELECTED_YEAR,MATCH('Incremental Capital Summary'!$B$14,PROJECTS_LIST_SELECTED_YEAR,0)+B28)=0,0,INDEX(ASSET_AMOUNT_SELECTED_YEAR,MATCH('Incremental Capital Summary'!$B$14,PROJECTS_LIST_SELECTED_YEAR,0)+B28))) -> 0 | I29: 0 | K29: =IF(C29="",0,1/INDEX(APP_D!B:B,MATCH('Incremental Capital Summary'!C29,APP_D!P:P,0))) -> 0 | M29: =IF(C29="",0,INDEX(APP_C!E:E,MATCH('Incremental Capital Summary'!C29,APP_C!K:K,0))) -> 0 | O29: =IF(C29="",0,INDEX(APP_C!I:I,MATCH(C29,APP_C!K:K,0))) -> 0
B30: 10 | C30: =IF(C29="","",IF(INDEX(ASSETS_LIST_SELECTED_YEAR,MATCH('Incremental Capital Summary'!$B$14,PROJECTS_LIST_SELECTED_YEAR,0)+B29)=0,"",INDEX(ASSETS_LIST_SELECTED_YEAR,MATCH('Incremental Capital Summary'!$B$14,PROJECTS_LIST_SELECTED_YEAR,0)+B29))) ->  | G30: =IF(C30="",0,IF(INDEX(ASSET_AMOUNT_SELECTED_YEAR,MATCH('Incremental Capital Summary'!$B$14,PROJECTS_LIST_SELECTED_YEAR,0)+B29)=0,0,INDEX(ASSET_AMOUNT_SELECTED_YEAR,MATCH('Incremental Capital Summary'!$B$14,PROJECTS_LIST_SELECTED_YEAR,0)+B29))) -> 0 | I30: 0 | K30: =IF(C30="",0,1/INDEX(APP_D!B:B,MATCH('Incremental Capital Summary'!C30,APP_D!P:P,0))) -> 0 | M30: =IF(C30="",0,INDEX(APP_C!E:E,MATCH('Incremental Capital Summary'!C30,APP_C!K:K,0))) -> 0 | O30: =IF(C30="",0,INDEX(APP_C!I:I,MATCH(C30,APP_C!K:K,0))) -> 0
B31: 11 | C31: =IF(C30="","",IF(INDEX(ASSETS_LIST_SELECTED_YEAR,MATCH('Incremental Capital Summary'!$B$14,PROJECTS_LIST_SELECTED_YEAR,0)+B30)=0,"",INDEX(ASSETS_LIST_SELECTED_YEAR,MATCH('Incremental Capital Summary'!$B$14,PROJECTS_LIST_SELECTED_YEAR,0)+B30))) ->  | G31: =IF(C31="",0,IF(INDEX(ASSET_AMOUNT_SELECTED_YEAR,MATCH('Incremental Capital Summary'!$B$14,PROJECTS_LIST_SELECTED_YEAR,0)+B30)=0,0,INDEX(ASSET_AMOUNT_SELECTED_YEAR,MATCH('Incremental Capital Summary'!$B$14,PROJECTS_LIST_SELECTED_YEAR,0)+B30))) -> 0 | I31: 0 | K31: =IF(C31="",0,1/INDEX(APP_D!B:B,MATCH('Incremental Capital Summary'!C31,APP_D!P:P,0))) -> 0 | M31: =IF(C31="",0,INDEX(APP_C!E:E,MATCH('Incremental Capital Summary'!C31,APP_C!K:K,0))) -> 0 | O31: =IF(C31="",0,INDEX(APP_C!I:I,MATCH(C31,APP_C!K:K,0))) -> 0
B32: 12 | C32: =IF(C31="","",IF(INDEX(ASSETS_LIST_SELECTED_YEAR,MATCH('Incremental Capital Summary'!$B$14,PROJECTS_LIST_SELECTED_YEAR,0)+B31)=0,"",INDEX(ASSETS_LIST_SELECTED_YEAR,MATCH('Incremental Capital Summary'!$B$14,PROJECTS_LIST_SELECTED_YEAR,0)+B31))) ->  | G32: =IF(C32="",0,IF(INDEX(ASSET_AMOUNT_SELECTED_YEAR,MATCH('Incremental Capital Summary'!$B$14,PROJECTS_LIST_SELECTED_YEAR,0)+B31)=0,0,INDEX(ASSET_AMOUNT_SELECTED_YEAR,MATCH('Incremental Capital Summary'!$B$14,PROJECTS_LIST_SELECTED_YEAR,0)+B31))) -> 0 | I32: 0 | K32: =IF(C32="",0,1/INDEX(APP_D!B:B,MATCH('Incremental Capital Summary'!C32,APP_D!P:P,0))) -> 0 | M32: =IF(C32="",0,INDEX(APP_C!E:E,MATCH('Incremental Capital Summary'!C32,APP_C!K:K,0))) -> 0 | O32: =IF(C32="",0,INDEX(APP_C!I:I,MATCH(C32,APP_C!K:K,0))) -> 0
B33: 13 | C33: =IF(C32="","",IF(INDEX(ASSETS_LIST_SELECTED_YEAR,MATCH('Incremental Capital Summary'!$B$14,PROJECTS_LIST_SELECTED_YEAR,0)+B32)=0,"",INDEX(ASSETS_LIST_SELECTED_YEAR,MATCH('Incremental Capital Summary'!$B$14,PROJECTS_LIST_SELECTED_YEAR,0)+B32))) ->  | G33: =IF(C33="",0,IF(INDEX(ASSET_AMOUNT_SELECTED_YEAR,MATCH('Incremental Capital Summary'!$B$14,PROJECTS_LIST_SELECTED_YEAR,0)+B32)=0,0,INDEX(ASSET_AMOUNT_SELECTED_YEAR,MATCH('Incremental Capital Summary'!$B$14,PROJECTS_LIST_SELECTED_YEAR,0)+B32))) -> 0 | I33: 0 | K33: =IF(C33="",0,1/INDEX(APP_D!B:B,MATCH('Incremental Capital Summary'!C33,APP_D!P:P,0))) -> 0 | M33: =IF(C33="",0,INDEX(APP_C!E:E,MATCH('Incremental Capital Summary'!C33,APP_C!K:K,0))) -> 0 | O33: =IF(C33="",0,INDEX(APP_C!I:I,MATCH(C33,APP_C!K:K,0))) -> 0
B34: 14 | C34: =IF(C33="","",IF(INDEX(ASSETS_LIST_SELECTED_YEAR,MATCH('Incremental Capital Summary'!$B$14,PROJECTS_LIST_SELECTED_YEAR,0)+B33)=0,"",INDEX(ASSETS_LIST_SELECTED_YEAR,MATCH('Incremental Capital Summary'!$B$14,PROJECTS_LIST_SELECTED_YEAR,0)+B33))) ->  | G34: =IF(C34="",0,IF(INDEX(ASSET_AMOUNT_SELECTED_YEAR,MATCH('Incremental Capital Summary'!$B$14,PROJECTS_LIST_SELECTED_YEAR,0)+B33)=0,0,INDEX(ASSET_AMOUNT_SELECTED_YEAR,MATCH('Incremental Capital Summary'!$B$14,PROJECTS_LIST_SELECTED_YEAR,0)+B33))) -> 0 | I34: 0 | K34: =IF(C34="",0,1/INDEX(APP_D!B:B,MATCH('Incremental Capital Summary'!C34,APP_D!P:P,0))) -> 0 | M34: =IF(C34="",0,INDEX(APP_C!E:E,MATCH('Incremental Capital Summary'!C34,APP_C!K:K,0))) -> 0 | O34: =IF(C34="",0,INDEX(APP_C!I:I,MATCH(C34,APP_C!K:K,0))) -> 0
B35: 15 | C35: =IF(C34="","",IF(INDEX(ASSETS_LIST_SELECTED_YEAR,MATCH('Incremental Capital Summary'!$B$14,PROJECTS_LIST_SELECTED_YEAR,0)+B34)=0,"",INDEX(ASSETS_LIST_SELECTED_YEAR,MATCH('Incremental Capital Summary'!$B$14,PROJECTS_LIST_SELECTED_YEAR,0)+B34))) ->  | G35: =IF(C35="",0,IF(INDEX(ASSET_AMOUNT_SELECTED_YEAR,MATCH('Incremental Capital Summary'!$B$14,PROJECTS_LIST_SELECTED_YEAR,0)+B34)=0,0,INDEX(ASSET_AMOUNT_SELECTED_YEAR,MATCH('Incremental Capital Summary'!$B$14,PROJECTS_LIST_SELECTED_YEAR,0)+B34))) -> 0 | I35: 0 | K35: =IF(C35="",0,1/INDEX(APP_D!B:B,MATCH('Incremental Capital Summary'!C35,APP_D!P:P,0))) -> 0 | M35: =IF(C35="",0,INDEX(APP_C!E:E,MATCH('Incremental Capital Summary'!C35,APP_C!K:K,0))) -> 0 | O35: =IF(C35="",0,INDEX(APP_C!I:I,MATCH(C35,APP_C!K:K,0))) -> 0
B36: 16 | C36: =IF(C35="","",IF(INDEX(ASSETS_LIST_SELECTED_YEAR,MATCH('Incremental Capital Summary'!$B$14,PROJECTS_LIST_SELECTED_YEAR,0)+B35)=0,"",INDEX(ASSETS_LIST_SELECTED_YEAR,MATCH('Incremental Capital Summary'!$B$14,PROJECTS_LIST_SELECTED_YEAR,0)+B35))) ->  | G36: =IF(C36="",0,IF(INDEX(ASSET_AMOUNT_SELECTED_YEAR,MATCH('Incremental Capital Summary'!$B$14,PROJECTS_LIST_SELECTED_YEAR,0)+B35)=0,0,INDEX(ASSET_AMOUNT_SELECTED_YEAR,MATCH('Incremental Capital Summary'!$B$14,PROJECTS_LIST_SELECTED_YEAR,0)+B35))) -> 0 | I36: 0 | K36: =IF(C36="",0,1/INDEX(APP_D!B:B,MATCH('Incremental Capital Summary'!C36,APP_D!P:P,0))) -> 0 | M36: =IF(C36="",0,INDEX(APP_C!E:E,MATCH('Incremental Capital Summary'!C36,APP_C!K:K,0))) -> 0 | O36: =IF(C36="",0,INDEX(APP_C!I:I,MATCH(C36,APP_C!K:K,0))) -> 0
B37: 17 | C37: =IF(C36="","",IF(INDEX(ASSETS_LIST_SELECTED_YEAR,MATCH('Incremental Capital Summary'!$B$14,PROJECTS_LIST_SELECTED_YEAR,0)+B36)=0,"",INDEX(ASSETS_LIST_SELECTED_YEAR,MATCH('Incremental Capital Summary'!$B$14,PROJECTS_LIST_SELECTED_YEAR,0)+B36))) ->  | G37: =IF(C37="",0,IF(INDEX(ASSET_AMOUNT_SELECTED_YEAR,MATCH('Incremental Capital Summary'!$B$14,PROJECTS_LIST_SELECTED_YEAR,0)+B36)=0,0,INDEX(ASSET_AMOUNT_SELECTED_YEAR,MATCH('Incremental Capital Summary'!$B$14,PROJECTS_LIST_SELECTED_YEAR,0)+B36))) -> 0 | I37: 0 | K37: =IF(C37="",0,1/INDEX(APP_D!B:B,MATCH('Incremental Capital Summary'!C37,APP_D!P:P,0))) -> 0 | M37: =IF(C37="",0,INDEX(APP_C!E:E,MATCH('Incremental Capital Summary'!C37,APP_C!K:K,0))) -> 0 | O37: =IF(C37="",0,INDEX(APP_C!I:I,MATCH(C37,APP_C!K:K,0))) -> 0
B38: 18 | C38: =IF(C37="","",IF(INDEX(ASSETS_LIST_SELECTED_YEAR,MATCH('Incremental Capital Summary'!$B$14,PROJECTS_LIST_SELECTED_YEAR,0)+B37)=0,"",INDEX(ASSETS_LIST_SELECTED_YEAR,MATCH('Incremental Capital Summary'!$B$14,PROJECTS_LIST_SELECTED_YEAR,0)+B37))) ->  | G38: =IF(C38="",0,IF(INDEX(ASSET_AMOUNT_SELECTED_YEAR,MATCH('Incremental Capital Summary'!$B$14,PROJECTS_LIST_SELECTED_YEAR,0)+B37)=0,0,INDEX(ASSET_AMOUNT_SELECTED_YEAR,MATCH('Incremental Capital Summary'!$B$14,PROJECTS_LIST_SELECTED_YEAR,0)+B37))) -> 0 | I38: 0 | K38: =IF(C38="",0,1/INDEX(APP_D!B:B,MATCH('Incremental Capital Summary'!C38,APP_D!P:P,0))) -> 0 | M38: =IF(C38="",0,INDEX(APP_C!E:E,MATCH('Incremental Capital Summary'!C38,APP_C!K:K,0))) -> 0 | O38: =IF(C38="",0,INDEX(APP_C!I:I,MATCH(C38,APP_C!K:K,0))) -> 0
B39: 19 | C39: =IF(C38="","",IF(INDEX(ASSETS_LIST_SELECTED_YEAR,MATCH('Incremental Capital Summary'!$B$14,PROJECTS_LIST_SELECTED_YEAR,0)+B38)=0,"",INDEX(ASSETS_LIST_SELECTED_YEAR,MATCH('Incremental Capital Summary'!$B$14,PROJECTS_LIST_SELECTED_YEAR,0)+B38))) ->  | G39: =IF(C39="",0,IF(INDEX(ASSET_AMOUNT_SELECTED_YEAR,MATCH('Incremental Capital Summary'!$B$14,PROJECTS_LIST_SELECTED_YEAR,0)+B38)=0,0,INDEX(ASSET_AMOUNT_SELECTED_YEAR,MATCH('Incremental Capital Summary'!$B$14,PROJECTS_LIST_SELECTED_YEAR,0)+B38))) -> 0 | I39: 0 | K39: =IF(C39="",0,1/INDEX(APP_D!B:B,MATCH('Incremental Capital Summary'!C39,APP_D!P:P,0))) -> 0 | M39: =IF(C39="",0,INDEX(APP_C!E:E,MATCH('Incremental Capital Summary'!C39,APP_C!K:K,0))) -> 0 | O39: =IF(C39="",0,INDEX(APP_C!I:I,MATCH(C39,APP_C!K:K,0))) -> 0
B40: 20 | C40: =IF(C39="","",IF(INDEX(ASSETS_LIST_SELECTED_YEAR,MATCH('Incremental Capital Summary'!$B$14,PROJECTS_LIST_SELECTED_YEAR,0)+B39)=0,"",INDEX(ASSETS_LIST_SELECTED_YEAR,MATCH('Incremental Capital Summary'!$B$14,PROJECTS_LIST_SELECTED_YEAR,0)+B39))) ->  | G40: =IF(C40="",0,IF(INDEX(ASSET_AMOUNT_SELECTED_YEAR,MATCH('Incremental Capital Summary'!$B$14,PROJECTS_LIST_SELECTED_YEAR,0)+B39)=0,0,INDEX(ASSET_AMOUNT_SELECTED_YEAR,MATCH('Incremental Capital Summary'!$B$14,PROJECTS_LIST_SELECTED_YEAR,0)+B39))) -> 0 | I40: 0 | K40: =IF(C40="",0,1/INDEX(APP_D!B:B,MATCH('Incremental Capital Summary'!C40,APP_D!P:P,0))) -> 0 | M40: =IF(C40="",0,INDEX(APP_C!E:E,MATCH('Incremental Capital Summary'!C40,APP_C!K:K,0))) -> 0 | O40: =IF(C40="",0,INDEX(APP_C!I:I,MATCH(C40,APP_C!K:K,0))) -> 0
B41: 21 | C41: =IF(C40="","",IF(INDEX(ASSETS_LIST_SELECTED_YEAR,MATCH('Incremental Capital Summary'!$B$14,PROJECTS_LIST_SELECTED_YEAR,0)+B40)=0,"",INDEX(ASSETS_LIST_SELECTED_YEAR,MATCH('Incremental Capital Summary'!$B$14,PROJECTS_LIST_SELECTED_YEAR,0)+B40))) ->  | G41: =IF(C41="",0,IF(INDEX(ASSET_AMOUNT_SELECTED_YEAR,MATCH('Incremental Capital Summary'!$B$14,PROJECTS_LIST_SELECTED_YEAR,0)+B40)=0,0,INDEX(ASSET_AMOUNT_SELECTED_YEAR,MATCH('Incremental Capital Summary'!$B$14,PROJECTS_LIST_SELECTED_YEAR,0)+B40))) -> 0 | I41: 0 | K41: =IF(C41="",0,1/INDEX(APP_D!B:B,MATCH('Incremental Capital Summary'!C41,APP_D!P:P,0))) -> 0 | M41: =IF(C41="",0,INDEX(APP_C!E:E,MATCH('Incremental Capital Summary'!C41,APP_C!K:K,0))) -> 0 | O41: =IF(C41="",0,INDEX(APP_C!I:I,MATCH(C41,APP_C!K:K,0))) -> 0
B42: 22 | C42: =IF(C41="","",IF(INDEX(ASSETS_LIST_SELECTED_YEAR,MATCH('Incremental Capital Summary'!$B$14,PROJECTS_LIST_SELECTED_YEAR,0)+B41)=0,"",INDEX(ASSETS_LIST_SELECTED_YEAR,MATCH('Incremental Capital Summary'!$B$14,PROJECTS_LIST_SELECTED_YEAR,0)+B41))) ->  | G42: =IF(C42="",0,IF(INDEX(ASSET_AMOUNT_SELECTED_YEAR,MATCH('Incremental Capital Summary'!$B$14,PROJECTS_LIST_SELECTED_YEAR,0)+B41)=0,0,INDEX(ASSET_AMOUNT_SELECTED_YEAR,MATCH('Incremental Capital Summary'!$B$14,PROJECTS_LIST_SELECTED_YEAR,0)+B41))) -> 0 | I42: 0 | K42: =IF(C42="",0,1/INDEX(APP_D!B:B,MATCH('Incremental Capital Summary'!C42,APP_D!P:P,0))) -> 0 | M42: =IF(C42="",0,INDEX(APP_C!E:E,MATCH('Incremental Capital Summary'!C42,APP_C!K:K,0))) -> 0 | O42: =IF(C42="",0,INDEX(APP_C!I:I,MATCH(C42,APP_C!K:K,0))) -> 0
B43: 23 | C43: =IF(C42="","",IF(INDEX(ASSETS_LIST_SELECTED_YEAR,MATCH('Incremental Capital Summary'!$B$14,PROJECTS_LIST_SELECTED_YEAR,0)+B42)=0,"",INDEX(ASSETS_LIST_SELECTED_YEAR,MATCH('Incremental Capital Summary'!$B$14,PROJECTS_LIST_SELECTED_YEAR,0)+B42))) ->  | G43: =IF(C43="",0,IF(INDEX(ASSET_AMOUNT_SELECTED_YEAR,MATCH('Incremental Capital Summary'!$B$14,PROJECTS_LIST_SELECTED_YEAR,0)+B42)=0,0,INDEX(ASSET_AMOUNT_SELECTED_YEAR,MATCH('Incremental Capital Summary'!$B$14,PROJECTS_LIST_SELECTED_YEAR,0)+B42))) -> 0 | I43: 0 | K43: =IF(C43="",0,1/INDEX(APP_D!B:B,MATCH('Incremental Capital Summary'!C43,APP_D!P:P,0))) -> 0 | M43: =IF(C43="",0,INDEX(APP_C!E:E,MATCH('Incremental Capital Summary'!C43,APP_C!K:K,0))) -> 0 | O43: =IF(C43="",0,INDEX(APP_C!I:I,MATCH(C43,APP_C!K:K,0))) -> 0
B44: 24 | C44: =IF(C43="","",IF(INDEX(ASSETS_LIST_SELECTED_YEAR,MATCH('Incremental Capital Summary'!$B$14,PROJECTS_LIST_SELECTED_YEAR,0)+B43)=0,"",INDEX(ASSETS_LIST_SELECTED_YEAR,MATCH('Incremental Capital Summary'!$B$14,PROJECTS_LIST_SELECTED_YEAR,0)+B43))) ->  | G44: =IF(C44="",0,IF(INDEX(ASSET_AMOUNT_SELECTED_YEAR,MATCH('Incremental Capital Summary'!$B$14,PROJECTS_LIST_SELECTED_YEAR,0)+B43)=0,0,INDEX(ASSET_AMOUNT_SELECTED_YEAR,MATCH('Incremental Capital Summary'!$B$14,PROJECTS_LIST_SELECTED_YEAR,0)+B43))) -> 0 | I44: 0 | K44: =IF(C44="",0,1/INDEX(APP_D!B:B,MATCH('Incremental Capital Summary'!C44,APP_D!P:P,0))) -> 0 | M44: =IF(C44="",0,INDEX(APP_C!E:E,MATCH('Incremental Capital Summary'!C44,APP_C!K:K,0))) -> 0 | O44: =IF(C44="",0,INDEX(APP_C!I:I,MATCH(C44,APP_C!K:K,0))) -> 0
B45: 25 | C45: =IF(C44="","",IF(INDEX(ASSETS_LIST_SELECTED_YEAR,MATCH('Incremental Capital Summary'!$B$14,PROJECTS_LIST_SELECTED_YEAR,0)+B44)=0,"",INDEX(ASSETS_LIST_SELECTED_YEAR,MATCH('Incremental Capital Summary'!$B$14,PROJECTS_LIST_SELECTED_YEAR,0)+B44))) ->  | G45: =IF(C45="",0,IF(INDEX(ASSET_AMOUNT_SELECTED_YEAR,MATCH('Incremental Capital Summary'!$B$14,PROJECTS_LIST_SELECTED_YEAR,0)+B44)=0,0,INDEX(ASSET_AMOUNT_SELECTED_YEAR,MATCH('Incremental Capital Summary'!$B$14,PROJECTS_LIST_SELECTED_YEAR,0)+B44))) -> 0 | I45: 0 | K45: =IF(C45="",0,1/INDEX(APP_D!B:B,MATCH('Incremental Capital Summary'!C45,APP_D!P:P,0))) -> 0 | M45: =IF(C45="",0,INDEX(APP_C!E:E,MATCH('Incremental Capital Summary'!C45,APP_C!K:K,0))) -> 0 | O45: =IF(C45="",0,INDEX(APP_C!I:I,MATCH(C45,APP_C!K:K,0))) -> 0
B46: 26 | C46: =IF(C45="","",IF(INDEX(ASSETS_LIST_SELECTED_YEAR,MATCH('Incremental Capital Summary'!$B$14,PROJECTS_LIST_SELECTED_YEAR,0)+B45)=0,"",INDEX(ASSETS_LIST_SELECTED_YEAR,MATCH('Incremental Capital Summary'!$B$14,PROJECTS_LIST_SELECTED_YEAR,0)+B45))) ->  | G46: =IF(C46="",0,IF(INDEX(ASSET_AMOUNT_SELECTED_YEAR,MATCH('Incremental Capital Summary'!$B$14,PROJECTS_LIST_SELECTED_YEAR,0)+B45)=0,0,INDEX(ASSET_AMOUNT_SELECTED_YEAR,MATCH('Incremental Capital Summary'!$B$14,PROJECTS_LIST_SELECTED_YEAR,0)+B45))) -> 0 | I46: =IF(IRM_CYCLE_YEAR="4th year of IRM cycle", G46/2, 0) -> 0 | K46: =IF(C46="",0,1/INDEX(APP_D!B:B,MATCH('Incremental Capital Summary'!C46,APP_D!P:P,0))) -> 0 | M46: =IF(C46="",0,INDEX(APP_C!E:E,MATCH('Incremental Capital Summary'!C46,APP_C!K:K,0))) -> 0 | O46: =IF(C46="",0,INDEX(APP_C!I:I,MATCH(C46,APP_C!K:K,0))) -> 0
B47: 27 | C47: =IF(C46="","",IF(INDEX(ASSETS_LIST_SELECTED_YEAR,MATCH('Incremental Capital Summary'!$B$14,PROJECTS_LIST_SELECTED_YEAR,0)+B46)=0,"",INDEX(ASSETS_LIST_SELECTED_YEAR,MATCH('Incremental Capital Summary'!$B$14,PROJECTS_LIST_SELECTED_YEAR,0)+B46))) ->  | G47: =IF(C47="",0,IF(INDEX(ASSET_AMOUNT_SELECTED_YEAR,MATCH('Incremental Capital Summary'!$B$14,PROJECTS_LIST_SELECTED_YEAR,0)+B46)=0,0,INDEX(ASSET_AMOUNT_SELECTED_YEAR,MATCH('Incremental Capital Summary'!$B$14,PROJECTS_LIST_SELECTED_YEAR,0)+B46))) -> 0 | I47: 0 | K47: =IF(C47="",0,1/INDEX(APP_D!B:B,MATCH('Incremental Capital Summary'!C47,APP_D!P:P,0))) -> 0 | M47: =IF(C47="",0,INDEX(APP_C!E:E,MATCH('Incremental Capital Summary'!C47,APP_C!K:K,0))) -> 0 | O47: =IF(C47="",0,INDEX(APP_C!I:I,MATCH(C47,APP_C!K:K,0))) -> 0
B48: 28 | C48: =IF(C47="","",IF(INDEX(ASSETS_LIST_SELECTED_YEAR,MATCH('Incremental Capital Summary'!$B$14,PROJECTS_LIST_SELECTED_YEAR,0)+B47)=0,"",INDEX(ASSETS_LIST_SELECTED_YEAR,MATCH('Incremental Capital Summary'!$B$14,PROJECTS_LIST_SELECTED_YEAR,0)+B47))) ->  | G48: =IF(C48="",0,IF(INDEX(ASSET_AMOUNT_SELECTED_YEAR,MATCH('Incremental Capital Summary'!$B$14,PROJECTS_LIST_SELECTED_YEAR,0)+B47)=0,0,INDEX(ASSET_AMOUNT_SELECTED_YEAR,MATCH('Incremental Capital Summary'!$B$14,PROJECTS_LIST_SELECTED_YEAR,0)+B47))) -> 0 | I48: 0 | K48: =IF(C48="",0,1/INDEX(APP_D!B:B,MATCH('Incremental Capital Summary'!C48,APP_D!P:P,0))) -> 0 | M48: =IF(C48="",0,INDEX(APP_C!E:E,MATCH('Incremental Capital Summary'!C48,APP_C!K:K,0))) -> 0 | O48: =IF(C48="",0,INDEX(APP_C!I:I,MATCH(C48,APP_C!K:K,0))) -> 0
B49: 29 | C49: =IF(C48="","",IF(INDEX(ASSETS_LIST_SELECTED_YEAR,MATCH('Incremental Capital Summary'!$B$14,PROJECTS_LIST_SELECTED_YEAR,0)+B48)=0,"",INDEX(ASSETS_LIST_SELECTED_YEAR,MATCH('Incremental Capital Summary'!$B$14,PROJECTS_LIST_SELECTED_YEAR,0)+B48))) ->  | G49: =IF(C49="",0,IF(INDEX(ASSET_AMOUNT_SELECTED_YEAR,MATCH('Incremental Capital Summary'!$B$14,PROJECTS_LIST_SELECTED_YEAR,0)+B48)=0,0,INDEX(ASSET_AMOUNT_SELECTED_YEAR,MATCH('Incremental Capital Summary'!$B$14,PROJECTS_LIST_SELECTED_YEAR,0)+B48))) -> 0 | I49: 0 | K49: =IF(C49="",0,1/INDEX(APP_D!B:B,MATCH('Incremental Capital Summary'!C49,APP_D!P:P,0))) -> 0 | M49: =IF(C49="",0,INDEX(APP_C!E:E,MATCH('Incremental Capital Summary'!C49,APP_C!K:K,0))) -> 0 | O49: =IF(C49="",0,INDEX(APP_C!I:I,MATCH(C49,APP_C!K:K,0))) -> 0
B50: 30 | C50: =IF(C49="","",IF(INDEX(ASSETS_LIST_SELECTED_YEAR,MATCH('Incremental Capital Summary'!$B$14,PROJECTS_LIST_SELECTED_YEAR,0)+B49)=0,"",INDEX(ASSETS_LIST_SELECTED_YEAR,MATCH('Incremental Capital Summary'!$B$14,PROJECTS_LIST_SELECTED_YEAR,0)+B49))) ->  | G50: =IF(C50="",0,IF(INDEX(ASSET_AMOUNT_SELECTED_YEAR,MATCH('Incremental Capital Summary'!$B$14,PROJECTS_LIST_SELECTED_YEAR,0)+B49)=0,0,INDEX(ASSET_AMOUNT_SELECTED_YEAR,MATCH('Incremental Capital Summary'!$B$14,PROJECTS_LIST_SELECTED_YEAR,0)+B49))) -> 0 | I50: 0 | K50: =IF(C50="",0,1/INDEX(APP_D!B:B,MATCH('Incremental Capital Summary'!C50,APP_D!P:P,0))) -> 0 | M50: =IF(C50="",0,INDEX(APP_C!E:E,MATCH('Incremental Capital Summary'!C50,APP_C!K:K,0))) -> 0 | O50: =IF(C50="",0,INDEX(APP_C!I:I,MATCH(C50,APP_C!K:K,0))) -> 0
G52: =YEAR_SELECTED -> 2012 | K52: =IF((G52+1)<=2014,G52+1,"") -> 2013 | M52: =IF((G52+2)<=2014,G52+2,"") -> 2014
B53: Closing Net Fixed Asset | G53: =SUM('Fixed Asset Amort and UCC 1'!D32,'Fixed Asset Amort and UCC 2'!D32, 'Fixed Asset Amort and UCC 3'!D32, 'Fixed Asset Amort and UCC 4'!D32, 'Fixed Asset Amort and UCC 5'!D32,'Fixed Asset Amort and UCC 6'!D32,'Fixed Asset Amort and UCC 7'!D32,'Fixed Asset Amort and UCC 8'!D32,'Fixed Asset Amort and UCC 9'!D32,'Fixed Asset Amort and UCC 10'!D32,'Fixed Asset Amort and UCC 11'!D32,'Fixed Asset Amort and UCC 12'!D32,'Fixed Asset Amort and UCC 13'!D32,'Fixed Asset Amort and UCC 14'!D32,'Fixed Asset Amort and UCC 15'!D32,'Fixed Asset Amort and UCC 16'!D32,'Fixed Asset Amort and UCC 17'!D32,'Fixed Asset Amort and UCC 18'!D32, 'Fixed Asset Amort and UCC 19'!D32,'Fixed Asset Amort and UCC 20'!D32,'Fixed Asset Amort and UCC 21'!D32,'Fixed Asset Amort and UCC 22'!D32,'Fixed Asset Amort and UCC 23'!D32,'Fixed Asset Amort and UCC 24'!D32,'Fixed Asset Amort and UCC 25'!D32) -> 11707341.15 | K53: =SUM('Fixed Asset Amort and UCC 1'!E32,'Fixed Asset Amort and UCC 2'!E32, 'Fixed Asset Amort and UCC 3'!E32, 'Fixed Asset Amort and UCC 4'!E32, 'Fixed Asset Amort and UCC 5'!E32,'Fixed Asset Amort and UCC 6'!E32,'Fixed Asset Amort and UCC 7'!E32,'Fixed Asset Amort and UCC 8'!E32,'Fixed Asset Amort and UCC 9'!E32,'Fixed Asset Amort and UCC 10'!E32,'Fixed Asset Amort and UCC 11'!E32,'Fixed Asset Amort and UCC 12'!E32,'Fixed Asset Amort and UCC 13'!E32,'Fixed Asset Amort and UCC 14'!E32,'Fixed Asset Amort and UCC 15'!E32,'Fixed Asset Amort and UCC 16'!E32,'Fixed Asset Amort and UCC 17'!E32,'Fixed Asset Amort and UCC 18'!E32, 'Fixed Asset Amort and UCC 19'!E32,'Fixed Asset Amort and UCC 20'!E32,'Fixed Asset Amort and UCC 21'!E32,'Fixed Asset Amort and UCC 22'!E32,'Fixed Asset Amort and UCC 23'!E32,'Fixed Asset Amort and UCC 24'!E32,'Fixed Asset Amort and UCC 25'!E32) -> 11407152.91 | M53: =SUM('Fixed Asset Amort and UCC 1'!F32,'Fixed Asset Amort and UCC 2'!F32, 'Fixed Asset Amort and UCC 3'!F32, 'Fixed Asset Amort and UCC 4'!F32, 'Fixed Asset Amort and UCC 5'!F32,'Fixed Asset Amort and UCC 6'!F32,'Fixed Asset Amort and UCC 7'!F32,'Fixed Asset Amort and UCC 8'!F32,'Fixed Asset Amort and UCC 9'!F32,'Fixed Asset Amort and UCC 10'!F32,'Fixed Asset Amort and UCC 11'!F32,'Fixed Asset Amort and UCC 12'!F32,'Fixed Asset Amort and UCC 13'!F32,'Fixed Asset Amort and UCC 14'!F32,'Fixed Asset Amort and UCC 15'!F32,'Fixed Asset Amort and UCC 16'!F32,'Fixed Asset Amort and UCC 17'!F32,'Fixed Asset Amort and UCC 18'!F32, 'Fixed Asset Amort and UCC 19'!F32,'Fixed Asset Amort and UCC 20'!F32,'Fixed Asset Amort and UCC 21'!F32,'Fixed Asset Amort and UCC 22'!F32,'Fixed Asset Amort and UCC 23'!F32,'Fixed Asset Amort and UCC 24'!F32,'Fixed Asset Amort and UCC 25'!F32) -> 11106964.68
B55: Amortization Expense | G55: =SUM('Fixed Asset Amort and UCC 1'!D28,'Fixed Asset Amort and UCC 2'!D28, 'Fixed Asset Amort and UCC 3'!D28, 'Fixed Asset Amort and UCC 4'!D28, 'Fixed Asset Amort and UCC 5'!D28,'Fixed Asset Amort and UCC 6'!D28,'Fixed Asset Amort and UCC 7'!D28,'Fixed Asset Amort and UCC 8'!D28,'Fixed Asset Amort and UCC 9'!D28,'Fixed Asset Amort and UCC 10'!D28,'Fixed Asset Amort and UCC 11'!D28,'Fixed Asset Amort and UCC 12'!D28,'Fixed Asset Amort and UCC 13'!D28,'Fixed Asset Amort and UCC 14'!D28,'Fixed Asset Amort and UCC 15'!D28,'Fixed Asset Amort and UCC 16'!D28,'Fixed Asset Amort and UCC 17'!D28,'Fixed Asset Amort and UCC 18'!D28, 'Fixed Asset Amort and UCC 19'!D28,'Fixed Asset Amort and UCC 20'!D28,'Fixed Asset Amort and UCC 21'!D28,'Fixed Asset Amort and UCC 22'!D28,'Fixed Asset Amort and UCC 23'!D28,'Fixed Asset Amort and UCC 24'!D28,'Fixed Asset Amort and UCC 25'!D28) -> 300188.2345 | K55: =SUM('Fixed Asset Amort and UCC 1'!E28,'Fixed Asset Amort and UCC 2'!E28, 'Fixed Asset Amort and UCC 3'!E28, 'Fixed Asset Amort and UCC 4'!E28, 'Fixed Asset Amort and UCC 5'!E28,'Fixed Asset Amort and UCC 6'!E28,'Fixed Asset Amort and UCC 7'!E28,'Fixed Asset Amort and UCC 8'!E28,'Fixed Asset Amort and UCC 9'!E28,'Fixed Asset Amort and UCC 10'!E28,'Fixed Asset Amort and UCC 11'!E28,'Fixed Asset Amort and UCC 12'!E28,'Fixed Asset Amort and UCC 13'!E28,'Fixed Asset Amort and UCC 14'!E28,'Fixed Asset Amort and UCC 15'!E28,'Fixed Asset Amort and UCC 16'!E28,'Fixed Asset Amort and UCC 17'!E28,'Fixed Asset Amort and UCC 18'!E28, 'Fixed Asset Amort and UCC 19'!E28,'Fixed Asset Amort and UCC 20'!E28,'Fixed Asset Amort and UCC 21'!E28,'Fixed Asset Amort and UCC 22'!E28,'Fixed Asset Amort and UCC 23'!E28,'Fixed Asset Amort and UCC 24'!E28,'Fixed Asset Amort and UCC 25'!E28) -> 300188.2345 | M55: =SUM('Fixed Asset Amort and UCC 1'!F28,'Fixed Asset Amort and UCC 2'!F28, 'Fixed Asset Amort and UCC 3'!F28, 'Fixed Asset Amort and UCC 4'!F28, 'Fixed Asset Amort and UCC 5'!F28,'Fixed Asset Amort and UCC 6'!F28,'Fixed Asset Amort and UCC 7'!F28,'Fixed Asset Amort and UCC 8'!F28,'Fixed Asset Amort and UCC 9'!F28,'Fixed Asset Amort and UCC 10'!F28,'Fixed Asset Amort and UCC 11'!F28,'Fixed Asset Amort and UCC 12'!F28,'Fixed Asset Amort and UCC 13'!F28,'Fixed Asset Amort and UCC 14'!F28,'Fixed Asset Amort and UCC 15'!F28,'Fixed Asset Amort and UCC 16'!F28,'Fixed Asset Amort and UCC 17'!F28,'Fixed Asset Amort and UCC 18'!F28, 'Fixed Asset Amort and UCC 19'!F28,'Fixed Asset Amort and UCC 20'!F28,'Fixed Asset Amort and UCC 21'!F28,'Fixed Asset Amort and UCC 22'!F28,'Fixed Asset Amort and UCC 23'!F28,'Fixed Asset Amort and UCC 24'!F28,'Fixed Asset Amort and UCC 25'!F28) -> 300188.2345
B57: CCA | G57: =SUM('Fixed Asset Amort and UCC 1'!D50,'Fixed Asset Amort and UCC 2'!D50, 'Fixed Asset Amort and UCC 3'!D50, 'Fixed Asset Amort and UCC 4'!D50, 'Fixed Asset Amort and UCC 5'!D50,'Fixed Asset Amort and UCC 6'!D50,'Fixed Asset Amort and UCC 7'!D50,'Fixed Asset Amort and UCC 8'!D50,'Fixed Asset Amort and UCC 9'!D50,'Fixed Asset Amort and UCC 10'!D50,'Fixed Asset Amort and UCC 11'!D50,'Fixed Asset Amort and UCC 12'!D50,'Fixed Asset Amort and UCC 13'!D50,'Fixed Asset Amort and UCC 14'!D50,'Fixed Asset Amort and UCC 15'!D50,'Fixed Asset Amort and UCC 16'!D50,'Fixed Asset Amort and UCC 17'!D50,'Fixed Asset Amort and UCC 18'!D50, 'Fixed Asset Amort and UCC 19'!D50,'Fixed Asset Amort and UCC 20'!D50,'Fixed Asset Amort and UCC 21'!D50,'Fixed Asset Amort and UCC 22'!D50,'Fixed Asset Amort and UCC 23'!D50,'Fixed Asset Amort and UCC 24'!D50,'Fixed Asset Amort and UCC 25'!D50) -> 960602.3504 | K57: =SUM('Fixed Asset Amort and UCC 1'!E50,'Fixed Asset Amort and UCC 2'!E50, 'Fixed Asset Amort and UCC 3'!E50, 'Fixed Asset Amort and UCC 4'!E50, 'Fixed Asset Amort and UCC 5'!E50,'Fixed Asset Amort and UCC 6'!E50,'Fixed Asset Amort and UCC 7'!E50,'Fixed Asset Amort and UCC 8'!E50,'Fixed Asset Amort and UCC 9'!E50,'Fixed Asset Amort and UCC 10'!E50,'Fixed Asset Amort and UCC 11'!E50,'Fixed Asset Amort and UCC 12'!E50,'Fixed Asset Amort and UCC 13'!E50,'Fixed Asset Amort and UCC 14'!E50,'Fixed Asset Amort and UCC 15'!E50,'Fixed Asset Amort and UCC 16'!E50,'Fixed Asset Amort and UCC 17'!E50,'Fixed Asset Amort and UCC 18'!E50, 'Fixed Asset Amort and UCC 19'!E50,'Fixed Asset Amort and UCC 20'!E50,'Fixed Asset Amort and UCC 21'!E50,'Fixed Asset Amort and UCC 22'!E50,'Fixed Asset Amort and UCC 23'!E50,'Fixed Asset Amort and UCC 24'!E50,'Fixed Asset Amort and UCC 25'!E50) -> 883754.1624 | M57: =SUM('Fixed Asset Amort and UCC 1'!F50,'Fixed Asset Amort and UCC 2'!F50, 'Fixed Asset Amort and UCC 3'!F50, 'Fixed Asset Amort and UCC 4'!F50, 'Fixed Asset Amort and UCC 5'!F50,'Fixed Asset Amort and UCC 6'!F50,'Fixed Asset Amort and UCC 7'!F50,'Fixed Asset Amort and UCC 8'!F50,'Fixed Asset Amort and UCC 9'!F50,'Fixed Asset Amort and UCC 10'!F50,'Fixed Asset Amort and UCC 11'!F50,'Fixed Asset Amort and UCC 12'!F50,'Fixed Asset Amort and UCC 13'!F50,'Fixed Asset Amort and UCC 14'!F50,'Fixed Asset Amort and UCC 15'!F50,'Fixed Asset Amort and UCC 16'!F50,'Fixed Asset Amort and UCC 17'!F50,'Fixed Asset Amort and UCC 18'!F50, 'Fixed Asset Amort and UCC 19'!F50,'Fixed Asset Amort and UCC 20'!F50,'Fixed Asset Amort and UCC 21'!F50,'Fixed Asset Amort and UCC 22'!F50,'Fixed Asset Amort and UCC 23'!F50,'Fixed Asset Amort and UCC 24'!F50,'Fixed Asset Amort and UCC 25'!F50) -> 813053.8294

Sheet Fixed Asset Amort and UCC 1
B10: Fixed Asset Amortization and UCC 1
B12: Name or General Description of Project
B13: =IF(ISBLANK('Incremental Capital Summary'!B14), "", 'Incremental Capital Summary'!B14) -> C3 Handwell Replacement
B15: Asset Component
B16: =IF(ISBLANK('Incremental Capital Summary'!C21),"",'Incremental Capital Summary'!C21) -> 1830_Poles Towers and Fixtures
B19: Average Net Fixed Assets
D20: =YEAR_SELECTED -> 2012 | E20: =IF((D20+1)<=2014,D20+1,"") -> 2013 | F20: =IF((D20+2)<=2014,D20+2,"") -> 2014
B21: Net Fixed Assets | D21: Forecasted | E21: Forecasted | F21: Forecasted
B23: Opening Capital Investment | D23: 0 | E23: =D25 -> 12007529.38 | F23: =E25 -> 12007529.38
B24: Capital Investment | D24: =IF(IRM_CYCLE_YEAR="4th Year of IRM Cycle", 'Incremental Capital Summary'!G21/2, 'Incremental Capital Summary'!G21) -> 12007529.38 | E24: 0 | F24: 0
B25: Closing Capital Investment | D25: =SUM(D23:D24) -> 12007529.38 | E25: =SUM(E23:E24) -> 12007529.38 | F25: =SUM(F23:F24) -> 12007529.38
B27: Opening Accumulated Amortization | D27: 0 | E27: =D29 -> 300188.2345 | F27: =E29 -> 600376.469
B28: Amortization | C28: ='Incremental Capital Summary'!K21 -> 0.025 | D28: =D24*$C$28 -> 300188.2345 | E28: =E23*$C$28 -> 300188.2345 | F28: =F23*$C$28 -> 300188.2345
B29: Closing Accumulated Amortization | D29: =SUM(D27:D28) -> 300188.2345 | E29: =SUM(E27:E28) -> 600376.469 | F29: =SUM(F27:F28) -> 900564.7035
B31: Opening Net Fixed Assets | D31: 0 | E31: =E23-E27 -> 11707341.15 | F31: =F23-F27 -> 11407152.91
B32: Closing Net Fixed Assets | D32: =D25-D29 -> 11707341.15 | E32: =E25-E29 -> 11407152.91 | F32: =F25-F29 -> 11106964.68
B33: Average Net Fixed Assets | D33: =SUM(D31:D32)/2 -> 5853670.573 | E33: =SUM(E31:E32)/2 -> 11557247.03 | F33: =SUM(F31:F32)/2 -> 11257058.79
B38: For PILs Calculation
B40: UCC | D40: =YEAR_SELECTED -> 2012 | E40: =IF((D40+1)<=2014,D40+1,"") -> 2013 | F40: =IF((D40+2)<=2014,D40+2,"") -> 2014
D41: Forecasted | E41: Forecasted | F41: Forecasted
B43: Opening UCC | D43: 0 | E43: =D51 -> 11046927.03 | F43: =E51 -> 10163172.87
B44: Capital Additions | D44: =D24 -> 12007529.38 | E44: =E24 -> 0 | F44: =F24 -> 0
B45: UCC Before Half Year Rule | D45: =SUM(D43:D44) -> 12007529.38 | E45: =SUM(E43:E44) -> 11046927.03 | F45: =SUM(F43:F44) -> 10163172.87
B46: Half Year Rule (1/2 Additions - Disposals) | D46: 0 | E46: =E44/2 -> 0 | F46: =F44/2 -> 0
B47: Reduced UCC | D47: =D45-D46 -> 12007529.38 | E47: =E45-E46 -> 11046927.03 | F47: =F45-F46 -> 10163172.87
B48: CCA Rate Class | C48: ='Incremental Capital Summary'!M21 -> 47
B49: CCA Rate | C49: ='Incremental Capital Summary'!O21 -> 0.08
B50: CCA | D50: =D47*$C$49 -> 960602.3504 | E50: =E47*$C$49 -> 883754.1624 | F50: =F47*$C$49 -> 813053.8294
B51: Closing UCC | D51: =D45-D50 -> 11046927.03 | E51: =E45-E50 -> 10163172.87 | F51: =F45-F50 -> 9350119.038

Sheet Fixed Asset Amort and UCC 2 (hidden)
B10: Fixed Asset Amortization and UCC 2
B12: Name or General Description of Project
B13: =IF(ISBLANK('Incremental Capital Summary'!B14), "", 'Incremental Capital Summary'!B14) -> C3 Handwell Replacement
B15: Asset Component
B16: =IF(ISBLANK('Incremental Capital Summary'!C22),"",'Incremental Capital Summary'!C22) -> 
B19: Average Net Fixed Assets
D20: =YEAR_SELECTED -> 2012 | E20: =IF((D20+1)<=2014,D20+1,"") -> 2013 | F20: =IF((D20+2)<=2014,D20+2,"") -> 2014
B21: Net Fixed Assets | D21: Forecasted | E21: Forecasted | F21: Forecasted
B23: Opening Capital Investment | D23: 0 | E23: =D25 -> 0 | F23: =E25 -> 0
B24: Capital Investment | D24: =IF(IRM_CYCLE_YEAR="4th Year of IRM Cycle", 'Incremental Capital Summary'!G22/2, 'Incremental Capital Summary'!G22) -> 0 | E24: 0 | F24: 0
B25: Closing Capital Investment | D25: =SUM(D23:D24) -> 0 | E25: =SUM(E23:E24) -> 0 | F25: =SUM(F23:F24) -> 0
B27: Opening Accumulated Amortization | D27: 0 | E27: =D29 -> 0 | F27: =E29 -> 0
B28: Amortization | C28: ='Incremental Capital Summary'!K22 -> 0 | D28: =D24*$C$28 -> 0 | E28: =E23*$C$28 -> 0 | F28: =F23*$C$28 -> 0
B29: Closing Accumulated Amortization | D29: =SUM(D27:D28) -> 0 | E29: =SUM(E27:E28) -> 0 | F29: =SUM(F27:F28) -> 0
B31: Opening Net Fixed Assets | D31: 0 | E31: =E23-E27 -> 0 | F31: =F23-F27 -> 0
B32: Closing Net Fixed Assets | D32: =D25-D29 -> 0 | E32: =E25-E29 -> 0 | F32: =F25-F29 -> 0
B33: Average Net Fixed Assets | D33: =SUM(D31:D32)/2 -> 0 | E33: =SUM(E31:E32)/2 -> 0 | F33: =SUM(F31:F32)/2 -> 0
B38: For PILs Calculation
B40: UCC | D40: =YEAR_SELECTED -> 2012 | E40: =IF((D40+1)<=2014,D40+1,"") -> 2013 | F40: =IF((D40+2)<=2014,D40+2,"") -> 2014
D41: Forecasted | E41: Forecasted | F41: Forecasted
B43: Opening UCC | D43: 0 | E43: =D51 -> 0 | F43: =E51 -> 0
B44: Capital Additions | D44: =D24 -> 0 | E44: =E24 -> 0 | F44: =F24 -> 0
B45: UCC Before Half Year Rule | D45: =SUM(D43:D44) -> 0 | E45: =SUM(E43:E44) -> 0 | F45: =SUM(F43:F44) -> 0
B46: Half Year Rule (1/2 Additions - Disposals) | D46: 0 | E46: =E44/2 -> 0 | F46: =F44/2 -> 0
B47: Reduced UCC | D47: =D45-D46 -> 0 | E47: =E45-E46 -> 0 | F47: =F45-F46 -> 0
B48: CCA Rate Class | C48: ='Incremental Capital Summary'!M22 -> 0
B49: CCA Rate | C49: ='Incremental Capital Summary'!O22 -> 0
B50: CCA | D50: =D47*$C$49 -> 0 | E50: =E47*$C$49 -> 0 | F50: =F47*$C$49 -> 0
B51: Closing UCC | D51: =D45-D50 -> 0 | E51: =E45-E50 -> 0 | F51: =F45-F50 -> 0

Sheet Fixed Asset Amort and UCC 3 (hidden)
B10: Fixed Asset Amortization and UCC 3
B12: Name or General Description of Project
B13: =IF(ISBLANK('Incremental Capital Summary'!B14), "", 'Incremental Capital Summary'!B14) -> C3 Handwell Replacement
B15: Asset Component
B16: =IF(ISBLANK('Incremental Capital Summary'!C23),"",'Incremental Capital Summary'!C23) -> 
B19: Average Net Fixed Assets
D20: =YEAR_SELECTED -> 2012 | E20: =IF((D20+1)<=2014,D20+1,"") -> 2013 | F20: =IF((D20+2)<=2014,D20+2,"") -> 2014
B21: Net Fixed Assets | D21: Forecasted | E21: Forecasted | F21: Forecasted
B23: Opening Capital Investment | D23: 0 | E23: =D25 -> 0 | F23: =E25 -> 0
B24: Capital Investment | D24: =IF(IRM_CYCLE_YEAR="4th Year of IRM Cycle", 'Incremental Capital Summary'!G23/2, 'Incremental Capital Summary'!G23) -> 0 | E24: 0 | F24: 0
B25: Closing Capital Investment | D25: =SUM(D23:D24) -> 0 | E25: =SUM(E23:E24) -> 0 | F25: =SUM(F23:F24) -> 0
B27: Opening Accumulated Amortization | D27: 0 | E27: =D29 -> 0 | F27: =E29 -> 0
B28: Amortization | C28: ='Incremental Capital Summary'!K23 -> 0 | D28: =D24*$C$28 -> 0 | E28: =E23*$C$28 -> 0 | F28: =F23*$C$28 -> 0
B29: Closing Accumulated Amortization | D29: =SUM(D27:D28) -> 0 | E29: =SUM(E27:E28) -> 0 | F29: =SUM(F27:F28) -> 0
B31: Opening Net Fixed Assets | D31: 0 | E31: =E23-E27 -> 0 | F31: =F23-F27 -> 0
B32: Closing Net Fixed Assets | D32: =D25-D29 -> 0 | E32: =E25-E29 -> 0 | F32: =F25-F29 -> 0
B33: Average Net Fixed Assets | D33: =SUM(D31:D32)/2 -> 0 | E33: =SUM(E31:E32)/2 -> 0 | F33: =SUM(F31:F32)/2 -> 0
B38: For PILs Calculation
B40: UCC | D40: =YEAR_SELECTED -> 2012 | E40: =IF((D40+1)<=2014,D40+1,"") -> 2013 | F40: =IF((D40+2)<=2014,D40+2,"") -> 2014
D41: Forecasted | E41: Forecasted | F41: Forecasted
B43: Opening UCC | D43: 0 | E43: =D51 -> 0 | F43: =E51 -> 0
B44: Capital Additions | D44: =D24 -> 0 | E44: =E24 -> 0 | F44: =F24 -> 0
B45: UCC Before Half Year Rule | D45: =SUM(D43:D44) -> 0 | E45: =SUM(E43:E44) -> 0 | F45: =SUM(F43:F44) -> 0
B46: Half Year Rule (1/2 Additions - Disposals) | D46: 0 | E46: =E44/2 -> 0 | F46: =F44/2 -> 0
B47: Reduced UCC | D47: =D45-D46 -> 0 | E47: =E45-E46 -> 0 | F47: =F45-F46 -> 0
B48: CCA Rate Class | C48: ='Incremental Capital Summary'!M23 -> 0
B49: CCA Rate | C49: ='Incremental Capital Summary'!O23 -> 0
B50: CCA | D50: =D47*$C$49 -> 0 | E50: =E47*$C$49 -> 0 | F50: =F47*$C$49 -> 0
B51: Closing UCC | D51: =D45-D50 -> 0 | E51: =E45-E50 -> 0 | F51: =F45-F50 -> 0

Sheet Fixed Asset Amort and UCC 4 (hidden)
B10: Fixed Asset Amortization and UCC 4
B12: Name or General Description of Project
B13: =IF(ISBLANK('Incremental Capital Summary'!B14), "", 'Incremental Capital Summary'!B14) -> C3 Handwell Replacement
B15: Asset Component
B16: =IF(ISBLANK('Incremental Capital Summary'!C24),"",'Incremental Capital Summary'!C24) -> 
B19: Average Net Fixed Assets
D20: =YEAR_SELECTED -> 2012 | E20: =IF((D20+1)<=2014,D20+1,"") -> 2013 | F20: =IF((D20+2)<=2014,D20+2,"") -> 2014
B21: Net Fixed Assets | D21: Forecasted | E21: Forecasted | F21: Forecasted
B23: Opening Capital Investment | D23: 0 | E23: =D25 -> 0 | F23: =E25 -> 0
B24: Capital Investment | D24: =IF(IRM_CYCLE_YEAR="4th Year of IRM Cycle", 'Incremental Capital Summary'!G24/2, 'Incremental Capital Summary'!G24) -> 0 | E24: 0 | F24: 0
B25: Closing Capital Investment | D25: =SUM(D23:D24) -> 0 | E25: =SUM(E23:E24) -> 0 | F25: =SUM(F23:F24) -> 0
B27: Opening Accumulated Amortization | D27: 0 | E27: =D29 -> 0 | F27: =E29 -> 0
B28: Amortization | C28: ='Incremental Capital Summary'!K24 -> 0 | D28: =D24*$C$28 -> 0 | E28: =E23*$C$28 -> 0 | F28: =F23*$C$28 -> 0
B29: Closing Accumulated Amortization | D29: =SUM(D27:D28) -> 0 | E29: =SUM(E27:E28) -> 0 | F29: =SUM(F27:F28) -> 0
B31: Opening Net Fixed Assets | D31: 0 | E31: =E23-E27 -> 0 | F31: =F23-F27 -> 0
B32: Closing Net Fixed Assets | D32: =D25-D29 -> 0 | E32: =E25-E29 -> 0 | F32: =F25-F29 -> 0
B33: Average Net Fixed Assets | D33: =SUM(D31:D32)/2 -> 0 | E33: =SUM(E31:E32)/2 -> 0 | F33: =SUM(F31:F32)/2 -> 0
B38: For PILs Calculation
B40: UCC | D40: =YEAR_SELECTED -> 2012 | E40: =IF((D40+1)<=2014,D40+1,"") -> 2013 | F40: =IF((D40+2)<=2014,D40+2,"") -> 2014
D41: Forecasted | E41: Forecasted | F41: Forecasted
B43: Opening UCC | D43: 0 | E43: =D51 -> 0 | F43: =E51 -> 0
B44: Capital Additions | D44: =D24 -> 0 | E44: =E24 -> 0 | F44: =F24 -> 0
B45: UCC Before Half Year Rule | D45: =SUM(D43:D44) -> 0 | E45: =SUM(E43:E44) -> 0 | F45: =SUM(F43:F44) -> 0
B46: Half Year Rule (1/2 Additions - Disposals) | D46: 0 | E46: =E44/2 -> 0 | F46: =F44/2 -> 0
B47: Reduced UCC | D47: =D45-D46 -> 0 | E47: =E45-E46 -> 0 | F47: =F45-F46 -> 0
B48: CCA Rate Class | C48: ='Incremental Capital Summary'!M24 -> 0
B49: CCA Rate | C49: ='Incremental Capital Summary'!O24 -> 0
B50: CCA | D50: =D47*$C$49 -> 0 | E50: =E47*$C$49 -> 0 | F50: =F47*$C$49 -> 0
B51: Closing UCC | D51: =D45-D50 -> 0 | E51: =E45-E50 -> 0 | F51: =F45-F50 -> 0

Sheet Fixed Asset Amort and UCC 5 (hidden)
B10: Fixed Asset Amortization and UCC 5
B12: Name or General Description of Project
B13: =IF(ISBLANK('Incremental Capital Summary'!B14), "", 'Incremental Capital Summary'!B14) -> C3 Handwell Replacement
B15: Asset Component
B16: =IF(ISBLANK('Incremental Capital Summary'!C25),"",'Incremental Capital Summary'!C25) -> 
B19: Average Net Fixed Assets
D20: =YEAR_SELECTED -> 2012 | E20: =IF((D20+1)<=2014,D20+1,"") -> 2013 | F20: =IF((D20+2)<=2014,D20+2,"") -> 2014
B21: Net Fixed Assets | D21: Forecasted | E21: Forecasted | F21: Forecasted
B23: Opening Capital Investment | D23: 0 | E23: =D25 -> 0 | F23: =E25 -> 0
B24: Capital Investment | D24: =IF(IRM_CYCLE_YEAR="4th Year of IRM Cycle", 'Incremental Capital Summary'!G25/2, 'Incremental Capital Summary'!G25) -> 0 | E24: 0 | F24: 0
B25: Closing Capital Investment | D25: =SUM(D23:D24) -> 0 | E25: =SUM(E23:E24) -> 0 | F25: =SUM(F23:F24) -> 0
B27: Opening Accumulated Amortization | D27: 0 | E27: =D29 -> 0 | F27: =E29 -> 0
B28: Amortization | C28: ='Incremental Capital Summary'!K25 -> 0 | D28: =D24*$C$28 -> 0 | E28: =E23*$C$28 -> 0 | F28: =F23*$C$28 -> 0
B29: Closing Accumulated Amortization | D29: =SUM(D27:D28) -> 0 | E29: =SUM(E27:E28) -> 0 | F29: =SUM(F27:F28) -> 0
B31: Opening Net Fixed Assets | D31: 0 | E31: =E23-E27 -> 0 | F31: =F23-F27 -> 0
B32: Closing Net Fixed Assets | D32: =D25-D29 -> 0 | E32: =E25-E29 -> 0 | F32: =F25-F29 -> 0
B33: Average Net Fixed Assets | D33: =SUM(D31:D32)/2 -> 0 | E33: =SUM(E31:E32)/2 -> 0 | F33: =SUM(F31:F32)/2 -> 0
B38: For PILs Calculation
B40: UCC | D40: =YEAR_SELECTED -> 2012 | E40: =IF((D40+1)<=2014,D40+1,"") -> 2013 | F40: =IF((D40+2)<=2014,D40+2,"") -> 2014
D41: Forecasted | E41: Forecasted | F41: Forecasted
B43: Opening UCC | D43: 0 | E43: =D51 -> 0 | F43: =E51 -> 0
B44: Capital Additions | D44: =D24 -> 0 | E44: =E24 -> 0 | F44: =F24 -> 0
B45: UCC Before Half Year Rule | D45: =SUM(D43:D44) -> 0 | E45: =SUM(E43:E44) -> 0 | F45: =SUM(F43:F44) -> 0
B46: Half Year Rule (1/2 Additions - Disposals) | D46: 0 | E46: =E44/2 -> 0 | F46: =F44/2 -> 0
B47: Reduced UCC | D47: =D45-D46 -> 0 | E47: =E45-E46 -> 0 | F47: =F45-F46 -> 0
B48: CCA Rate Class | C48: ='Incremental Capital Summary'!M25 -> 0
B49: CCA Rate | C49: ='Incremental Capital Summary'!O25 -> 0
B50: CCA | D50: =D47*$C$49 -> 0 | E50: =E47*$C$49 -> 0 | F50: =F47*$C$49 -> 0
B51: Closing UCC | D51: =D45-D50 -> 0 | E51: =E45-E50 -> 0 | F51: =F45-F50 -> 0

Sheet Fixed Asset Amort and UCC 6 (hidden)
B10: Fixed Asset Amortization and UCC 6
B12: Name or General Description of Project
B13: =IF(ISBLANK('Incremental Capital Summary'!B14), "", 'Incremental Capital Summary'!B14) -> C3 Handwell Replacement
B15: Asset Component
B16: =IF(ISBLANK('Incremental Capital Summary'!C26),"",'Incremental Capital Summary'!C26) -> 
B19: Average Net Fixed Assets
D20: =YEAR_SELECTED -> 2012 | E20: =IF((D20+1)<=2014,D20+1,"") -> 2013 | F20: =IF((D20+2)<=2014,D20+2,"") -> 2014
B21: Net Fixed Assets | D21: Forecasted | E21: Forecasted | F21: Forecasted
B23: Opening Capital Investment | D23: 0 | E23: =D25 -> 0 | F23: =E25 -> 0
B24: Capital Investment | D24: =IF(IRM_CYCLE_YEAR="4th Year of IRM Cycle", 'Incremental Capital Summary'!G26/2, 'Incremental Capital Summary'!G26) -> 0 | E24: 0 | F24: 0
B25: Closing Capital Investment | D25: =SUM(D23:D24) -> 0 | E25: =SUM(E23:E24) -> 0 | F25: =SUM(F23:F24) -> 0
B27: Opening Accumulated Amortization | D27: 0 | E27: =D29 -> 0 | F27: =E29 -> 0
B28: Amortization | C28: ='Incremental Capital Summary'!K26 -> 0 | D28: =D24*$C$28 -> 0 | E28: =E23*$C$28 -> 0 | F28: =F23*$C$28 -> 0
B29: Closing Accumulated Amortization | D29: =SUM(D27:D28) -> 0 | E29: =SUM(E27:E28) -> 0 | F29: =SUM(F27:F28) -> 0
B31: Opening Net Fixed Assets | D31: 0 | E31: =E23-E27 -> 0 | F31: =F23-F27 -> 0
B32: Closing Net Fixed Assets | D32: =D25-D29 -> 0 | E32: =E25-E29 -> 0 | F32: =F25-F29 -> 0
B33: Average Net Fixed Assets | D33: =SUM(D31:D32)/2 -> 0 | E33: =SUM(E31:E32)/2 -> 0 | F33: =SUM(F31:F32)/2 -> 0
B38: For PILs Calculation
B40: UCC | D40: =YEAR_SELECTED -> 2012 | E40: =IF((D40+1)<=2014,D40+1,"") -> 2013 | F40: =IF((D40+2)<=2014,D40+2,"") -> 2014
D41: Forecasted | E41: Forecasted | F41: Forecasted
B43: Opening UCC | D43: 0 | E43: =D51 -> 0 | F43: =E51 -> 0
B44: Capital Additions | D44: =D24 -> 0 | E44: =E24 -> 0 | F44: =F24 -> 0
B45: UCC Before Half Year Rule | D45: =SUM(D43:D44) -> 0 | E45: =SUM(E43:E44) -> 0 | F45: =SUM(F43:F44) -> 0
B46: Half Year Rule (1/2 Additions - Disposals) | D46: 0 | E46: =E44/2 -> 0 | F46: =F44/2 -> 0
B47: Reduced UCC | D47: =D45-D46 -> 0 | E47: =E45-E46 -> 0 | F47: =F45-F46 -> 0
B48: CCA Rate Class | C48: ='Incremental Capital Summary'!M26 -> 0
B49: CCA Rate | C49: ='Incremental Capital Summary'!O26 -> 0
B50: CCA | D50: =D47*$C$49 -> 0 | E50: =E47*$C$49 -> 0 | F50: =F47*$C$49 -> 0
B51: Closing UCC | D51: =D45-D50 -> 0 | E51: =E45-E50 -> 0 | F51: =F45-F50 -> 0

Sheet Fixed Asset Amort and UCC 7 (hidden)
B10: Fixed Asset Amortization and UCC 7
B12: Name or General Description of Project
B13: =IF(ISBLANK('Incremental Capital Summary'!B14), "", 'Incremental Capital Summary'!B14) -> C3 Handwell Replacement
B15: Asset Component
B16: =IF(ISBLANK('Incremental Capital Summary'!C27),"",'Incremental Capital Summary'!C27) -> 
B19: Average Net Fixed Assets
D20: =YEAR_SELECTED -> 2012 | E20: =IF((D20+1)<=2014,D20+1,"") -> 2013 | F20: =IF((D20+2)<=2014,D20+2,"") -> 2014
B21: Net Fixed Assets | D21: Forecasted | E21: Forecasted | F21: Forecasted
B23: Opening Capital Investment | D23: 0 | E23: =D25 -> 0 | F23: =E25 -> 0
B24: Capital Investment | D24: =IF(IRM_CYCLE_YEAR="4th Year of IRM Cycle", 'Incremental Capital Summary'!G27/2, 'Incremental Capital Summary'!G27) -> 0 | E24: 0 | F24: 0
B25: Closing Capital Investment | D25: =SUM(D23:D24) -> 0 | E25: =SUM(E23:E24) -> 0 | F25: =SUM(F23:F24) -> 0
B27: Opening Accumulated Amortization | D27: 0 | E27: =D29 -> 0 | F27: =E29 -> 0
B28: Amortization | C28: ='Incremental Capital Summary'!K27 -> 0 | D28: =D24*$C$28 -> 0 | E28: =E23*$C$28 -> 0 | F28: =F23*$C$28 -> 0
B29: Closing Accumulated Amortization | D29: =SUM(D27:D28) -> 0 | E29: =SUM(E27:E28) -> 0 | F29: =SUM(F27:F28) -> 0
B31: Opening Net Fixed Assets | D31: 0 | E31: =E23-E27 -> 0 | F31: =F23-F27 -> 0
B32: Closing Net Fixed Assets | D32: =D25-D29 -> 0 | E32: =E25-E29 -> 0 | F32: =F25-F29 -> 0
B33: Average Net Fixed Assets | D33: =SUM(D31:D32)/2 -> 0 | E33: =SUM(E31:E32)/2 -> 0 | F33: =SUM(F31:F32)/2 -> 0
B38: For PILs Calculation
B40: UCC | D40: =YEAR_SELECTED -> 2012 | E40: =IF((D40+1)<=2014,D40+1,"") -> 2013 | F40: =IF((D40+2)<=2014,D40+2,"") -> 2014
D41: Forecasted | E41: Forecasted | F41: Forecasted
B43: Opening UCC | D43: 0 | E43: =D51 -> 0 | F43: =E51 -> 0
B44: Capital Additions | D44: =D24 -> 0 | E44: =E24 -> 0 | F44: =F24 -> 0
B45: UCC Before Half Year Rule | D45: =SUM(D43:D44) -> 0 | E45: =SUM(E43:E44) -> 0 | F45: =SUM(F43:F44) -> 0
B46: Half Year Rule (1/2 Additions - Disposals) | D46: 0 | E46: =E44/2 -> 0 | F46: =F44/2 -> 0
B47: Reduced UCC | D47: =D45-D46 -> 0 | E47: =E45-E46 -> 0 | F47: =F45-F46 -> 0
B48: CCA Rate Class | C48: ='Incremental Capital Summary'!M27 -> 0
B49: CCA Rate | C49: ='Incremental Capital Summary'!O27 -> 0
B50: CCA | D50: =D47*$C$49 -> 0 | E50: =E47*$C$49 -> 0 | F50: =F47*$C$49 -> 0
B51: Closing UCC | D51: =D45-D50 -> 0 | E51: =E45-E50 -> 0 | F51: =F45-F50 -> 0

Sheet Fixed Asset Amort and UCC 8 (hidden)
B10: Fixed Asset Amortization and UCC 8
B12: Name or General Description of Project
B13: =IF(ISBLANK('Incremental Capital Summary'!B14), "", 'Incremental Capital Summary'!B14) -> C3 Handwell Replacement
B15: Asset Component
B16: =IF(ISBLANK('Incremental Capital Summary'!C28),"",'Incremental Capital Summary'!C28) -> 
B19: Average Net Fixed Assets
D20: =YEAR_SELECTED -> 2012 | E20: =IF((D20+1)<=2014,D20+1,"") -> 2013 | F20: =IF((D20+2)<=2014,D20+2,"") -> 2014
B21: Net Fixed Assets | D21: Forecasted | E21: Forecasted | F21: Forecasted
B23: Opening Capital Investment | D23: 0 | E23: =D25 -> 0 | F23: =E25 -> 0
B24: Capital Investment | D24: =IF(IRM_CYCLE_YEAR="4th Year of IRM Cycle", 'Incremental Capital Summary'!G28/2, 'Incremental Capital Summary'!G28) -> 0 | E24: 0 | F24: 0
B25: Closing Capital Investment | D25: =SUM(D23:D24) -> 0 | E25: =SUM(E23:E24) -> 0 | F25: =SUM(F23:F24) -> 0
B27: Opening Accumulated Amortization | D27: 0 | E27: =D29 -> 0 | F27: =E29 -> 0
B28: Amortization | C28: ='Incremental Capital Summary'!K28 -> 0 | D28: =D24*$C$28 -> 0 | E28: =E23*$C$28 -> 0 | F28: =F23*$C$28 -> 0
B29: Closing Accumulated Amortization | D29: =SUM(D27:D28) -> 0 | E29: =SUM(E27:E28) -> 0 | F29: =SUM(F27:F28) -> 0
B31: Opening Net Fixed Assets | D31: 0 | E31: =E23-E27 -> 0 | F31: =F23-F27 -> 0
B32: Closing Net Fixed Assets | D32: =D25-D29 -> 0 | E32: =E25-E29 -> 0 | F32: =F25-F29 -> 0
B33: Average Net Fixed Assets | D33: =SUM(D31:D32)/2 -> 0 | E33: =SUM(E31:E32)/2 -> 0 | F33: =SUM(F31:F32)/2 -> 0
B38: For PILs Calculation
B40: UCC | D40: =YEAR_SELECTED -> 2012 | E40: =IF((D40+1)<=2014,D40+1,"") -> 2013 | F40: =IF((D40+2)<=2014,D40+2,"") -> 2014
D41: Forecasted | E41: Forecasted | F41: Forecasted
B43: Opening UCC | D43: 0 | E43: =D51 -> 0 | F43: =E51 -> 0
B44: Capital Additions | D44: =D24 -> 0 | E44: =E24 -> 0 | F44: =F24 -> 0
B45: UCC Before Half Year Rule | D45: =SUM(D43:D44) -> 0 | E45: =SUM(E43:E44) -> 0 | F45: =SUM(F43:F44) -> 0
B46: Half Year Rule (1/2 Additions - Disposals) | D46: 0 | E46: =E44/2 -> 0 | F46: =F44/2 -> 0
B47: Reduced UCC | D47: =D45-D46 -> 0 | E47: =E45-E46 -> 0 | F47: =F45-F46 -> 0
B48: CCA Rate Class | C48: ='Incremental Capital Summary'!M28 -> 0
B49: CCA Rate | C49: ='Incremental Capital Summary'!O28 -> 0
B50: CCA | D50: =D47*$C$49 -> 0 | E50: =E47*$C$49 -> 0 | F50: =F47*$C$49 -> 0
B51: Closing UCC | D51: =D45-D50 -> 0 | E51: =E45-E50 -> 0 | F51: =F45-F50 -> 0

Sheet Fixed Asset Amort and UCC 9 (hidden)
B10: Fixed Asset Amortization and UCC 9
B12: Name or General Description of Project
B13: =IF(ISBLANK('Incremental Capital Summary'!B14), "", 'Incremental Capital Summary'!B14) -> C3 Handwell Replacement
B15: Asset Component
B16: =IF(ISBLANK('Incremental Capital Summary'!C29),"",'Incremental Capital Summary'!C29) -> 
B19: Average Net Fixed Assets
D20: =YEAR_SELECTED -> 2012 | E20: =IF((D20+1)<=2014,D20+1,"") -> 2013 | F20: =IF((D20+2)<=2014,D20+2,"") -> 2014
B21: Net Fixed Assets | D21: Forecasted | E21: Forecasted | F21: Forecasted
B23: Opening Capital Investment | D23: 0 | E23: =D25 -> 0 | F23: =E25 -> 0
B24: Capital Investment | D24: =IF(IRM_CYCLE_YEAR="4th Year of IRM Cycle", 'Incremental Capital Summary'!G29/2, 'Incremental Capital Summary'!G29) -> 0 | E24: 0 | F24: 0
B25: Closing Capital Investment | D25: =SUM(D23:D24) -> 0 | E25: =SUM(E23:E24) -> 0 | F25: =SUM(F23:F24) -> 0
B27: Opening Accumulated Amortization | D27: 0 | E27: =D29 -> 0 | F27: =E29 -> 0
B28: Amortization | C28: ='Incremental Capital Summary'!K29 -> 0 | D28: =D24*$C$28 -> 0 | E28: =E23*$C$28 -> 0 | F28: =F23*$C$28 -> 0
B29: Closing Accumulated Amortization | D29: =SUM(D27:D28) -> 0 | E29: =SUM(E27:E28) -> 0 | F29: =SUM(F27:F28) -> 0
B31: Opening Net Fixed Assets | D31: 0 | E31: =E23-E27 -> 0 | F31: =F23-F27 -> 0
B32: Closing Net Fixed Assets | D32: =D25-D29 -> 0 | E32: =E25-E29 -> 0 | F32: =F25-F29 -> 0
B33: Average Net Fixed Assets | D33: =SUM(D31:D32)/2 -> 0 | E33: =SUM(E31:E32)/2 -> 0 | F33: =SUM(F31:F32)/2 -> 0
B38: For PILs Calculation
B40: UCC | D40: =YEAR_SELECTED -> 2012 | E40: =IF((D40+1)<=2014,D40+1,"") -> 2013 | F40: =IF((D40+2)<=2014,D40+2,"") -> 2014
D41: Forecasted | E41: Forecasted | F41: Forecasted
B43: Opening UCC | D43: 0 | E43: =D51 -> 0 | F43: =E51 -> 0
B44: Capital Additions | D44: =D24 -> 0 | E44: =E24 -> 0 | F44: =F24 -> 0
B45: UCC Before Half Year Rule | D45: =SUM(D43:D44) -> 0 | E45: =SUM(E43:E44) -> 0 | F45: =SUM(F43:F44) -> 0
B46: Half Year Rule (1/2 Additions - Disposals) | D46: 0 | E46: =E44/2 -> 0 | F46: =F44/2 -> 0
B47: Reduced UCC | D47: =D45-D46 -> 0 | E47: =E45-E46 -> 0 | F47: =F45-F46 -> 0
B48: CCA Rate Class | C48: ='Incremental Capital Summary'!M29 -> 0
B49: CCA Rate | C49: ='Incremental Capital Summary'!O29 -> 0
B50: CCA | D50: =D47*$C$49 -> 0 | E50: =E47*$C$49 -> 0 | F50: =F47*$C$49 -> 0
B51: Closing UCC | D51: =D45-D50 -> 0 | E51: =E45-E50 -> 0 | F51: =F45-F50 -> 0

Sheet Fixed Asset Amort and UCC 10 (hidden)
B10: Fixed Asset Amortization and UCC 10
B12: Name or General Description of Project
B13: =IF(ISBLANK('Incremental Capital Summary'!B14), "", 'Incremental Capital Summary'!B14) -> C3 Handwell Replacement
B15: Asset Component
B16: =IF(ISBLANK('Incremental Capital Summary'!C30),"",'Incremental Capital Summary'!C30) -> 
B19: Average Net Fixed Assets
D20: =YEAR_SELECTED -> 2012 | E20: =IF((D20+1)<=2014,D20+1,"") -> 2013 | F20: =IF((D20+2)<=2014,D20+2,"") -> 2014
B21: Net Fixed Assets | D21: Forecasted | E21: Forecasted | F21: Forecasted
B23: Opening Capital Investment | D23: 0 | E23: =D25 -> 0 | F23: =E25 -> 0
B24: Capital Investment | D24: =IF(IRM_CYCLE_YEAR="4th Year of IRM Cycle", 'Incremental Capital Summary'!G30/2, 'Incremental Capital Summary'!G30) -> 0 | E24: 0 | F24: 0
B25: Closing Capital Investment | D25: =SUM(D23:D24) -> 0 | E25: =SUM(E23:E24) -> 0 | F25: =SUM(F23:F24) -> 0
B27: Opening Accumulated Amortization | D27: 0 | E27: =D29 -> 0 | F27: =E29 -> 0
B28: Amortization | C28: ='Incremental Capital Summary'!K30 -> 0 | D28: =D24*$C$28 -> 0 | E28: =E23*$C$28 -> 0 | F28: =F23*$C$28 -> 0
B29: Closing Accumulated Amortization | D29: =SUM(D27:D28) -> 0 | E29: =SUM(E27:E28) -> 0 | F29: =SUM(F27:F28) -> 0
B31: Opening Net Fixed Assets | D31: 0 | E31: =E23-E27 -> 0 | F31: =F23-F27 -> 0
B32: Closing Net Fixed Assets | D32: =D25-D29 -> 0 | E32: =E25-E29 -> 0 | F32: =F25-F29 -> 0
B33: Average Net Fixed Assets | D33: =SUM(D31:D32)/2 -> 0 | E33: =SUM(E31:E32)/2 -> 0 | F33: =SUM(F31:F32)/2 -> 0
B38: For PILs Calculation
B40: UCC | D40: =YEAR_SELECTED -> 2012 | E40: =IF((D40+1)<=2014,D40+1,"") -> 2013 | F40: =IF((D40+2)<=2014,D40+2,"") -> 2014
D41: Forecasted | E41: Forecasted | F41: Forecasted
B43: Opening UCC | D43: 0 | E43: =D51 -> 0 | F43: =E51 -> 0
B44: Capital Additions | D44: =D24 -> 0 | E44: =E24 -> 0 | F44: =F24 -> 0
B45: UCC Before Half Year Rule | D45: =SUM(D43:D44) -> 0 | E45: =SUM(E43:E44) -> 0 | F45: =SUM(F43:F44) -> 0
B46: Half Year Rule (1/2 Additions - Disposals) | D46: 0 | E46: =E44/2 -> 0 | F46: =F44/2 -> 0
B47: Reduced UCC | D47: =D45-D46 -> 0 | E47: =E45-E46 -> 0 | F47: =F45-F46 -> 0
B48: CCA Rate Class | C48: ='Incremental Capital Summary'!M30 -> 0
B49: CCA Rate | C49: ='Incremental Capital Summary'!O30 -> 0
B50: CCA | D50: =D47*$C$49 -> 0 | E50: =E47*$C$49 -> 0 | F50: =F47*$C$49 -> 0
B51: Closing UCC | D51: =D45-D50 -> 0 | E51: =E45-E50 -> 0 | F51: =F45-F50 -> 0

Sheet Fixed Asset Amort and UCC 11 (hidden)
B10: Fixed Asset Amortization and UCC 11
B12: Name or General Description of Project
B13: =IF(ISBLANK('Incremental Capital Summary'!B14), "", 'Incremental Capital Summary'!B14) -> C3 Handwell Replacement
B15: Asset Component
B16: =IF(ISBLANK('Incremental Capital Summary'!C31),"",'Incremental Capital Summary'!C31) -> 
B19: Average Net Fixed Assets
D20: =YEAR_SELECTED -> 2012 | E20: =IF((D20+1)<=2014,D20+1,"") -> 2013 | F20: =IF((D20+2)<=2014,D20+2,"") -> 2014
B21: Net Fixed Assets | D21: Forecasted | E21: Forecasted | F21: Forecasted
B23: Opening Capital Investment | D23: 0 | E23: =D25 -> 0 | F23: =E25 -> 0
B24: Capital Investment | D24: =IF(IRM_CYCLE_YEAR="4th Year of IRM Cycle", 'Incremental Capital Summary'!G31/2, 'Incremental Capital Summary'!G31) -> 0 | E24: 0 | F24: 0
B25: Closing Capital Investment | D25: =SUM(D23:D24) -> 0 | E25: =SUM(E23:E24) -> 0 | F25: =SUM(F23:F24) -> 0
B27: Opening Accumulated Amortization | D27: 0 | E27: =D29 -> 0 | F27: =E29 -> 0
B28: Amortization | C28: ='Incremental Capital Summary'!K31 -> 0 | D28: =D24*$C$28 -> 0 | E28: =E23*$C$28 -> 0 | F28: =F23*$C$28 -> 0
B29: Closing Accumulated Amortization | D29: =SUM(D27:D28) -> 0 | E29: =SUM(E27:E28) -> 0 | F29: =SUM(F27:F28) -> 0
B31: Opening Net Fixed Assets | D31: 0 | E31: =E23-E27 -> 0 | F31: =F23-F27 -> 0
B32: Closing Net Fixed Assets | D32: =D25-D29 -> 0 | E32: =E25-E29 -> 0 | F32: =F25-F29 -> 0
B33: Average Net Fixed Assets | D33: =SUM(D31:D32)/2 -> 0 | E33: =SUM(E31:E32)/2 -> 0 | F33: =SUM(F31:F32)/2 -> 0
B38: For PILs Calculation
B40: UCC | D40: =YEAR_SELECTED -> 2012 | E40: =IF((D40+1)<=2014,D40+1,"") -> 2013 | F40: =IF((D40+2)<=2014,D40+2,"") -> 2014
D41: Forecasted | E41: Forecasted | F41: Forecasted
B43: Opening UCC | D43: 0 | E43: =D51 -> 0 | F43: =E51 -> 0
B44: Capital Additions | D44: =D24 -> 0 | E44: =E24 -> 0 | F44: =F24 -> 0
B45: UCC Before Half Year Rule | D45: =SUM(D43:D44) -> 0 | E45: =SUM(E43:E44) -> 0 | F45: =SUM(F43:F44) -> 0
B46: Half Year Rule (1/2 Additions - Disposals) | D46: 0 | E46: =E44/2 -> 0 | F46: =F44/2 -> 0
B47: Reduced UCC | D47: =D45-D46 -> 0 | E47: =E45-E46 -> 0 | F47: =F45-F46 -> 0
B48: CCA Rate Class | C48: ='Incremental Capital Summary'!M31 -> 0
B49: CCA Rate | C49: ='Incremental Capital Summary'!O31 -> 0
B50: CCA | D50: =D47*$C$49 -> 0 | E50: =E47*$C$49 -> 0 | F50: =F47*$C$49 -> 0
B51: Closing UCC | D51: =D45-D50 -> 0 | E51: =E45-E50 -> 0 | F51: =F45-F50 -> 0

Sheet Fixed Asset Amort and UCC 12 (hidden)
B10: Fixed Asset Amortization and UCC 12
B12: Name or General Description of Project
B13: =IF(ISBLANK('Incremental Capital Summary'!B14), "", 'Incremental Capital Summary'!B14) -> C3 Handwell Replacement
B15: Asset Component
B16: =IF(ISBLANK('Incremental Capital Summary'!C32),"",'Incremental Capital Summary'!C32) -> 
B19: Average Net Fixed Assets
D20: =YEAR_SELECTED -> 2012 | E20: =IF((D20+1)<=2014,D20+1,"") -> 2013 | F20: =IF((D20+2)<=2014,D20+2,"") -> 2014
B21: Net Fixed Assets | D21: Forecasted | E21: Forecasted | F21: Forecasted
B23: Opening Capital Investment | D23: 0 | E23: =D25 -> 0 | F23: =E25 -> 0
B24: Capital Investment | D24: =IF(IRM_CYCLE_YEAR="4th Year of IRM Cycle", 'Incremental Capital Summary'!G32/2, 'Incremental Capital Summary'!G32) -> 0 | E24: 0 | F24: 0
B25: Closing Capital Investment | D25: =SUM(D23:D24) -> 0 | E25: =SUM(E23:E24) -> 0 | F25: =SUM(F23:F24) -> 0
B27: Opening Accumulated Amortization | D27: 0 | E27: =D29 -> 0 | F27: =E29 -> 0
B28: Amortization | C28: ='Incremental Capital Summary'!K32 -> 0 | D28: =D24*$C$28 -> 0 | E28: =E23*$C$28 -> 0 | F28: =F23*$C$28 -> 0
B29: Closing Accumulated Amortization | D29: =SUM(D27:D28) -> 0 | E29: =SUM(E27:E28) -> 0 | F29: =SUM(F27:F28) -> 0
B31: Opening Net Fixed Assets | D31: 0 | E31: =E23-E27 -> 0 | F31: =F23-F27 -> 0
B32: Closing Net Fixed Assets | D32: =D25-D29 -> 0 | E32: =E25-E29 -> 0 | F32: =F25-F29 -> 0
B33: Average Net Fixed Assets | D33: =SUM(D31:D32)/2 -> 0 | E33: =SUM(E31:E32)/2 -> 0 | F33: =SUM(F31:F32)/2 -> 0
B38: For PILs Calculation
B40: UCC | D40: =YEAR_SELECTED -> 2012 | E40: =IF((D40+1)<=2014,D40+1,"") -> 2013 | F40: =IF((D40+2)<=2014,D40+2,"") -> 2014
D41: Forecasted | E41: Forecasted | F41: Forecasted
B43: Opening UCC | D43: 0 | E43: =D51 -> 0 | F43: =E51 -> 0
B44: Capital Additions | D44: =D24 -> 0 | E44: =E24 -> 0 | F44: =F24 -> 0
B45: UCC Before Half Year Rule | D45: =SUM(D43:D44) -> 0 | E45: =SUM(E43:E44) -> 0 | F45: =SUM(F43:F44) -> 0
B46: Half Year Rule (1/2 Additions - Disposals) | D46: 0 | E46: =E44/2 -> 0 | F46: =F44/2 -> 0
B47: Reduced UCC | D47: =D45-D46 -> 0 | E47: =E45-E46 -> 0 | F47: =F45-F46 -> 0
B48: CCA Rate Class | C48: ='Incremental Capital Summary'!M32 -> 0
B49: CCA Rate | C49: ='Incremental Capital Summary'!O32 -> 0
B50: CCA | D50: =D47*$C$49 -> 0 | E50: =E47*$C$49 -> 0 | F50: =F47*$C$49 -> 0
B51: Closing UCC | D51: =D45-D50 -> 0 | E51: =E45-E50 -> 0 | F51: =F45-F50 -> 0

Sheet Fixed Asset Amort and UCC 13 (hidden)
B10: Fixed Asset Amortization and UCC 13
B12: Name or General Description of Project
B13: =IF(ISBLANK('Incremental Capital Summary'!B14), "", 'Incremental Capital Summary'!B14) -> C3 Handwell Replacement
B15: Asset Component
B16: =IF(ISBLANK('Incremental Capital Summary'!C33),"",'Incremental Capital Summary'!C33) -> 
B19: Average Net Fixed Assets
D20: =YEAR_SELECTED -> 2012 | E20: =IF((D20+1)<=2014,D20+1,"") -> 2013 | F20: =IF((D20+2)<=2014,D20+2,"") -> 2014
B21: Net Fixed Assets | D21: Forecasted | E21: Forecasted | F21: Forecasted
B23: Opening Capital Investment | D23: 0 | E23: =D25 -> 0 | F23: =E25 -> 0
B24: Capital Investment | D24: =IF(IRM_CYCLE_YEAR="4th Year of IRM Cycle", 'Incremental Capital Summary'!G33/2, 'Incremental Capital Summary'!G33) -> 0 | E24: 0 | F24: 0
B25: Closing Capital Investment | D25: =SUM(D23:D24) -> 0 | E25: =SUM(E23:E24) -> 0 | F25: =SUM(F23:F24) -> 0
B27: Opening Accumulated Amortization | D27: 0 | E27: =D29 -> 0 | F27: =E29 -> 0
B28: Amortization | C28: ='Incremental Capital Summary'!K33 -> 0 | D28: =D24*$C$28 -> 0 | E28: =E23*$C$28 -> 0 | F28: =F23*$C$28 -> 0
B29: Closing Accumulated Amortization | D29: =SUM(D27:D28) -> 0 | E29: =SUM(E27:E28) -> 0 | F29: =SUM(F27:F28) -> 0
B31: Opening Net Fixed Assets | D31: 0 | E31: =E23-E27 -> 0 | F31: =F23-F27 -> 0
B32: Closing Net Fixed Assets | D32: =D25-D29 -> 0 | E32: =E25-E29 -> 0 | F32: =F25-F29 -> 0
B33: Average Net Fixed Assets | D33: =SUM(D31:D32)/2 -> 0 | E33: =SUM(E31:E32)/2 -> 0 | F33: =SUM(F31:F32)/2 -> 0
B38: For PILs Calculation
B40: UCC | D40: =YEAR_SELECTED -> 2012 | E40: =IF((D40+1)<=2014,D40+1,"") -> 2013 | F40: =IF((D40+2)<=2014,D40+2,"") -> 2014
D41: Forecasted | E41: Forecasted | F41: Forecasted
B43: Opening UCC | D43: 0 | E43: =D51 -> 0 | F43: =E51 -> 0
B44: Capital Additions | D44: =D24 -> 0 | E44: =E24 -> 0 | F44: =F24 -> 0
B45: UCC Before Half Year Rule | D45: =SUM(D43:D44) -> 0 | E45: =SUM(E43:E44) -> 0 | F45: =SUM(F43:F44) -> 0
B46: Half Year Rule (1/2 Additions - Disposals) | D46: 0 | E46: =E44/2 -> 0 | F46: =F44/2 -> 0
B47: Reduced UCC | D47: =D45-D46 -> 0 | E47: =E45-E46 -> 0 | F47: =F45-F46 -> 0
B48: CCA Rate Class | C48: ='Incremental Capital Summary'!M33 -> 0
B49: CCA Rate | C49: ='Incremental Capital Summary'!O33 -> 0
B50: CCA | D50: =D47*$C$49 -> 0 | E50: =E47*$C$49 -> 0 | F50: =F47*$C$49 -> 0
B51: Closing UCC | D51: =D45-D50 -> 0 | E51: =E45-E50 -> 0 | F51: =F45-F50 -> 0

Sheet Fixed Asset Amort and UCC 14 (hidden)
B10: Fixed Asset Amortization and UCC 14
B12: Name or General Description of Project
B13: =IF(ISBLANK('Incremental Capital Summary'!B14), "", 'Incremental Capital Summary'!B14) -> C3 Handwell Replacement
B15: Asset Component
B16: =IF(ISBLANK('Incremental Capital Summary'!C34),"",'Incremental Capital Summary'!C34) -> 
B19: Average Net Fixed Assets
D20: =YEAR_SELECTED -> 2012 | E20: =IF((D20+1)<=2014,D20+1,"") -> 2013 | F20: =IF((D20+2)<=2014,D20+2,"") -> 2014
B21: Net Fixed Assets | D21: Forecasted | E21: Forecasted | F21: Forecasted
B23: Opening Capital Investment | D23: 0 | E23: =D25 -> 0 | F23: =E25 -> 0
B24: Capital Investment | D24: =IF(IRM_CYCLE_YEAR="4th Year of IRM Cycle", 'Incremental Capital Summary'!G34/2, 'Incremental Capital Summary'!G34) -> 0 | E24: 0 | F24: 0
B25: Closing Capital Investment | D25: =SUM(D23:D24) -> 0 | E25: =SUM(E23:E24) -> 0 | F25: =SUM(F23:F24) -> 0
B27: Opening Accumulated Amortization | D27: 0 | E27: =D29 -> 0 | F27: =E29 -> 0
B28: Amortization | C28: ='Incremental Capital Summary'!K34 -> 0 | D28: =D24*$C$28 -> 0 | E28: =E23*$C$28 -> 0 | F28: =F23*$C$28 -> 0
B29: Closing Accumulated Amortization | D29: =SUM(D27:D28) -> 0 | E29: =SUM(E27:E28) -> 0 | F29: =SUM(F27:F28) -> 0
B31: Opening Net Fixed Assets | D31: 0 | E31: =E23-E27 -> 0 | F31: =F23-F27 -> 0
B32: Closing Net Fixed Assets | D32: =D25-D29 -> 0 | E32: =E25-E29 -> 0 | F32: =F25-F29 -> 0
B33: Average Net Fixed Assets | D33: =SUM(D31:D32)/2 -> 0 | E33: =SUM(E31:E32)/2 -> 0 | F33: =SUM(F31:F32)/2 -> 0
B38: For PILs Calculation
B40: UCC | D40: =YEAR_SELECTED -> 2012 | E40: =IF((D40+1)<=2014,D40+1,"") -> 2013 | F40: =IF((D40+2)<=2014,D40+2,"") -> 2014
D41: Forecasted | E41: Forecasted | F41: Forecasted
B43: Opening UCC | D43: 0 | E43: =D51 -> 0 | F43: =E51 -> 0
B44: Capital Additions | D44: =D24 -> 0 | E44: =E24 -> 0 | F44: =F24 -> 0
B45: UCC Before Half Year Rule | D45: =SUM(D43:D44) -> 0 | E45: =SUM(E43:E44) -> 0 | F45: =SUM(F43:F44) -> 0
B46: Half Year Rule (1/2 Additions - Disposals) | D46: 0 | E46: =E44/2 -> 0 | F46: =F44/2 -> 0
B47: Reduced UCC | D47: =D45-D46 -> 0 | E47: =E45-E46 -> 0 | F47: =F45-F46 -> 0
B48: CCA Rate Class | C48: ='Incremental Capital Summary'!M34 -> 0
B49: CCA Rate | C49: ='Incremental Capital Summary'!O34 -> 0
B50: CCA | D50: =D47*$C$49 -> 0 | E50: =E47*$C$49 -> 0 | F50: =F47*$C$49 -> 0
B51: Closing UCC | D51: =D45-D50 -> 0 | E51: =E45-E50 -> 0 | F51: =F45-F50 -> 0

Sheet Fixed Asset Amort and UCC 15 (hidden)
B10: Fixed Asset Amortization and UCC 15
B12: Name or General Description of Project
B13: =IF(ISBLANK('Incremental Capital Summary'!B14), "", 'Incremental Capital Summary'!B14) -> C3 Handwell Replacement
B15: Asset Component
B16: =IF(ISBLANK('Incremental Capital Summary'!C35),"",'Incremental Capital Summary'!C35) -> 
B19: Average Net Fixed Assets
D20: =YEAR_SELECTED -> 2012 | E20: =IF((D20+1)<=2014,D20+1,"") -> 2013 | F20: =IF((D20+2)<=2014,D20+2,"") -> 2014
B21: Net Fixed Assets | D21: Forecasted | E21: Forecasted | F21: Forecasted
B23: Opening Capital Investment | D23: 0 | E23: =D25 -> 0 | F23: =E25 -> 0
B24: Capital Investment | D24: =IF(IRM_CYCLE_YEAR="4th Year of IRM Cycle", 'Incremental Capital Summary'!G35/2, 'Incremental Capital Summary'!G35) -> 0 | E24: 0 | F24: 0
B25: Closing Capital Investment | D25: =SUM(D23:D24) -> 0 | E25: =SUM(E23:E24) -> 0 | F25: =SUM(F23:F24) -> 0
B27: Opening Accumulated Amortization | D27: 0 | E27: =D29 -> 0 | F27: =E29 -> 0
B28: Amortization | C28: ='Incremental Capital Summary'!K35 -> 0 | D28: =D24*$C$28 -> 0 | E28: =E23*$C$28 -> 0 | F28: =F23*$C$28 -> 0
B29: Closing Accumulated Amortization | D29: =SUM(D27:D28) -> 0 | E29: =SUM(E27:E28) -> 0 | F29: =SUM(F27:F28) -> 0
B31: Opening Net Fixed Assets | D31: 0 | E31: =E23-E27 -> 0 | F31: =F23-F27 -> 0
B32: Closing Net Fixed Assets | D32: =D25-D29 -> 0 | E32: =E25-E29 -> 0 | F32: =F25-F29 -> 0
B33: Average Net Fixed Assets | D33: =SUM(D31:D32)/2 -> 0 | E33: =SUM(E31:E32)/2 -> 0 | F33: =SUM(F31:F32)/2 -> 0
B38: For PILs Calculation
B40: UCC | D40: =YEAR_SELECTED -> 2012 | E40: =IF((D40+1)<=2014,D40+1,"") -> 2013 | F40: =IF((D40+2)<=2014,D40+2,"") -> 2014
D41: Forecasted | E41: Forecasted | F41: Forecasted
B43: Opening UCC | D43: 0 | E43: =D51 -> 0 | F43: =E51 -> 0
B44: Capital Additions | D44: =D24 -> 0 | E44: =E24 -> 0 | F44: =F24 -> 0
B45: UCC Before Half Year Rule | D45: =SUM(D43:D44) -> 0 | E45: =SUM(E43:E44) -> 0 | F45: =SUM(F43:F44) -> 0
B46: Half Year Rule (1/2 Additions - Disposals) | D46: 0 | E46: =E44/2 -> 0 | F46: =F44/2 -> 0
B47: Reduced UCC | D47: =D45-D46 -> 0 | E47: =E45-E46 -> 0 | F47: =F45-F46 -> 0
B48: CCA Rate Class | C48: ='Incremental Capital Summary'!M35 -> 0
B49: CCA Rate | C49: ='Incremental Capital Summary'!O35 -> 0
B50: CCA | D50: =D47*$C$49 -> 0 | E50: =E47*$C$49 -> 0 | F50: =F47*$C$49 -> 0
B51: Closing UCC | D51: =D45-D50 -> 0 | E51: =E45-E50 -> 0 | F51: =F45-F50 -> 0

Sheet Fixed Asset Amort and UCC 16 (hidden)
B10: Fixed Asset Amortization and UCC 16
B12: Name or General Description of Project
B13: =IF(ISBLANK('Incremental Capital Summary'!B14), "", 'Incremental Capital Summary'!B14) -> C3 Handwell Replacement
B15: Asset Component
B16: =IF(ISBLANK('Incremental Capital Summary'!C36),"",'Incremental Capital Summary'!C36) -> 
B19: Average Net Fixed Assets
D20: =YEAR_SELECTED -> 2012 | E20: =IF((D20+1)<=2014,D20+1,"") -> 2013 | F20: =IF((D20+2)<=2014,D20+2,"") -> 2014
B21: Net Fixed Assets | D21: Forecasted | E21: Forecasted | F21: Forecasted
B23: Opening Capital Investment | D23: 0 | E23: =D25 -> 0 | F23: =E25 -> 0
B24: Capital Investment | D24: =IF(IRM_CYCLE_YEAR="4th Year of IRM Cycle", 'Incremental Capital Summary'!G36/2, 'Incremental Capital Summary'!G36) -> 0 | E24: 0 | F24: 0
B25: Closing Capital Investment | D25: =SUM(D23:D24) -> 0 | E25: =SUM(E23:E24) -> 0 | F25: =SUM(F23:F24) -> 0
B27: Opening Accumulated Amortization | D27: 0 | E27: =D29 -> 0 | F27: =E29 -> 0
B28: Amortization | C28: ='Incremental Capital Summary'!K36 -> 0 | D28: =D24*$C$28 -> 0 | E28: =E23*$C$28 -> 0 | F28: =F23*$C$28 -> 0
B29: Closing Accumulated Amortization | D29: =SUM(D27:D28) -> 0 | E29: =SUM(E27:E28) -> 0 | F29: =SUM(F27:F28) -> 0
B31: Opening Net Fixed Assets | D31: 0 | E31: =E23-E27 -> 0 | F31: =F23-F27 -> 0
B32: Closing Net Fixed Assets | D32: =D25-D29 -> 0 | E32: =E25-E29 -> 0 | F32: =F25-F29 -> 0
B33: Average Net Fixed Assets | D33: =SUM(D31:D32)/2 -> 0 | E33: =SUM(E31:E32)/2 -> 0 | F33: =SUM(F31:F32)/2 -> 0
B38: For PILs Calculation
B40: UCC | D40: =YEAR_SELECTED -> 2012 | E40: =IF((D40+1)<=2014,D40+1,"") -> 2013 | F40: =IF((D40+2)<=2014,D40+2,"") -> 2014
D41: Forecasted | E41: Forecasted | F41: Forecasted
B43: Opening UCC | D43: 0 | E43: =D51 -> 0 | F43: =E51 -> 0
B44: Capital Additions | D44: =D24 -> 0 | E44: =E24 -> 0 | F44: =F24 -> 0
B45: UCC Before Half Year Rule | D45: =SUM(D43:D44) -> 0 | E45: =SUM(E43:E44) -> 0 | F45: =SUM(F43:F44) -> 0
B46: Half Year Rule (1/2 Additions - Disposals) | D46: 0 | E46: =E44/2 -> 0 | F46: =F44/2 -> 0
B47: Reduced UCC | D47: =D45-D46 -> 0 | E47: =E45-E46 -> 0 | F47: =F45-F46 -> 0
B48: CCA Rate Class | C48: ='Incremental Capital Summary'!M36 -> 0
B49: CCA Rate | C49: ='Incremental Capital Summary'!O36 -> 0
B50: CCA | D50: =D47*$C$49 -> 0 | E50: =E47*$C$49 -> 0 | F50: =F47*$C$49 -> 0
B51: Closing UCC | D51: =D45-D50 -> 0 | E51: =E45-E50 -> 0 | F51: =F45-F50 -> 0

Sheet Fixed Asset Amort and UCC 17 (hidden)
B10: Fixed Asset Amortization and UCC 17
B12: Name or General Description of Project
B13: =IF(ISBLANK('Incremental Capital Summary'!B14), "", 'Incremental Capital Summary'!B14) -> C3 Handwell Replacement
B15: Asset Component
B16: =IF(ISBLANK('Incremental Capital Summary'!C37),"",'Incremental Capital Summary'!C37) -> 
B19: Average Net Fixed Assets
D20: =YEAR_SELECTED -> 2012 | E20: =IF((D20+1)<=2014,D20+1,"") -> 2013 | F20: =IF((D20+2)<=2014,D20+2,"") -> 2014
B21: Net Fixed Assets | D21: Forecasted | E21: Forecasted | F21: Forecasted
B23: Opening Capital Investment | D23: 0 | E23: =D25 -> 0 | F23: =E25 -> 0
B24: Capital Investment | D24: =IF(IRM_CYCLE_YEAR="4th Year of IRM Cycle", 'Incremental Capital Summary'!G37/2, 'Incremental Capital Summary'!G37) -> 0 | E24: 0 | F24: 0
B25: Closing Capital Investment | D25: =SUM(D23:D24) -> 0 | E25: =SUM(E23:E24) -> 0 | F25: =SUM(F23:F24) -> 0
B27: Opening Accumulated Amortization | D27: 0 | E27: =D29 -> 0 | F27: =E29 -> 0
B28: Amortization | C28: ='Incremental Capital Summary'!K37 -> 0 | D28: =D24*$C$28 -> 0 | E28: =E23*$C$28 -> 0 | F28: =F23*$C$28 -> 0
B29: Closing Accumulated Amortization | D29: =SUM(D27:D28) -> 0 | E29: =SUM(E27:E28) -> 0 | F29: =SUM(F27:F28) -> 0
B31: Opening Net Fixed Assets | D31: 0 | E31: =E23-E27 -> 0 | F31: =F23-F27 -> 0
B32: Closing Net Fixed Assets | D32: =D25-D29 -> 0 | E32: =E25-E29 -> 0 | F32: =F25-F29 -> 0
B33: Average Net Fixed Assets | D33: =SUM(D31:D32)/2 -> 0 | E33: =SUM(E31:E32)/2 -> 0 | F33: =SUM(F31:F32)/2 -> 0
B38: For PILs Calculation
B40: UCC | D40: =YEAR_SELECTED -> 2012 | E40: =IF((D40+1)<=2014,D40+1,"") -> 2013 | F40: =IF((D40+2)<=2014,D40+2,"") -> 2014
D41: Forecasted | E41: Forecasted | F41: Forecasted
B43: Opening UCC | D43: 0 | E43: =D51 -> 0 | F43: =E51 -> 0
B44: Capital Additions | D44: =D24 -> 0 | E44: =E24 -> 0 | F44: =F24 -> 0
B45: UCC Before Half Year Rule | D45: =SUM(D43:D44) -> 0 | E45: =SUM(E43:E44) -> 0 | F45: =SUM(F43:F44) -> 0
B46: Half Year Rule (1/2 Additions - Disposals) | D46: 0 | E46: =E44/2 -> 0 | F46: =F44/2 -> 0
B47: Reduced UCC | D47: =D45-D46 -> 0 | E47: =E45-E46 -> 0 | F47: =F45-F46 -> 0
B48: CCA Rate Class | C48: ='Incremental Capital Summary'!M37 -> 0
B49: CCA Rate | C49: ='Incremental Capital Summary'!O37 -> 0
B50: CCA | D50: =D47*$C$49 -> 0 | E50: =E47*$C$49 -> 0 | F50: =F47*$C$49 -> 0
B51: Closing UCC | D51: =D45-D50 -> 0 | E51: =E45-E50 -> 0 | F51: =F45-F50 -> 0

Sheet Fixed Asset Amort and UCC 18 (hidden)
B10: Fixed Asset Amortization and UCC 18
B12: Name or General Description of Project
B13: =IF(ISBLANK('Incremental Capital Summary'!B14), "", 'Incremental Capital Summary'!B14) -> C3 Handwell Replacement
B15: Asset Component
B16: =IF(ISBLANK('Incremental Capital Summary'!C38),"",'Incremental Capital Summary'!C38) -> 
B19: Average Net Fixed Assets
D20: =YEAR_SELECTED -> 2012 | E20: =IF((D20+1)<=2014,D20+1,"") -> 2013 | F20: =IF((D20+2)<=2014,D20+2,"") -> 2014
B21: Net Fixed Assets | D21: Forecasted | E21: Forecasted | F21: Forecasted
B23: Opening Capital Investment | D23: 0 | E23: =D25 -> 0 | F23: =E25 -> 0
B24: Capital Investment | D24: =IF(IRM_CYCLE_YEAR="4th Year of IRM Cycle", 'Incremental Capital Summary'!G38/2, 'Incremental Capital Summary'!G38) -> 0 | E24: 0 | F24: 0
B25: Closing Capital Investment | D25: =SUM(D23:D24) -> 0 | E25: =SUM(E23:E24) -> 0 | F25: =SUM(F23:F24) -> 0
B27: Opening Accumulated Amortization | D27: 0 | E27: =D29 -> 0 | F27: =E29 -> 0
B28: Amortization | C28: ='Incremental Capital Summary'!K38 -> 0 | D28: =D24*$C$28 -> 0 | E28: =E23*$C$28 -> 0 | F28: =F23*$C$28 -> 0
B29: Closing Accumulated Amortization | D29: =SUM(D27:D28) -> 0 | E29: =SUM(E27:E28) -> 0 | F29: =SUM(F27:F28) -> 0
B31: Opening Net Fixed Assets | D31: 0 | E31: =E23-E27 -> 0 | F31: =F23-F27 -> 0
B32: Closing Net Fixed Assets | D32: =D25-D29 -> 0 | E32: =E25-E29 -> 0 | F32: =F25-F29 -> 0
B33: Average Net Fixed Assets | D33: =SUM(D31:D32)/2 -> 0 | E33: =SUM(E31:E32)/2 -> 0 | F33: =SUM(F31:F32)/2 -> 0
B38: For PILs Calculation
B40: UCC | D40: =YEAR_SELECTED -> 2012 | E40: =IF((D40+1)<=2014,D40+1,"") -> 2013 | F40: =IF((D40+2)<=2014,D40+2,"") -> 2014
D41: Forecasted | E41: Forecasted | F41: Forecasted
B43: Opening UCC | D43: 0 | E43: =D51 -> 0 | F43: =E51 -> 0
B44: Capital Additions | D44: =D24 -> 0 | E44: =E24 -> 0 | F44: =F24 -> 0
B45: UCC Before Half Year Rule | D45: =SUM(D43:D44) -> 0 | E45: =SUM(E43:E44) -> 0 | F45: =SUM(F43:F44) -> 0
B46: Half Year Rule (1/2 Additions - Disposals) | D46: 0 | E46: =E44/2 -> 0 | F46: =F44/2 -> 0
B47: Reduced UCC | D47: =D45-D46 -> 0 | E47: =E45-E46 -> 0 | F47: =F45-F46 -> 0
B48: CCA Rate Class | C48: ='Incremental Capital Summary'!M38 -> 0
B49: CCA Rate | C49: ='Incremental Capital Summary'!O38 -> 0
B50: CCA | D50: =D47*$C$49 -> 0 | E50: =E47*$C$49 -> 0 | F50: =F47*$C$49 -> 0
B51: Closing UCC | D51: =D45-D50 -> 0 | E51: =E45-E50 -> 0 | F51: =F45-F50 -> 0

Sheet Fixed Asset Amort and UCC 19 (hidden)
B10: Fixed Asset Amortization and UCC 19
B12: Name or General Description of Project
B13: =IF(ISBLANK('Incremental Capital Summary'!B14), "", 'Incremental Capital Summary'!B14) -> C3 Handwell Replacement
B15: Asset Component
B16: =IF(ISBLANK('Incremental Capital Summary'!C39),"",'Incremental Capital Summary'!C39) -> 
B19: Average Net Fixed Assets
D20: =YEAR_SELECTED -> 2012 | E20: =IF((D20+1)<=2014,D20+1,"") -> 2013 | F20: =IF((D20+2)<=2014,D20+2,"") -> 2014
B21: Net Fixed Assets | D21: Forecasted | E21: Forecasted | F21: Forecasted
B23: Opening Capital Investment | D23: 0 | E23: =D25 -> 0 | F23: =E25 -> 0
B24: Capital Investment | D24: =IF(IRM_CYCLE_YEAR="4th Year of IRM Cycle", 'Incremental Capital Summary'!G39/2, 'Incremental Capital Summary'!G39) -> 0 | E24: 0 | F24: 0
B25: Closing Capital Investment | D25: =SUM(D23:D24) -> 0 | E25: =SUM(E23:E24) -> 0 | F25: =SUM(F23:F24) -> 0
B27: Opening Accumulated Amortization | D27: 0 | E27: =D29 -> 0 | F27: =E29 -> 0
B28: Amortization | C28: ='Incremental Capital Summary'!K39 -> 0 | D28: =D24*$C$28 -> 0 | E28: =E23*$C$28 -> 0 | F28: =F23*$C$28 -> 0
B29: Closing Accumulated Amortization | D29: =SUM(D27:D28) -> 0 | E29: =SUM(E27:E28) -> 0 | F29: =SUM(F27:F28) -> 0
B31: Opening Net Fixed Assets | D31: 0 | E31: =E23-E27 -> 0 | F31: =F23-F27 -> 0
B32: Closing Net Fixed Assets | D32: =D25-D29 -> 0 | E32: =E25-E29 -> 0 | F32: =F25-F29 -> 0
B33: Average Net Fixed Assets | D33: =SUM(D31:D32)/2 -> 0 | E33: =SUM(E31:E32)/2 -> 0 | F33: =SUM(F31:F32)/2 -> 0
B38: For PILs Calculation
B40: UCC | D40: =YEAR_SELECTED -> 2012 | E40: =IF((D40+1)<=2014,D40+1,"") -> 2013 | F40: =IF((D40+2)<=2014,D40+2,"") -> 2014
D41: Forecasted | E41: Forecasted | F41: Forecasted
B43: Opening UCC | D43: 0 | E43: =D51 -> 0 | F43: =E51 -> 0
B44: Capital Additions | D44: =D24 -> 0 | E44: =E24 -> 0 | F44: =F24 -> 0
B45: UCC Before Half Year Rule | D45: =SUM(D43:D44) -> 0 | E45: =SUM(E43:E44) -> 0 | F45: =SUM(F43:F44) -> 0
B46: Half Year Rule (1/2 Additions - Disposals) | D46: 0 | E46: =E44/2 -> 0 | F46: =F44/2 -> 0
B47: Reduced UCC | D47: =D45-D46 -> 0 | E47: =E45-E46 -> 0 | F47: =F45-F46 -> 0
B48: CCA Rate Class | C48: ='Incremental Capital Summary'!M39 -> 0
B49: CCA Rate | C49: ='Incremental Capital Summary'!O39 -> 0
B50: CCA | D50: =D47*$C$49 -> 0 | E50: =E47*$C$49 -> 0 | F50: =F47*$C$49 -> 0
B51: Closing UCC | D51: =D45-D50 -> 0 | E51: =E45-E50 -> 0 | F51: =F45-F50 -> 0

Sheet Fixed Asset Amort and UCC 20 (hidden)
B10: Fixed Asset Amortization and UCC 20
B12: Name or General Description of Project
B13: =IF(ISBLANK('Incremental Capital Summary'!B14), "", 'Incremental Capital Summary'!B14) -> C3 Handwell Replacement
B15: Asset Component
B16: =IF(ISBLANK('Incremental Capital Summary'!C40),"",'Incremental Capital Summary'!C40) -> 
B19: Average Net Fixed Assets
D20: =YEAR_SELECTED -> 2012 | E20: =IF((D20+1)<=2014,D20+1,"") -> 2013 | F20: =IF((D20+2)<=2014,D20+2,"") -> 2014
B21: Net Fixed Assets | D21: Forecasted | E21: Forecasted | F21: Forecasted
B23: Opening Capital Investment | D23: 0 | E23: =D25 -> 0 | F23: =E25 -> 0
B24: Capital Investment | D24: =IF(IRM_CYCLE_YEAR="4th Year of IRM Cycle", 'Incremental Capital Summary'!G40/2, 'Incremental Capital Summary'!G40) -> 0 | E24: 0 | F24: 0
B25: Closing Capital Investment | D25: =SUM(D23:D24) -> 0 | E25: =SUM(E23:E24) -> 0 | F25: =SUM(F23:F24) -> 0
B27: Opening Accumulated Amortization | D27: 0 | E27: =D29 -> 0 | F27: =E29 -> 0
B28: Amortization | C28: ='Incremental Capital Summary'!K40 -> 0 | D28: =D24*$C$28 -> 0 | E28: =E23*$C$28 -> 0 | F28: =F23*$C$28 -> 0
B29: Closing Accumulated Amortization | D29: =SUM(D27:D28) -> 0 | E29: =SUM(E27:E28) -> 0 | F29: =SUM(F27:F28) -> 0
B31: Opening Net Fixed Assets | D31: 0 | E31: =E23-E27 -> 0 | F31: =F23-F27 -> 0
B32: Closing Net Fixed Assets | D32: =D25-D29 -> 0 | E32: =E25-E29 -> 0 | F32: =F25-F29 -> 0
B33: Average Net Fixed Assets | D33: =SUM(D31:D32)/2 -> 0 | E33: =SUM(E31:E32)/2 -> 0 | F33: =SUM(F31:F32)/2 -> 0
B38: For PILs Calculation
B40: UCC | D40: =YEAR_SELECTED -> 2012 | E40: =IF((D40+1)<=2014,D40+1,"") -> 2013 | F40: =IF((D40+2)<=2014,D40+2,"") -> 2014
D41: Forecasted | E41: Forecasted | F41: Forecasted
B43: Opening UCC | D43: 0 | E43: =D51 -> 0 | F43: =E51 -> 0
B44: Capital Additions | D44: =D24 -> 0 | E44: =E24 -> 0 | F44: =F24 -> 0
B45: UCC Before Half Year Rule | D45: =SUM(D43:D44) -> 0 | E45: =SUM(E43:E44) -> 0 | F45: =SUM(F43:F44) -> 0
B46: Half Year Rule (1/2 Additions - Disposals) | D46: 0 | E46: =E44/2 -> 0 | F46: =F44/2 -> 0
B47: Reduced UCC | D47: =D45-D46 -> 0 | E47: =E45-E46 -> 0 | F47: =F45-F46 -> 0
B48: CCA Rate Class | C48: ='Incremental Capital Summary'!M40 -> 0
B49: CCA Rate | C49: ='Incremental Capital Summary'!O40 -> 0
B50: CCA | D50: =D47*$C$49 -> 0 | E50: =E47*$C$49 -> 0 | F50: =F47*$C$49 -> 0
B51: Closing UCC | D51: =D45-D50 -> 0 | E51: =E45-E50 -> 0 | F51: =F45-F50 -> 0

Sheet Fixed Asset Amort and UCC 21 (hidden)
B10: Fixed Asset Amortization and UCC 21
B12: Name or General Description of Project
B13: =IF(ISBLANK('Incremental Capital Summary'!B14), "", 'Incremental Capital Summary'!B14) -> C3 Handwell Replacement
B15: Asset Component
B16: =IF(ISBLANK('Incremental Capital Summary'!C41),"",'Incremental Capital Summary'!C41) -> 
B19: Average Net Fixed Assets
D20: =YEAR_SELECTED -> 2012 | E20: =IF((D20+1)<=2014,D20+1,"") -> 2013 | F20: =IF((D20+2)<=2014,D20+2,"") -> 2014
B21: Net Fixed Assets | D21: Forecasted | E21: Forecasted | F21: Forecasted
B23: Opening Capital Investment | D23: 0 | E23: =D25 -> 0 | F23: =E25 -> 0
B24: Capital Investment | D24: =IF(IRM_CYCLE_YEAR="4th Year of IRM Cycle", 'Incremental Capital Summary'!G41/2, 'Incremental Capital Summary'!G41) -> 0 | E24: 0 | F24: 0
B25: Closing Capital Investment | D25: =SUM(D23:D24) -> 0 | E25: =SUM(E23:E24) -> 0 | F25: =SUM(F23:F24) -> 0
B27: Opening Accumulated Amortization | D27: 0 | E27: =D29 -> 0 | F27: =E29 -> 0
B28: Amortization | C28: ='Incremental Capital Summary'!K41 -> 0 | D28: =D24*$C$28 -> 0 | E28: =E23*$C$28 -> 0 | F28: =F23*$C$28 -> 0
B29: Closing Accumulated Amortization | D29: =SUM(D27:D28) -> 0 | E29: =SUM(E27:E28) -> 0 | F29: =SUM(F27:F28) -> 0
B31: Opening Net Fixed Assets | D31: 0 | E31: =E23-E27 -> 0 | F31: =F23-F27 -> 0
B32: Closing Net Fixed Assets | D32: =D25-D29 -> 0 | E32: =E25-E29 -> 0 | F32: =F25-F29 -> 0
B33: Average Net Fixed Assets | D33: =SUM(D31:D32)/2 -> 0 | E33: =SUM(E31:E32)/2 -> 0 | F33: =SUM(F31:F32)/2 -> 0
B38: For PILs Calculation
B40: UCC | D40: =YEAR_SELECTED -> 2012 | E40: =IF((D40+1)<=2014,D40+1,"") -> 2013 | F40: =IF((D40+2)<=2014,D40+2,"") -> 2014
D41: Forecasted | E41: Forecasted | F41: Forecasted
B43: Opening UCC | D43: 0 | E43: =D51 -> 0 | F43: =E51 -> 0
B44: Capital Additions | D44: =D24 -> 0 | E44: =E24 -> 0 | F44: =F24 -> 0
B45: UCC Before Half Year Rule | D45: =SUM(D43:D44) -> 0 | E45: =SUM(E43:E44) -> 0 | F45: =SUM(F43:F44) -> 0
B46: Half Year Rule (1/2 Additions - Disposals) | D46: 0 | E46: =E44/2 -> 0 | F46: =F44/2 -> 0
B47: Reduced UCC | D47: =D45-D46 -> 0 | E47: =E45-E46 -> 0 | F47: =F45-F46 -> 0
B48: CCA Rate Class | C48: ='Incremental Capital Summary'!M41 -> 0
B49: CCA Rate | C49: ='Incremental Capital Summary'!O41 -> 0
B50: CCA | D50: =D47*$C$49 -> 0 | E50: =E47*$C$49 -> 0 | F50: =F47*$C$49 -> 0
B51: Closing UCC | D51: =D45-D50 -> 0 | E51: =E45-E50 -> 0 | F51: =F45-F50 -> 0

Sheet Fixed Asset Amort and UCC 22 (hidden)
B10: Fixed Asset Amortization and UCC 22
B12: Name or General Description of Project
B13: =IF(ISBLANK('Incremental Capital Summary'!B14), "", 'Incremental Capital Summary'!B14) -> C3 Handwell Replacement
B15: Asset Component
B16: =IF(ISBLANK('Incremental Capital Summary'!C42),"",'Incremental Capital Summary'!C42) -> 
B19: Average Net Fixed Assets
D20: =YEAR_SELECTED -> 2012 | E20: =IF((D20+1)<=2014,D20+1,"") -> 2013 | F20: =IF((D20+2)<=2014,D20+2,"") -> 2014
B21: Net Fixed Assets | D21: Forecasted | E21: Forecasted | F21: Forecasted
B23: Opening Capital Investment | D23: 0 | E23: =D25 -> 0 | F23: =E25 -> 0
B24: Capital Investment | D24: =IF(IRM_CYCLE_YEAR="4th Year of IRM Cycle", 'Incremental Capital Summary'!G42/2, 'Incremental Capital Summary'!G42) -> 0 | E24: 0 | F24: 0
B25: Closing Capital Investment | D25: =SUM(D23:D24) -> 0 | E25: =SUM(E23:E24) -> 0 | F25: =SUM(F23:F24) -> 0
B27: Opening Accumulated Amortization | D27: 0 | E27: =D29 -> 0 | F27: =E29 -> 0
B28: Amortization | C28: ='Incremental Capital Summary'!K42 -> 0 | D28: =D24*$C$28 -> 0 | E28: =E23*$C$28 -> 0 | F28: =F23*$C$28 -> 0
B29: Closing Accumulated Amortization | D29: =SUM(D27:D28) -> 0 | E29: =SUM(E27:E28) -> 0 | F29: =SUM(F27:F28) -> 0
B31: Opening Net Fixed Assets | D31: 0 | E31: =E23-E27 -> 0 | F31: =F23-F27 -> 0
B32: Closing Net Fixed Assets | D32: =D25-D29 -> 0 | E32: =E25-E29 -> 0 | F32: =F25-F29 -> 0
B33: Average Net Fixed Assets | D33: =SUM(D31:D32)/2 -> 0 | E33: =SUM(E31:E32)/2 -> 0 | F33: =SUM(F31:F32)/2 -> 0
B38: For PILs Calculation
B40: UCC | D40: =YEAR_SELECTED -> 2012 | E40: =IF((D40+1)<=2014,D40+1,"") -> 2013 | F40: =IF((D40+2)<=2014,D40+2,"") -> 2014
D41: Forecasted | E41: Forecasted | F41: Forecasted
B43: Opening UCC | D43: 0 | E43: =D51 -> 0 | F43: =E51 -> 0
B44: Capital Additions | D44: =D24 -> 0 | E44: =E24 -> 0 | F44: =F24 -> 0
B45: UCC Before Half Year Rule | D45: =SUM(D43:D44) -> 0 | E45: =SUM(E43:E44) -> 0 | F45: =SUM(F43:F44) -> 0
B46: Half Year Rule (1/2 Additions - Disposals) | D46: 0 | E46: =E44/2 -> 0 | F46: =F44/2 -> 0
B47: Reduced UCC | D47: =D45-D46 -> 0 | E47: =E45-E46 -> 0 | F47: =F45-F46 -> 0
B48: CCA Rate Class | C48: ='Incremental Capital Summary'!M42 -> 0
B49: CCA Rate | C49: ='Incremental Capital Summary'!O42 -> 0
B50: CCA | D50: =D47*$C$49 -> 0 | E50: =E47*$C$49 -> 0 | F50: =F47*$C$49 -> 0
B51: Closing UCC | D51: =D45-D50 -> 0 | E51: =E45-E50 -> 0 | F51: =F45-F50 -> 0

Sheet Fixed Asset Amort and UCC 23 (hidden)
B10: Fixed Asset Amortization and UCC 23
B12: Name or General Description of Project
B13: =IF(ISBLANK('Incremental Capital Summary'!B14), "", 'Incremental Capital Summary'!B14) -> C3 Handwell Replacement
B15: Asset Component
B16: =IF(ISBLANK('Incremental Capital Summary'!C43),"",'Incremental Capital Summary'!C43) -> 
B19: Average Net Fixed Assets
D20: =YEAR_SELECTED -> 2012 | E20: =IF((D20+1)<=2014,D20+1,"") -> 2013 | F20: =IF((D20+2)<=2014,D20+2,"") -> 2014
B21: Net Fixed Assets | D21: Forecasted | E21: Forecasted | F21: Forecasted
B23: Opening Capital Investment | D23: 0 | E23: =D25 -> 0 | F23: =E25 -> 0
B24: Capital Investment | D24: =IF(IRM_CYCLE_YEAR="4th Year of IRM Cycle", 'Incremental Capital Summary'!G43/2, 'Incremental Capital Summary'!G43) -> 0 | E24: 0 | F24: 0
B25: Closing Capital Investment | D25: =SUM(D23:D24) -> 0 | E25: =SUM(E23:E24) -> 0 | F25: =SUM(F23:F24) -> 0
B27: Opening Accumulated Amortization | D27: 0 | E27: =D29 -> 0 | F27: =E29 -> 0
B28: Amortization | C28: ='Incremental Capital Summary'!K43 -> 0 | D28: =D24*$C$28 -> 0 | E28: =E23*$C$28 -> 0 | F28: =F23*$C$28 -> 0
B29: Closing Accumulated Amortization | D29: =SUM(D27:D28) -> 0 | E29: =SUM(E27:E28) -> 0 | F29: =SUM(F27:F28) -> 0
B31: Opening Net Fixed Assets | D31: 0 | E31: =E23-E27 -> 0 | F31: =F23-F27 -> 0
B32: Closing Net Fixed Assets | D32: =D25-D29 -> 0 | E32: =E25-E29 -> 0 | F32: =F25-F29 -> 0
B33: Average Net Fixed Assets | D33: =SUM(D31:D32)/2 -> 0 | E33: =SUM(E31:E32)/2 -> 0 | F33: =SUM(F31:F32)/2 -> 0
B38: For PILs Calculation
B40: UCC | D40: =YEAR_SELECTED -> 2012 | E40: =IF((D40+1)<=2014,D40+1,"") -> 2013 | F40: =IF((D40+2)<=2014,D40+2,"") -> 2014
D41: Forecasted | E41: Forecasted | F41: Forecasted
B43: Opening UCC | D43: 0 | E43: =D51 -> 0 | F43: =E51 -> 0
B44: Capital Additions | D44: =D24 -> 0 | E44: =E24 -> 0 | F44: =F24 -> 0
B45: UCC Before Half Year Rule | D45: =SUM(D43:D44) -> 0 | E45: =SUM(E43:E44) -> 0 | F45: =SUM(F43:F44) -> 0
B46: Half Year Rule (1/2 Additions - Disposals) | D46: 0 | E46: =E44/2 -> 0 | F46: =F44/2 -> 0
B47: Reduced UCC | D47: =D45-D46 -> 0 | E47: =E45-E46 -> 0 | F47: =F45-F46 -> 0
B48: CCA Rate Class | C48: ='Incremental Capital Summary'!M43 -> 0
B49: CCA Rate | C49: ='Incremental Capital Summary'!O43 -> 0
B50: CCA | D50: =D47*$C$49 -> 0 | E50: =E47*$C$49 -> 0 | F50: =F47*$C$49 -> 0
B51: Closing UCC | D51: =D45-D50 -> 0 | E51: =E45-E50 -> 0 | F51: =F45-F50 -> 0

Sheet Fixed Asset Amort and UCC 24 (hidden)
B10: Fixed Asset Amortization and UCC 24
B12: Name or General Description of Project
B13: =IF(ISBLANK('Incremental Capital Summary'!B14), "", 'Incremental Capital Summary'!B14) -> C3 Handwell Replacement
B15: Asset Component
B16: =IF(ISBLANK('Incremental Capital Summary'!C44),"",'Incremental Capital Summary'!C44) -> 
B19: Average Net Fixed Assets
D20: =YEAR_SELECTED -> 2012 | E20: =IF((D20+1)<=2014,D20+1,"") -> 2013 | F20: =IF((D20+2)<=2014,D20+2,"") -> 2014
B21: Net Fixed Assets | D21: Forecasted | E21: Forecasted | F21: Forecasted
B23: Opening Capital Investment | D23: 0 | E23: =D25 -> 0 | F23: =E25 -> 0
B24: Capital Investment | D24: =IF(IRM_CYCLE_YEAR="4th Year of IRM Cycle", 'Incremental Capital Summary'!G44/2, 'Incremental Capital Summary'!G44) -> 0 | E24: 0 | F24: 0
B25: Closing Capital Investment | D25: =SUM(D23:D24) -> 0 | E25: =SUM(E23:E24) -> 0 | F25: =SUM(F23:F24) -> 0
B27: Opening Accumulated Amortization | D27: 0 | E27: =D29 -> 0 | F27: =E29 -> 0
B28: Amortization | C28: ='Incremental Capital Summary'!K44 -> 0 | D28: =D24*$C$28 -> 0 | E28: =E23*$C$28 -> 0 | F28: =F23*$C$28 -> 0
B29: Closing Accumulated Amortization | D29: =SUM(D27:D28) -> 0 | E29: =SUM(E27:E28) -> 0 | F29: =SUM(F27:F28) -> 0
B31: Opening Net Fixed Assets | D31: 0 | E31: =E23-E27 -> 0 | F31: =F23-F27 -> 0
B32: Closing Net Fixed Assets | D32: =D25-D29 -> 0 | E32: =E25-E29 -> 0 | F32: =F25-F29 -> 0
B33: Average Net Fixed Assets | D33: =SUM(D31:D32)/2 -> 0 | E33: =SUM(E31:E32)/2 -> 0 | F33: =SUM(F31:F32)/2 -> 0
B38: For PILs Calculation
B40: UCC | D40: =YEAR_SELECTED -> 2012 | E40: =IF((D40+1)<=2014,D40+1,"") -> 2013 | F40: =IF((D40+2)<=2014,D40+2,"") -> 2014
D41: Forecasted | E41: Forecasted | F41: Forecasted
B43: Opening UCC | D43: 0 | E43: =D51 -> 0 | F43: =E51 -> 0
B44: Capital Additions | D44: =D24 -> 0 | E44: =E24 -> 0 | F44: =F24 -> 0
B45: UCC Before Half Year Rule | D45: =SUM(D43:D44) -> 0 | E45: =SUM(E43:E44) -> 0 | F45: =SUM(F43:F44) -> 0
B46: Half Year Rule (1/2 Additions - Disposals) | D46: 0 | E46: =E44/2 -> 0 | F46: =F44/2 -> 0
B47: Reduced UCC | D47: =D45-D46 -> 0 | E47: =E45-E46 -> 0 | F47: =F45-F46 -> 0
B48: CCA Rate Class | C48: ='Incremental Capital Summary'!M44 -> 0
B49: CCA Rate | C49: ='Incremental Capital Summary'!O44 -> 0
B50: CCA | D50: =D47*$C$49 -> 0 | E50: =E47*$C$49 -> 0 | F50: =F47*$C$49 -> 0
B51: Closing UCC | D51: =D45-D50 -> 0 | E51: =E45-E50 -> 0 | F51: =F45-F50 -> 0

Sheet Fixed Asset Amort and UCC 25 (hidden)
B10: Fixed Asset Amortization and UCC 25
B12: Name or General Description of Project
B13: =IF(ISBLANK('Incremental Capital Summary'!B14), "", 'Incremental Capital Summary'!B14) -> C3 Handwell Replacement
B15: Asset Component
B16: =IF(ISBLANK('Incremental Capital Summary'!C45),"",'Incremental Capital Summary'!C45) -> 
B19: Average Net Fixed Assets
D20: =YEAR_SELECTED -> 2012 | E20: =IF((D20+1)<=2014,D20+1,"") -> 2013 | F20: =IF((D20+2)<=2014,D20+2,"") -> 2014
B21: Net Fixed Assets | D21: Forecasted | E21: Forecasted | F21: Forecasted
B23: Opening Capital Investment | D23: 0 | E23: =D25 -> 0 | F23: =E25 -> 0
B24: Capital Investment | D24: =IF(IRM_CYCLE_YEAR="4th Year of IRM Cycle", 'Incremental Capital Summary'!G45/2, 'Incremental Capital Summary'!G45) -> 0 | E24: 0 | F24: 0
B25: Closing Capital Investment | D25: =SUM(D23:D24) -> 0 | E25: =SUM(E23:E24) -> 0 | F25: =SUM(F23:F24) -> 0
B27: Opening Accumulated Amortization | D27: 0 | E27: =D29 -> 0 | F27: =E29 -> 0
B28: Amortization | C28: ='Incremental Capital Summary'!K45 -> 0 | D28: =D24*$C$28 -> 0 | E28: =E23*$C$28 -> 0 | F28: =F23*$C$28 -> 0
B29: Closing Accumulated Amortization | D29: =SUM(D27:D28) -> 0 | E29: =SUM(E27:E28) -> 0 | F29: =SUM(F27:F28) -> 0
B31: Opening Net Fixed Assets | D31: 0 | E31: =E23-E27 -> 0 | F31: =F23-F27 -> 0
B32: Closing Net Fixed Assets | D32: =D25-D29 -> 0 | E32: =E25-E29 -> 0 | F32: =F25-F29 -> 0
B33: Average Net Fixed Assets | D33: =SUM(D31:D32)/2 -> 0 | E33: =SUM(E31:E32)/2 -> 0 | F33: =SUM(F31:F32)/2 -> 0
B38: For PILs Calculation
B40: UCC | D40: =YEAR_SELECTED -> 2012 | E40: =IF((D40+1)<=2014,D40+1,"") -> 2013 | F40: =IF((D40+2)<=2014,D40+2,"") -> 2014
D41: Forecasted | E41: Forecasted | F41: Forecasted
B43: Opening UCC | D43: 0 | E43: =D51 -> 0 | F43: =E51 -> 0
B44: Capital Additions | D44: =D24 -> 0 | E44: =E24 -> 0 | F44: =F24 -> 0
B45: UCC Before Half Year Rule | D45: =SUM(D43:D44) -> 0 | E45: =SUM(E43:E44) -> 0 | F45: =SUM(F43:F44) -> 0
B46: Half Year Rule (1/2 Additions - Disposals) | D46: 0 | E46: =E44/2 -> 0 | F46: =F44/2 -> 0
B47: Reduced UCC | D47: =D45-D46 -> 0 | E47: =E45-E46 -> 0 | F47: =F45-F46 -> 0
B48: CCA Rate Class | C48: ='Incremental Capital Summary'!M45 -> 0
B49: CCA Rate | C49: ='Incremental Capital Summary'!O45 -> 0
B50: CCA | D50: =D47*$C$49 -> 0 | E50: =E47*$C$49 -> 0 | F50: =F47*$C$49 -> 0
B51: Closing UCC | D51: =D45-D50 -> 0 | E51: =E45-E50 -> 0 | F51: =F45-F50 -> 0

Sheet Fixed Asset Amort and UCC 26 (hidden)
B10: Fixed Asset Amortization and UCC 26
B12: Name or General Description of Project
B13: =IF(ISBLANK('Incremental Capital Summary'!B14), "", 'Incremental Capital Summary'!B14) -> C3 Handwell Replacement
B15: Asset Component
B16: =IF(ISBLANK('Incremental Capital Summary'!C46),"",'Incremental Capital Summary'!C46) -> 
B19: Average Net Fixed Assets
D20: =YEAR_SELECTED -> 2012 | E20: =IF((D20+1)<=2014,D20+1,"") -> 2013 | F20: =IF((D20+2)<=2014,D20+2,"") -> 2014
B21: Net Fixed Assets | D21: Forecasted | E21: Forecasted | F21: Forecasted
B23: Opening Capital Investment | D23: 0 | E23: =D25 -> 0 | F23: =E25 -> 0
B24: Capital Investment | D24: =IF(IRM_CYCLE_YEAR="4th Year of IRM Cycle", 'Incremental Capital Summary'!G46/2, 'Incremental Capital Summary'!G46) -> 0 | E24: 0 | F24: 0
B25: Closing Capital Investment | D25: =SUM(D23:D24) -> 0 | E25: =SUM(E23:E24) -> 0 | F25: =SUM(F23:F24) -> 0
B27: Opening Accumulated Amortization | D27: 0 | E27: =D29 -> 0 | F27: =E29 -> 0
B28: Amortization | C28: ='Incremental Capital Summary'!K46 -> 0 | D28: =D24*$C$28 -> 0 | E28: =E23*$C$28 -> 0 | F28: =F23*$C$28 -> 0
B29: Closing Accumulated Amortization | D29: =SUM(D27:D28) -> 0 | E29: =SUM(E27:E28) -> 0 | F29: =SUM(F27:F28) -> 0
B31: Opening Net Fixed Assets | D31: 0 | E31: =E23-E27 -> 0 | F31: =F23-F27 -> 0
B32: Closing Net Fixed Assets | D32: =D25-D29 -> 0 | E32: =E25-E29 -> 0 | F32: =F25-F29 -> 0
B33: Average Net Fixed Assets | D33: =SUM(D31:D32)/2 -> 0 | E33: =SUM(E31:E32)/2 -> 0 | F33: =SUM(F31:F32)/2 -> 0
B38: For PILs Calculation
B40: UCC | D40: =YEAR_SELECTED -> 2012 | E40: =IF((D40+1)<=2014,D40+1,"") -> 2013 | F40: =IF((D40+2)<=2014,D40+2,"") -> 2014
D41: Forecasted | E41: Forecasted | F41: Forecasted
B43: Opening UCC | D43: 0 | E43: =D51 -> 0 | F43: =E51 -> 0
B44: Capital Additions | D44: =D24 -> 0 | E44: =E24 -> 0 | F44: =F24 -> 0
B45: UCC Before Half Year Rule | D45: =SUM(D43:D44) -> 0 | E45: =SUM(E43:E44) -> 0 | F45: =SUM(F43:F44) -> 0
B46: Half Year Rule (1/2 Additions - Disposals) | D46: 0 | E46: =E44/2 -> 0 | F46: =F44/2 -> 0
B47: Reduced UCC | D47: =D45-D46 -> 0 | E47: =E45-E46 -> 0 | F47: =F45-F46 -> 0
B48: CCA Rate Class | C48: ='Incremental Capital Summary'!M46 -> 0
B49: CCA Rate | C49: ='Incremental Capital Summary'!O46 -> 0
B50: CCA | D50: =D47*$C$49 -> 0 | E50: =E47*$C$49 -> 0 | F50: =F47*$C$49 -> 0
B51: Closing UCC | D51: =D45-D50 -> 0 | E51: =E45-E50 -> 0 | F51: =F45-F50 -> 0

Sheet Fixed Asset Amort and UCC 27 (hidden)
B10: Fixed Asset Amortization and UCC 27
B12: Name or General Description of Project
B13: =IF(ISBLANK('Incremental Capital Summary'!B14), "", 'Incremental Capital Summary'!B14) -> C3 Handwell Replacement
B15: Asset Component
B16: =IF(ISBLANK('Incremental Capital Summary'!C47),"",'Incremental Capital Summary'!C47) -> 
B19: Average Net Fixed Assets
D20: =YEAR_SELECTED -> 2012 | E20: =IF((D20+1)<=2014,D20+1,"") -> 2013 | F20: =IF((D20+2)<=2014,D20+2,"") -> 2014
B21: Net Fixed Assets | D21: Forecasted | E21: Forecasted | F21: Forecasted
B23: Opening Capital Investment | D23: 0 | E23: =D25 -> 0 | F23: =E25 -> 0
B24: Capital Investment | D24: =IF(IRM_CYCLE_YEAR="4th Year of IRM Cycle", 'Incremental Capital Summary'!G47/2, 'Incremental Capital Summary'!G47) -> 0 | E24: 0 | F24: 0
B25: Closing Capital Investment | D25: =SUM(D23:D24) -> 0 | E25: =SUM(E23:E24) -> 0 | F25: =SUM(F23:F24) -> 0
B27: Opening Accumulated Amortization | D27: 0 | E27: =D29 -> 0 | F27: =E29 -> 0
B28: Amortization | C28: ='Incremental Capital Summary'!K47 -> 0 | D28: =D24*$C$28 -> 0 | E28: =E23*$C$28 -> 0 | F28: =F23*$C$28 -> 0
B29: Closing Accumulated Amortization | D29: =SUM(D27:D28) -> 0 | E29: =SUM(E27:E28) -> 0 | F29: =SUM(F27:F28) -> 0
B31: Opening Net Fixed Assets | D31: 0 | E31: =E23-E27 -> 0 | F31: =F23-F27 -> 0
B32: Closing Net Fixed Assets | D32: =D25-D29 -> 0 | E32: =E25-E29 -> 0 | F32: =F25-F29 -> 0
B33: Average Net Fixed Assets | D33: =SUM(D31:D32)/2 -> 0 | E33: =SUM(E31:E32)/2 -> 0 | F33: =SUM(F31:F32)/2 -> 0
B38: For PILs Calculation
B40: UCC | D40: =YEAR_SELECTED -> 2012 | E40: =IF((D40+1)<=2014,D40+1,"") -> 2013 | F40: =IF((D40+2)<=2014,D40+2,"") -> 2014
D41: Forecasted | E41: Forecasted | F41: Forecasted
B43: Opening UCC | D43: 0 | E43: =D51 -> 0 | F43: =E51 -> 0
B44: Capital Additions | D44: =D24 -> 0 | E44: =E24 -> 0 | F44: =F24 -> 0
B45: UCC Before Half Year Rule | D45: =SUM(D43:D44) -> 0 | E45: =SUM(E43:E44) -> 0 | F45: =SUM(F43:F44) -> 0
B46: Half Year Rule (1/2 Additions - Disposals) | D46: 0 | E46: =E44/2 -> 0 | F46: =F44/2 -> 0
B47: Reduced UCC | D47: =D45-D46 -> 0 | E47: =E45-E46 -> 0 | F47: =F45-F46 -> 0
B48: CCA Rate Class | C48: ='Incremental Capital Summary'!M47 -> 0
B49: CCA Rate | C49: ='Incremental Capital Summary'!O47 -> 0
B50: CCA | D50: =D47*$C$49 -> 0 | E50: =E47*$C$49 -> 0 | F50: =F47*$C$49 -> 0
B51: Closing UCC | D51: =D45-D50 -> 0 | E51: =E45-E50 -> 0 | F51: =F45-F50 -> 0

Sheet Fixed Asset Amort and UCC 28 (hidden)
B10: Fixed Asset Amortization and UCC 28
B12: Name or General Description of Project
B13: =IF(ISBLANK('Incremental Capital Summary'!B14), "", 'Incremental Capital Summary'!B14) -> C3 Handwell Replacement
B15: Asset Component
B16: =IF(ISBLANK('Incremental Capital Summary'!C48),"",'Incremental Capital Summary'!C48) -> 
B19: Average Net Fixed Assets
D20: =YEAR_SELECTED -> 2012 | E20: =IF((D20+1)<=2014,D20+1,"") -> 2013 | F20: =IF((D20+2)<=2014,D20+2,"") -> 2014
B21: Net Fixed Assets | D21: Forecasted | E21: Forecasted | F21: Forecasted
B23: Opening Capital Investment | D23: 0 | E23: =D25 -> 0 | F23: =E25 -> 0
B24: Capital Investment | D24: =IF(IRM_CYCLE_YEAR="4th Year of IRM Cycle", 'Incremental Capital Summary'!G48/2, 'Incremental Capital Summary'!G48) -> 0 | E24: 0 | F24: 0
B25: Closing Capital Investment | D25: =SUM(D23:D24) -> 0 | E25: =SUM(E23:E24) -> 0 | F25: =SUM(F23:F24) -> 0
B27: Opening Accumulated Amortization | D27: 0 | E27: =D29 -> 0 | F27: =E29 -> 0
B28: Amortization | C28: ='Incremental Capital Summary'!K48 -> 0 | D28: =D24*$C$28 -> 0 | E28: =E23*$C$28 -> 0 | F28: =F23*$C$28 -> 0
B29: Closing Accumulated Amortization | D29: =SUM(D27:D28) -> 0 | E29: =SUM(E27:E28) -> 0 | F29: =SUM(F27:F28) -> 0
B31: Opening Net Fixed Assets | D31: 0 | E31: =E23-E27 -> 0 | F31: =F23-F27 -> 0
B32: Closing Net Fixed Assets | D32: =D25-D29 -> 0 | E32: =E25-E29 -> 0 | F32: =F25-F29 -> 0
B33: Average Net Fixed Assets | D33: =SUM(D31:D32)/2 -> 0 | E33: =SUM(E31:E32)/2 -> 0 | F33: =SUM(F31:F32)/2 -> 0
B38: For PILs Calculation
B40: UCC | D40: =YEAR_SELECTED -> 2012 | E40: =IF((D40+1)<=2014,D40+1,"") -> 2013 | F40: =IF((D40+2)<=2014,D40+2,"") -> 2014
D41: Forecasted | E41: Forecasted | F41: Forecasted
B43: Opening UCC | D43: 0 | E43: =D51 -> 0 | F43: =E51 -> 0
B44: Capital Additions | D44: =D24 -> 0 | E44: =E24 -> 0 | F44: =F24 -> 0
B45: UCC Before Half Year Rule | D45: =SUM(D43:D44) -> 0 | E45: =SUM(E43:E44) -> 0 | F45: =SUM(F43:F44) -> 0
B46: Half Year Rule (1/2 Additions - Disposals) | D46: 0 | E46: =E44/2 -> 0 | F46: =F44/2 -> 0
B47: Reduced UCC | D47: =D45-D46 -> 0 | E47: =E45-E46 -> 0 | F47: =F45-F46 -> 0
B48: CCA Rate Class | C48: ='Incremental Capital Summary'!M48 -> 0
B49: CCA Rate | C49: ='Incremental Capital Summary'!O48 -> 0
B50: CCA | D50: =D47*$C$49 -> 0 | E50: =E47*$C$49 -> 0 | F50: =F47*$C$49 -> 0
B51: Closing UCC | D51: =D45-D50 -> 0 | E51: =E45-E50 -> 0 | F51: =F45-F50 -> 0

Sheet Fixed Asset Amort and UCC 29 (hidden)
B10: Fixed Asset Amortization and UCC 29
B12: Name or General Description of Project
B13: =IF(ISBLANK('Incremental Capital Summary'!B14), "", 'Incremental Capital Summary'!B14) -> C3 Handwell Replacement
B15: Asset Component
B16: =IF(ISBLANK('Incremental Capital Summary'!C49),"",'Incremental Capital Summary'!C49) -> 
B19: Average Net Fixed Assets
D20: =YEAR_SELECTED -> 2012 | E20: =IF((D20+1)<=2014,D20+1,"") -> 2013 | F20: =IF((D20+2)<=2014,D20+2,"") -> 2014
B21: Net Fixed Assets | D21: Forecasted | E21: Forecasted | F21: Forecasted
B23: Opening Capital Investment | D23: 0 | E23: =D25 -> 0 | F23: =E25 -> 0
B24: Capital Investment | D24: =IF(IRM_CYCLE_YEAR="4th Year of IRM Cycle", 'Incremental Capital Summary'!G49/2, 'Incremental Capital Summary'!G49) -> 0 | E24: 0 | F24: 0
B25: Closing Capital Investment | D25: =SUM(D23:D24) -> 0 | E25: =SUM(E23:E24) -> 0 | F25: =SUM(F23:F24) -> 0
B27: Opening Accumulated Amortization | D27: 0 | E27: =D29 -> 0 | F27: =E29 -> 0
B28: Amortization | C28: ='Incremental Capital Summary'!K49 -> 0 | D28: =D24*$C$28 -> 0 | E28: =E23*$C$28 -> 0 | F28: =F23*$C$28 -> 0
B29: Closing Accumulated Amortization | D29: =SUM(D27:D28) -> 0 | E29: =SUM(E27:E28) -> 0 | F29: =SUM(F27:F28) -> 0
B31: Opening Net Fixed Assets | D31: 0 | E31: =E23-E27 -> 0 | F31: =F23-F27 -> 0
B32: Closing Net Fixed Assets | D32: =D25-D29 -> 0 | E32: =E25-E29 -> 0 | F32: =F25-F29 -> 0
B33: Average Net Fixed Assets | D33: =SUM(D31:D32)/2 -> 0 | E33: =SUM(E31:E32)/2 -> 0 | F33: =SUM(F31:F32)/2 -> 0
B38: For PILs Calculation
B40: UCC | D40: =YEAR_SELECTED -> 2012 | E40: =IF((D40+1)<=2014,D40+1,"") -> 2013 | F40: =IF((D40+2)<=2014,D40+2,"") -> 2014
D41: Forecasted | E41: Forecasted | F41: Forecasted
B43: Opening UCC | D43: 0 | E43: =D51 -> 0 | F43: =E51 -> 0
B44: Capital Additions | D44: =D24 -> 0 | E44: =E24 -> 0 | F44: =F24 -> 0
B45: UCC Before Half Year Rule | D45: =SUM(D43:D44) -> 0 | E45: =SUM(E43:E44) -> 0 | F45: =SUM(F43:F44) -> 0
B46: Half Year Rule (1/2 Additions - Disposals) | D46: 0 | E46: =E44/2 -> 0 | F46: =F44/2 -> 0
B47: Reduced UCC | D47: =D45-D46 -> 0 | E47: =E45-E46 -> 0 | F47: =F45-F46 -> 0
B48: CCA Rate Class | C48: ='Incremental Capital Summary'!M49 -> 0
B49: CCA Rate | C49: ='Incremental Capital Summary'!O49 -> 0
B50: CCA | D50: =D47*$C$49 -> 0 | E50: =E47*$C$49 -> 0 | F50: =F47*$C$49 -> 0
B51: Closing UCC | D51: =D45-D50 -> 0 | E51: =E45-E50 -> 0 | F51: =F45-F50 -> 0

Sheet Fixed Asset Amort and UCC 30 (hidden)
B10: Fixed Asset Amortization and UCC 30
B12: Name or General Description of Project
B13: =IF(ISBLANK('Incremental Capital Summary'!B14), "", 'Incremental Capital Summary'!B14) -> C3 Handwell Replacement
B15: Asset Component
B16: =IF(ISBLANK('Incremental Capital Summary'!C50),"",'Incremental Capital Summary'!C50) -> 
B19: Average Net Fixed Assets
D20: =YEAR_SELECTED -> 2012 | E20: =IF((D20+1)<=2014,D20+1,"") -> 2013 | F20: =IF((D20+2)<=2014,D20+2,"") -> 2014
B21: Net Fixed Assets | D21: Forecasted | E21: Forecasted | F21: Forecasted
B23: Opening Capital Investment | D23: 0 | E23: =D25 -> 0 | F23: =E25 -> 0
B24: Capital Investment | D24: =IF(IRM_CYCLE_YEAR="4th Year of IRM Cycle", 'Incremental Capital Summary'!G50/2, 'Incremental Capital Summary'!G50) -> 0 | E24: 0 | F24: 0
B25: Closing Capital Investment | D25: =SUM(D23:D24) -> 0 | E25: =SUM(E23:E24) -> 0 | F25: =SUM(F23:F24) -> 0
B27: Opening Accumulated Amortization | D27: 0 | E27: =D29 -> 0 | F27: =E29 -> 0
B28: Amortization | C28: ='Incremental Capital Summary'!K50 -> 0 | D28: =D24*$C$28 -> 0 | E28: =E23*$C$28 -> 0 | F28: =F23*$C$28 -> 0
B29: Closing Accumulated Amortization | D29: =SUM(D27:D28) -> 0 | E29: =SUM(E27:E28) -> 0 | F29: =SUM(F27:F28) -> 0
B31: Opening Net Fixed Assets | D31: 0 | E31: =E23-E27 -> 0 | F31: =F23-F27 -> 0
B32: Closing Net Fixed Assets | D32: =D25-D29 -> 0 | E32: =E25-E29 -> 0 | F32: =F25-F29 -> 0
B33: Average Net Fixed Assets | D33: =SUM(D31:D32)/2 -> 0 | E33: =SUM(E31:E32)/2 -> 0 | F33: =SUM(F31:F32)/2 -> 0
B38: For PILs Calculation
B40: UCC | D40: =YEAR_SELECTED -> 2012 | E40: =IF((D40+1)<=2014,D40+1,"") -> 2013 | F40: =IF((D40+2)<=2014,D40+2,"") -> 2014
D41: Forecasted | E41: Forecasted | F41: Forecasted
B43: Opening UCC | D43: 0 | E43: =D51 -> 0 | F43: =E51 -> 0
B44: Capital Additions | D44: =D24 -> 0 | E44: =E24 -> 0 | F44: =F24 -> 0
B45: UCC Before Half Year Rule | D45: =SUM(D43:D44) -> 0 | E45: =SUM(E43:E44) -> 0 | F45: =SUM(F43:F44) -> 0
B46: Half Year Rule (1/2 Additions - Disposals) | D46: 0 | E46: =E44/2 -> 0 | F46: =F44/2 -> 0
B47: Reduced UCC | D47: =D45-D46 -> 0 | E47: =E45-E46 -> 0 | F47: =F45-F46 -> 0
B48: CCA Rate Class | C48: ='Incremental Capital Summary'!M50 -> 0
B49: CCA Rate | C49: ='Incremental Capital Summary'!O50 -> 0
B50: CCA | D50: =D47*$C$49 -> 0 | E50: =E47*$C$49 -> 0 | F50: =F47*$C$49 -> 0
B51: Closing UCC | D51: =D45-D50 -> 0 | E51: =E45-E50 -> 0 | F51: =F45-F50 -> 0

Sheet LOOKUPS_&_DATA==>> (hidden)

Sheet DATA_PIVOT (hidden)
A1: Include | B1: Y | F1: Include | G1: Y | K1: Include | L1: Y
A3: Sum of FY12 | F3: Sum of FY13 | K3: Sum of FY14
A4: CATEGORY LISTING | B4: ASSET TITLE | C4: Total | F4: CATEGORY LISTING | G4: ASSET TITLE | H4: Total | K4: CATEGORY LISTING | L4: ASSET TITLE | M4: Total
A5: C1 Underground Infrastructure | B5: 1830_Poles Towers and Fixtures | C5: 1179995.718 | F5: C1 Underground Infrastructure | G5: 1830_Poles Towers and Fixtures | H5: 263293 | K5: C1 Underground Infrastructure | L5: 1830_Poles Towers and Fixtures | M5: 950248.79
B6: 1835_Overhead Conductors and Devices | C6: 860905.5788 | G6: 1835_Overhead Conductors and Devices | H6: 444688.62 | L6: 1835_Overhead Conductors and Devices | M6: 866336.66
B7: 1835_Overhead Conductors and Devices - Switches | C7: 862522.5193 | G7: 1835_Overhead Conductors and Devices - Switches | H7: 642592.65 | L7: 1835_Overhead Conductors and Devices - Switches | M7: 1350323.57
B8: 1840_Underground Conduit - Cable Chamber | C8: 1112655.38 | G8: 1840_Underground Conduit - Cable Chamber | H8: 601689.63 | L8: 1840_Underground Conduit - Cable Chamber | M8: 738736.16
B9: 1840_Underground Conduit - Duct Bank | C9: 30609335.27 | G9: 1840_Underground Conduit - Duct Bank | H9: 32966663.49 | L9: 1840_Underground Conduit - Duct Bank | M9: 38934252.48
B10: 1840_Underground Conduit - Vault | C10: 553129.94 | G10: 1840_Underground Conduit - Vault | H10: 1498878.69 | L10: 1840_Underground Conduit - Vault | M10: 984890.34
B11: 1840_Underground Conduit - Vault Roof | C11: 51150.85 | G11: 1840_Underground Conduit - Vault Roof | H11: 29527.66 | L11: 1840_Underground Conduit - Vault Roof | M11: 19183.79
B12: 1845_Underground Conductors and Devices | C12: 6313666.161 | G12: 1845_Underground Conductors and Devices | H12: 8755831.28 | L12: 1845_Underground Conductors and Devices | M12: 13387549.78
B13: 1845_Underground Conductors and Devices - Switch | C13: 2897681.24 | G13: 1845_Underground Conductors and Devices - Switch | H13: 2763903.39 | L13: 1845_Underground Conductors and Devices - Switch | M13: 6768595.3
B14: 1850_Line Transformers - OH | C14: 71447.88 | G14: 1850_Line Transformers - UG | H14: 4091891.03 | L14: 1850_Line Transformers - OH | M14: 133035.76
B15: 1850_Line Transformers - UG | C15: 1746294.281 | G15: 1860_Meters - Smart Meters | H15: 480978.88 | L15: 1850_Line Transformers - UG | M15: 5698387.95
B16: 1860_Meters - Smart Meters | C16: 11029.81 | G16: 1855_Services - UG | H16: 466492.1 | L16: 1860_Meters - Smart Meters | M16: 2360399.27
B17: 1855_Services - UG | C17: 558183.7184 | G17: 1855_Services - OH | H17: 13328.93 | L17: 1855_Services - UG | M17: 2712925.77
B18: 1855_Services - OH | C18: 109675.0876 | F18: C1 Underground Infrastructure Total | H18: 53019759.35 | L18: 1855_Services - OH | M18: 17900.93
A19: C1 Underground Infrastructure Total | C19: 46937673.44 | F19: C2 Paper Insulated Lead Covered Cable - Piece Outs and Leakers | G19: 1840_Underground Conduit - Cable Chamber | H19: 207580.92 | K19: C1 Underground Infrastructure Total | M19: 74922766.55
A20: C2 Paper Insulated Lead Covered Cable - Piece Outs and Leakers | B20: 1840_Underground Conduit - Cable Chamber | C20: 3997.42 | G20: 1840_Underground Conduit - Duct Bank | H20: 1596415.74 | K20: C2 Paper Insulated Lead Covered Cable - Piece Outs and Leakers | L20: 1845_Underground Conductors and Devices | M20: 1466610.82
B21: 1840_Underground Conduit - Duct Bank | C21: 9327.32 | G21: 1840_Underground Conduit - Vault | H21: 4604.52 | K21: C2 Paper Insulated Lead Covered Cable - Piece Outs and Leakers Total | M21: 1466610.82
B22: 1840_Underground Conduit - Vault | C22: 8973.97 | G22: 1840_Underground Conduit - Vault Roof | H22: 2051.07 | K22: C3 Handwell Replacement | L22: 1830_Poles Towers and Fixtures | M22: 7169780.19
B23: 1840_Underground Conduit - Vault Roof | C23: 3997.42 | G23: 1845_Underground Conductors and Devices | H23: 3365017.26 | K23: C3 Handwell Replacement Total | M23: 7169780.19
B24: 1845_Underground Conductors and Devices | C24: 17198047.38 | G24: 1845_Underground Conductors and Devices - Switch | H24: 1889.06 | K24: C4 Overhead Infrastructure | L24: 1830_Poles Towers and Fixtures | M24: 6957005.562
B25: 1845_Underground Conductors and Devices - Switch | C25: 61799.48 | G25: 1855_Services - UG | H25: 1459.63 | L25: 1835_Overhead Conductors and Devices | M25: 4704826.749
B26: 1850_Line Transformers - UG | C26: 15959.17 | F26: C2 Paper Insulated Lead Covered Cable - Piece Outs and Leakers Total | H26: 5179018.2 | L26: 1835_Overhead Conductors and Devices - Switches | M26: 1714563.456
B27: 1850_Line Transformers - UG Network w/protector | C27: 19293.49 | F27: C3 Handwell Replacement | G27: 1830_Poles Towers and Fixtures | H27: 14450827.59 | L27: 1840_Underground Conduit - Cable Chamber | M27: 1972.44
B28: 1855_Services - UG | C28: 1660.35 | F28: C3 Handwell Replacement Total | H28: 14450827.59 | L28: 1840_Underground Conduit - Duct Bank | M28: 217770.83
A29: C2 Paper Insulated Lead Covered Cable - Piece Outs and Leakers Total | C29: 17323056 | F29: C4 Overhead Infrastructure | G29: 1830_Poles Towers and Fixtures | H29: 18620793.46 | L29: 1840_Underground Conduit - Vault | M29: 62831.39
A30: C3 Handwell Replacement | B30: 1830_Poles Towers and Fixtures | C30: 12007529.38 | G30: 1835_Overhead Conductors and Devices | H30: 13316360.54 | L30: 1840_Underground Conduit - Vault Roof | M30: 1972.44
A31: C3 Handwell Replacement Total | C31: 12007529.38 | G31: 1835_Overhead Conductors and Devices - Switches | H31: 3014856.107 | L31: 1845_Underground Conductors and Devices | M31: 373486.97
A32: C4 Overhead Infrastructure | B32: 1830_Poles Towers and Fixtures | C32: 7244443.088 | G32: 1840_Underground Conduit - Cable Chamber | H32: 7299.97 | L32: 1845_Underground Conductors and Devices - Switch | M32: 98821.45
B33: 1835_Overhead Conductors and Devices | C33: 9132470.549 | G33: 1840_Underground Conduit - Duct Bank | H33: 959143.6043 | L33: 1850_Line Transformers - OH | M33: 4573551.697
B34: 1835_Overhead Conductors and Devices - Switches | C34: 3957761.218 | G34: 1840_Underground Conduit - Vault | H34: 4179.63 | L34: 1850_Line Transformers - UG | M34: 225279.71
B35: 1840_Underground Conduit - Duct Bank | C35: 578911.89 | G35: 1840_Underground Conduit - Vault Roof | H35: 1861.8 | L35: 1860_Meters - Smart Meters | M35: 36374.30745
B36: 1840_Underground Conduit - Vault | C36: 27778.64 | G36: 1845_Underground Conductors and Devices | H36: 600111.5187 | L36: 1855_Services - UG | M36: 58179.66
B37: 1845_Underground Conductors and Devices | C37: 1151222.53 | G37: 1845_Underground Conductors and Devices - Switch | H37: 168442.5358 | L37: 1855_Services - OH | M37: 1086988.034
B38: 1845_Underground Conductors and Devices - Switch | C38: 187365.94 | G38: 1850_Line Transformers - OH | H38: 13993572.66 | K38: C4 Overhead Infrastructure Total | M38: 20113624.7
B39: 1850_Line Transformers - OH | C39: 5104525.45 | G39: 1850_Line Transformers - UG | H39: 851284.0535 | K39: C5 Box Construction | L39: 1830_Poles Towers and Fixtures | M39: 6102645.45
B40: 1850_Line Transformers - UG | C40: 372287.15 | G40: 1860_Meters - Smart Meters | H40: 173622.7795 | L40: 1835_Overhead Conductors and Devices | M40: 7727186.01
B41: 1860_Meters - Smart Meters | C41: 11794.34 | G41: 1855_Services - UG | H41: 108572.7734 | L41: 1835_Overhead Conductors and Devices - Switches | M41: 1963768.48
B42: 1855_Services - UG | C42: 3498.25 | G42: 1855_Services - OH | H42: 1197971.134 | L42: 1840_Underground Conduit - Cable Chamber | M42: 6995.1
B43: 1855_Services - OH | C43: 1654583.402 | F43: C4 Overhead Infrastructure Total | H43: 53018072.57 | L43: 1840_Underground Conduit - Duct Bank | M43: 65473.51
A44: C4 Overhead Infrastructure Total | C44: 29426642.45 | F44: C5 Box Construction | G44: 1830_Poles Towers and Fixtures | H44: 4217286.34 | L44: 1840_Underground Conduit - Vault | M44: 9476.64
A45: C5 Box Construction | B45: 1830_Poles Towers and Fixtures | C45: 2711256.46 | G45: 1835_Overhead Conductors and Devices | H45: 4642696.52 | L45: 1840_Underground Conduit - Vault Roof | M45: 4493.56
B46: 1835_Overhead Conductors and Devices | C46: 2297613.1 | G46: 1835_Overhead Conductors and Devices - Switches | H46: 1281787.92 | L46: 1845_Underground Conductors and Devices | M46: 2081749.02
B47: 1835_Overhead Conductors and Devices - Switches | C47: 324004.89 | G47: 1840_Underground Conduit - Cable Chamber | H47: 1351521.88 | L47: 1845_Underground Conductors and Devices - Switch | M47: 197495.69
B48: 1840_Underground Conduit - Cable Chamber | C48: 18271.28 | G48: 1840_Underground Conduit - Duct Bank | H48: 277255.52 | L48: 1850_Line Transformers - OH | M48: 5138306.33
B49: 1840_Underground Conduit - Duct Bank | C49: 71216.76 | G49: 1840_Underground Conduit - Vault | H49: 83348.3 | L49: 1850_Line Transformers - UG | M49: 1059088.53
B50: 1840_Underground Conduit - Vault | C50: 16290.76 | G50: 1840_Underground Conduit - Vault Roof | H50: 71456.08 | L50: 1850_Line Transformers - UG Network w/protector | M50: 47281.61
B51: 1840_Underground Conduit - Vault Roof | C51: 3358.14 | G51: 1845_Underground Conductors and Devices | H51: 2711183.63 | L51: 1860_Meters - Smart Meters | M51: 20041.71
B52: 1845_Underground Conductors and Devices | C52: 1181320.78 | G52: 1845_Underground Conductors and Devices - Switch | H52: 151781.53 | L52: 1855_Services - UG | M52: 33492.44
B53: 1845_Underground Conductors and Devices - Switch | C53: 132870.02 | G53: 1850_Line Transformers - OH | H53: 2915988.91 | L53: 1855_Services - OH | M53: 3304715.45
B54: 1850_Line Transformers - OH | C54: 1974853.55 | G54: 1850_Line Transformers - UG | H54: 428178.19 | K54: C5 Box Construction Total | M54: 27762209.53
B55: 1850_Line Transformers - UG | C55: 282788.33 | G55: 1850_Line Transformers - UG Network w/protector | H55: 115671.13 | K55: C6 Rear Lot Construction | L55: 1830_Poles Towers and Fixtures | M55: 24087.71
B56: 1860_Meters - Smart Meters | C56: 4001.98 | G56: 1860_Meters - Smart Meters | H56: 29075.01 | L56: 1835_Overhead Conductors and Devices | M56: 11485.26
B57: 1855_Services - UG | C57: 15858.47 | G57: 1855_Services - UG | H57: 129263.65 | L57: 1835_Overhead Conductors and Devices - Switches | M57: 114562.8
B58: 1855_Services - OH | C58: 1167600.95 | G58: 1855_Services - OH | H58: 2129431.86 | L58: 1840_Underground Conduit - Cable Chamber | M58: 137322.79
A59: C5 Box Construction Total | C59: 10201305.47 | F59: C5 Box Construction Total | H59: 20535926.47 | L59: 1840_Underground Conduit - Duct Bank | M59: 5329898.11
A60: C6 Rear Lot Construction | B60: 1830_Poles Towers and Fixtures | C60: 1973090.24 | F60: C6 Rear Lot Construction | G60: 1830_Poles Towers and Fixtures | H60: 720136.57 | L60: 1840_Underground Conduit - Vault | M60: 156387.53
B61: 1835_Overhead Conductors and Devices | C61: 1114403.35 | G61: 1835_Overhead Conductors and Devices | H61: 1188074.68 | L61: 1845_Underground Conductors and Devices | M61: 2209223.29
B62: 1835_Overhead Conductors and Devices - Switches | C62: 173923.65 | G62: 1835_Overhead Conductors and Devices - Switches | H62: 24071.96 | L62: 1845_Underground Conductors and Devices - Switch | M62: 333613.04
B63: 1840_Underground Conduit - Cable Chamber | C63: 374760.37 | G63: 1840_Underground Conduit - Duct Bank | H63: 14231391.63 | L63: 1850_Line Transformers - UG | M63: 182582.99
B64: 1840_Underground Conduit - Duct Bank | C64: 7158921.81 | G64: 1845_Underground Conductors and Devices | H64: 1673789.33 | L64: 1860_Meters - Smart Meters | M64: 2341099.93
B65: 1840_Underground Conduit - Vault | C65: 527369.46 | G65: 1845_Underground Conductors and Devices - Switch | H65: 102362.4 | L65: 1855_Services - UG | M65: 123811.45
B66: 1845_Underground Conductors and Devices | C66: 9695330.49 | G66: 1850_Line Transformers - OH | H66: 211403.93 | L66: 1855_Services - OH | M66: 67864.11
B67: 1845_Underground Conductors and Devices - Switch | C67: 782007.07 | G67: 1850_Line Transformers - UG | H67: 674345.28 | K67: C6 Rear Lot Construction Total | M67: 11031939.01
B68: 1850_Line Transformers - OH | C68: 721384.56 | G68: 1860_Meters - Smart Meters | H68: 475583.97 | K68: C7 Polymer SMD-20 Fuses | L68: 1830_Poles Towers and Fixtures | M68: 501325.77
B69: 1850_Line Transformers - UG | C69: 3324211.04 | G69: 1855_Services - UG | H69: 1272330.2 | L69: 1835_Overhead Conductors and Devices | M69: 375419.35
B70: 1860_Meters - Smart Meters | C70: 304285.6 | G70: 1855_Services - OH | H70: 161077.3 | L70: 1835_Overhead Conductors and Devices - Switches | M70: 1985931.25
B71: 1855_Services - UG | C71: 6832649.58 | F71: C6 Rear Lot Construction Total | H71: 20734567.25 | L71: 1855_Services - OH | M71: 74011.58
B72: 1855_Services - OH | C72: 1383365.94 | F72: C7 Polymer SMD-20 Fuses | G72: 1830_Poles Towers and Fixtures | H72: 503370.76 | K72: C7 Polymer SMD-20 Fuses Total | M72: 2936687.95
A73: C6 Rear Lot Construction Total | C73: 34365703.16 | G73: 1835_Overhead Conductors and Devices | H73: 376950.81 | K73: C8 Scadamate R1 Switches | L73: 1835_Overhead Conductors and Devices | M73: 73506.949
A74: C7 Polymer SMD-20 Fuses | B74: 1830_Poles Towers and Fixtures | C74: 522068.23 | G74: 1835_Overhead Conductors and Devices - Switches | H74: 1994032.54 | L74: 1835_Overhead Conductors and Devices - Switches | M74: 2620317.051
B75: 1835_Overhead Conductors and Devices | C75: 390952.53 | G75: 1855_Services - OH | H75: 74313.46 | K75: C8 Scadamate R1 Switches Total | M75: 2693824
B76: 1835_Overhead Conductors and Devices - Switches | C76: 2068099.82 | F76: C7 Polymer SMD-20 Fuses Total | H76: 2948667.57 | K76: C9 Network Vault & Roofs | L76: 1830_Poles Towers and Fixtures | M76: 8109.34
B77: 1855_Services - OH | C77: 77073.81 | F77: C8 Scadamate R1 Switches | G77: 1835_Overhead Conductors and Devices | H77: 76507.23481 | L77: 1835_Overhead Conductors and Devices | M77: 6072.64
A78: C7 Polymer SMD-20 Fuses Total | C78: 3058194.39 | G78: 1835_Overhead Conductors and Devices - Switches | H78: 2727268.765 | L78: 1835_Overhead Conductors and Devices - Switches | M78: 30807.1
A79: C8 Scadamate R1 Switches | B79: 1835_Overhead Conductors and Devices | C79: 78007.82108 | F79: C8 Scadamate R1 Switches Total | H79: 2803776 | L79: 1840_Underground Conduit - Cable Chamber | M79: 4415.7
B80: 1835_Overhead Conductors and Devices - Switches | C80: 2780744.179 | F80: C9 Network Vault & Roofs | G80: 1830_Poles Towers and Fixtures | H80: 37097.34 | L80: 1840_Underground Conduit - Duct Bank | M80: 10303.22
A81: C8 Scadamate R1 Switches Total | C81: 2858752 | G81: 1835_Overhead Conductors and Devices | H81: 27781.03 | L81: 1840_Underground Conduit - Vault | M81: 13753666.97
A82: C9 Network Vault & Roofs | B82: 1830_Poles Towers and Fixtures | C82: 15245.3 | G82: 1835_Overhead Conductors and Devices - Switches | H82: 140934.59 | L82: 1840_Underground Conduit - Vault Roof | M82: 21782.9
B83: 1835_Overhead Conductors and Devices | C83: 11416.74 | G83: 1840_Underground Conduit - Cable Chamber | H83: 1170083.04 | L83: 1845_Underground Conductors and Devices | M83: 45236.14
B84: 1835_Overhead Conductors and Devices - Switches | C84: 57917.6 | G84: 1840_Underground Conduit - Duct Bank | H84: 644158 | L84: 1845_Underground Conductors and Devices - Switch | M84: 1650825.88
B85: 1840_Underground Conduit - Cable Chamber | C85: 1131633.26 | G85: 1840_Underground Conduit - Vault | H85: 2495128.04 | L85: 1850_Line Transformers - OH | M85: 9511.72
B86: 1840_Underground Conduit - Duct Bank | C86: 840596.62 | G86: 1840_Underground Conduit - Vault Roof | H86: 116513.84 | L86: 1850_Line Transformers - UG | M86: 14136.74
B87: 1840_Underground Conduit - Vault | C87: 4201533.51 | G87: 1845_Underground Conductors and Devices | H87: 3381936.14 | L87: 1850_Line Transformers - UG Network w/protector | M87: 17090.63
B88: 1840_Underground Conduit - Vault Roof | C88: 3306.98 | G88: 1845_Underground Conductors and Devices - Switch | H88: 587998.9 | L88: 1855_Services - UG | M88: 1470.65
B89: 1845_Underground Conductors and Devices | C89: 2142686.19 | G89: 1850_Line Transformers - OH | H89: 43513.11 | L89: 1855_Services - OH | M89: 1197.18
B90: 1845_Underground Conductors and Devices - Switch | C90: 2138166.61 | G90: 1850_Line Transformers - UG | H90: 86733.07 | K90: C9 Network Vault & Roofs Total | M90: 15574626.81
B91: 1850_Line Transformers - OH | C91: 17881.87 | G91: 1850_Line Transformers - UG Network w/protector | H91: 2284610.17 | K91: C10 Fibertop Network Units | L91: 1840_Underground Conduit - Vault | M91: 78916.79
B92: 1850_Line Transformers - UG | C92: 26439.36 | G92: 1855_Services - UG | H92: 1287821.1 | L92: 1845_Underground Conductors and Devices | M92: 730415.82
B93: 1850_Line Transformers - UG Network w/protector | C93: 2938654.79 | G93: 1855_Services - OH | H93: 5476.69 | L93: 1850_Line Transformers - UG Network w/protector | M93: 8548242.09
B94: 1855_Services - UG | C94: 37500.54 | F94: C9 Network Vault & Roofs Total | H94: 12309785.06 | K94: C10 Fibertop Network Units Total | M94: 9357574.7
B95: 1855_Services - OH | C95: 2250.68 | F95: C10 Fibertop Network Units | G95: 1840_Underground Conduit - Vault | H95: 75117.74 | K95: C11 Automatic Transfer Switches (ATS) & Reverse Power Breakers (RPB) | L95: 1840_Underground Conduit - Duct Bank | M95: 9877.42
A96: C9 Network Vault & Roofs Total | C96: 13565230.05 | G96: 1845_Underground Conductors and Devices | H96: 694263.86 | L96: 1840_Underground Conduit - Vault | M96: 29632.23
A97: C10 Fibertop Network Units | B97: 1840_Underground Conduit - Vault | C97: 70780.42 | G97: 1850_Line Transformers - UG Network w/protector | H97: 8008631.73 | L97: 1845_Underground Conductors and Devices | M97: 348650.11
B98: 1845_Underground Conductors and Devices | C98: 624397.5 | F98: C10 Fibertop Network Units Total | H98: 8778013.33 | L98: 1845_Underground Conductors and Devices - Switch | M98: 286378.13
B99: 1850_Line Transformers - UG Network w/protector | C99: 7894746.8 | F99: C11 Automatic Transfer Switches (ATS) & Reverse Power Breakers (RPB) | G99: 1840_Underground Conduit - Duct Bank | H99: 10160.88 | L99: 1850_Line Transformers - UG Network w/protector | M99: 2550922.72
A100: C10 Fibertop Network Units Total | C100: 8589924.72 | G100: 1840_Underground Conduit - Vault | H100: 30482.63 | K100: C11 Automatic Transfer Switches (ATS) & Reverse Power Breakers (RPB) Total | M100: 3225460.61
A101: C11 Automatic Transfer Switches (ATS) & Reverse Power Breakers (RPB) | B101: 1830_Poles Towers and Fixtures | C101: 9214.16 | G101: 1845_Underground Conductors and Devices | H101: 356540.08 | K101: C12 Stations Power Transformers | L101: 1820_DS Equip - Normally Primary below 50 kV - Power Transformer | M101: 874732.804
B102: 1835_Overhead Conductors and Devices | C102: 6900.2 | G102: 1845_Underground Conductors and Devices - Switch | H102: 292158.04 | K102: C12 Stations Power Transformers Total | M102: 874732.804
B103: 1835_Overhead Conductors and Devices - Switches | C103: 35005.02 | G103: 1850_Line Transformers - UG Network w/protector | H103: 2608432.84 | K103: C13 Stations Switchgear | L103: 1808_Buildings and Fixtures - Stn Shell Site | M103: 441260.5947
B104: 1840_Underground Conduit - Duct Bank | C104: 7297.52 | F104: C11 Automatic Transfer Switches (ATS) & Reverse Power Breakers (RPB) Total | H104: 3297774.47 | L104: 1820_DS Equip - Normally Primary below 50 kV - Switchgear Air | M104: 18674330.77
B105: 1840_Underground Conduit - Vault | C105: 31955.93 | F105: C12 Stations Power Transformers | G105: 1808_Buildings and Fixtures - Stn Shell Site | H105: 7352.15616 | L105: 1830_Poles Towers and Fixtures | M105: 19882.26378
B106: 1845_Underground Conductors and Devices | C106: 413166.86 | G106: 1820_DS Equip - Normally Primary below 50 kV - Power Transformer | H106: 2509522.675 | L106: 1835_Overhead Conductors and Devices | M106: 66964.09268
B107: 1845_Underground Conductors and Devices - Switch | C107: 426248.89 | G107: 1840_Underground Conduit - Duct Bank | H107: 41376.48105 | L107: 1835_Overhead Conductors and Devices - Switches | M107: 200463.3161
B108: 1850_Line Transformers - OH | C108: 10807.69 | F108: C12 Stations Power Transformers Total | H108: 2558251.312 | L108: 1840_Underground Conduit - Duct Bank | M108: 184134.6252
B109: 1850_Line Transformers - UG | C109: 245151.67 | F109: C13 Stations Switchgear | G109: 1808_Buildings and Fixtures - Stn Shell Site | H109: 18747.17577 | L109: 1845_Underground Conductors and Devices | M109: 556616.0983
B110: 1850_Line Transformers - UG Network w/protector | C110: 2083630.26 | G110: 1820_DS Equip - Normally Primary below 50 kV - Stn Service Batteries | H110: 3989.647196 | L110: 1845_Underground Conductors and Devices - Switch | M110: 11691.512
B111: 1855_Services - UG | C111: 1677.45 | G111: 1820_DS Equip - Normally Primary below 50 kV - Switchgear Air | H111: 9363370.519 | L111: 1980_System Supervisory Equipment | M111: 153306.8119
B112: 1855_Services - OH | C112: 1360.29 | G112: 1820_DS Equip - Normally Primary below 50 kV - Switchgear GIS | H112: 6901748.389 | K112: C13 Stations Switchgear Total | M112: 20308650.09
A113: C11 Automatic Transfer Switches (ATS) & Reverse Power Breakers (RPB) Total | C113: 3272415.94 | G113: 1830_Poles Towers and Fixtures | H113: 99709.50873 | K113: C14 Stations Circuit Breakers | L113: 1808_Buildings and Fixtures - Stn Shell Site | M113: 21948.11942
A114: C12 Stations Power Transformers | B114: 1820_DS Equip - Normally Primary below 50 kV - Power Transformer | C114: 1299578.93 | G114: 1835_Overhead Conductors and Devices | H114: 156808.4018 | L114: 1820_DS Equip - Normally Primary below 50 kV - Outdoor Breaker | M114: 1358800.978
A115: C12 Stations Power Transformers Total | C115: 1299578.93 | G115: 1835_Overhead Conductors and Devices - Switches | H115: 334802.1895 | K115: C14 Stations Circuit Breakers Total | M115: 1380749.097
A116: C13 Stations Switchgear | B116: 1808_Buildings and Fixtures - Stn Shell Site | C116: 156691.5031 | G116: 1840_Underground Conduit - Cable Chamber | H116: 292190.6762 | K116: C15 Stations Control & Communicaton Systems | L116: 1980_System Supervisory Equipment | M116: 1336710.732
B117: 1820_DS Equip - Normally Primary below 50 kV - Indoor Breaker | C117: 45765.808 | G117: 1840_Underground Conduit - Duct Bank | H117: 574466.8336 | K117: C15 Stations Control & Communicaton Systems Total | M117: 1336710.732
B118: 1820_DS Equip - Normally Primary below 50 kV - Stn Service Batteries | C118: 5886.034638 | G118: 1840_Underground Conduit - Vault | H118: 4167.234642 | K118: C16 Downtown Station Load Transfers | L118: 1840_Underground Conduit - Vault | M118: 1025727.49
B119: 1820_DS Equip - Normally Primary below 50 kV - Stn Service Chargers | C119: 7063.235792 | G119: 1840_Underground Conduit - Vault Roof | H119: 1856.280516 | L119: 1845_Underground Conductors and Devices | M119: 1762498.22
B120: 1820_DS Equip - Normally Primary below 50 kV - Switchgear Air | C120: 16842016.17 | G120: 1845_Underground Conductors and Devices | H120: 961947.277 | L120: 1845_Underground Conductors and Devices - Switch | M120: 803715.72
B121: 1830_Poles Towers and Fixtures | C121: 54592.9477 | G121: 1845_Underground Conductors and Devices - Switch | H121: 6491.386153 | K121: C16 Downtown Station Load Transfers Total | M121: 3591941.43
B122: 1835_Overhead Conductors and Devices | C122: 146833.7318 | G122: 1980_System Supervisory Equipment | H122: 32750.97938 | K122: C17 Bremner Transformer Station | L122: 1808_Buildings and Fixtures - Stn Interior | M122: 2149720.958
B123: 1835_Overhead Conductors and Devices - Switches | C123: 393681.188 | G123: 1855_Services - UG | H123: 2018.561602 | L123: 1808_Buildings and Fixtures - Stn Shell Site | M123: 2006443.096
B124: 1840_Underground Conduit - Cable Chamber | C124: 105571.5561 | G124: 1855_Services - OH | H124: 1252.962183 | L124: 1808_Buildings and Fixtures - Stn Substructure | M124: 3379561.32
B125: 1840_Underground Conduit - Duct Bank | C125: 607418.6115 | F125: C13 Stations Switchgear Total | H125: 18756318.02 | L125: 1815_TS Equip - Normally Primary above 50 kV - Disconnect Switch | M125: 3211680.111
B126: 1845_Underground Conductors and Devices | C126: 792915.3502 | F126: C14 Stations Circuit Breakers | G126: 1820_DS Equip - Normally Primary below 50 kV - Outdoor Breaker | H126: 1076331.78 | L126: 1815_TS Equip - Normally Primary above 50 kV - Power Transformer | M126: 5179195.13
B127: 1980_System Supervisory Equipment | C127: 191512.72 | F127: C14 Stations Circuit Breakers Total | H127: 1076331.78 | L127: 1815_TS Equip - Normally Primary above 50 kV - Station Service | M127: 1541171.63
A128: C13 Stations Switchgear Total | C128: 19349948.86 | F128: C15 Stations Control & Communicaton Systems | G128: 1980_System Supervisory Equipment | H128: 2154380.802 | L128: 1820_DS Equip - Normally Primary below 50 kV - Stn Service Batteries | M128: 225665.9077
A129: C14 Stations Circuit Breakers | B129: 1808_Buildings and Fixtures - Stn Shell Site | C129: 15415.09803 | F129: C15 Stations Control & Communicaton Systems Total | H129: 2154380.802 | L129: 1820_DS Equip - Normally Primary below 50 kV - Switchgear GIS | M129: 4899138.482
B130: 1820_DS Equip - Normally Primary below 50 kV - Outdoor Breaker | C130: 1338325.637 | F130: C16 Downtown Station Load Transfers | G130: 1830_Poles Towers and Fixtures | H130: 134123.1 | L130: 1820_DS Equip - Normally Primary below 50 kV - Station Service | M130: 423978.3659
B131: 1840_Underground Conduit - Duct Bank | C131: 17781.41679 | G131: 1835_Overhead Conductors and Devices | H131: 217273.2 | K131: C17 Bremner Transformer Station Total | M131: 23016555
A132: C14 Stations Circuit Breakers Total | C132: 1371522.152 | G132: 1835_Overhead Conductors and Devices - Switches | H132: 373758.02 | K132: C18 Hydro One Capital Contributions | L132: 1815_TS Equip - Normally Primary above 50 kV - Contribution to HONI | M132: 36000000
A133: C15 Stations Control & Communicaton Systems | B133: 1980_System Supervisory Equipment | C133: 1149494.938 | G133: 1840_Underground Conduit - Cable Chamber | H133: 45003.79 | K133: C18 Hydro One Capital Contributions Total | M133: 36000000
A134: C15 Stations Control & Communicaton Systems Total | C134: 1149494.938 | G134: 1840_Underground Conduit - Duct Bank | H134: 273826.35 | K134: C19 Feeder Automation | L134: 1830_Poles Towers and Fixtures | M134: 261939.28
A135: C16 Downtown Station Load Transfers | B135: 1840_Underground Conduit - Cable Chamber | C135: 107040.58 | G135: 1840_Underground Conduit - Vault | H135: 64974.94 | L135: 1835_Overhead Conductors and Devices | M135: 192579.67
B136: 1840_Underground Conduit - Duct Bank | C136: 13126.87 | G136: 1840_Underground Conduit - Vault Roof | H136: 44985.02 | L136: 1835_Overhead Conductors and Devices - Switches | M136: 6635398.75
B137: 1840_Underground Conduit - Vault | C137: 4547.39 | G137: 1845_Underground Conductors and Devices | H137: 417129.57 | L137: 1845_Underground Conductors and Devices | M137: 12479.27
B138: 1840_Underground Conduit - Vault Roof | C138: 2025.63 | G138: 1850_Line Transformers - OH | H138: 819.21 | L138: 1845_Underground Conductors and Devices - Switch | M138: 272771.6
B139: 1845_Underground Conductors and Devices | C139: 1524521.47 | G139: 1850_Line Transformers - UG | H139: 647.01 | L139: 1855_Services - UG | M139: 1079.4
B140: 1845_Underground Conductors and Devices - Switch | C140: 99383.6 | G140: 1850_Line Transformers - UG Network w/protector | H140: 3235.06 | K140: C19 Feeder Automation Total | M140: 7376247.97
A141: C16 Downtown Station Load Transfers Total | C141: 1750645.54 | G141: 1860_Meters - Smart Meters | H141: 2001 | K141: C20 Wholesale and Smart Metering | L141: 1820_DS Equip - Normally Primary below 50 kV - Grid Point Meters | M141: 9052450
A142: C17 Bremner Transformer Station | B142: 1808_Buildings and Fixtures - Stn Shell Site | C142: 1495104.6 | G142: 1855_Services - OH | H142: 7898.73 | L142: 1860_Meters - Smart Meters | M142: 973588
B143: 1808_Buildings and Fixtures - Stn Substructure | C143: 13511742.11 | F143: C16 Downtown Station Load Transfers Total | H143: 1585675 | K143: C20 Wholesale and Smart Metering Total | M143: 10026038
B144: 1815_TS Equip - Normally Primary above 50 kV - Disconnect Switch | C144: 4383809.66 | F144: C17 Bremner Transformer Station | G144: 1808_Buildings and Fixtures - Stn Interior | H144: 4477766.06 | K144: C21 Externally-Initiated Plant Relocations and Expansions | L144: 1830_Poles Towers and Fixtures | M144: 36055.02
B145: 1815_TS Equip - Normally Primary above 50 kV - Power Transformer | C145: 5184505.49 | G145: 1808_Buildings and Fixtures - Stn Shell Site | H145: 5105063.73 | L145: 1835_Overhead Conductors and Devices | M145: 8003.04
B146: 1815_TS Equip - Normally Primary above 50 kV - Station Service | C146: 1541339.47 | G146: 1808_Buildings and Fixtures - Stn Substructure | H146: 26386835.74 | L146: 1835_Overhead Conductors and Devices - Switches | M146: 2922.5
B147: 1820_DS Equip - Normally Primary below 50 kV - Stn Service Batteries | C147: 228505.9 | G147: 1815_TS Equip - Normally Primary above 50 kV - Disconnect Switch | H147: 8949592.09 | L147: 1840_Underground Conduit - Cable Chamber | M147: 10369.27
B148: 1820_DS Equip - Normally Primary below 50 kV - Switchgear GIS | C148: 4958486.61 | G148: 1815_TS Equip - Normally Primary above 50 kV - Power Transformer | H148: 10394814.08 | L148: 1840_Underground Conduit - Duct Bank | M148: 6166068.82
B149: 1820_DS Equip - Normally Primary below 50 kV - Station Service | C149: 429366.15 | G149: 1815_TS Equip - Normally Primary above 50 kV - Station Service | H149: 3078464.17 | L149: 1840_Underground Conduit - Vault Roof | M149: 10369.27
A150: C17 Bremner Transformer Station Total | C150: 31732859.99 | G150: 1820_DS Equip - Normally Primary below 50 kV - Stn Service Batteries | H150: 447206.81 | L150: 1845_Underground Conductors and Devices | M150: 4806563.78
A151: C18 Hydro One Capital Contributions | B151: 1815_TS Equip - Normally Primary above 50 kV - Contribution to HONI | C151: 25280047 | G151: 1820_DS Equip - Normally Primary below 50 kV - Switchgear GIS | H151: 9703032.59 | L151: 1845_Underground Conductors and Devices - Switch | M151: 13748.69
A152: C18 Hydro One Capital Contributions Total | C152: 25280047 | G152: 1820_DS Equip - Normally Primary below 50 kV - Station Service | H152: 840206.74 | L152: 1850_Line Transformers - OH | M152: 6494.44
A153: C19 Feeder Automation | B153: 1830_Poles Towers and Fixtures | C153: 465902.77 | F153: C17 Bremner Transformer Station Total | H153: 69382982.01 | L153: 1850_Line Transformers - UG | M153: 38505.7
B154: 1835_Overhead Conductors and Devices | C154: 156908.37 | F154: C18 Hydro One Capital Contributions | G154: 1815_TS Equip - Normally Primary above 50 kV - Contribution to HONI | H154: 52118000 | L154: 1850_Line Transformers - UG Network w/protector | M154: 2228103.51
B155: 1835_Overhead Conductors and Devices - Switches | C155: 7145346.35 | F155: C18 Hydro One Capital Contributions Total | H155: 52118000 | L155: 1855_Services - UG | M155: 15721.3
B156: 1855_Services - OH | C156: 52508.25 | F156: C19 Feeder Automation | G156: 1830_Poles Towers and Fixtures | H156: 394454.2 | K156: C21 Externally-Initiated Plant Relocations and Expansions Total | M156: 13342925.34
A157: C19 Feeder Automation Total | C157: 7820665.74 | G157: 1835_Overhead Conductors and Devices | H157: 271797.68 | K157: C22 Grid Solutions | L157: 1925_Computer Software | M157: 599500
A158: C20 Wholesale and Smart Metering | B158: 1820_DS Equip - Normally Primary below 50 kV - Grid Point Meters | C158: 784538.07 | G158: 1835_Overhead Conductors and Devices - Switches | H158: 11298407.91 | L158: 5XX1_Grid Intelligence Component | M158: 359700
B159: 1860_Meters - Smart Meters | C159: 4835032.23 | G159: 1845_Underground Conductors and Devices | H159: 223775.92 | K159: C22 Grid Solutions Total | M159: 959200
A160: C20 Wholesale and Smart Metering Total | C160: 5619570.3 | G160: 1845_Underground Conductors and Devices - Switch | H160: 4086099.9 | K160: Grand Total | M160: 294468855.3
A161: C21 Externally-Initiated Plant Relocations and Expansions | B161: 1830_Poles Towers and Fixtures | C161: 511256.493 | G161: 1855_Services - UG | H161: 16641.1
B162: 1835_Overhead Conductors and Devices | C162: 753834.5641 | G162: 1855_Services - OH | H162: 11361.31
B163: 1835_Overhead Conductors and Devices - Switches | C163: 109575.16 | F163: C19 Feeder Automation Total | H163: 16302538.02
B164: 1840_Underground Conduit - Cable Chamber | C164: 999384.607 | F164: C20 Wholesale and Smart Metering | G164: 1820_DS Equip - Normally Primary below 50 kV - Grid Point Meters | H164: 6296119.26
B165: 1840_Underground Conduit - Duct Bank | C165: 14441418.09 | G165: 1860_Meters - Smart Meters | H165: 908959.5
B166: 1840_Underground Conduit - Vault | C166: 20152.52 | F166: C20 Wholesale and Smart Metering Total | H166: 7205078.76
B167: 1840_Underground Conduit - Vault Roof | C167: 116125.53 | F167: C21 Externally-Initiated Plant Relocations and Expansions | G167: 1830_Poles Towers and Fixtures | H167: 61128.82
B168: 1845_Underground Conductors and Devices | C168: 6421776.063 | G168: 1835_Overhead Conductors and Devices | H168: 14939.31
B169: 1845_Underground Conductors and Devices - Switch | C169: 694602.09 | G169: 1835_Overhead Conductors and Devices - Switches | H169: 6080.97
B170: 1850_Line Transformers - OH | C170: 105061.7553 | G170: 1840_Underground Conduit - Cable Chamber | H170: 3792066.988
B171: 1855_Services - UG | C171: 5425.045724 | G171: 1840_Underground Conduit - Duct Bank | H171: 10690950.42
B172: 1855_Services - OH | C172: 89933.89731 | G172: 1840_Underground Conduit - Vault | H172: 777510.1928
A173: C21 Externally-Initiated Plant Relocations and Expansions Total | C173: 24268545.82 | G173: 1840_Underground Conduit - Vault Roof | H173: 14442.94
A174: C22 Grid Solutions | B174: 1925_Computer Software | C174: 1199000 | G174: 1845_Underground Conductors and Devices | H174: 1916900.27
B175: 5XX1_Grid Intelligence Component | C175: 1199000 | G175: 1845_Underground Conductors and Devices - Switch | H175: 2295.22
A176: C22 Grid Solutions Total | C176: 2398000 | G176: 1850_Line Transformers - OH | H176: 13513.26
A177: Grand Total | C177: 303647306.3 | G177: 1850_Line Transformers - UG | H177: 6428.2
G178: 1850_Line Transformers - UG Network w/protector | H178: 371963.87
G179: 1855_Services - UG | H179: 2624.5
F180: C21 Externally-Initiated Plant Relocations and Expansions Total | H180: 17670844.96
F181: C22 Grid Solutions | G181: 1925_Computer Software | H181: 1199000
G182: 5XX1_Grid Intelligence Component | H182: 599500
G183: 5XX2 Energy Storage | H183: 1798499.935
F184: C22 Grid Solutions Total | H184: 3596999.935
F185: Grand Total | H185: 389483588.5

Sheet DATA_PIVOT (EST) (hidden)
A1: Include | B1: Y | H1: Include | I1: Y | O1: Include | P1: Y
A3: Sum of FY12 | H3: Sum of FY13 | O3: Sum of FY14
A4: CATEGORY LISTING | B4: Estimate | C4: ESTIMATE DESCRIPTION | D4: Total | H4: CATEGORY LISTING | I4: Estimate | J4: ESTIMATE DESCRIPTION | K4: Total | O4: CATEGORY LISTING | P4: Estimate | Q4: ESTIMATE DESCRIPTION | R4: Total
A5: C1 Underground Infrastructure | B5: EST18585_001 | C5: 18585_001 W11385 Northwoods Subdivision - UG DB Rebuild | D5: 2490403.33 | H5: C1 Underground Infrastructure | I5: EST18653_002 | J5: 18653_002 E11421 Dundalk NAE5-1M29 UG Reb (Elec) Deferred from 2011 | K5: 1634794.55 | O5: C1 Underground Infrastructure | P5: EST19623_001 | Q5: 19623_001 E12126 Morningview 47M3 UG Ph 1 - Elec Electrical portion of Phase 1 | R5: 643074.07
B6: EST18652_002 | C6: 18652_002 E11421 Dundalk NAE5-1M29 UG Reb (Civil) Deferred from 2011 | D6: 2276806.29 | I6: EST18720_001 | J6: 18720_001 E11439 Old Finch 47M3 UG Reb Ph 1 (Elec) Electrical portion of Old Finch/Littles | K6: 541087.13 | P6: EST19627_001 | Q6: 19627_001 E12127 Morningview 47M3 UG Ph 2 - Elec Electrical portion of Phase 2 | R6: 794501.8
B7: EST18675_002 | C7: 18675_002 ICM X11444 Tichester civil & elec UG-DB 35M9 Created Oct 2010 | D7: 2140195.83 | I7: EST19442_009 | J7: 19442_009 ICM - E12094 - INGLETON REBUILD PHASE 1 ELECT ONLY - 3110 | K7: 1215673.29 | P7: EST19629_001 | Q7: 19629_001 E12128 Morningview 47M3 UG Ph 3 - Elec Electrical portion of Phase 3 | R7: 794501.76
B8: EST18719_001 | C8: 18719_001 E11438 Old Finch 47M3 UG Reb Ph 1-Civil Civil portion of Old Finch/Littles | D8: 1766984.28 | I8: EST19622_001 | J8: 19622_001 E12126 Morningview 47M3 UG Ph 1 - Civil Civil portion of Phase 1 | K8: 1846460 | P8: EST20013_001 | Q8: 20013_001 E12195 Mammoth Hall SCNT47M1 UG Rebuild Electrical portion | R8: 1214549.83
B9: EST18845_004 | C9: 18845_004 W11455 Yonge Trunk Cable Rehab RC3620 2011 CapEx WBS Rev Nov 22_10 | D9: 392427.87 | I9: EST19626_001 | J9: 19626_001 E12127 Morningview 47M3 UG Ph 2 - Civil Civil portion of Phase 2 | K9: 1626700.09 | P9: EST20051_009 | Q9: 20051_009 E12213 MORNINGSIDE ELECTRICAL DO NOT PACKAGE for budget | R9: 2050698.9
B10: EST19001_009 | C10: 19001_009 ICM - E11483 - INGLETON REHAB PHASE 1 DPE PLANNED - 3110 | D10: 3446453.57 | I10: EST19628_001 | J10: 19628_001 E12128 Morningview 47M3 UG Ph 3 - Civil Civil portion of Phase 3 | K10: 1963664.65 | P10: EST20058_009 | Q10: 20058_009 E12212 VENTURE Drive UG Rebuild Civil SC DO NOT PACKAGE for budget | R10: 1394120.45
B11: EST19005_009 | C11: 19005_009 PCI-E11484 Rebuild Ingleton Ph 2 Civil Created October 2010 | D11: 35970 | I11: EST19999_009 | J11: 19999_009 E12195 Mammoth Hall 47M1 UG Rebuild DO NOT PACKAGE for budgeting only -CIVIL | K11: 3421254.17 | P11: EST20059_009 | Q11: 20059_009 E12210 VENTURE DR UG SCNT47M1 - Civ/Elec DO NOT PACKAGE for budget Civil/Electric | R11: 1919965.96
B12: EST19032_001 | C12: 19032_001 W11456 NY80M30 trunk & Lateral Cable Enh S/O HWY 401 | D12: 1562950.44 | I12: EST20001_001 | J12: 20001_001 E12188 435 Markham Road H9M30 UG Rebuild Replacing cables and transformers | K12: 334007.81 | P12: EST20067_001 | Q12: 20067_001 E12228 Dalmatian/Choiceland 47M13 UG Reb Electrical portion of project | R12: 360102.88
B13: EST19399_004 | C13: 19399_004 W11460 YONGE & JOHNSTON LATERAL CABLE R Yonge & Johnston | D13: 21775.024 | I13: EST20044_001 | J13: 20044_001 E12227 Fenn/Foursome/Danville 80M29 UG Electrical portion of project | K13: 432264.66 | P13: EST20169_001 | Q13: 20169_001 E12234 Rebuild 3-Phase Neilson Civil portion of project | R13: 712530.92
B14: EST19437_009 | C14: 19437_009 ICM - E12081 INGLETON REBUILD PHASE A ELECT ONLY - PLANNED 3110 | D14: 1260017.11 | I14: EST20066_001 | J14: 20066_001 E12209 Dalmatian/Choiceland 47M13 UG Reb Civil portion of project | K14: 1198167.9 | P14: EST20170_001 | Q14: 20170_001 E12235 Rebuild 3-Ph Neilson Industrial Electrical portion of project | R14: 290210.75
B15: EST19448_009 | C15: 19448_009 E12095 Rebuild Ingleton PH 2 UG Elect DO NOT PACKAGE | D15: 666896.94 | I15: EST20106_001 | J15: 20106_001 E12202 3100 Kingston 52M3 UG Reb - Elec Direct Buried Cable Replacement - Elec | K15: 423535.96 | P15: EST20206_001 | Q15: 20206_001 E12243 Durnford-Rylander/Tidewell- Cable Electrical | R15: 278169.22
B16: EST19464_001 | C16: 19464_001 E12226 Yorkminster 80M27/M29 Tie (Elec) Electrical portion of the project | D16: 535546.57 | I16: EST20136_001 | J16: 20136_001 E12230 52M3 McCowan and Kingston Civil Works for Cable Replacement | K16: 1088534.93 | P16: EST20207_001 | Q16: 20207_001 E12239 Royal Rouge Trail - Civil Civil | R16: 1061299.64
B17: EST19522_001 | C17: 19522_001 W12077 Donwoods Area DB Cable Replm | D17: 6969338.56 | I17: EST20179_001 | J17: 20179_001 E12237 Cassandra UG Cable Replace (Elec) UG Cble replacement of 53M25 @ Cassandra | K17: 1045488.43 | P17: EST20208_001 | Q17: 20208_001 E12242 Royal Rouge Trail - Electrical Electrical | R17: 185448.12
B18: EST20043_001 | C18: 20043_001 E12206 Fenn/Foursome/Danville 80M29 UG Civil portion of project | D18: 1283902.39 | I18: EST20200_001 | J18: 20200_001 E12240 Durnford-Rylander-Tideswell-Shepp Civil | K18: 886339.17 | P18: EST20209_001 | Q18: 20209_001 E12241 Tideswell/Rylander/Durness -Civil Civil | R18: 1533216.47
B19: EST20430_001 | C19: 20430_001 E12157 New Feeder H9M23 - Civil | D19: 1707095.44 | I19: EST20261_001 | J19: 20261_001 E12256 Bridletowne Area 502M22Electrical Cable Replacement | K19: 320875.19 | P19: EST20210_001 | Q19: 20210_001 E12244 Tideswell/Rylander/Durness -Cable Electrical | R19: 322346.38
B20: EST20438_009 | C20: 20438_009 PCI-EII472 INGLETON REHAB PHASE A CIVIL DPE Planned - 3110 | D20: 64358.72 | I20: EST20263_001 | J20: 20263_001 E12259 Bridletowne Circle 502M22 Civil Civil Works for Cable Replacement | K20: 1029023.77 | P20: EST20313_001 | Q20: 20313_001 E12281 Meadowvale/Heatherbank 47M17 Cabl Electrical portion of project | R20: 477493.33
B21: EST20812_003 | C21: 20812_003 W12435 Astral / Paul David UG DB Rebuild 85M9 - - copied from version 002 | D21: 551176.72 | I21: EST20380_001 | J21: 20380_001 W11614 Ladyshot and Eldorado Crt Direct Buried Cable Replacement | K21: 688981.37 | P21: EST20345_001 | Q21: 20345_001 E11616 Meadowvale/Heatherbank 47M17 Civi | R21: 451230.45
B22: EST20948_009 | C22: 20948_009 E11072 Bridletowne U/GRebuild Elect Created November 2009 | D22: 183527.32 | I22: EST20432_001 | J22: 20432_001 E12319 New Feeder H9M23 - Electrical | K22: 424291.3 | P22: EST20383_001 | Q22: 20383_001 E12288 NT47M1 UG Rebuild - Electrical Hutcherson Sq. and Hatchet Pl | R22: 201881.63
B23: EST21287_009 | C23: 21287_009 E12520 FESI Conlins Milner NT47M1 - Elec DO NOT PACKAGE for budget only | D23: 1771011.72 | I23: EST20520_009 | J23: 20520_009 ICM E12348 Muir Dr./Scar G.C. civil DO NOT PACKAGE | K23: 478980.11 | P23: EST20388_001 | Q23: 20388_001 E12230 47M1 Hutcherson and Berner Trail Civil Works for Cable Replacement | R23: 256667.54
B24: EST21506_009 | C24: 21506_009 ICM E11191 FESI-12 MCLEVIN/ALFORD UG REB RC3110 2011 CapEx WBS Rev Nov 22_10 | D24: 884149.99 | I24: EST20558_001 | J24: 20558_001 E12357 Morningview SCNAR26M23 RC3620 2011 CapEx WBS Rev Nov 22_10 | K24: 381567.28 | P24: EST20417_009 | Q24: 20417_009 E12299 Gateforth UG Rebuild (Civil) DO NOT PACKAGE for budget CIVIL | R24: 266493.34
B25: EST21551_008 | C25: 21551_008 E11592 FESI Leslie Nymark Repl Sw Pt. 1 Switchgear and Cable Replacement (Ph 1) | D25: 678107.3835 | I25: EST20637_001 | J25: 20637_001 E13014 Holmcrest 47M13 UG Rebuild- Civil | K25: 1410970.01 | P25: EST20424_001 | Q25: 20424_001 E12316 Gateforth 47M1 UG Rebuild (Elec) | R25: 138590.02
B26: EST21853_009 | C26: 21853_009 ICM E11301 FESI-12 HUPFIELD UG REBD PH1 RC3110 2011 CapEx WBS Rev Nov 22_10 | D26: 1918399.64 | I26: EST20895_001 | J26: 20895_001 W12451 UG Lat Cbl & Tx Rehab Cedarcroft FESI 80M2 | K26: 737394.64 | P26: EST20477_001 | Q26: 20477_001 E12335 Blue Anchor UG Rebuild Elec | R26: 40395.49
B27: EST21854_009 | C27: 21854_009 ICM E11372 FESI-12 HUPFIELD UG RBLD P2 RC3110 2011 CapEx WBS Rev Nov 22_10 | D27: 1331575.51 | I27: EST20902_002 | J27: 20902_002 W12449 UG Lat Cbl & Tx Rehab - Bathurst FESI 80M2 | K27: 892300.6 | P27: EST20478_001 | Q27: 20478_001 E12336 Blue Anchor UG Rebuild Civil | R27: 467756.26
B28: EST22073_002 | C28: 22073_002 Keegan Cresc UG Rebuild W11615 W11615 11-E639 | D28: 434436.432 | I28: EST20973_009 | J28: 20973_009 E12493 REVLIS PART 1 CIVIL do not package | K28: 619626.41 | P28: EST20519_001 | Q28: 20519_001 E12346 Bluffwood Saddletree NY51M3 UG Rebuild Electrical | R28: 137482.14
B29: EST22215_009 | C29: 22215_009 PCI-E11618 Ingleton Feeder Main Phase B UPCMS #TP-2011-8054 | D29: 59949.99 | I29: EST20978_009 | J29: 20978_009 ICM E12494 Revlis Ph2 Civil Updated: Feb 7, 2012 | K29: 1873437.51 | P29: EST20525_001 | Q29: 20525_001 E13011 H9M30 Muir Dr-Golf Club UG Rebuild - ELectrical | R29: 362939.72
B30: EST22356_009 | C30: 22356_009 ICM E11356 FESI 47M3 PENNYHILL UG RBLD RC3110 2011 CapEx WBS Rev Nov 22_10 | D30: 996620.8 | I30: EST20979_009 | J30: 20979_009 E12595 Revlis U/G Rebuild, Ph. 3 Cvl DO NOT PACKAGE for PCI | K30: 1771654.38 | P30: EST20638_001 | Q30: 20638_001 E13015 Holmcrest 47M13 UG Rebuild- - Electrical | R30: 437901.23
B31: EST22928_009 | C31: 22928_009 ICM E11380 FES-12 EMPRINGHAM/MCLEVIN RC3110 2011 CapEx WBS Rev Nov 22_10 | D31: 1835305.81 | I31: EST20989_001 | J31: 20989_001 W12490 UG DB Cable Rehab - Bombardier 85M1 | K31: 974918.89 | P31: EST20645_001 | Q31: 20645_001 E12377 Goldenwood Road UG Rehab NY51M3 | R31: 319040.71
B32: EST23241_002 | C32: 23241_002 Harrison Garden-UG Primary Rehab-Phase 2 2012 costs FESI- E12656 | D32: 485563.81 | I32: EST21139_001 | J32: 21139_001 E13060 Galloway UG Rebuild Civil SCNA47M14 | K32: 199959.64 | P32: EST20648_001 | Q32: 20648_001 E12379 Pineway Craigmont UG Rehab NY51M3 Electrical | R32: 131636.98
B33: EST23556_001 | C33: 23556_001 E12666 Phase 1 Reconfigure 80M29 -Harris on Garden | D33: 161421.39 | I33: EST21141_001 | J33: 21141_001 E13061 Galloway UG Rebuild Electrical SCNA47M14 | K33: 231269.11 | P33: EST20672_001 | Q33: 20672_001 E12393 James Gray Dr UG Rebuild NY51M3 Electrical | R33: 178529.89
B34: EST24500_009 | C34: 24500_009 ICM-E12153 Melford Transfer 26M34 to M22 | D34: 465846.25 | I34: EST21166_001 | J34: 21166_001 E13063 Rodda UG Rebuild Civil SCNA47M14 | K34: 105924.48 | P34: EST20674_001 | Q34: 20674_001 E12394 James Gray Dr UG Rebuild NY51M3 Civil | R34: 367521.07
B35: EST24664_009 | C35: 24664_009 ICM - E11087 47M1 Grand Marshall UG Repl DO NOT PACKAGE | D35: 1290778.62 | I35: EST21167_001 | J35: 21167_001 E13064 Rodda UG Rebuild Electrical SCNA47M14 | K35: 451247.23 | P35: EST20693_002 | Q35: 20693_002 E12409 Thimble Berryway U/G Rebuild RC3620 2011 CapEx WBS Rev Nov 22_10 | R35: 171528.95
B36: EST24683_009 | C36: 24683_009 ICM - E13037 Bridletowne UG Rebuild Electrical - Do Not Package | D36: 164307.37 | I36: EST21290_001 | J36: 21290_001 E13074 UG Rehab of NY51M7 - Electrical btn Leslie and Bayview | K36: 265338.71 | P36: EST20697_001 | Q36: 20697_001 E12408 Thimble Berryway Aspenwood UGRbld Civil NY51M3 NY51M27 | R36: 447134.68
B37: EST24717_009 | C37: 24717_009 E12317 Ingleton/Middleton Main (Elect.) for 2012 Budget | D37: 562432.91 | I37: EST21291_001 | J37: 21291_001 E13075 UG Rehab of NY51M7 - Civil | K37: 1131850.02 | P37: EST21110_001 | Q37: 21110_001 E13058 NY51M24 UG Rebuild North of Finch E13058 Off Don Mills Road - Electrical | R37: 163964.44
B38: EST24850_009 | C38: 24850_009 ICM E1544 Blackwell Coxworth Rebuild-Civ DO NOT PACKAGE (from WT12121 Ver 009) | D38: 1375268.59 | I38: EST21298_001 | J38: 21298_001 E13078 UG Rehab of NY51M8 - Civil E13078 btn Leslie and Bayview | K38: 1260887.59 | P38: EST21202_001 | Q38: 21202_001 E13069 NY51M24 UG Rebuild North of Finch Off Don Mills Road - Civil | R38: 507049.9
B39: EST24856_009 | C39: 24856_009 ICM E12529 Braymore UG Rehab Ph2 Civil DO NOT PACKAGE | D39: 2768670.83 | I39: EST21401_001 | J39: 21401_001 E13098 NY51M24 UG Rebuild Sheppard at Don Mills (Part 1 Electrical) | K39: 859425.19 | P39: EST21262_002 | Q39: 21262_002 W12464 Antibes/Torresdale UG Rebuild Creation Date: October 1, 2010 | R39: 1270906.38
B40: EST25279_001 | C40: 25279_001 E11139 Cassandra UG Cable Replace Civil for 2012 Budget | D40: 2397999.99 | I40: EST21410_001 | J40: 21410_001 E13101 UG Rebuild NY51M24 Sheppard at Don Mills (Part 2 - Electrical) | K40: 637004.72 | P40: EST21288_009 | Q40: 21288_009 E13079 FESI Conlins Milner NT47M1 - Elec DO NOT PACKAGE | R40: 988740.98
A41: C1 Underground Infrastructure Total | D41: 46937673.44 | I41: EST21433_001 | J41: 21433_001 E13104 NY51M24 DB Cable Replacement Don Mills & Sheppard (Part 1 Civil) | K41: 1124245.94 | P41: EST21297_001 | Q41: 21297_001 E13077 UG Rehab of NY51M8 - Elec E13077 btn Leslie and Bayview | R41: 316582.78
A42: C2 Paper Insulated Lead Covered Cable - Piece Outs and Leakers | B42: EST21222_001 | C42: 21222_001 X12518 Main Piece Out and Leakers 2012 budget estimate | D42: 577196.19 | I42: EST21434_001 | J42: 21434_001 E13106 NY51M24 DB Cable Replacement Don Mills & Sheppard (Part 2 Civil) | K42: 1347510.53 | P42: EST21356_009 | Q42: 21356_009 E13042 FESI UG Rebuild NT63M8 Revlis sub DO NOT PACKAGE for budget | R42: 525990.49
B43: EST21220_001 | C43: 21220_001 X12516 Cecil Piece Out and Leakers 2012 budget estimate | D43: 197187.54 | I43: EST21446_001 | J43: 21446_001 NY51M24 UG Rebuild-Sheppard & Don Mills E13103 Buchan Crt by Sheppard-Electrical | K43: 248510.67 | P43: EST21357_009 | Q43: 21357_009 ICM E13043 Revlis 2 U/G Rebuild - Elec Updated: Feb 7, 2012 | R43: 406632.44
B44: EST21216_001 | C44: 21216_001 X12512 Carlaw Piece Out and Leakers 2012 budget estimate | D44: 503044.06 | I44: EST21447_001 | J44: 21447_001 NY51M24 UG Rebuild-Sheppard & Don Mills E13108 Buchan Crt by Sheppard-Civil | K44: 241974.99 | P44: EST21358_009 | Q44: 21358_009 E13044 Revlis U/G Rebuild 3, Elec. DO NOT PACKAGE PCI | R44: 673435.14
B45: EST21219_001 | C45: 21219_001 X12515 Glengrove Piece Out and Leakers 2012 budget estimate | D45: 287673.66 | I45: EST21449_001 | J45: 21449_001 ICM NY51M24 UG Rebuild- E of Don Mills E13102 Forest Manor-Electrical | K45: 79100.4 | P45: EST21561_001 | Q45: 21561_001 ICM E13121 McGriskin Road UG Rebuild SCNAH9M23 Electrical | R45: 186487.32
B46: EST21221_001 | C46: 21221_001 X12517 Duplex Piece Out and Leakers 2012 budget estimate | D46: 609436.12 | I46: EST21450_001 | J46: 21450_001 ICM NY51M24 UG Rebuild- E of Don Mills E13108 Forest Manor-Civil | K46: 232868.58 | P46: EST21565_001 | Q46: 21565_001 E13121 McGriskin UG Rebuild SCNAH9M23 Civil | R46: 282020.43
B47: EST21217_003 | C47: 21217_003 X12513 Leaside Pieceout and Leakers Created Oct 2010 | D47: 243407.8 | I47: EST21500_001 | J47: 21500_001 ICM NY51M24 UG Rebld on Don Mills E13099 btn Sheppard and Graydon-Electrical | K47: 194978.99 | P47: EST21585_001 | Q47: 21585_001 E13123 Rebuild Trunk 502M1M22 Birchmount Civil | R47: 877279.54
B48: EST21218_003 | C48: 21218_003 X12514-esplande_piece out & leakers Created Oct 2010 | D48: 109948.29 | I48: EST21589_001 | J48: 21589_001 E13124 Rebuild Orange File SD 502M22 UG Civil | K48: 1009019.66 | P48: EST21586_001 | Q48: 21586_001 E14008 Rebuild Trunk 502M1M22 Birchmount Electrical | R48: 396910.99
B49: EST24463_001 | C49: 24463_001 X12779 PILC Replacement- BH | D49: 14795162.34 | I49: EST21864_001 | J49: 21864_001 E13129 Rebuild UG Trunk NT63M8 M11 McCow an - Civil | K49: 646503.21 | P49: EST21591_001 | Q49: 21591_001 E14009 Rebuild Orange File SD 502M22 UG Electrical | R49: 253310.32
A50: C2 Paper Insulated Lead Covered Cable - Piece Outs and Leakers Total | D50: 17323056 | I50: EST21934_001 | J50: 21934_001 E14026 Rebuild UG Trunk 502M21M28 Warden - Electrical | K50: 884074.25 | P50: EST21663_001 | Q50: 21663_001 E13147 Nugget Avenue UG Rebuild SCNAH9M23 Civil | R50: 913714.72
A51: C3 Handwell Replacement | B51: EST20178_001 | C51: 20178_001 A12236 Contact Voltage Remediation High level | D51: 12007529.38 | I51: EST22424_009 | J51: 22424_009 ICM E11592 FESI Leslie & Nymark Ph2-51M6 UG Cable & Switchgear Replacement | K51: 1840287.04 | P51: EST21664_001 | Q51: 21664_001 ICM E13148 Nugget Avenue UG Rebuild SCNAH9M23 Electrical | R51: 1326237.91
A52: C3 Handwell Replacement Total | D52: 12007529.38 | I52: EST22591_001 | J52: 22591_001 E13267 UG Rebuild 63M8 Silver star Midla nd - Civil | K52: 432376.18 | P52: EST21865_001 | Q52: 21865_001 E14010 Rebuild UG Trunk NT63M8 M11 McCow an - Electrical | R52: 340976.42
A53: C4 Overhead Infrastructure | B53: EST18523_001 | C53: 18523_001 W11289 FESI NY55M22 - Rowntree Conting Phase 6 of 6 | D53: 534730.03 | I53: EST22715_001 | J53: 22715_001 W13278 - Northview heights Civil Rebuild | K53: 2482368.82 | P53: EST21868_001 | Q53: 21868_001 E13152 Rebuild UG Trunk NT63M12 M8 Briml y -Civil | R53: 1689310.67
B54: EST20499_001 | C54: 20499_001 WBS/IFRS Compliant Creation Date: October 01, 2010 | D54: 849142.58 | I54: EST22716_001 | J54: 22716_001 W13239 - Northview Heights Elec Rebuild | K54: 2475528.54 | P54: EST21869_001 | Q54: 21869_001 E14011 Rebuild UG Trunk NT63M12 M8 Briml y- Electrical | R54: 932782.41
B55: EST20556_001 | C55: 20556_001 WBS/IFRS Compliant (Donot use this WBS6 IFRS compliant | D55: 434317.35 | I55: EST22718_001 | J55: 22718_001 E13289 UG Rebuild R26M34 Melford Custome er Vault | K55: 1599602.69 | P55: EST21933_001 | Q55: 21933_001 E13184 Rebuild UG Trunk 502M21M28 Warden -Civil | R55: 1280368.94
B56: EST20875_001 | C56: 20875_001 X12453-35M12-OH Rebuild-Geo Anderson IFRS compliant | D56: 1627291.25 | I56: EST24658_009 | J56: 24658_009 E12096 Ingleton Rebuild UG Ph3 (Elec) for 2012 Budget | K56: 1203184.54 | P56: EST22592_001 | Q56: 22592_001 E14047 UG Rebuild 63M8 Silver star Midla nd - Electrical portion of project | R56: 297666.13
B57: EST20892_001 | C57: 20892_001 X12460 - 35M12-O/H Rebuild-- Arrowsmith IFRS compliant | D57: 761553.27 | I57: EST24843_009 | J57: 24843_009 PCI E12275 Muirbank UG Rebuild Ph 2 DO NOT PACKAGE - Civil | K57: 982816.7 | P57: EST22865_001 | Q57: 22865_001 W14078 UG Lat Cable Rehab 85M6 Dufferin / Finch / Wilmington | R57: 828609.68
B58: EST20893_001 | C58: 20893_001 X12461 - 35M12 - O/H Rebuild-Flamborough IFRS compliant | D58: 854458.98 | I58: EST24846_009 | J58: 24846_009 PCI E10112 Purple Sageway 51M3 UG DO NOT PACKAGE - Civil | K58: 337331.46 | P58: EST22902_001 | Q58: 22902_001 W14096 Coreydale UG Res Rebuild 85M6 | R58: 1178154.18
B59: EST21025_001 | C59: 21025_001 35M12 OH Rebuild Keele/Milford IFRS compliant | D59: 1010717.45 | I59: EST24849_009 | J59: 24849_009 PCI E10112 Purple Sageway 51M3 UG DO NOT PACKAGE - Electrical | K59: 96652.94 | P59: EST22984_001 | Q59: 22984_001 W14134 85M7 UG DB PH#1 rebuild Hidden Tr | R59: 3751094.31
B60: EST21531_001 | C60: 21531_001 E13111 OH Rebuild R43M28 SCNAR43M28 | D60: 743685.75 | I60: EST24852_009 | J60: 24852_009 ICM E12121 Blackwell Coxworth Rebuild-El DO NOT PACKAGE (from Ver001 from AM19590 | K60: 480372.15 | P60: EST22987_001 | Q60: 22987_001 W14135 85M7 UG DB PH#2 rebuild Hidden Tr | R60: 3610432.38
B61: EST24668_009 | C61: 24668_009 E12133 Rebuild BroadlandMSNYSS59ph1 for 2012 Budget | D61: 1298974.95 | I61: EST24859_009 | J61: 24859_009 ICM E12530 BRAYMORE W PH2 - ELECT DO NOT PACKAGE | K61: 675550.18 | P61: EST22992_001 | Q61: 22992_001 W14131rebuild Ingles Gate & Shenstone Rd | R61: 768496.65
B62: EST24666_009 | C62: 24666_009 E11645_Repl Failing OH Assets_PH 2A for 2012 Budget | D62: 525863.42 | H62: C1 Underground Infrastructure Total | K62: 53019759.35 | P62: EST23004_001 | Q62: 23004_001 W14132 Black Hawkway DB Rebuild | R62: 2048648.59
B63: EST23677_009 | C63: 23677_009 ICM E12104 CHIPPING CROSSBURN OH REBUILD POLE & ELECTRICAL INSTALLATION | D63: 295190.16 | H63: C2 Paper Insulated Lead Covered Cable - Piece Outs and Leakers | I63: EST19554_001 | J63: 19554_001 X11532 Terauley Piece Out and Leakers 2011 budget estimate | K63: 758508.99 | P63: EST23006_001 | Q63: 23006_001 W14129 85M7 Torresdale Ave UG BD Rebuild | R63: 640113.78
B64: EST24881_009 | C64: 24881_009 PCI E12133 Broadlands VC Phase 2 DO NOT PACKAGE - poles only | D64: 216503.99 | I64: EST19798_001 | J64: 19798_001 X12160 Loc 6294 piece out/PILC rep. IFRS compliant | K64: 2236383.22 | P64: EST23009_001 | Q64: 23009_001 W14130 Rebuild Russfax and Twin Circle | R64: 460440.01
B65: EST24060_001 | C65: 24060_001 E12744 Bell Line Conversion | D65: 84750.13 | I65: EST24682_001 | J65: 24682_001 X13396 Windsor TS Piece Out and Leakers 2013 budget estimate | K65: 676894.26 | P65: EST23023_001 | Q65: 23023_001 W12642 UG Trunk & Lat Cable Rehab 80M9 Beecroft , Park Home | R65: 2211518.35
B66: EST22850_009 | C66: 22850_009 E12436_Repl Failing OH Assets_PH3 POLES FOR 2012 BUDGET | D66: 365751.31 | I66: EST24684_001 | J66: 24684_001 X13397 Strachan TS Piece Out and Leakers 2013 budget estimate | K66: 616944.25 | P66: EST23043_001 | Q66: 23043_001 W14133 85M7 UG DBFestival & Carnival | R66: 2552145.82
B67: EST24951_001 | C67: 24951_001 Danger and Caution Pole Replacement | D67: 4640480.11 | I67: EST24687_001 | J67: 24687_001 X13399 Dufferin TS Piece Out and Leakers 2013 budget estimate | K67: 890287.48 | P67: EST23258_001 | Q67: 23258_001 W14153 - UG Rebuild & Cable Repl. Kodiak 85M4 | R67: 510064.19
B68: EST20456_002 | C68: 20456_002 W12309 Spenvalley 55M25 Overhead Rebuild Arleta/Spenvalley/Yatescastle/Sheppard | D68: 1118174.2 | H68: C2 Paper Insulated Lead Covered Cable - Piece Outs and Leakers Total | K68: 5179018.2 | P68: EST23297_001 | Q68: 23297_001 E14190 UG Rebuild H9M30 Kingston Mason - CivilCreated Aug 2011 | R68: 1719166.94
B69: EST24851_009 | C69: 24851_009 PCI E12133 Broadland MS SS59 VC- Ph 2 DO NOT PACKAGE | D69: 1724315.74 | H69: C3 Handwell Replacement | I69: EST25009_001 | J69: 25009_001 2013 Handwell Replacement (Parent) BULK ESTIMATE | K69: 14450827.59 | P69: EST23300_001 | Q69: 23300_001 E14191 UG Rebuild H9M30 Kingston Mason -Electrical Created Aug 2011 | R69: 665566.1
B70: EST24669_009 | C70: 24669_009 E12133 Rebuild Broadlands Ph1 Poles Only for 2012 Budget | D70: 161436.23 | H70: C3 Handwell Replacement Total | K70: 14450827.59 | P70: EST23313_001 | Q70: 23313_001 W14154 UG Lat Cable Rehab 85M4 Dufferin / Finch /Toro | R70: 1299253.16
B71: EST24598_009 | C71: 24598_009 E12436_Repl Fail OH Assets_Ph 3_ELECT (FOR 2012 BUDGET) | D71: 1031716.74 | H71: C4 Overhead Infrastructure | I71: EST19775_001 | J71: 19775_001 X12154 Replacement of non-standard, 34M6 2012 Estimate | K71: 965481.54 | P71: EST23330_001 | Q71: 23330_001 W14155 UG Lat Cable Rehab 85M4 Chesswood, Champagne, Vanley | R71: 1498440.65
B72: EST23354_002 | C72: 23354_002 W12253 Repl OSL3310 with Scada sw YK11M7 W12253 Repl OSL3310 with Scada sw YK11M7 | D72: 84403.64 | I72: EST19886_001 | J72: 19886_001 X12179 Replacement of CSP TX 2012 budget estimate | K72: 1286616.93 | P72: EST23446_001 | Q72: 23446_001 W14248 Finch&Torresdale and Robert Hick 80M8 electrical | R72: 1689883.79
B73: EST19806_001 | C73: 19806_001 Remote Switch Install - Finch 85M31 & M2 | D73: 88584.5 | I73: EST19976_001 | J73: 19976_001 X13004 Con 4KV B71DU to 13.8KV TOB71DU 2013 Budget Estimate | K73: 2706587.79 | P73: EST23543_001 | Q73: 23543_001 W14229 Finch&Torresdale and Robert Hick Civil 80M8 | R73: 6548900.83
B74: EST20873_008 | C74: 20873_008 W12199 Riverside Dr Voltage Conv. part 2 Creation Date: October 1, 2010 | D74: 1342879.96 | I74: EST20023_001 | J74: 20023_001 X12204Replacement of CSP TXMR 2012 budget estimate | K74: 1193970.21 | P74: EST23818_001 | Q74: 23818_001 W14268 UG Lateral Replacement 85M24 | R74: 560235.14
B75: EST20572_002 | C75: 20572_002 W12291 FESI - Magellan OH Rebuild 55M25 To be reviewed prior to authorization | D75: 1624395.61 | I75: EST20296_001 | J75: 20296_001 OH rebuild Spenvalley and Sorroundings | K75: 689662.36 | P75: EST23819_001 | Q75: 23819_001 W14269 UG Lateral Replacement 85M24 | R75: 856722.69
B76: EST16616_005 | C76: 16616_005 W10275 Manby TS-Horner TS Load Transfer FEB 08,2012 Electrical for approval | D76: 780254.03 | I76: EST20412_003 | J76: 20412_003 WBS7/IFRS Compliant Creation Date: October 01, 2010 | K76: 905949.98 | P76: EST23820_001 | Q76: 23820_001 W14270 UG Lateral Replacement 85M24 | R76: 612611.13
B77: EST19453_001 | C77: 19453_001 X11525 Replacement of 3 phase switch 2012 estimate | D77: 71581.47 | I77: EST20416_002 | J77: 20416_002 ICM X12318 Repl Manu SW&Inst SCADA SW 34M1 | K77: 170971.4 | P77: EST23947_001 | Q77: 23947_001 W14284 Pellatt Ave UG BD Rebuild | R77: 1071450.36
B78: EST19454_001 | C78: 19454_001 X111524 Replacement of 3 phase switch 2012 Estimate | D78: 71581.47 | I78: EST20565_002 | J78: 20565_002 ICM-W12351 Lawrence- Keele- CSP/Pri Rep Creation Date: October 1, 2010 | K78: 4413402.69 | P78: EST24149_001 | Q78: 24149_001 E14321 Establish Neilson Tapscott R26M34 Feeder Main -Civil | R78: 1061111.39
B79: EST19455_001 | C79: 19455_001 X11526 Replacement of 3 phase switch 2012 Estimate | D79: 82516.37 | I79: EST20578_001 | J79: 20578_001 E12358 51M21 Rebuild OH Sections Part 1 | K79: 1578973.89 | P79: EST24150_001 | Q79: 24150_001 E14322 Establish Neilson Tapscott R26M34 Feeder Main - Electrical | R79: 541678.24
B80: EST19581_001 | C80: 19581_001 X12124 Replacement of non standard CSP 2012 Estimate | D80: 479060.44 | I80: EST20595_001 | J80: 20595_001 E12361 51M21 Rebuild OH Sections Part 2 | K80: 827320.81 | P80: EST24224_001 | Q80: 24224_001 E14327-P01 Port Royal N UG Reconfigure NT63M4 - Civil | R80: 2201545.02
B81: EST19792_001 | C81: 19792_001 X12158 Replacement of 3 ph switch IFRS compliant | D81: 505410.89 | I81: EST20659_001 | J81: 20659_001 W12383 OH SCADA Switch Replacements NY80M30 | K81: 212766.17 | P81: EST24225_001 | Q81: 24225_001 E14330-P01 Port Royal N UG Reconfigure NT63M4 - Electrical | R81: 957878.69
B82: EST19871_001 | C82: 19871_001 X12175 Replacement of CSP TX 2012 budget estimate | D82: 1339642.7 | I82: EST20773_002 | J82: 20773_002 WBS/IFRS Compliant Creation Date: October 1, 2010 | K82: 1018515.74 | P82: EST24386_001 | Q82: 24386_001 W14350 P01 - Gordon Mackay UG Re. OH Reh | R82: 1166529.88
B83: EST19892_001 | C83: 19892_001 X12176 Replacement of 3 ph switch IFRS compliant | D83: 354351.27 | I83: EST20774_001 | J83: 20774_001 E12433 Voltage Conversion KHF2 | K83: 824789.66 | P83: EST24578_009 | Q83: 24578_009 Bluffwood Saddletree UG Rebuild Civil for 2012 Budget | R83: 1351004.43
B84: EST17801_009 | C84: 17801_009 ICM- E10387 Bermondsey TS SCADA OH & UG SCADA Switch Installations | D84: 327341.41 | I84: EST20848_001 | J84: 20848_001 E12459 Banbury/Post Rd OH Rehab NY34M6, NY53M24, NY51M21 | K84: 263649.31 | P84: EST24636_009 | Q84: 24636_009 ICM E12276 MUIRBANK 47M13 UG REB PHASE 1 MUIRBANK PHASE 1 - ELECTRICAL | R84: 218255.1
B85: EST19894_003 | C85: 19894_003 X12182 NY34 Feeder Scada Inst RC3620 2011 CapEx WBS Rev Nov 22_10 | D85: 195504.512 | I85: EST20881_001 | J85: 20881_001 E12457 Pole and CSP Transformers NY80M5 OH Rebuild | K85: 444019.67 | P85: EST24844_009 | Q85: 24844_009 PCI E12276 MUIRBANK 47M13 UG PH 2 DO NOT PACKAGE - Electrical | R85: 303486.14
B86: EST19452_001 | C86: 19452_001 X10449 Replacement of 3 phase switch 2010 estimate | D86: 70767.36 | I86: EST20939_001 | J86: 20939_001 W12442 FESI CSP Replacement NY85M1 | K86: 1391625.35 | O86: C1 Underground Infrastructure Total | R86: 74922766.55
B87: EST18456_004 | C87: 18456_004 E11374 - OH SCADAMATE 51M7_30, 53M25_28 SCADAMATE INSTALLATION NY34M6 | D87: 207320 | I87: EST20965_001 | J87: 20965_001 ICM W2491 FESI CSP and Conductor Replacement NY85M1 | K87: 1582887.44 | O87: C2 Paper Insulated Lead Covered Cable - Piece Outs and Leakers | P87: EST24688_001 | Q87: 24688_001 X14362 Bridgman Piece Out and Leakers 2014 budget estimate | R87: 172225.54
B88: EST20684_004 | C88: 20684_004 W12397-SMD 20 Switch Replacement RC3620 2011 CapEx WBS Rev Nov 22_10 | D88: 512461.168 | I88: EST21113_002 | J88: 21113_002 W13054 Refurbish OH Feeder 85M23 Ph1of4 Creation Date: October 1, 2010 | K88: 1041789.56 | P88: EST24703_001 | Q88: 24703_001 X14364 Gerrard Piece Out and Leakers 2014 budget estimate | R88: 101250.78
B89: EST20946_008 | C89: 20946_008 Rockford Road - 3 Phase Extension W12462 - FESI | D89: 273400.76 | I89: EST21118_002 | J89: 21118_002 W13055 Refurbish OH Feeder 85M23 Ph 2of4 Creation Date: October 1, 2010 | K89: 707481.96 | P89: EST24706_001 | Q89: 24706_001 X14365 Basin South Piece Out and Leakers 2014 budget estimate | R89: 47067.96
B90: EST20379_004 | C90: 20379_004 W12284 CSP TX and Conductor Repl YK11M5 PHASE 1 | D90: 1024332.08 | I90: EST21122_002 | J90: 21122_002 Refurbish OH Feeder 85M23 Ph 3 of 4 Creation Date: October 1, 2010 | K90: 720439.52 | P90: EST24711_001 | Q90: 24711_001 X14366 PO & Leakers TO 4kV feeders 2014 budget estimate | R90: 1146066.54
B91: EST19837_003 | C91: 19837_003 X12163 SCADA SWITCH REPLACEMENT WBS7/PW-DPC | D91: 524170.46 | I91: EST21123_001 | J91: 21123_001 Refurbish OH Feeder 85M23 Ph4of4 | K91: 801566.29 | O91: C2 Paper Insulated Lead Covered Cable - Piece Outs and Leakers Total | R91: 1466610.82
B92: EST20391_009 | C92: 20391_009 ICM - E11088 NY OH SCADA INSTALL "A" | D92: 278115.24 | I92: EST21190_001 | J92: 21190_001 E12508 NY80M4 Rebuild Phase 1 Replace wires,Tr, Insulator Nov 12, 2010 | K92: 1790035.08 | O92: C3 Handwell Replacement | P92: EST25011_001 | Q92: 25011_001 ICM 2014 Handwell Replacement (Parent) BULK ESTIMATE | R92: 7169780.19
B93: EST19965_009 | C93: 19965_009 ICM - E11088 NY Panacomm Repl "D" Replacing North York Panacomm RTUs | D93: 176600.7 | I93: EST21193_001 | J93: 21193_001 E12509 NY80M4 Rebuild Phase 2 Updated on Nov 12, 2010 | K93: 1076441.84 | O93: C3 Handwell Replacement Total | R93: 7169780.19
B94: EST19785_003 | C94: 19785_003 X12156 New SCADA Sw NY53-M8 Created Oct 2010 | D94: 296095.45 | I94: EST21457_001 | J94: 21457_001 E13110 SS68-F9 OH Rebuild Pleasant View | K94: 540355.72 | O94: C4 Overhead Infrastructure | P94: EST22859_001 | Q94: 22859_001 W14073 55M31 OH CSP and Insulator Repl | R94: 797700.71
B95: EST20531_001 | C95: 20531_001 E12349 Porcelain Insulator Repl NYSS68F4 | D95: 13036.727 | I95: EST21517_001 | J95: 21517_001 W13113 FESI Feeder Rehab_CSP PH#1 | K95: 711238.4 | P95: EST22958_001 | Q95: 22958_001 E14117 OH Rebuild R43M28 Aylesworth Kenn edy | R95: 754118.24
B96: EST23696_001 | C96: 23696_001 ICM W12669 Martin Ross rebuild | D96: 423780.59 | I96: EST21518_003 | J96: 21518_003 WBS/IFRS Compliant-W13115 FESI Creation Date: October 1, 2010 | K96: 496058.67 | P96: EST22960_001 | Q96: 22960_001 W14125 38M27 North Queen conductor upgra | R96: 206527.79
A97: C4 Overhead Infrastructure Total | D97: 29426642.45 | I97: EST21569_001 | J97: 21569_001 FESI - Refurbish OH Feeder R30M10 | K97: 497004.64 | P97: EST22994_001 | Q97: 22994_001 E14136 OH Upgrade R43M24 Milne Birchmoun Map1 | R97: 617003.03
A98: C5 Box Construction | B98: EST20365_001 | C98: 20365_001 X12325 Convert Junction 4kV B15J IFRS compliant | D98: 3638944.64 | I98: EST21578_001 | J98: 21578_001 ICM E11742 SCNA47M13 OH Rehab | K98: 420614 | P98: EST22995_001 | Q98: 22995_001 E14136 OH Upgrade R43M24 Hollis Ave Map2 | R98: 264160.23
B99: EST20919_002 | C99: 20919_002 X12445-Greenwood Felstead OH Conversion Creation Date: October 01, 2010 | D99: 3415787.93 | I99: EST21639_001 | J99: 21639_001 W13130 - Refurbish OH Feeder 55M28 Epsom Downs Area | K99: 2048979.49 | P99: EST23089_001 | Q99: 23089_001 W14150 - OH Feeder Rehab 55M9 Milvan / Penn | R99: 1018660.81
B100: EST18629_001 | C100: 18629_001 X11422 Hazelwood B7HW Conversion OH | D100: 1817397.41 | I100: EST21690_001 | J100: 21690_001 W13131 - Refurbish OH Feeder 55M28 Falstaff Area | K100: 1397651.53 | P100: EST23093_001 | Q100: 23093_001 W14149 - OH Feeder Rehab 55M9 Finch / Weston / Toryork | R100: 641775.54
B101: EST18761_001 | C101: 18761_001 X12352 Voltage Conversion from B7CD 2011 budget estimate | D101: 1329175.49 | I101: EST21785_001 | J101: 21785_001 E13153 OH Rebuild 51M8 | K101: 1690749.46 | P101: EST23312_001 | Q101: 23312_001 ICM E14170 Rouge Park OH Rebuild Phase 3 SCXGF3 | R101: 624001.55
A102: C5 Box Construction Total | D102: 10201305.47 | I102: EST21876_001 | J102: 21876_001 W13182 OH Rehab 80M1. | K102: 132123.78 | P102: EST23323_001 | Q102: 23323_001 W14181 Kingsway MS VC | R102: 661505.086
A103: C6 Rear Lot Construction | B103: EST20677_008 | C103: 20677_008 W11219 Rathburn SAF1 VC Pt3 UG Elec UG electrical | D103: 2689250.27 | I103: EST21920_001 | J103: 21920_001 W13185 80M1 Carney Rd Distribution Rehab | K103: 701383.82 | P103: EST23361_001 | Q103: 23361_001 W14203 30M7 Upgrade & ETRF2 VC | R103: 2037758.08
B104: EST19757_001 | C104: 19757_001 X12185 RearLot (RL025) ConNYSS37_ElPh2 S/E Lawrence/Leslie (LTP_2011_19_002) | D104: 968308.8 | I104: EST21998_001 | J104: 21998_001 W13187 80M1 Clarkhill_Glenborough Park 80M1 OH rebuid | K104: 642258.78 | P104: EST23364_001 | Q104: 23364_001 W14176 - OH Trunk Feeder Rehab 85M4 Alexdon, Chesswood, Champagne, etc | R104: 536271.95
B105: EST19759_001 | C105: 19759_001 X12186 RearLot (RL025) ConNYSS37_ElPh3 S/E Lawrence/Leslie (LTP_2011_19_002) | D105: 579326.83 | I105: EST21999_001 | J105: 21999_001 W13167 Feeder Reconfigure & Rebuild Clayson - Bartor , 55M21 | K105: 1102144.8 | P105: EST23873_001 | Q105: 23873_001 W14278 Overhead Rebuild and CSP | R105: 721402.35
B106: EST19755_003 | C106: 19755_003 ICM X12184 P1RearLot (RL025) ConNYSS37 S/E Lawrence/Leslie (LTP_2011_19_002) | D106: 190830.4 | I106: EST22037_001 | J106: 22037_001 W13188 80M1 Finchhurst Dr & Fleetwell Cr 80M1 OH rebuid | K106: 153175.83 | P106: EST23878_001 | Q106: 23878_001 W14276 - OH Feeder Rehab - Signet/Weston 55M1 | R106: 1970263.91
B107: EST24854_009 | C107: 24854_009 ICM E11383 Living Guild OH VC DO NOT PACKAGE from Ver001 from AM 18656 | D107: 943296.43 | I107: EST22040_001 | J107: 22040_001 W13169 Weston Railway OH Rebuild | K107: 1228296.35 | P107: EST23978_001 | Q107: 23978_001 E14286 OH Rebuild 64F2 Ruddington MS VC Created 3 Nov 2011 | R107: 941424.84
B108: EST21250_001 | C108: 21250_001 W12562 Rexdale-Colony RL VC (Elec) Ph#2 | D108: 72557.47 | I108: EST22041_001 | J108: 22041_001 W13189 80M1 Stafford Rd & Cloebury Crt 80M1 OH rebuild | K108: 185976.93 | P108: EST23979_001 | Q108: 23979_001 W14285 OH & UG lateral Rebuild | R108: 237551.9
B109: EST21252_001 | C109: 21252_001 W12566 Rexdale-Colony RL VC (Elec) Ph#6 | D109: 90824.28 | I109: EST22173_001 | J109: 22173_001 W13197 80M1 Ellerslie Betty Ann Park Hom OH Rehab | K109: 580533.02 | P109: EST24007_001 | Q109: 24007_001 W14289 OH Rebuild off Gary Ave | R109: 801511.14
B110: EST21320_001 | C110: 21320_001 W12567 Rexdale-Colony RL VC (Elec) Ph#7 | D110: 167972.69 | I110: EST22180_001 | J110: 22180_001 W13204 80M1 Elynhill_Ellerslie_Betty Ann Park Home OH Rehab | K110: 799085.56 | P110: EST24052_001 | Q110: 24052_001 W14306 - 85M5 Mcallister Rd. OH rebuild W14306 - 85M5-Mcallister Rd. OH rebuild | R110: 303888.95
B111: EST18580_001 | C111: 18580_001 E11382 Livingston VC Trans rear ug front see E11383 OH vc Livingston | D111: 5330325.93 | I111: EST22184_001 | J111: 22184_001 W13198 Refurbish Trunk Feeder 85M10 Regent - Wilson | K111: 1235533.51 | P111: EST24089_001 | Q111: 24089_001 W14315 Carmichael OH rebuild & Upgrade | R111: 712851.09
B112: EST21034_001 | C112: 21034_001 W12561 REXDALE / COLONY PHASE I INSTALL IFRS compliant | D112: 861775.27 | I112: EST22203_001 | J112: 22203_001 ICM E12570 53M25 OH Rehab | K112: 1195825.04 | P112: EST24129_001 | Q112: 24129_001 ICM 55M27 - Ardwick OH Spot replacement | R112: 493533.55
B113: EST21155_001 | C113: 21155_001 W12564 Rexdale-Colony RL VC (Elec) Ph#4 | D113: 1184060.45 | I113: EST22208_001 | J113: 22208_001 W13205 Refurbish 85M10 Laterals Ph1 of 2 | K113: 1212953.94 | P113: EST24139_001 | Q113: 24139_001 E14318 New SCADA Switches on NY51M3 | R113: 189613.49
B114: EST21248_001 | C114: 21248_001 W12565 Rexdale-Colony RL VC (Elec) Ph#5 | D114: 1030399.04 | I114: EST22211_001 | J114: 22211_001 W13206 Refurbish 85M10 Laterals Ph2 of 2 | K114: 1711128.81 | P114: EST24166_001 | Q114: 24166_001 W14326 - Navenby OH Rebuild | R114: 932223.69
B115: EST21251_001 | C115: 21251_001 W12563 Rexdale-Colony RL VC (Elec) Ph#3 | D115: 256340.23 | I115: EST22229_001 | J115: 22229_001 ICM E12574 - SCREF3 OH REHAB | K115: 831538.86 | P115: EST24169_001 | Q115: 24169_001 ICM E14319 New SCADA Switches NAR43M24 | R115: 201555.53
B116: EST21315_001 | C116: 21315_001 W13195 Rexdale-Colony RL VC (Elec) Ph#8 | D116: 1237653.33 | I116: EST22245_001 | J116: 22245_001 W13211 Goulding MS F1&F2 VC PH#1 | K116: 1204619.75 | P116: EST24218_001 | Q116: 24218_001 W14329-P03 Gracedale Blvd. OH Rebuild | R116: 615587.04
B117: EST20012_002 | C117: 20012_002 X12114 Forest Hill Electrical Ph#5 UG ELECTRICAL - BUDGET | D117: 3045760.97 | I117: EST22248_001 | J117: 22248_001 W13216 Goulding MS F1 and F4 VC Ph#2 | K117: 988559.913 | P117: EST24257_001 | Q117: 24257_001 W14333 - P03 - Aviemore Dr. OH Rebuild | R117: 595563.68
B118: EST21321_002 | C118: 21321_002 W11168 ALBION MG-F1 SILVERSTONE VC REAR FEB 09,2012 LOT ETMGF1 IFRS compliant | D118: 1866994.08 | I118: EST22598_001 | J118: 22598_001 Feeder Riser SCADA Installations 88M13, 88M15, 88M46 | K118: 294956.42 | P118: EST24269_001 | Q118: 24269_001 W14334 P03 - Duncanwoods Dr. OH Rebuild | R118: 578509.09
B119: EST19501_009 | C119: 19501_009 E12076 PH 1 BANBURY ELECT REAR LOT For 2012 budget | D119: 2549833 | I119: EST23430_001 | J119: 23430_001 W13329- ETR30M12 along Evans/Royal York P03_New Feeder Construction | K119: 804965.47 | P119: EST24295_001 | Q119: 24295_001 W14340 - P03 Lindylou OH Rebuild | R119: 1119463.11
B120: EST22607_009 | C120: 22607_009 ICM E12675 BANBURY ELEC PHASE 2 PROJECT#E12675 UPCMS#TP-2011-9255 | D120: 1512573.29 | I120: EST23567_001 | J120: 23567_001 ICM W13351 FESI Rebuild & CSP Repl #2 NY85M1 | K120: 2005774.73 | P120: EST24320_001 | Q120: 24320_001 W14343 Voltage Conversion PH-2 2014 | R120: 454870.64
B121: EST24342_002 | C121: 24342_002 X11293 Forest Hill Phase 5 - Civil Marlee/Fairleigh/Allen/Eglinton | D121: 4184824.14 | I121: EST24161_001 | J121: 24161_001 W13376 VOLTAGE CONVERSION (B-1RK) 2013 | K121: 1589640.16 | P121: EST24321_001 | Q121: 24321_001 W14344 Voltage Conversion _Westmount MS 2014 | R121: 602004.7
B122: EST21138_002 | C122: 21138_002 X12113 Forest Hill VC Phase 4 Electrial Bathurst/Eglinton/Old Park/Shallmar | D122: 5602796.26 | H122: C4 Overhead Infrastructure Total | K122: 53018072.57 | P122: EST24333_001 | Q122: 24333_001 ICM W14345 Voltage Conversion RBF2 Ph#1 2014 | R122: 482322.98
A123: C6 Rear Lot Construction Total | D123: 34365703.16 | H123: C5 Box Construction | I123: EST18738_X01 | J123: 18738_001 X11452 Millwood MS B2MD,B1MR Partial V/C 2011 Budget Estimate | K123: 2726725 | O123: C4 Overhead Infrastructure Total | R123: 20113624.7
A124: C7 Polymer SMD-20 Fuses | B124: EST24773_001 | C124: 24773_001 2012 SMD-20 Replacements DO NOT PACKAGE | D124: 3058194.39 | I124: EST18740_001 | J124: 18740_001 X11369 KS MS Voltage Conversion 4-13.8KV Box Construction | K124: 3448762.87 | O124: C5 Box Construction | P124: EST19632_001 | Q124: 19632_001 X12129 Merton & Millwood MS Con PH#2 2011 Budget Estimate | R124: 4843154.28
A125: C7 Polymer SMD-20 Fuses Total | D125: 3058194.39 | I125: EST18758_001 | J125: 18758_001 X12054 Voltage conversion from 4KV 2011 budget estimate | K125: 6033058.64 | P125: EST19706_001 | Q125: 19706_001 X12143 Merton MS Feeder B1MR,B2MR 2012 Estimate | R125: 2235868.81
A126: C8 Scadamate R1 Switches | B126: EST22579_001 | C126: 22579_001 2012 SCADA R-1 Event Estimate DO NOT PACKAGE | D126: 2858752 | I126: EST19984_001 | J126: 19984_001 X13003 Con Dup 4KV B6DU to 13.8KV TOB6DU 2013 Budget Estimate | K126: 2959980.92 | P126: EST19711_001 | Q126: 19711_001 X12145 Merton MS Feeder B3MR, 2012 Estimate | R126: 1106105.07
A127: C8 Scadamate R1 Switches Total | D127: 2858752 | I127: EST20368_001 | J127: 20368_001 X12193 Convert 4kV B5J to 13.8kV IFRS compliant | K127: 1441346.64 | P127: EST19712_001 | Q127: 19712_001 X12142 Merton MS Feeder B2MR 2012 Estimate | R127: 618185.2
A128: C9 Network Vault & Roofs | B128: EST20047_001 | C128: 20047_001 X12208 Loc 4485, 105 Adelaide St. West 2012 | D128: 292280.25 | I128: EST20476_001 | J128: 20476_001 X13178 Convert 4kV B9J to 13.8kV IFRS compliant | K128: 733363.52 | P128: EST19966_001 | Q128: 19966_001 X13176 Con Dup 4KV B4DU to 13.8KV TOB4DU 2012 Budget Estimate | R128: 3673797.25
B129: EST19033_004 | C129: 19033_004 X11487 King St West/Yonge St IFRS compliant | D129: 1617990.57 | I129: EST20548_001 | J129: 20548_001 X13177 Convert 4kV B8J to 13.8kV IFRS compliant | K129: 212724.2 | P129: EST19977_001 | Q129: 19977_001 X12174 Con 4KV B5MR to 13.8KV TOB5MR 2012 Budget Estimate | R129: 3782291.05
B130: EST20382_001 | C130: 20382_001 X12289 New Vault - Adelaide St. West Loc #4412 | D130: 1883931.16 | I130: EST20567_003 | J130: 20567_003 X12353 B-4-CD Voltage V.C to 13.8kV As of Nov 23/2011 | K130: 1630074.08 | P130: EST20366_001 | Q130: 20366_001 ICM X12194 Convert 4kV B10J to 13.8kV IFRS compliant | R130: 1677620.36
B131: EST20429_001 | C131: 20429_001 X12321 Loc 4931, Front and Jarvis 2012 | D131: 292280.25 | I131: EST21101_001 | J131: 21101_001 Voltage Conv 4kV to 13.8kV loc#2553 B4DN IFRS compliant | K131: 167093.84 | P131: EST20369_001 | Q131: 20369_001 X12161 Convert 4kV B11J to 13.8kV IFRS compliant | R131: 2144965.45
B132: EST20449_001 | C132: 20449_001 X12327 Loc 4262, Yorkville and Yonge St 2012 | D132: 292280.25 | I132: EST21935_001 | J132: 21935_001 X13186 Load Transfer A200E to AxxxE 2013 budget estimate | K132: 1182796.76 | P132: EST20992_001 | Q132: 20992_001 X12055 Voltage Conv 4kV to 13.8kV B2DU IFRS compliant | R132: 3234995.54
B133: EST20530_001 | C133: 20530_001 X12350 Rebuild Vault Roof 60 Gloucester Loc #4510 | D133: 603540.64 | H133: C5 Box Construction Total | K133: 20535926.47 | P133: EST23358_001 | Q133: 23358_001 X14202 Voltage Conversion of B3DN | R133: 2067217.44
B134: EST23243_001 | C134: 23243_001 X12652 Abandon Loc 4252 and 4308 2012 Budget estimate | D134: 352817.74 | H134: C6 Rear Lot Construction | I134: EST20662_001 | J134: 20662_001 W12381 Thorncrest (#11) RL VC Ph#1 Civil IFRS compliant | K134: 3243458.07 | P134: EST24076_001 | Q134: 24076_001 X13362 Highlevel 4kV conversion B7H 2013 budget estimate | R134: 2378009.08
B135: EST24997_001 | C135: 24997_001 X12830 Single vault rebuild- Toronto 2012 | D135: 1874977.11 | I135: EST20714_001 | J135: 20714_001 W12401 Thorncrest (#11) RL VC Ph#2 Civil IFRS compliant | K135: 2224907.6 | O135: C5 Box Construction Total | R135: 27762209.53
B136: EST19537_005 | C136: 19537_005 ICM X11533Loc#4818 Rebuild Vault at 390 IFRS compliant (copy of 19537_003) | D136: 1577454.73 | I136: EST20726_001 | J136: 20726_001 W13017 RL#011 Electrical PH#1 IFRS compliant | K136: 1445823.75 | O136: C6 Rear Lot Construction | P136: EST21484_001 | Q136: 21484_001 W11726 Markland RL VC PH#1 Civil HL Estimate -- DO NOT PACKAGE | R136: 5628481.29
B137: EST24999_001 | C137: 24999_001 X12834 Single Vault Rebuild Toronto 2012 | D137: 1977931.55 | I137: EST20808_001 | J137: 20808_001 ICM W13019 RL#011 Electrical PH#2 IFRS compliant | K137: 1076432.24 | P137: EST24945_001 | Q137: 24945_001 markland dr IFRS compliant | R137: 5403457.72
B138: EST18837_001 | C138: 18837 X11441 Eglinton Ave. East/Holly St. Location #4512 | D138: 1013155.01 | I138: EST21185_001 | J138: 21185_001 W13142 Thorncrest (#11) RL VC Ph#5 Civil IFRS compliant | K138: 8764104.87 | O138: C6 Rear Lot Construction Total | R138: 11031939.01
B139: EST25324_001 | C139: 25324_001 X12858 Abandon 2 network vaults 2012 | D139: 79988.88 | I139: EST21186_002 | J139: 21186_002 W13020 RL#011 Electrical PH#5 IFRS compliant | K139: 2427256.84 | O139: C7 Polymer SMD-20 Fuses | P139: EST24943_001 | Q139: 24943_001 2014 SMD-20 Replacements DO NOT PACKAGE | R139: 2936687.95
B140: EST18892_002 | C140: 18892_001 X11362 Network Replacement, Loc#4111 | D140: 697001.37 | I140: EST21211_001 | J140: 21211_001 W13067 Rathburn Rd OH/UG Conversion IFRS compliant | K140: 915610.32 | O140: C7 Polymer SMD-20 Fuses Total | R140: 2936687.95
B141: EST20030_001 | C141: 20030_001 X12207 Loc 4287, 60 Simcoe St. Abandon | D141: 14795.5 | I141: EST21213_001 | J141: 21213_001 W13068 Thorncrest (#011RL) VC Ph#4 IFRS compliant | K141: 636973.56 | O141: C8 Scadamate R1 Switches | P141: EST24941_001 | Q141: 24941_001 ICM 2014 SCADA R-1 Event Estimate DO NOT PACKAGE | R141: 2693824
B142: EST20623_001 | C142: 20623_001 X12371 Rebuild Vault Peter and King St. | D142: 994805.04 | H142: C6 Rear Lot Construction Total | K142: 20734567.25 | O142: C8 Scadamate R1 Switches Total | R142: 2693824
A143: C9 Network Vault & Roofs Total | D143: 13565230.05 | H143: C7 Polymer SMD-20 Fuses | I143: EST24942_001 | J143: 24942_001 2013 SMD-20 Replacements DO NOT PACKAGE | K143: 2948667.57 | O143: C9 Network Vault & Roofs | P143: EST25006_001 | Q143: 25006_001 X14385 8 Vault rebuild projects 2014 | R143: 13772124.59
A144: C10 Fibertop Network Units | B144: EST24146_003 | C144: 24146_003 X12751 LOC 4219W-N/W changeout 2012 Changeouts | D144: 295234.57 | H144: C7 Polymer SMD-20 Fuses Total | K144: 2948667.57 | P144: EST25015_001 | Q144: 25015_001 X14386 6 Vault roof rebuild projects 2014 | R144: 1688760.29
B145: EST24536_001 | C145: 24536_001 X12792 4897NV_A43CE fibertop replacement 2012 Fibretop Changeout | D145: 182746.78 | H145: C8 Scadamate R1 Switches | I145: EST24940_001 | J145: 24940_001 ICM k2013 SCADA R-1 Event Estimate DO NOT PACKAGE | K145: 2803776 | P145: EST25318_001 | Q145: 25318_001 X12844 Abandon 2 network vaults 2014 | R145: 113741.93
B146: EST24912_001 | C146: 24912_001 ICM X11797 LOC4187 - N/W CHANGEOUTS 2011 Changeouts - (copy of 22691_3) | D146: 120071.44 | H146: C8 Scadamate R1 Switches Total | K146: 2803776 | O146: C9 Network Vault & Roofs Total | R146: 15574626.81
B147: EST24094_002 | C147: 24094_002 X12740 LOC4646 A23T - N/W CHANGEOUT 2012 Changeouts | D147: 124964.57 | H147: C9 Network Vault & Roofs | I147: EST18826_X01 | J147: 18826_001 X11351 Bay St/South of Front St. West Location #4174 | K147: 124793.1 | O147: C10 Fibertop Network Units | P147: EST24950_001 | Q147: 24950_001 X14375 Fibertop replacement at Mult. LOC 2014 | R147: 9357574.7
B148: EST24519_001 | C148: 24519_001 X12791 4745_A55H - N/W CHANGEOUTS 2012 Changeouts | D148: 143589.85 | I148: EST18834_003 | J148: 18834_003 X11234 EGLINTON VAULT #4481 REBUILD WBS7 Created Oct 2010 | K148: 2061586.98 | O148: C10 Fibertop Network Units Total | R148: 9357574.7
B149: EST24533_001 | C149: 24533_001 X12782 4131_A68WR fibertop replacement 2012 Fibretop Changeout | D149: 182746.78 | I149: EST18836_002 | J149: 18836_002 X11440 St Clair Av W / Yonge Loc.# 4642 2011 budget estimate | K149: 970638.47 | O149: C11 Automatic Transfer Switches (ATS) & Reverse Power Breakers (RPB) | P149: EST24953_001 | Q149: 24953_001 X14376 ATS Replacement 2014 | R149: 2519779.56
B150: EST24527_001 | C150: 24527_001 X12793 N1010_A41CE Fibertop Change Out 2012 Changeouts | D150: 129382.89 | I150: EST19372_001 | J150: 19372_001 X11504 Overlea Blvd/William Morgan | K150: 860757.3 | P150: EST24955_001 | Q150: 24955_001 X14377 RBP replacement at two Locations 2014 | R150: 705681.05
B151: EST22690_002 | C151: 22690_002 X11798 LOC4187 - N/W CHANGEOUTS 2011 Changeouts | D151: 125216.37 | I151: EST19502_001 | J151: 19502_001 X11529 WellingtonStW/Emily Vault Rebuild Vault Loc#4790 | K151: 2779645.29 | O151: C11 Automatic Transfer Switches (ATS) & Reverse Power Breakers (RPB) Total | R151: 3225460.61
B152: EST24530_001 | C152: 24530_001 X12781 4131_A67WR fibertop replacement 2012 Fibretop Changeout | D152: 182746.78 | I152: EST20472_001 | J152: 20472_001 X12334 Rebuild Vault Peter and Adelaide Loc #4299 | K152: 1584953.29 | O152: C12 Stations Power Transformers | P152: EST22876_001 | Q152: 22876_001 S14091 Norseman MS Replace TR1 2012 | R152: 448696.33
B153: EST24518_001 | C153: 24518_001 X12786 4523_A20T- N/W CHANGEOUTS 2012 Changeouts | D153: 143589.85 | I153: EST20510_003 | J153: 20510_003 X12345 Loc#4562 King/Jordan Creation Date: October 01, 2010 | K153: 724772.71 | P153: EST22877_001 | Q153: 22877_001 S14092 Underwriter Crouse MS Replace TR1 2012 | R153: 426036.474
B154: EST24093_003 | C154: 24093_003 X12743 Loc.N1107 Jarvis & Calton FT REP IFRS compliant | D154: 148590.84 | I154: EST23295_001 | J154: 23295_001 X13323 Vault Rebuild TD-21 York & King 2013 | K154: 292280.25 | O154: C12 Stations Power Transformers Total | R154: 874732.804
B155: EST24053_002 | C155: 24053_002 X11840 LOC4540 - N/W CHANGEOUT1849 Yonge virtual estimate | D155: 221463.69 | I155: EST23501_001 | J155: 23501_001 X13347 Loc#4795 Vault Rebuild 2012 | K155: 231056.83 | O155: C13 Stations Switchgear | P155: EST20779_XXX | Q155: 20779_XXX S14048 Pharmacy CPR MS Replace switchgear | R155: 615236.94
B156: EST24535_001 | C156: 24535_001 X12790 4651_A54H fibertop replacement 2012 Fibretop Changeout | D156: 182746.78 | I156: EST25000_001 | J156: 25000_001 X12835 Single Vault Rebuild Toronto 2012 | K156: 1715439.14 | P156: EST21339_XXX | Q156: 21339_XXX S14044 Midland Lawrence MS Replace switchgear | R156: 615527.13
B157: EST24086_003 | C157: 24086_003 X12736 - LOC 4286 - A53WR - NW CHANGEOUT | D157: 118788.52 | I157: EST25010_001 | J157: 25010_001 X13428 3 Vault roof rebuild projects 2013 | K157: 844125.96 | P157: EST21648_XXX | Q157: 21648_XXX E12536 Replace PILC cables –Pharmacy CPR (CE) MS | R157: 325626.182
B158: EST24521_001 | C158: 24521_001 X12783 4160_A69WR Fibertop Change Out 2012 Changeouts | D158: 129382.89 | I158: EST25081_001 | J158: 25081_001 X12844 Abandon 7 network vaults 2012/13/14 | K158: 119735.74 | P158: EST21688_001 | Q158: 21688_001 S13009 Windsor feeder transfer toBremner 2013 | R158: 343417.674
B159: EST24528_001 | C159: 24528_001 X12794 N1102_A71CE Fibertop Change Out 2012 Changeouts | D159: 129382.89 | H159: C9 Network Vault & Roofs Total | K159: 12309785.06 | P159: EST21735_001 | Q159: 21735_001 S14005 Windsor TS: Replace A5-6T SWGR 2012 | R159: 7770393.732
B160: EST25078_001 | C160: 25078_001 X12843 Fibertop replacement at Mult. LOC 2012 | D160: 3602305.56 | H160: C10 Fibertop Network Units | I160: EST24714_001 | J160: 24714_001 X12825 Fibertop replacement at Mult. LOC 2013 | K160: 8778013.33 | P160: EST22719_001 | Q160: 22719_001 S14063 Wiltshire TS Replace A5-6W SWGR 2012 | R160: 7397087.626
B161: EST24522_001 | C161: 24522_001 X12784 4336_A44GD Fibertop Change Out 2012 Changeouts | D161: 129382.89 | H161: C10 Fibertop Network Units Total | K161: 8778013.33 | P161: EST22804_XXX | Q161: 22804_XXX S14068 Islington MS Replace Switchgear | R161: 1095435.386
B162: EST24523_001 | C162: 24523_001 X12785 4336_A48GD Fibertop Change Out 2012 Changeouts | D162: 129382.89 | H162: C11 Automatic Transfer Switches (ATS) & Reverse Power Breakers (RPB) | I162: EST24952_001 | J162: 24952_001 X13420 ATS Replacement 2013 | K162: 2592093.42 | P162: EST22805_XXX | Q162: 22805_XXX S14070 Thornton MS Replace Switchgear | R162: 859719.17
B163: EST24092_003 | C163: 24092_003 X12741 - N1034 - A65H - NW CHANGEOUT | D163: 124984.94 | I163: EST24954_001 | J163: 24954_001 X13423 RBP replacement at two Locations 2013 | K163: 705681.05 | P163: EST24426_001 | Q163: 24426_001 X13097 Windsor TS A5-6WR Bus Feeders Transfer to existing A17-18WR Bus | R163: 295996.076
B164: EST24529_001 | C164: 24529_001 X12795 N1102_A72CE Fibertop Change Out 2012 Changeouts | D164: 129382.89 | H164: C11 Automatic Transfer Switches (ATS) & Reverse Power Breakers (RPB) Total | K164: 3297774.47 | P164: EST24972_XXX | Q164: 24972_XXX X14380 Strachan TS Load Transfer | R164: 297368.5609
B165: EST24911_001 | C165: 24911_001 ICM - X11796 LOC4768SV - N/W CHANGEOUTS 2011 Changeouts - (copy of 22689_3) | D165: 126609.59 | H165: C12 Stations Power Transformers | I165: EST21573_001 | J165: 21573_001 S13127Kingston Morningside MS:Replace TR 2012 | K165: 332767.132 | P165: EST24973_XXX | Q165: 24973_XXX X14381 Wiltshire TS Load Transfer | R165: 274711.9596
B166: EST24913_001 | C166: 24913_001 ICM X11799 LOCN1102 - N/W CHANGEOUTS 2011 Changeouts - (copy of 22692_3) | D166: 131073.48 | I166: EST21651_001 | J166: 21651_001 S13144 Edenbridge MS Replace TR1 2012 | K166: 366839.99 | P166: EST24976_XXX | Q166: 24976_XXX W14---- Islington MS replace PILC cable | R166: 418129.65
B167: EST24534_001 | C167: 24534_001 X12789 4651_A53H fibertop replacement 2012 Fibretop Changeout | D167: 182746.78 | I167: EST21722_001 | J167: 21722_001 S13154 High Level MS Replace TR1 TX 2012 | K167: 462388.746 | O167: C13 Stations Switchgear Total | R167: 20308650.09
B168: EST24520_001 | C168: 24520_001 X12780 4099_A66H Fibertop Change Out 2012 Changeouts | D168: 129382.89 | I168: EST21723_001 | J168: 21723_001 S13155 High Level MS Replace TR2 TX 2012 | K168: 536373.54 | O168: C14 Stations Circuit Breakers | P168: EST22693_001 | Q168: 22693_001 S14052 Finch TS Replace 55M24 KSO CB 2012 | R168: 192758.9986
B169: EST24526_001 | C169: 24526_001 X12788 4625_A50DX Fibertop Change Out 2012 Changeouts | D169: 129382.89 | I169: EST21802_001 | J169: 21802_001 S13168 Blaketon MS Replace TR1 Transform 2012 | K169: 473766.47 | P169: EST22694_001 | Q169: 22694_001 S14054 Finch TS Replace KSO CB (55M25 & 55M8) 2012 | R169: 409038.1987
B170: EST24525_001 | C170: 24525_001 X12787 4553_A56H Fibertop Change Out 2012 Changeouts | D170: 129382.89 | I170: EST21852_001 | J170: 21852_001 S13170 Albion MS Replace TR2 Transformer 2012 | K170: 386115.434 | P170: EST22695_001 | Q170: 22695_001 S14055 Bathurst TS Replace 85M1 KSO CB 2012 | R170: 194571.826
B171: EST24090_003 | C171: 24090_003 X12738 P04 N/W CHANGE OUT LOC #4499WV 2012 CHANGEOUTS | D171: 143040.68 | H171: C12 Stations Power Transformers Total | K171: 2558251.312 | P171: EST22698_001 | Q171: 22698_001 S14056 Bathurst TS Replace 85M4 KSO CB 2012 | R171: 195394.6029
B172: EST24096_002 | C172: 24096_002 X12688 LOC 4491 fibertop changeout 2012 Fibretop Changeout | D172: 125516.12 | H172: C13 Stations Switchgear | I172: EST20492_001 | J172: 20492_001 S13275 Duplex TS: Replace A5-6X SWG 2012 | K172: 6676623.24 | P172: EST22699_001 | Q172: 22699_001 S14057 Bathurst TS Replace 85M2 KSO CB 2012 | R172: 194904.1239
B173: EST23961_003 | C173: 23961_003 X12686 LOC.4517 A-92-A 2012 Changeouts | D173: 163392.51 | I173: EST21338_001 | J173: 21338_001 S13090 Greencedar Lawrence MS: Replace SWG 2012 | K173: 589435.066 | P173: EST22700_001 | Q173: 22700_001 S14059 Bathurst TS Replace 85M25 KSO CB 2012 | R173: 194081.347
B174: EST23958_002 | C174: 23958_002 X12684 LOC N1044 fibertop changeout 2012 Fibretop Changeout | D174: 125100.02 | I174: EST21530_001 | J174: 21530_001 S14049 Duplex TS: Transfer Load from A5-6DX to A7-8DX | K174: 312167.056 | O174: C14 Stations Circuit Breakers Total | R174: 1380749.097
B175: EST24028_004 | C175: 24028_004 X12733 - Network Changeout LOC4794 2012 Changeouts | D175: 120531.86 | I175: EST21581_001 | J175: 21581_001 S13126 Neilson Dr MS Replace 4kV SWGR 2012 | K175: 984847.96 | O175: C15 Stations Control & Communicaton Systems | P175: EST22808_001 | Q175: 22808_001 S14071 Replace MOSCAD RTUs in Etobicoke 2014 | R175: 585501
B176: EST21583_003 | C176: 21583_003 X11743 - LOC 4561- A55H- NW CHANGEOUT | D176: 124152.85 | I176: EST21649_001 | J176: 21649_001 E13149 Replace PILC-Greencedar Lawrence MS. Co-ordinate with swgr replacement | K176: 244374.12 | P176: EST22844_001 | Q176: 22844_001 S14083 2014 Install 5 MS SCADA RTUs 2014 | R176: 358470
B177: EST23960_003 | C177: 23960_003 X12685-LOC #4517 N/W CHANGEOUT TO A91A EDWARD/CENTRE | D177: 159791.91 | I177: EST21650_XXX | J177: 21650_XXX E13150 Replace PILC cables -Midland Lawrence (ZE) MS | K177: 244374.12 | P177: EST24734_001 | Q177: 24734_001 S14367 Dx-Fairbank Warden-Berm 2014-Add SONET Redundancy | R177: 392739.732
B178: EST24098_004 | C178: 24098_004 X12690 LOC 4643 fibertop changeout 2012 Fibretop Changeout | D178: 123735.59 | I178: EST22315_001 | J178: 22315_001 W13233 Neilson MS DB cable Replacement | K178: 302532.748 | O178: C15 Stations Control & Communicaton Systems Total | R178: 1336710.732
A179: C10 Fibertop Network Units Total | D179: 8589924.72 | I179: EST22342_001 | J179: 22342_001 S13270 Leslie MS: Load Transfer 2012 | K179: 143628.118 | O179: C16 Downtown Station Load Transfers | P179: EST19085_001 | Q179: 19085_001 X12342 A13DN TO A35W FEEDER TIE Wiltshire Stn to Dufferin Stn tie | R179: 1809062
A180: C11 Automatic Transfer Switches (ATS) & Reverse Power Breakers (RPB) | B180: EST24905_001 | C180: 24905_001 X12829 RBP replacement at two Locations 2012 | D180: 705681.05 | I180: EST23173_001 | J180: 23173_001 E13317 Transfer of cabling at Leslie MS Electrical Project | K180: 430695.446 | P180: EST19136_001 | Q180: 19136_001 X12340 A36DN to A67W Feeder Tie Wiltshire Stn to Dufferin Stn feeder tie | R180: 1782879.43
B181: EST24544_001 | C181: 24544_001 X12798 Loc 4862 ATS Replacement 2012 | D181: 143880.77 | I181: EST23209_001 | J181: 23209_001 E13317 Transfer of cabling at Leslie MS Civil Works Project | K181: 468282.448 | O181: C16 Downtown Station Load Transfers Total | R181: 3591941.43
B182: EST24546_001 | C182: 24546_001 X12799 Loc 4023 ATS Replacement 2012 | D182: 365263.36 | I182: EST24971_XXX | J182: 24971_XXX X14378 Duplex TS feeder transfer | K182: 249223.1721 | O182: C17 Bremner Transformer Station | P182: EST25115_001 | Q182: 25115_001 BREMNER TS THESL INVESTMENTS 2014 RC 2820 | R182: 23016555
B183: EST24549_001 | C183: 24549_001 X12801 Loc D3022 ATS Replacement 2012 | D183: 143878.77 | I183: EST25033_001 | J183: 25033_001 X12414 Strachan TS Feeder Transfer A7-8T To A11-12T | K183: 670008.88 | O183: C17 Bremner Transformer Station Total | R183: 23016555
B184: EST24634_001 | C184: 24634_001 X12822 ATS Replacement 2012 | D184: 865181.68 | I184: EST25425_XXX | J184: 25425_XXX S13433 Strachan TS A7-8 Switchgear replacement | K184: 7440125.648 | O184: C18 Hydro One Capital Contributions | P184: EST24748_001 | Q184: 24748_001 S14368 Wiltshire A5-6 Cap Contribution 2012 | R184: 3000000
B185: EST24550_001 | C185: 24550_001 X12802 Loc 4064 ATS Replacement 2012 | D185: 365263.36 | H185: C13 Stations Switchgear Total | K185: 18756318.02 | P185: EST24749_001 | Q185: 24749_001 S14369 Strachan A5-6 Cap Contribution 2012 | R185: 3000000
B186: EST24548_001 | C186: 24548_001 X12800 Loc D9010 ATS Replacement 2012 | D186: 143880 | H186: C14 Stations Circuit Breakers | I186: EST21656_001 | J186: 21656_001 S13146 Bermondsey TS: Repl. KSO OCB's (53M1, 53M9 & 53M11) 2012 | K186: 645009.296 | P186: EST24751_001 | Q186: 24751_001 S14371 Windsor A5-6 Capital Contribution 2012 | R186: 3000000
B187: EST19381_001 | C187: 19381_001 X11505 Castlefield Ave Adj#645 Location #D9012 | D187: 324776.71 | I187: EST21657_001 | J187: 21657_001 S13125 Leslie TS: Repl. KSO OCB's (51M7, & 51M8) 2012 | K187: 431322.484 | P187: EST25117_001 | Q187: 25117_001 BREMNER TS HONI CAP CONTRN 2014 RC 2820 | R187: 27000000
B188: EST23252_001 | C188: 23252_003 X12658 - ATS Replacement Loc.#D3031 | D188: 214610.24 | H188: C14 Stations Circuit Breakers Total | K188: 1076331.78 | O188: C18 Hydro One Capital Contributions Total | R188: 36000000
A189: C11 Automatic Transfer Switches (ATS) & Reverse Power Breakers (RPB) Total | D189: 3272415.94 | H189: C15 Stations Control & Communicaton Systems | I189: EST21346_001 | J189: 21346_001 S13095 Sheppard TS to Ellesmere TS Add SONET Redundancy 2012 | K189: 174379.154 | O189: C19 Feeder Automation | P189: EST24675_001 | Q189: 24675_001 Feeder Automation of SCNAE5M2 Scarborough TS | R189: 731036.29
A190: C12 Stations Power Transformers | B190: EST18419_001 | C190: 18419_001 12062 Ellesmere White Abbey MS Repl TR1 5/6.7 MVA 2012 | D190: 362839.92 | I190: EST21348_001 | J190: 21348_001 S13096 SONET: Upgrade OC-3 to OC-12 2012 budget year | K190: 1059311.852 | P190: EST24680_001 | Q190: 24680_001 Feeder Automation of SCNAE5M4 Scarborough TS | R190: 675322.33
B191: EST20647_001 | C191: 20647_001 S12376 Thistletown MS Repl TR1 3/4 MVA 2012 | D191: 292296.438 | I191: EST22806_001 | J191: 22806_001 S13292 Replace MOSCAD RTUs in Etobicoke 2012 | K191: 579289.796 | P191: EST24681_001 | Q191: 24681_001 Feeder Automation of SCNAE5M6 Scarborough TS | R191: 617747.58
B192: EST20675_001 | C192: 20675_001 S12389 Scarborough Golf Club Repl TR1 3/4 MVA 2012 | D192: 352504.604 | I192: EST22842_001 | J192: 22842_001 S13297 2013 Install 5 MS SCADA RTUs 2012 | K192: 341400 | P192: EST24685_001 | Q192: 24685_001 Feeder Automation of SCNAE5M8 Scarborough TS | R192: 462249.26
B193: EST20685_001 | C193: 20685_001 S12391 Thistletown MS - Replace TR2 2012 | D193: 291937.968 | H193: C15 Stations Control & Communicaton Systems Total | K193: 2154380.802 | P193: EST24689_001 | Q193: 24689_001 Feeder Automation of SCNAE5M10 Scarborough TS | R193: 554300.07
A194: C12 Stations Power Transformers Total | D194: 1299578.93 | H194: C16 Downtown Station Load Transfers | I194: EST19349_001 | J194: 19349_001 X12086 A204BN tie to new Carlaw feeder 2012 estimate | K194: 390426.74 | P194: EST24690_001 | Q194: 24690_001 Feeder Automation of SCNAE5M22 Scarborough TS | R194: 403377.17
A195: C13 Stations Switchgear | B195: EST20750_002 | C195: 20750_002 S12416 Porterfield MS Replace 4kV SWGR Planned Capital | D195: 974373.808 | I195: EST19685_001 | J195: 19685_001 X12132 Feeder Tie between W and A273DN 2012 budget estimate | K195: 404109.73 | P195: EST24691_001 | Q195: 24691_001 Feeder Automation of SCNAE5M24 Scarborough TS | R195: 465756.36
B196: EST20427_001 | C196: 20427_001 S12320 Leslie MS: Replace Switchgear | D196: 4082048.106 | I196: EST19686_001 | J196: 19686_001 X12131 Feeder Tie between W and DN 2012 budget estimate | K196: 791138.53 | P196: EST24699_001 | Q196: 24699_001 Feeder Automation of SCNAE5M25 Scarborough TS | R196: 397378.57
B197: EST17705_001 | C197: 17705_001 S13392 Carlaw TS: Load transfer From A6-7E to A10-11E (ICM) | D197: 329578.456 | H197: C16 Downtown Station Load Transfers Total | K197: 1585675 | P197: EST24700_001 | Q197: 24700_001 Feeder Automation of SCNAE5M27 Scarborough TS | R197: 667931.72
B198: EST20877_001 | C198: 20877_001 S12045 Wiltshire TS Replace A3-4W 2012 | D198: 7028747.752 | H198: C17 Bremner Transformer Station | I198: EST22473_X01 | J198: 22473_001 ICM BREMNER TS THESL INVESTMENTS 2013 RC 2820 | K198: 69382982.01 | P198: EST24702_001 | Q198: 24702_001 Feeder Automation of SCNAE5M30 Scarborough TS | R198: 402849.63
B199: EST22025_001 | C199: 22025_001 S12557 Carlaw TS: Commission A10-11E SWG | D199: 1400181.544 | H199: C17 Bremner Transformer Station Total | K199: 69382982.01 | P199: EST24704_001 | Q199: 24704_001 Feeder Automation of SCNAE5M23 Scarborough TS | R199: 348617.65
B200: EST22474_001 | C200: 22474_001 S13248 WiltshireTS A13-14W Feeder Tran | D200: 273163.244 | H200: C18 Hydro One Capital Contributions | I200: EST22463_001 | J200: 22463_001 BREMNER TS HONI CAP CONTRN 2013 RC 2820 | K200: 27000000 | P200: EST24709_001 | Q200: 24709_001 Feeder Automation of SCNAE5M21 Scarborough TS | R200: 593124.93
B201: EST18591_001 | C201: 18591_001 S12048 Strachan TS: Replace A7-8T SWGR 2012 | D201: 341400 | I201: EST24733_001 | J201: 24733_001 S13402 Leaside-Birch Trmsn Reinforcement 2012 | K201: 15278000 | P201: EST24730_001 | Q201: 24730_001 Feeder Automation of SCNAE5M26 Scarborough TS | R201: 606950.58
... 88 more rows

Sheet DATA (hidden)
D1: Toronto Hydro Corporation Consolidated | E1: Toronto Hydro Corporation Consolidated | F1: Toronto Hydro Corporation Consolidated
D2: Jan | E2: Jan | F2: Jan
D3: ICM | E3: ICM | F3: ICM
D4: Working | E4: Working | F4: Working
D5: Total CWIP | E5: Total CWIP | F5: Total CWIP
D6: CWIP_Cum_Net_Conversions | E6: CWIP_Cum_Net_Conversions | F6: CWIP_Cum_Net_Conversions
A7: Include | B7: Estimate | C7: Asset Class | D7: FY12 | E7: FY13 | F7: FY14 | G7: Asset Component | H7: OEB Asset Class | I7: ESTIMATE DESCRIPTION | J7: CATEGORY LISTING | K7: PROJECTS | L7: ASSET TITLE
A8: Y | B8: EST18585_001 | C8: AC2160 | D8: 3777.61595 | E8: 0 | F8: 0 | G8: =VLOOKUP(C8,APP_E!A:C,2,FALSE) -> 2160_O/H Dist Lines And Feeders - Conductors | H8: =VLOOKUP(C8,APP_E!A:C,3,FALSE) -> 1835_Overhead Conductors and Devices | I8: =VLOOKUP(B8,APP_F!A:C,2,FALSE) -> 18585_001 W11385 Northwoods Subdivision - UG DB Rebuild | J8: =INDEX(APP_B!A:A,MATCH(DATA!B8,APP_B!N:N,0)) -> C1 Underground Infrastructure | K8: =INDEX(APP_A!$A$3:$A$24,MATCH(DATA!J8,CATEGORY_LISTING,0)) -> Underground Infrastructure and Cable | L8: =VLOOKUP(C8,APP_E!A:D,4,FALSE) -> 1835_Overhead Conductors and Devices
A9: Y | B9: EST18585_001 | C9: AC2165 | D9: 2746.76405 | E9: 0 | F9: 0 | G9: =VLOOKUP(C9,APP_E!A:C,2,FALSE) -> 2165_O/H Secondary conductors | H9: =VLOOKUP(C9,APP_E!A:C,3,FALSE) -> 1835_Overhead Conductors and Devices | I9: =VLOOKUP(B9,APP_F!A:C,2,FALSE) -> 18585_001 W11385 Northwoods Subdivision - UG DB Rebuild | J9: =INDEX(APP_B!A:A,MATCH(DATA!B9,APP_B!N:N,0)) -> C1 Underground Infrastructure | K9: =INDEX(APP_A!$A$3:$A$24,MATCH(DATA!J9,CATEGORY_LISTING,0)) -> Underground Infrastructure and Cable | L9: =VLOOKUP(C9,APP_E!A:D,4,FALSE) -> 1835_Overhead Conductors and Devices
A10: Y | B10: EST18585_001 | C10: AC2180 | D10: 36934.21 | E10: 0 | F10: 0 | G10: =VLOOKUP(C10,APP_E!A:C,2,FALSE) -> 2180_O/H Dist Lines And Feeders - Switches | H10: =VLOOKUP(C10,APP_E!A:C,3,FALSE) -> 1835_Overhead Conductors and Devices | I10: =VLOOKUP(B10,APP_F!A:C,2,FALSE) -> 18585_001 W11385 Northwoods Subdivision - UG DB Rebuild | J10: =INDEX(APP_B!A:A,MATCH(DATA!B10,APP_B!N:N,0)) -> C1 Underground Infrastructure | K10: =INDEX(APP_A!$A$3:$A$24,MATCH(DATA!J10,CATEGORY_LISTING,0)) -> Underground Infrastructure and Cable | L10: =VLOOKUP(C10,APP_E!A:D,4,FALSE) -> 1835_Overhead Conductors and Devices - Switches
A11: Y | B11: EST18585_001 | C11: AC2240 | D11: 1475681 | E11: 0 | F11: 0 | G11: =VLOOKUP(C11,APP_E!A:C,2,FALSE) -> 2240_U/G Conduit - Duct Bank | H11: =VLOOKUP(C11,APP_E!A:C,3,FALSE) -> 1840_Underground Conduit | I11: =VLOOKUP(B11,APP_F!A:C,2,FALSE) -> 18585_001 W11385 Northwoods Subdivision - UG DB Rebuild | J11: =INDEX(APP_B!A:A,MATCH(DATA!B11,APP_B!N:N,0)) -> C1 Underground Infrastructure | K11: =INDEX(APP_A!$A$3:$A$24,MATCH(DATA!J11,CATEGORY_LISTING,0)) -> Underground Infrastructure and Cable | L11: =VLOOKUP(C11,APP_E!A:D,4,FALSE) -> 1840_Underground Conduit - Duct Bank
A12: Y | B12: EST18585_001 | C12: AC2241 | D12: 49436.55 | E12: 0 | F12: 0 | G12: =VLOOKUP(C12,APP_E!A:C,2,FALSE) -> 2241_U/G Conduit - Vault | H12: =VLOOKUP(C12,APP_E!A:C,3,FALSE) -> 1840_Underground Conduit | I12: =VLOOKUP(B12,APP_F!A:C,2,FALSE) -> 18585_001 W11385 Northwoods Subdivision - UG DB Rebuild | J12: =INDEX(APP_B!A:A,MATCH(DATA!B12,APP_B!N:N,0)) -> C1 Underground Infrastructure | K12: =INDEX(APP_A!$A$3:$A$24,MATCH(DATA!J12,CATEGORY_LISTING,0)) -> Underground Infrastructure and Cable | L12: =VLOOKUP(C12,APP_E!A:D,4,FALSE) -> 1840_Underground Conduit - Vault
A13: Y | B13: EST18585_001 | C13: AC2260 | D13: 652097.5688 | E13: 0 | F13: 0 | G13: =VLOOKUP(C13,APP_E!A:C,2,FALSE) -> 2260_UG Dist Lines-Primary Cable duct (xLPE) | H13: =VLOOKUP(C13,APP_E!A:C,3,FALSE) -> 1845_Underground Conductors and Devices | I13: =VLOOKUP(B13,APP_F!A:C,2,FALSE) -> 18585_001 W11385 Northwoods Subdivision - UG DB Rebuild | J13: =INDEX(APP_B!A:A,MATCH(DATA!B13,APP_B!N:N,0)) -> C1 Underground Infrastructure | K13: =INDEX(APP_A!$A$3:$A$24,MATCH(DATA!J13,CATEGORY_LISTING,0)) -> Underground Infrastructure and Cable | L13: =VLOOKUP(C13,APP_E!A:D,4,FALSE) -> 1845_Underground Conductors and Devices
A14: Y | B14: EST18585_001 | C14: AC2262 | D14: 17643.335 | E14: 0 | F14: 0 | G14: =VLOOKUP(C14,APP_E!A:C,2,FALSE) -> 2260_UG Dist Lines-Primary Cable duct (xLPE) | H14: =VLOOKUP(C14,APP_E!A:C,3,FALSE) -> 1845_Underground Conductors and Devices | I14: =VLOOKUP(B14,APP_F!A:C,2,FALSE) -> 18585_001 W11385 Northwoods Subdivision - UG DB Rebuild | J14: =INDEX(APP_B!A:A,MATCH(DATA!B14,APP_B!N:N,0)) -> C1 Underground Infrastructure | K14: =INDEX(APP_A!$A$3:$A$24,MATCH(DATA!J14,CATEGORY_LISTING,0)) -> Underground Infrastructure and Cable | L14: =VLOOKUP(C14,APP_E!A:D,4,FALSE) -> 1845_Underground Conductors and Devices
A15: Y | B15: EST18585_001 | C15: AC2263 | D15: 35992.3962 | E15: 0 | F15: 0 | G15: =VLOOKUP(C15,APP_E!A:C,2,FALSE) -> 2263_U/G Dist Lines And Feeders-Secondary Cable in duct | H15: =VLOOKUP(C15,APP_E!A:C,3,FALSE) -> 1845_Underground Conductors and Devices | I15: =VLOOKUP(B15,APP_F!A:C,2,FALSE) -> 18585_001 W11385 Northwoods Subdivision - UG DB Rebuild | J15: =INDEX(APP_B!A:A,MATCH(DATA!B15,APP_B!N:N,0)) -> C1 Underground Infrastructure | K15: =INDEX(APP_A!$A$3:$A$24,MATCH(DATA!J15,CATEGORY_LISTING,0)) -> Underground Infrastructure and Cable | L15: =VLOOKUP(C15,APP_E!A:D,4,FALSE) -> 1845_Underground Conductors and Devices
A16: Y | B16: EST18585_001 | C16: AC2400 | D16: 63344.6 | E16: 0 | F16: 0 | G16: =VLOOKUP(C16,APP_E!A:C,2,FALSE) -> 2400_UG Distribution Transformers | H16: =VLOOKUP(C16,APP_E!A:C,3,FALSE) -> 1850_Line Transformers | I16: =VLOOKUP(B16,APP_F!A:C,2,FALSE) -> 18585_001 W11385 Northwoods Subdivision - UG DB Rebuild | J16: =INDEX(APP_B!A:A,MATCH(DATA!B16,APP_B!N:N,0)) -> C1 Underground Infrastructure | K16: =INDEX(APP_A!$A$3:$A$24,MATCH(DATA!J16,CATEGORY_LISTING,0)) -> Underground Infrastructure and Cable | L16: =VLOOKUP(C16,APP_E!A:D,4,FALSE) -> 1850_Line Transformers - UG
A17: Y | B17: EST18585_001 | C17: AC2520 | D17: 152749.29 | E17: 0 | F17: 0 | G17: =VLOOKUP(C17,APP_E!A:C,2,FALSE) -> 2520_Services - Underground - in duct | H17: =VLOOKUP(C17,APP_E!A:C,3,FALSE) -> 1855_Services | I17: =VLOOKUP(B17,APP_F!A:C,2,FALSE) -> 18585_001 W11385 Northwoods Subdivision - UG DB Rebuild | J17: =INDEX(APP_B!A:A,MATCH(DATA!B17,APP_B!N:N,0)) -> C1 Underground Infrastructure | K17: =INDEX(APP_A!$A$3:$A$24,MATCH(DATA!J17,CATEGORY_LISTING,0)) -> Underground Infrastructure and Cable | L17: =VLOOKUP(C17,APP_E!A:D,4,FALSE) -> 1855_Services - UG
A18: Y | B18: EST18719_001 | C18: AC2240 | D18: 1507101.05 | E18: 0 | F18: 0 | G18: =VLOOKUP(C18,APP_E!A:C,2,FALSE) -> 2240_U/G Conduit - Duct Bank | H18: =VLOOKUP(C18,APP_E!A:C,3,FALSE) -> 1840_Underground Conduit | I18: =VLOOKUP(B18,APP_F!A:C,2,FALSE) -> 18719_001 E11438 Old Finch 47M3 UG Reb Ph 1-Civil Civil portion of Old Finch/Littles | J18: =INDEX(APP_B!A:A,MATCH(DATA!B18,APP_B!N:N,0)) -> C1 Underground Infrastructure | K18: =INDEX(APP_A!$A$3:$A$24,MATCH(DATA!J18,CATEGORY_LISTING,0)) -> Underground Infrastructure and Cable | L18: =VLOOKUP(C18,APP_E!A:D,4,FALSE) -> 1840_Underground Conduit - Duct Bank
A19: Y | B19: EST18719_001 | C19: AC2241 | D19: 60284.04 | E19: 0 | F19: 0 | G19: =VLOOKUP(C19,APP_E!A:C,2,FALSE) -> 2241_U/G Conduit - Vault | H19: =VLOOKUP(C19,APP_E!A:C,3,FALSE) -> 1840_Underground Conduit | I19: =VLOOKUP(B19,APP_F!A:C,2,FALSE) -> 18719_001 E11438 Old Finch 47M3 UG Reb Ph 1-Civil Civil portion of Old Finch/Littles | J19: =INDEX(APP_B!A:A,MATCH(DATA!B19,APP_B!N:N,0)) -> C1 Underground Infrastructure | K19: =INDEX(APP_A!$A$3:$A$24,MATCH(DATA!J19,CATEGORY_LISTING,0)) -> Underground Infrastructure and Cable | L19: =VLOOKUP(C19,APP_E!A:D,4,FALSE) -> 1840_Underground Conduit - Vault
A20: Y | B20: EST18719_001 | C20: AC2281 | D20: 199599.19 | E20: 0 | F20: 0 | G20: =VLOOKUP(C20,APP_E!A:C,2,FALSE) -> 2281_UG Dist Lines - Switch installation | H20: =VLOOKUP(C20,APP_E!A:C,3,FALSE) -> 1845_Underground Conductors and Devices | I20: =VLOOKUP(B20,APP_F!A:C,2,FALSE) -> 18719_001 E11438 Old Finch 47M3 UG Reb Ph 1-Civil Civil portion of Old Finch/Littles | J20: =INDEX(APP_B!A:A,MATCH(DATA!B20,APP_B!N:N,0)) -> C1 Underground Infrastructure | K20: =INDEX(APP_A!$A$3:$A$24,MATCH(DATA!J20,CATEGORY_LISTING,0)) -> Underground Infrastructure and Cable | L20: =VLOOKUP(C20,APP_E!A:D,4,FALSE) -> 1845_Underground Conductors and Devices - Switch
A21: Y | B21: EST19622_001 | C21: AC2240 | D21: 0 | E21: 1846460 | F21: 0 | G21: =VLOOKUP(C21,APP_E!A:C,2,FALSE) -> 2240_U/G Conduit - Duct Bank | H21: =VLOOKUP(C21,APP_E!A:C,3,FALSE) -> 1840_Underground Conduit | I21: =VLOOKUP(B21,APP_F!A:C,2,FALSE) -> 19622_001 E12126 Morningview 47M3 UG Ph 1 - Civil Civil portion of Phase 1 | J21: =INDEX(APP_B!A:A,MATCH(DATA!B21,APP_B!N:N,0)) -> C1 Underground Infrastructure | K21: =INDEX(APP_A!$A$3:$A$24,MATCH(DATA!J21,CATEGORY_LISTING,0)) -> Underground Infrastructure and Cable | L21: =VLOOKUP(C21,APP_E!A:D,4,FALSE) -> 1840_Underground Conduit - Duct Bank
A22: Y | B22: EST19623_001 | C22: AC2240 | E22: 0 | F22: 64292.31 | G22: =VLOOKUP(C22,APP_E!A:C,2,FALSE) -> 2240_U/G Conduit - Duct Bank | H22: =VLOOKUP(C22,APP_E!A:C,3,FALSE) -> 1840_Underground Conduit | I22: =VLOOKUP(B22,APP_F!A:C,2,FALSE) -> 19623_001 E12126 Morningview 47M3 UG Ph 1 - Elec Electrical portion of Phase 1 | J22: =INDEX(APP_B!A:A,MATCH(DATA!B22,APP_B!N:N,0)) -> C1 Underground Infrastructure | K22: =INDEX(APP_A!$A$3:$A$24,MATCH(DATA!J22,CATEGORY_LISTING,0)) -> Underground Infrastructure and Cable | L22: =VLOOKUP(C22,APP_E!A:D,4,FALSE) -> 1840_Underground Conduit - Duct Bank
A23: Y | B23: EST19623_001 | C23: AC2260 | E23: 0 | F23: 349270.1822 | G23: =VLOOKUP(C23,APP_E!A:C,2,FALSE) -> 2260_UG Dist Lines-Primary Cable duct (xLPE) | H23: =VLOOKUP(C23,APP_E!A:C,3,FALSE) -> 1845_Underground Conductors and Devices | I23: =VLOOKUP(B23,APP_F!A:C,2,FALSE) -> 19623_001 E12126 Morningview 47M3 UG Ph 1 - Elec Electrical portion of Phase 1 | J23: =INDEX(APP_B!A:A,MATCH(DATA!B23,APP_B!N:N,0)) -> C1 Underground Infrastructure | K23: =INDEX(APP_A!$A$3:$A$24,MATCH(DATA!J23,CATEGORY_LISTING,0)) -> Underground Infrastructure and Cable | L23: =VLOOKUP(C23,APP_E!A:D,4,FALSE) -> 1845_Underground Conductors and Devices
A24: Y | B24: EST19623_001 | C24: AC2262 | E24: 0 | F24: 9449.954 | G24: =VLOOKUP(C24,APP_E!A:C,2,FALSE) -> 2260_UG Dist Lines-Primary Cable duct (xLPE) | H24: =VLOOKUP(C24,APP_E!A:C,3,FALSE) -> 1845_Underground Conductors and Devices | I24: =VLOOKUP(B24,APP_F!A:C,2,FALSE) -> 19623_001 E12126 Morningview 47M3 UG Ph 1 - Elec Electrical portion of Phase 1 | J24: =INDEX(APP_B!A:A,MATCH(DATA!B24,APP_B!N:N,0)) -> C1 Underground Infrastructure | K24: =INDEX(APP_A!$A$3:$A$24,MATCH(DATA!J24,CATEGORY_LISTING,0)) -> Underground Infrastructure and Cable | L24: =VLOOKUP(C24,APP_E!A:D,4,FALSE) -> 1845_Underground Conductors and Devices
A25: Y | B25: EST19623_001 | C25: AC2263 | E25: 0 | F25: 19277.90376 | G25: =VLOOKUP(C25,APP_E!A:C,2,FALSE) -> 2263_U/G Dist Lines And Feeders-Secondary Cable in duct | H25: =VLOOKUP(C25,APP_E!A:C,3,FALSE) -> 1845_Underground Conductors and Devices | I25: =VLOOKUP(B25,APP_F!A:C,2,FALSE) -> 19623_001 E12126 Morningview 47M3 UG Ph 1 - Elec Electrical portion of Phase 1 | J25: =INDEX(APP_B!A:A,MATCH(DATA!B25,APP_B!N:N,0)) -> C1 Underground Infrastructure | K25: =INDEX(APP_A!$A$3:$A$24,MATCH(DATA!J25,CATEGORY_LISTING,0)) -> Underground Infrastructure and Cable | L25: =VLOOKUP(C25,APP_E!A:D,4,FALSE) -> 1845_Underground Conductors and Devices
A26: Y | B26: EST19623_001 | C26: AC2400 | E26: 0 | F26: 21217.39 | G26: =VLOOKUP(C26,APP_E!A:C,2,FALSE) -> 2400_UG Distribution Transformers | H26: =VLOOKUP(C26,APP_E!A:C,3,FALSE) -> 1850_Line Transformers | I26: =VLOOKUP(B26,APP_F!A:C,2,FALSE) -> 19623_001 E12126 Morningview 47M3 UG Ph 1 - Elec Electrical portion of Phase 1 | J26: =INDEX(APP_B!A:A,MATCH(DATA!B26,APP_B!N:N,0)) -> C1 Underground Infrastructure | K26: =INDEX(APP_A!$A$3:$A$24,MATCH(DATA!J26,CATEGORY_LISTING,0)) -> Underground Infrastructure and Cable | L26: =VLOOKUP(C26,APP_E!A:D,4,FALSE) -> 1850_Line Transformers - UG
A27: Y | B27: EST19623_001 | C27: AC2520 | E27: 0 | F27: 179566.33 | G27: =VLOOKUP(C27,APP_E!A:C,2,FALSE) -> 2520_Services - Underground - in duct | H27: =VLOOKUP(C27,APP_E!A:C,3,FALSE) -> 1855_Services | I27: =VLOOKUP(B27,APP_F!A:C,2,FALSE) -> 19623_001 E12126 Morningview 47M3 UG Ph 1 - Elec Electrical portion of Phase 1 | J27: =INDEX(APP_B!A:A,MATCH(DATA!B27,APP_B!N:N,0)) -> C1 Underground Infrastructure | K27: =INDEX(APP_A!$A$3:$A$24,MATCH(DATA!J27,CATEGORY_LISTING,0)) -> Underground Infrastructure and Cable | L27: =VLOOKUP(C27,APP_E!A:D,4,FALSE) -> 1855_Services - UG
A28: Y | B28: EST19626_001 | C28: AC2240 | D28: 0 | E28: 1550329.19 | F28: 0 | G28: =VLOOKUP(C28,APP_E!A:C,2,FALSE) -> 2240_U/G Conduit - Duct Bank | H28: =VLOOKUP(C28,APP_E!A:C,3,FALSE) -> 1840_Underground Conduit | I28: =VLOOKUP(B28,APP_F!A:C,2,FALSE) -> 19626_001 E12127 Morningview 47M3 UG Ph 2 - Civil Civil portion of Phase 2 | J28: =INDEX(APP_B!A:A,MATCH(DATA!B28,APP_B!N:N,0)) -> C1 Underground Infrastructure | K28: =INDEX(APP_A!$A$3:$A$24,MATCH(DATA!J28,CATEGORY_LISTING,0)) -> Underground Infrastructure and Cable | L28: =VLOOKUP(C28,APP_E!A:D,4,FALSE) -> 1840_Underground Conduit - Duct Bank
A29: Y | B29: EST19626_001 | C29: AC2241 | D29: 0 | E29: 76370.9 | F29: 0 | G29: =VLOOKUP(C29,APP_E!A:C,2,FALSE) -> 2241_U/G Conduit - Vault | H29: =VLOOKUP(C29,APP_E!A:C,3,FALSE) -> 1840_Underground Conduit | I29: =VLOOKUP(B29,APP_F!A:C,2,FALSE) -> 19626_001 E12127 Morningview 47M3 UG Ph 2 - Civil Civil portion of Phase 2 | J29: =INDEX(APP_B!A:A,MATCH(DATA!B29,APP_B!N:N,0)) -> C1 Underground Infrastructure | K29: =INDEX(APP_A!$A$3:$A$24,MATCH(DATA!J29,CATEGORY_LISTING,0)) -> Underground Infrastructure and Cable | L29: =VLOOKUP(C29,APP_E!A:D,4,FALSE) -> 1840_Underground Conduit - Vault
A30: Y | B30: EST19627_001 | C30: AC2240 | D30: 0 | E30: 0 | F30: 64292.27 | G30: =VLOOKUP(C30,APP_E!A:C,2,FALSE) -> 2240_U/G Conduit - Duct Bank | H30: =VLOOKUP(C30,APP_E!A:C,3,FALSE) -> 1840_Underground Conduit | I30: =VLOOKUP(B30,APP_F!A:C,2,FALSE) -> 19627_001 E12127 Morningview 47M3 UG Ph 2 - Elec Electrical portion of Phase 2 | J30: =INDEX(APP_B!A:A,MATCH(DATA!B30,APP_B!N:N,0)) -> C1 Underground Infrastructure | K30: =INDEX(APP_A!$A$3:$A$24,MATCH(DATA!J30,CATEGORY_LISTING,0)) -> Underground Infrastructure and Cable | L30: =VLOOKUP(C30,APP_E!A:D,4,FALSE) -> 1840_Underground Conduit - Duct Bank
A31: Y | B31: EST19627_001 | C31: AC2260 | D31: 0 | E31: 0 | F31: 417070.7497 | G31: =VLOOKUP(C31,APP_E!A:C,2,FALSE) -> 2260_UG Dist Lines-Primary Cable duct (xLPE) | H31: =VLOOKUP(C31,APP_E!A:C,3,FALSE) -> 1845_Underground Conductors and Devices | I31: =VLOOKUP(B31,APP_F!A:C,2,FALSE) -> 19627_001 E12127 Morningview 47M3 UG Ph 2 - Elec Electrical portion of Phase 2 | J31: =INDEX(APP_B!A:A,MATCH(DATA!B31,APP_B!N:N,0)) -> C1 Underground Infrastructure | K31: =INDEX(APP_A!$A$3:$A$24,MATCH(DATA!J31,CATEGORY_LISTING,0)) -> Underground Infrastructure and Cable | L31: =VLOOKUP(C31,APP_E!A:D,4,FALSE) -> 1845_Underground Conductors and Devices
A32: Y | B32: EST19627_001 | C32: AC2262 | D32: 0 | E32: 0 | F32: 11284.3855 | G32: =VLOOKUP(C32,APP_E!A:C,2,FALSE) -> 2260_UG Dist Lines-Primary Cable duct (xLPE) | H32: =VLOOKUP(C32,APP_E!A:C,3,FALSE) -> 1845_Underground Conductors and Devices | I32: =VLOOKUP(B32,APP_F!A:C,2,FALSE) -> 19627_001 E12127 Morningview 47M3 UG Ph 2 - Elec Electrical portion of Phase 2 | J32: =INDEX(APP_B!A:A,MATCH(DATA!B32,APP_B!N:N,0)) -> C1 Underground Infrastructure | K32: =INDEX(APP_A!$A$3:$A$24,MATCH(DATA!J32,CATEGORY_LISTING,0)) -> Underground Infrastructure and Cable | L32: =VLOOKUP(C32,APP_E!A:D,4,FALSE) -> 1845_Underground Conductors and Devices
A33: Y | B33: EST19627_001 | C33: AC2263 | D33: 0 | E33: 0 | F33: 23020.13482 | G33: =VLOOKUP(C33,APP_E!A:C,2,FALSE) -> 2263_U/G Dist Lines And Feeders-Secondary Cable in duct | H33: =VLOOKUP(C33,APP_E!A:C,3,FALSE) -> 1845_Underground Conductors and Devices | I33: =VLOOKUP(B33,APP_F!A:C,2,FALSE) -> 19627_001 E12127 Morningview 47M3 UG Ph 2 - Elec Electrical portion of Phase 2 | J33: =INDEX(APP_B!A:A,MATCH(DATA!B33,APP_B!N:N,0)) -> C1 Underground Infrastructure | K33: =INDEX(APP_A!$A$3:$A$24,MATCH(DATA!J33,CATEGORY_LISTING,0)) -> Underground Infrastructure and Cable | L33: =VLOOKUP(C33,APP_E!A:D,4,FALSE) -> 1845_Underground Conductors and Devices
A34: Y | B34: EST19627_001 | C34: AC2400 | D34: 0 | E34: 0 | F34: 21288.03 | G34: =VLOOKUP(C34,APP_E!A:C,2,FALSE) -> 2400_UG Distribution Transformers | H34: =VLOOKUP(C34,APP_E!A:C,3,FALSE) -> 1850_Line Transformers | I34: =VLOOKUP(B34,APP_F!A:C,2,FALSE) -> 19627_001 E12127 Morningview 47M3 UG Ph 2 - Elec Electrical portion of Phase 2 | J34: =INDEX(APP_B!A:A,MATCH(DATA!B34,APP_B!N:N,0)) -> C1 Underground Infrastructure | K34: =INDEX(APP_A!$A$3:$A$24,MATCH(DATA!J34,CATEGORY_LISTING,0)) -> Underground Infrastructure and Cable | L34: =VLOOKUP(C34,APP_E!A:D,4,FALSE) -> 1850_Line Transformers - UG
A35: Y | B35: EST19627_001 | C35: AC2520 | D35: 0 | E35: 0 | F35: 257546.23 | G35: =VLOOKUP(C35,APP_E!A:C,2,FALSE) -> 2520_Services - Underground - in duct | H35: =VLOOKUP(C35,APP_E!A:C,3,FALSE) -> 1855_Services | I35: =VLOOKUP(B35,APP_F!A:C,2,FALSE) -> 19627_001 E12127 Morningview 47M3 UG Ph 2 - Elec Electrical portion of Phase 2 | J35: =INDEX(APP_B!A:A,MATCH(DATA!B35,APP_B!N:N,0)) -> C1 Underground Infrastructure | K35: =INDEX(APP_A!$A$3:$A$24,MATCH(DATA!J35,CATEGORY_LISTING,0)) -> Underground Infrastructure and Cable | L35: =VLOOKUP(C35,APP_E!A:D,4,FALSE) -> 1855_Services - UG
A36: Y | B36: EST19628_001 | C36: AC2240 | D36: 0 | E36: 1887700.83 | F36: 0 | G36: =VLOOKUP(C36,APP_E!A:C,2,FALSE) -> 2240_U/G Conduit - Duct Bank | H36: =VLOOKUP(C36,APP_E!A:C,3,FALSE) -> 1840_Underground Conduit | I36: =VLOOKUP(B36,APP_F!A:C,2,FALSE) -> 19628_001 E12128 Morningview 47M3 UG Ph 3 - Civil Civil portion of Phase 3 | J36: =INDEX(APP_B!A:A,MATCH(DATA!B36,APP_B!N:N,0)) -> C1 Underground Infrastructure | K36: =INDEX(APP_A!$A$3:$A$24,MATCH(DATA!J36,CATEGORY_LISTING,0)) -> Underground Infrastructure and Cable | L36: =VLOOKUP(C36,APP_E!A:D,4,FALSE) -> 1840_Underground Conduit - Duct Bank
A37: Y | B37: EST19628_001 | C37: AC2241 | D37: 0 | E37: 75963.82 | F37: 0 | G37: =VLOOKUP(C37,APP_E!A:C,2,FALSE) -> 2241_U/G Conduit - Vault | H37: =VLOOKUP(C37,APP_E!A:C,3,FALSE) -> 1840_Underground Conduit | I37: =VLOOKUP(B37,APP_F!A:C,2,FALSE) -> 19628_001 E12128 Morningview 47M3 UG Ph 3 - Civil Civil portion of Phase 3 | J37: =INDEX(APP_B!A:A,MATCH(DATA!B37,APP_B!N:N,0)) -> C1 Underground Infrastructure | K37: =INDEX(APP_A!$A$3:$A$24,MATCH(DATA!J37,CATEGORY_LISTING,0)) -> Underground Infrastructure and Cable | L37: =VLOOKUP(C37,APP_E!A:D,4,FALSE) -> 1840_Underground Conduit - Vault
A38: Y | B38: EST19629_001 | C38: AC2240 | E38: 0 | F38: 75114.66 | G38: =VLOOKUP(C38,APP_E!A:C,2,FALSE) -> 2240_U/G Conduit - Duct Bank | H38: =VLOOKUP(C38,APP_E!A:C,3,FALSE) -> 1840_Underground Conduit | I38: =VLOOKUP(B38,APP_F!A:C,2,FALSE) -> 19629_001 E12128 Morningview 47M3 UG Ph 3 - Elec Electrical portion of Phase 3 | J38: =INDEX(APP_B!A:A,MATCH(DATA!B38,APP_B!N:N,0)) -> C1 Underground Infrastructure | K38: =INDEX(APP_A!$A$3:$A$24,MATCH(DATA!J38,CATEGORY_LISTING,0)) -> Underground Infrastructure and Cable | L38: =VLOOKUP(C38,APP_E!A:D,4,FALSE) -> 1840_Underground Conduit - Duct Bank
A39: Y | B39: EST19629_001 | C39: AC2260 | E39: 0 | F39: 431873.1648 | G39: =VLOOKUP(C39,APP_E!A:C,2,FALSE) -> 2260_UG Dist Lines-Primary Cable duct (xLPE) | H39: =VLOOKUP(C39,APP_E!A:C,3,FALSE) -> 1845_Underground Conductors and Devices | I39: =VLOOKUP(B39,APP_F!A:C,2,FALSE) -> 19629_001 E12128 Morningview 47M3 UG Ph 3 - Elec Electrical portion of Phase 3 | J39: =INDEX(APP_B!A:A,MATCH(DATA!B39,APP_B!N:N,0)) -> C1 Underground Infrastructure | K39: =INDEX(APP_A!$A$3:$A$24,MATCH(DATA!J39,CATEGORY_LISTING,0)) -> Underground Infrastructure and Cable | L39: =VLOOKUP(C39,APP_E!A:D,4,FALSE) -> 1845_Underground Conductors and Devices
A40: Y | B40: EST19629_001 | C40: AC2262 | E40: 0 | F40: 11684.87975 | G40: =VLOOKUP(C40,APP_E!A:C,2,FALSE) -> 2260_UG Dist Lines-Primary Cable duct (xLPE) | H40: =VLOOKUP(C40,APP_E!A:C,3,FALSE) -> 1845_Underground Conductors and Devices | I40: =VLOOKUP(B40,APP_F!A:C,2,FALSE) -> 19629_001 E12128 Morningview 47M3 UG Ph 3 - Elec Electrical portion of Phase 3 | J40: =INDEX(APP_B!A:A,MATCH(DATA!B40,APP_B!N:N,0)) -> C1 Underground Infrastructure | K40: =INDEX(APP_A!$A$3:$A$24,MATCH(DATA!J40,CATEGORY_LISTING,0)) -> Underground Infrastructure and Cable | L40: =VLOOKUP(C40,APP_E!A:D,4,FALSE) -> 1845_Underground Conductors and Devices
A41: Y | B41: EST19629_001 | C41: AC2263 | E41: 0 | F41: 23837.15549 | G41: =VLOOKUP(C41,APP_E!A:C,2,FALSE) -> 2263_U/G Dist Lines And Feeders-Secondary Cable in duct | H41: =VLOOKUP(C41,APP_E!A:C,3,FALSE) -> 1845_Underground Conductors and Devices | I41: =VLOOKUP(B41,APP_F!A:C,2,FALSE) -> 19629_001 E12128 Morningview 47M3 UG Ph 3 - Elec Electrical portion of Phase 3 | J41: =INDEX(APP_B!A:A,MATCH(DATA!B41,APP_B!N:N,0)) -> C1 Underground Infrastructure | K41: =INDEX(APP_A!$A$3:$A$24,MATCH(DATA!J41,CATEGORY_LISTING,0)) -> Underground Infrastructure and Cable | L41: =VLOOKUP(C41,APP_E!A:D,4,FALSE) -> 1845_Underground Conductors and Devices
A42: Y | B42: EST19629_001 | C42: AC2400 | E42: 0 | F42: 24779.16 | G42: =VLOOKUP(C42,APP_E!A:C,2,FALSE) -> 2400_UG Distribution Transformers | H42: =VLOOKUP(C42,APP_E!A:C,3,FALSE) -> 1850_Line Transformers | I42: =VLOOKUP(B42,APP_F!A:C,2,FALSE) -> 19629_001 E12128 Morningview 47M3 UG Ph 3 - Elec Electrical portion of Phase 3 | J42: =INDEX(APP_B!A:A,MATCH(DATA!B42,APP_B!N:N,0)) -> C1 Underground Infrastructure | K42: =INDEX(APP_A!$A$3:$A$24,MATCH(DATA!J42,CATEGORY_LISTING,0)) -> Underground Infrastructure and Cable | L42: =VLOOKUP(C42,APP_E!A:D,4,FALSE) -> 1850_Line Transformers - UG
A43: Y | B43: EST19629_001 | C43: AC2520 | E43: 0 | F43: 227212.74 | G43: =VLOOKUP(C43,APP_E!A:C,2,FALSE) -> 2520_Services - Underground - in duct | H43: =VLOOKUP(C43,APP_E!A:C,3,FALSE) -> 1855_Services | I43: =VLOOKUP(B43,APP_F!A:C,2,FALSE) -> 19629_001 E12128 Morningview 47M3 UG Ph 3 - Elec Electrical portion of Phase 3 | J43: =INDEX(APP_B!A:A,MATCH(DATA!B43,APP_B!N:N,0)) -> C1 Underground Infrastructure | K43: =INDEX(APP_A!$A$3:$A$24,MATCH(DATA!J43,CATEGORY_LISTING,0)) -> Underground Infrastructure and Cable | L43: =VLOOKUP(C43,APP_E!A:D,4,FALSE) -> 1855_Services - UG
A44: Y | B44: EST20001_001 | C44: AC2241 | D44: 0 | E44: 273105.26 | F44: 0 | G44: =VLOOKUP(C44,APP_E!A:C,2,FALSE) -> 2241_U/G Conduit - Vault | H44: =VLOOKUP(C44,APP_E!A:C,3,FALSE) -> 1840_Underground Conduit | I44: =VLOOKUP(B44,APP_F!A:C,2,FALSE) -> 20001_001 E12188 435 Markham Road H9M30 UG Rebuild Replacing cables and transformers | J44: =INDEX(APP_B!A:A,MATCH(DATA!B44,APP_B!N:N,0)) -> C1 Underground Infrastructure | K44: =INDEX(APP_A!$A$3:$A$24,MATCH(DATA!J44,CATEGORY_LISTING,0)) -> Underground Infrastructure and Cable | L44: =VLOOKUP(C44,APP_E!A:D,4,FALSE) -> 1840_Underground Conduit - Vault
A45: Y | B45: EST20001_001 | C45: AC2260 | D45: 0 | E45: 26761.01388 | F45: 0 | G45: =VLOOKUP(C45,APP_E!A:C,2,FALSE) -> 2260_UG Dist Lines-Primary Cable duct (xLPE) | H45: =VLOOKUP(C45,APP_E!A:C,3,FALSE) -> 1845_Underground Conductors and Devices | I45: =VLOOKUP(B45,APP_F!A:C,2,FALSE) -> 20001_001 E12188 435 Markham Road H9M30 UG Rebuild Replacing cables and transformers | J45: =INDEX(APP_B!A:A,MATCH(DATA!B45,APP_B!N:N,0)) -> C1 Underground Infrastructure | K45: =INDEX(APP_A!$A$3:$A$24,MATCH(DATA!J45,CATEGORY_LISTING,0)) -> Underground Infrastructure and Cable | L45: =VLOOKUP(C45,APP_E!A:D,4,FALSE) -> 1845_Underground Conductors and Devices
A46: Y | B46: EST20001_001 | C46: AC2262 | D46: 0 | E46: 724.05175 | F46: 0 | G46: =VLOOKUP(C46,APP_E!A:C,2,FALSE) -> 2260_UG Dist Lines-Primary Cable duct (xLPE) | H46: =VLOOKUP(C46,APP_E!A:C,3,FALSE) -> 1845_Underground Conductors and Devices | I46: =VLOOKUP(B46,APP_F!A:C,2,FALSE) -> 20001_001 E12188 435 Markham Road H9M30 UG Rebuild Replacing cables and transformers | J46: =INDEX(APP_B!A:A,MATCH(DATA!B46,APP_B!N:N,0)) -> C1 Underground Infrastructure | K46: =INDEX(APP_A!$A$3:$A$24,MATCH(DATA!J46,CATEGORY_LISTING,0)) -> Underground Infrastructure and Cable | L46: =VLOOKUP(C46,APP_E!A:D,4,FALSE) -> 1845_Underground Conductors and Devices
A47: Y | B47: EST20001_001 | C47: AC2263 | D47: 0 | E47: 1477.06437 | F47: 0 | G47: =VLOOKUP(C47,APP_E!A:C,2,FALSE) -> 2263_U/G Dist Lines And Feeders-Secondary Cable in duct | H47: =VLOOKUP(C47,APP_E!A:C,3,FALSE) -> 1845_Underground Conductors and Devices | I47: =VLOOKUP(B47,APP_F!A:C,2,FALSE) -> 20001_001 E12188 435 Markham Road H9M30 UG Rebuild Replacing cables and transformers | J47: =INDEX(APP_B!A:A,MATCH(DATA!B47,APP_B!N:N,0)) -> C1 Underground Infrastructure | K47: =INDEX(APP_A!$A$3:$A$24,MATCH(DATA!J47,CATEGORY_LISTING,0)) -> Underground Infrastructure and Cable | L47: =VLOOKUP(C47,APP_E!A:D,4,FALSE) -> 1845_Underground Conductors and Devices
A48: Y | B48: EST20001_001 | C48: AC2400 | D48: 0 | E48: 31940.42 | F48: 0 | G48: =VLOOKUP(C48,APP_E!A:C,2,FALSE) -> 2400_UG Distribution Transformers | H48: =VLOOKUP(C48,APP_E!A:C,3,FALSE) -> 1850_Line Transformers | I48: =VLOOKUP(B48,APP_F!A:C,2,FALSE) -> 20001_001 E12188 435 Markham Road H9M30 UG Rebuild Replacing cables and transformers | J48: =INDEX(APP_B!A:A,MATCH(DATA!B48,APP_B!N:N,0)) -> C1 Underground Infrastructure | K48: =INDEX(APP_A!$A$3:$A$24,MATCH(DATA!J48,CATEGORY_LISTING,0)) -> Underground Infrastructure and Cable | L48: =VLOOKUP(C48,APP_E!A:D,4,FALSE) -> 1850_Line Transformers - UG
A49: Y | B49: EST20043_001 | C49: AC2240 | D49: 1254044.19 | E49: 0 | F49: 0 | G49: =VLOOKUP(C49,APP_E!A:C,2,FALSE) -> 2240_U/G Conduit - Duct Bank | H49: =VLOOKUP(C49,APP_E!A:C,3,FALSE) -> 1840_Underground Conduit | I49: =VLOOKUP(B49,APP_F!A:C,2,FALSE) -> 20043_001 E12206 Fenn/Foursome/Danville 80M29 UG Civil portion of project | J49: =INDEX(APP_B!A:A,MATCH(DATA!B49,APP_B!N:N,0)) -> C1 Underground Infrastructure | K49: =INDEX(APP_A!$A$3:$A$24,MATCH(DATA!J49,CATEGORY_LISTING,0)) -> Underground Infrastructure and Cable | L49: =VLOOKUP(C49,APP_E!A:D,4,FALSE) -> 1840_Underground Conduit - Duct Bank
A50: Y | B50: EST20043_001 | C50: AC2241 | D50: 29858.2 | E50: 0 | F50: 0 | G50: =VLOOKUP(C50,APP_E!A:C,2,FALSE) -> 2241_U/G Conduit - Vault | H50: =VLOOKUP(C50,APP_E!A:C,3,FALSE) -> 1840_Underground Conduit | I50: =VLOOKUP(B50,APP_F!A:C,2,FALSE) -> 20043_001 E12206 Fenn/Foursome/Danville 80M29 UG Civil portion of project | J50: =INDEX(APP_B!A:A,MATCH(DATA!B50,APP_B!N:N,0)) -> C1 Underground Infrastructure | K50: =INDEX(APP_A!$A$3:$A$24,MATCH(DATA!J50,CATEGORY_LISTING,0)) -> Underground Infrastructure and Cable | L50: =VLOOKUP(C50,APP_E!A:D,4,FALSE) -> 1840_Underground Conduit - Vault
A51: Y | B51: EST20044_001 | C51: AC2160 | D51: 0 | E51: 8448.60324 | F51: 0 | G51: =VLOOKUP(C51,APP_E!A:C,2,FALSE) -> 2160_O/H Dist Lines And Feeders - Conductors | H51: =VLOOKUP(C51,APP_E!A:C,3,FALSE) -> 1835_Overhead Conductors and Devices | I51: =VLOOKUP(B51,APP_F!A:C,2,FALSE) -> 20044_001 E12227 Fenn/Foursome/Danville 80M29 UG Electrical portion of project | J51: =INDEX(APP_B!A:A,MATCH(DATA!B51,APP_B!N:N,0)) -> C1 Underground Infrastructure | K51: =INDEX(APP_A!$A$3:$A$24,MATCH(DATA!J51,CATEGORY_LISTING,0)) -> Underground Infrastructure and Cable | L51: =VLOOKUP(C51,APP_E!A:D,4,FALSE) -> 1835_Overhead Conductors and Devices
A52: Y | B52: EST20044_001 | C52: AC2165 | D52: 0 | E52: 6143.10676 | F52: 0 | G52: =VLOOKUP(C52,APP_E!A:C,2,FALSE) -> 2165_O/H Secondary conductors | H52: =VLOOKUP(C52,APP_E!A:C,3,FALSE) -> 1835_Overhead Conductors and Devices | I52: =VLOOKUP(B52,APP_F!A:C,2,FALSE) -> 20044_001 E12227 Fenn/Foursome/Danville 80M29 UG Electrical portion of project | J52: =INDEX(APP_B!A:A,MATCH(DATA!B52,APP_B!N:N,0)) -> C1 Underground Infrastructure | K52: =INDEX(APP_A!$A$3:$A$24,MATCH(DATA!J52,CATEGORY_LISTING,0)) -> Underground Infrastructure and Cable | L52: =VLOOKUP(C52,APP_E!A:D,4,FALSE) -> 1835_Overhead Conductors and Devices
A53: Y | B53: EST20044_001 | C53: AC2180 | D53: 0 | E53: 1909.89 | F53: 0 | G53: =VLOOKUP(C53,APP_E!A:C,2,FALSE) -> 2180_O/H Dist Lines And Feeders - Switches | H53: =VLOOKUP(C53,APP_E!A:C,3,FALSE) -> 1835_Overhead Conductors and Devices | I53: =VLOOKUP(B53,APP_F!A:C,2,FALSE) -> 20044_001 E12227 Fenn/Foursome/Danville 80M29 UG Electrical portion of project | J53: =INDEX(APP_B!A:A,MATCH(DATA!B53,APP_B!N:N,0)) -> C1 Underground Infrastructure | K53: =INDEX(APP_A!$A$3:$A$24,MATCH(DATA!J53,CATEGORY_LISTING,0)) -> Underground Infrastructure and Cable | L53: =VLOOKUP(C53,APP_E!A:D,4,FALSE) -> 1835_Overhead Conductors and Devices - Switches
A54: Y | B54: EST20044_001 | C54: AC2241 | D54: 0 | E54: 25716.92 | F54: 0 | G54: =VLOOKUP(C54,APP_E!A:C,2,FALSE) -> 2241_U/G Conduit - Vault | H54: =VLOOKUP(C54,APP_E!A:C,3,FALSE) -> 1840_Underground Conduit | I54: =VLOOKUP(B54,APP_F!A:C,2,FALSE) -> 20044_001 E12227 Fenn/Foursome/Danville 80M29 UG Electrical portion of project | J54: =INDEX(APP_B!A:A,MATCH(DATA!B54,APP_B!N:N,0)) -> C1 Underground Infrastructure | K54: =INDEX(APP_A!$A$3:$A$24,MATCH(DATA!J54,CATEGORY_LISTING,0)) -> Underground Infrastructure and Cable | L54: =VLOOKUP(C54,APP_E!A:D,4,FALSE) -> 1840_Underground Conduit - Vault
A55: Y | B55: EST20044_001 | C55: AC2260 | D55: 0 | E55: 224422.6673 | F55: 0 | G55: =VLOOKUP(C55,APP_E!A:C,2,FALSE) -> 2260_UG Dist Lines-Primary Cable duct (xLPE) | H55: =VLOOKUP(C55,APP_E!A:C,3,FALSE) -> 1845_Underground Conductors and Devices | I55: =VLOOKUP(B55,APP_F!A:C,2,FALSE) -> 20044_001 E12227 Fenn/Foursome/Danville 80M29 UG Electrical portion of project | J55: =INDEX(APP_B!A:A,MATCH(DATA!B55,APP_B!N:N,0)) -> C1 Underground Infrastructure | K55: =INDEX(APP_A!$A$3:$A$24,MATCH(DATA!J55,CATEGORY_LISTING,0)) -> Underground Infrastructure and Cable | L55: =VLOOKUP(C55,APP_E!A:D,4,FALSE) -> 1845_Underground Conductors and Devices
A56: Y | B56: EST20044_001 | C56: AC2262 | D56: 0 | E56: 6072.0405 | F56: 0 | G56: =VLOOKUP(C56,APP_E!A:C,2,FALSE) -> 2260_UG Dist Lines-Primary Cable duct (xLPE) | H56: =VLOOKUP(C56,APP_E!A:C,3,FALSE) -> 1845_Underground Conductors and Devices | I56: =VLOOKUP(B56,APP_F!A:C,2,FALSE) -> 20044_001 E12227 Fenn/Foursome/Danville 80M29 UG Electrical portion of project | J56: =INDEX(APP_B!A:A,MATCH(DATA!B56,APP_B!N:N,0)) -> C1 Underground Infrastructure | K56: =INDEX(APP_A!$A$3:$A$24,MATCH(DATA!J56,CATEGORY_LISTING,0)) -> Underground Infrastructure and Cable | L56: =VLOOKUP(C56,APP_E!A:D,4,FALSE) -> 1845_Underground Conductors and Devices
A57: Y | B57: EST20044_001 | C57: AC2263 | D57: 0 | E57: 12386.96222 | F57: 0 | G57: =VLOOKUP(C57,APP_E!A:C,2,FALSE) -> 2263_U/G Dist Lines And Feeders-Secondary Cable in duct | H57: =VLOOKUP(C57,APP_E!A:C,3,FALSE) -> 1845_Underground Conductors and Devices | I57: =VLOOKUP(B57,APP_F!A:C,2,FALSE) -> 20044_001 E12227 Fenn/Foursome/Danville 80M29 UG Electrical portion of project | J57: =INDEX(APP_B!A:A,MATCH(DATA!B57,APP_B!N:N,0)) -> C1 Underground Infrastructure | K57: =INDEX(APP_A!$A$3:$A$24,MATCH(DATA!J57,CATEGORY_LISTING,0)) -> Underground Infrastructure and Cable | L57: =VLOOKUP(C57,APP_E!A:D,4,FALSE) -> 1845_Underground Conductors and Devices
A58: Y | B58: EST20044_001 | C58: AC2400 | D58: 0 | E58: 147164.47 | F58: 0 | G58: =VLOOKUP(C58,APP_E!A:C,2,FALSE) -> 2400_UG Distribution Transformers | H58: =VLOOKUP(C58,APP_E!A:C,3,FALSE) -> 1850_Line Transformers | I58: =VLOOKUP(B58,APP_F!A:C,2,FALSE) -> 20044_001 E12227 Fenn/Foursome/Danville 80M29 UG Electrical portion of project | J58: =INDEX(APP_B!A:A,MATCH(DATA!B58,APP_B!N:N,0)) -> C1 Underground Infrastructure | K58: =INDEX(APP_A!$A$3:$A$24,MATCH(DATA!J58,CATEGORY_LISTING,0)) -> Underground Infrastructure and Cable | L58: =VLOOKUP(C58,APP_E!A:D,4,FALSE) -> 1850_Line Transformers - UG
A59: Y | B59: EST20169_001 | C59: AC2240 | E59: 0 | F59: 712530.92 | G59: =VLOOKUP(C59,APP_E!A:C,2,FALSE) -> 2240_U/G Conduit - Duct Bank | H59: =VLOOKUP(C59,APP_E!A:C,3,FALSE) -> 1840_Underground Conduit | I59: =VLOOKUP(B59,APP_F!A:C,2,FALSE) -> 20169_001 E12234 Rebuild 3-Phase Neilson Civil portion of project | J59: =INDEX(APP_B!A:A,MATCH(DATA!B59,APP_B!N:N,0)) -> C1 Underground Infrastructure | K59: =INDEX(APP_A!$A$3:$A$24,MATCH(DATA!J59,CATEGORY_LISTING,0)) -> Underground Infrastructure and Cable | L59: =VLOOKUP(C59,APP_E!A:D,4,FALSE) -> 1840_Underground Conduit - Duct Bank
A60: Y | B60: EST20170_001 | C60: AC2240 | E60: 0 | F60: 13726.91 | G60: =VLOOKUP(C60,APP_E!A:C,2,FALSE) -> 2240_U/G Conduit - Duct Bank | H60: =VLOOKUP(C60,APP_E!A:C,3,FALSE) -> 1840_Underground Conduit | I60: =VLOOKUP(B60,APP_F!A:C,2,FALSE) -> 20170_001 E12235 Rebuild 3-Ph Neilson Industrial Electrical portion of project | J60: =INDEX(APP_B!A:A,MATCH(DATA!B60,APP_B!N:N,0)) -> C1 Underground Infrastructure | K60: =INDEX(APP_A!$A$3:$A$24,MATCH(DATA!J60,CATEGORY_LISTING,0)) -> Underground Infrastructure and Cable | L60: =VLOOKUP(C60,APP_E!A:D,4,FALSE) -> 1840_Underground Conduit - Duct Bank
A61: Y | B61: EST20170_001 | C61: AC2260 | E61: 0 | F61: 255471.0687 | G61: =VLOOKUP(C61,APP_E!A:C,2,FALSE) -> 2260_UG Dist Lines-Primary Cable duct (xLPE) | H61: =VLOOKUP(C61,APP_E!A:C,3,FALSE) -> 1845_Underground Conductors and Devices | I61: =VLOOKUP(B61,APP_F!A:C,2,FALSE) -> 20170_001 E12235 Rebuild 3-Ph Neilson Industrial Electrical portion of project | J61: =INDEX(APP_B!A:A,MATCH(DATA!B61,APP_B!N:N,0)) -> C1 Underground Infrastructure | K61: =INDEX(APP_A!$A$3:$A$24,MATCH(DATA!J61,CATEGORY_LISTING,0)) -> Underground Infrastructure and Cable | L61: =VLOOKUP(C61,APP_E!A:D,4,FALSE) -> 1845_Underground Conductors and Devices
A62: Y | B62: EST20170_001 | C62: AC2262 | E62: 0 | F62: 6912.09425 | G62: =VLOOKUP(C62,APP_E!A:C,2,FALSE) -> 2260_UG Dist Lines-Primary Cable duct (xLPE) | H62: =VLOOKUP(C62,APP_E!A:C,3,FALSE) -> 1845_Underground Conductors and Devices | I62: =VLOOKUP(B62,APP_F!A:C,2,FALSE) -> 20170_001 E12235 Rebuild 3-Ph Neilson Industrial Electrical portion of project | J62: =INDEX(APP_B!A:A,MATCH(DATA!B62,APP_B!N:N,0)) -> C1 Underground Infrastructure | K62: =INDEX(APP_A!$A$3:$A$24,MATCH(DATA!J62,CATEGORY_LISTING,0)) -> Underground Infrastructure and Cable | L62: =VLOOKUP(C62,APP_E!A:D,4,FALSE) -> 1845_Underground Conductors and Devices
A63: Y | B63: EST20170_001 | C63: AC2263 | E63: 0 | F63: 14100.67707 | G63: =VLOOKUP(C63,APP_E!A:C,2,FALSE) -> 2263_U/G Dist Lines And Feeders-Secondary Cable in duct | H63: =VLOOKUP(C63,APP_E!A:C,3,FALSE) -> 1845_Underground Conductors and Devices | I63: =VLOOKUP(B63,APP_F!A:C,2,FALSE) -> 20170_001 E12235 Rebuild 3-Ph Neilson Industrial Electrical portion of project | J63: =INDEX(APP_B!A:A,MATCH(DATA!B63,APP_B!N:N,0)) -> C1 Underground Infrastructure | K63: =INDEX(APP_A!$A$3:$A$24,MATCH(DATA!J63,CATEGORY_LISTING,0)) -> Underground Infrastructure and Cable | L63: =VLOOKUP(C63,APP_E!A:D,4,FALSE) -> 1845_Underground Conductors and Devices
A64: Y | B64: EST21110_001 | C64: AC2120 | E64: 0 | F64: 235.969 | G64: =VLOOKUP(C64,APP_E!A:C,2,FALSE) -> 2121_O/H Dist Lines And Feeders - Wooden Poles | H64: =VLOOKUP(C64,APP_E!A:C,3,FALSE) -> 1830_Poles Towers and Fixtures | I64: =VLOOKUP(B64,APP_F!A:C,2,FALSE) -> 21110_001 E13058 NY51M24 UG Rebuild North of Finch E13058 Off Don Mills Road - Electrical | J64: =INDEX(APP_B!A:A,MATCH(DATA!B64,APP_B!N:N,0)) -> C1 Underground Infrastructure | K64: =INDEX(APP_A!$A$3:$A$24,MATCH(DATA!J64,CATEGORY_LISTING,0)) -> Underground Infrastructure and Cable | L64: =VLOOKUP(C64,APP_E!A:D,4,FALSE) -> 1830_Poles Towers and Fixtures
A65: Y | B65: EST21110_001 | C65: AC2121 | E65: 0 | F65: 15495.471 | G65: =VLOOKUP(C65,APP_E!A:C,2,FALSE) -> 2121_O/H Dist Lines And Feeders - Wooden Poles | H65: =VLOOKUP(C65,APP_E!A:C,3,FALSE) -> 1830_Poles Towers and Fixtures | I65: =VLOOKUP(B65,APP_F!A:C,2,FALSE) -> 21110_001 E13058 NY51M24 UG Rebuild North of Finch E13058 Off Don Mills Road - Electrical | J65: =INDEX(APP_B!A:A,MATCH(DATA!B65,APP_B!N:N,0)) -> C1 Underground Infrastructure | K65: =INDEX(APP_A!$A$3:$A$24,MATCH(DATA!J65,CATEGORY_LISTING,0)) -> Underground Infrastructure and Cable | L65: =VLOOKUP(C65,APP_E!A:D,4,FALSE) -> 1830_Poles Towers and Fixtures
A66: Y | B66: EST21110_001 | C66: AC2160 | E66: 0 | F66: 4816.91501 | G66: =VLOOKUP(C66,APP_E!A:C,2,FALSE) -> 2160_O/H Dist Lines And Feeders - Conductors | H66: =VLOOKUP(C66,APP_E!A:C,3,FALSE) -> 1835_Overhead Conductors and Devices | I66: =VLOOKUP(B66,APP_F!A:C,2,FALSE) -> 21110_001 E13058 NY51M24 UG Rebuild North of Finch E13058 Off Don Mills Road - Electrical | J66: =INDEX(APP_B!A:A,MATCH(DATA!B66,APP_B!N:N,0)) -> C1 Underground Infrastructure | K66: =INDEX(APP_A!$A$3:$A$24,MATCH(DATA!J66,CATEGORY_LISTING,0)) -> Underground Infrastructure and Cable | L66: =VLOOKUP(C66,APP_E!A:D,4,FALSE) -> 1835_Overhead Conductors and Devices
A67: Y | B67: EST21110_001 | C67: AC2165 | E67: 0 | F67: 3502.45499 | G67: =VLOOKUP(C67,APP_E!A:C,2,FALSE) -> 2165_O/H Secondary conductors | H67: =VLOOKUP(C67,APP_E!A:C,3,FALSE) -> 1835_Overhead Conductors and Devices | I67: =VLOOKUP(B67,APP_F!A:C,2,FALSE) -> 21110_001 E13058 NY51M24 UG Rebuild North of Finch E13058 Off Don Mills Road - Electrical | J67: =INDEX(APP_B!A:A,MATCH(DATA!B67,APP_B!N:N,0)) -> C1 Underground Infrastructure | K67: =INDEX(APP_A!$A$3:$A$24,MATCH(DATA!J67,CATEGORY_LISTING,0)) -> Underground Infrastructure and Cable | L67: =VLOOKUP(C67,APP_E!A:D,4,FALSE) -> 1835_Overhead Conductors and Devices
A68: Y | B68: EST21110_001 | C68: AC2260 | E68: 0 | F68: 129280.187 | G68: =VLOOKUP(C68,APP_E!A:C,2,FALSE) -> 2260_UG Dist Lines-Primary Cable duct (xLPE) | H68: =VLOOKUP(C68,APP_E!A:C,3,FALSE) -> 1845_Underground Conductors and Devices | I68: =VLOOKUP(B68,APP_F!A:C,2,FALSE) -> 21110_001 E13058 NY51M24 UG Rebuild North of Finch E13058 Off Don Mills Road - Electrical | J68: =INDEX(APP_B!A:A,MATCH(DATA!B68,APP_B!N:N,0)) -> C1 Underground Infrastructure | K68: =INDEX(APP_A!$A$3:$A$24,MATCH(DATA!J68,CATEGORY_LISTING,0)) -> Underground Infrastructure and Cable | L68: =VLOOKUP(C68,APP_E!A:D,4,FALSE) -> 1845_Underground Conductors and Devices
A69: Y | B69: EST21110_001 | C69: AC2262 | E69: 0 | F69: 3497.844 | G69: =VLOOKUP(C69,APP_E!A:C,2,FALSE) -> 2260_UG Dist Lines-Primary Cable duct (xLPE) | H69: =VLOOKUP(C69,APP_E!A:C,3,FALSE) -> 1845_Underground Conductors and Devices | I69: =VLOOKUP(B69,APP_F!A:C,2,FALSE) -> 21110_001 E13058 NY51M24 UG Rebuild North of Finch E13058 Off Don Mills Road - Electrical | J69: =INDEX(APP_B!A:A,MATCH(DATA!B69,APP_B!N:N,0)) -> C1 Underground Infrastructure | K69: =INDEX(APP_A!$A$3:$A$24,MATCH(DATA!J69,CATEGORY_LISTING,0)) -> Underground Infrastructure and Cable | L69: =VLOOKUP(C69,APP_E!A:D,4,FALSE) -> 1845_Underground Conductors and Devices
A70: Y | B70: EST21110_001 | C70: AC2263 | E70: 0 | F70: 7135.59896 | G70: =VLOOKUP(C70,APP_E!A:C,2,FALSE) -> 2263_U/G Dist Lines And Feeders-Secondary Cable in duct | H70: =VLOOKUP(C70,APP_E!A:C,3,FALSE) -> 1845_Underground Conductors and Devices | I70: =VLOOKUP(B70,APP_F!A:C,2,FALSE) -> 21110_001 E13058 NY51M24 UG Rebuild North of Finch E13058 Off Don Mills Road - Electrical | J70: =INDEX(APP_B!A:A,MATCH(DATA!B70,APP_B!N:N,0)) -> C1 Underground Infrastructure | K70: =INDEX(APP_A!$A$3:$A$24,MATCH(DATA!J70,CATEGORY_LISTING,0)) -> Underground Infrastructure and Cable | L70: =VLOOKUP(C70,APP_E!A:D,4,FALSE) -> 1845_Underground Conductors and Devices
A71: Y | B71: EST21139_001 | C71: AC2240 | D71: 0 | E71: 170211.19 | F71: 0 | G71: =VLOOKUP(C71,APP_E!A:C,2,FALSE) -> 2240_U/G Conduit - Duct Bank | H71: =VLOOKUP(C71,APP_E!A:C,3,FALSE) -> 1840_Underground Conduit | I71: =VLOOKUP(B71,APP_F!A:C,2,FALSE) -> 21139_001 E13060 Galloway UG Rebuild Civil SCNA47M14 | J71: =INDEX(APP_B!A:A,MATCH(DATA!B71,APP_B!N:N,0)) -> C1 Underground Infrastructure | K71: =INDEX(APP_A!$A$3:$A$24,MATCH(DATA!J71,CATEGORY_LISTING,0)) -> Underground Infrastructure and Cable | L71: =VLOOKUP(C71,APP_E!A:D,4,FALSE) -> 1840_Underground Conduit - Duct Bank
A72: Y | B72: EST21139_001 | C72: AC2241 | D72: 0 | E72: 3790.1 | F72: 0 | G72: =VLOOKUP(C72,APP_E!A:C,2,FALSE) -> 2241_U/G Conduit - Vault | H72: =VLOOKUP(C72,APP_E!A:C,3,FALSE) -> 1840_Underground Conduit | I72: =VLOOKUP(B72,APP_F!A:C,2,FALSE) -> 21139_001 E13060 Galloway UG Rebuild Civil SCNA47M14 | J72: =INDEX(APP_B!A:A,MATCH(DATA!B72,APP_B!N:N,0)) -> C1 Underground Infrastructure | K72: =INDEX(APP_A!$A$3:$A$24,MATCH(DATA!J72,CATEGORY_LISTING,0)) -> Underground Infrastructure and Cable | L72: =VLOOKUP(C72,APP_E!A:D,4,FALSE) -> 1840_Underground Conduit - Vault
A73: Y | B73: EST21139_001 | C73: AC2260 | D73: 0 | E73: 23985.51112 | F73: 0 | G73: =VLOOKUP(C73,APP_E!A:C,2,FALSE) -> 2260_UG Dist Lines-Primary Cable duct (xLPE) | H73: =VLOOKUP(C73,APP_E!A:C,3,FALSE) -> 1845_Underground Conductors and Devices | I73: =VLOOKUP(B73,APP_F!A:C,2,FALSE) -> 21139_001 E13060 Galloway UG Rebuild Civil SCNA47M14 | J73: =INDEX(APP_B!A:A,MATCH(DATA!B73,APP_B!N:N,0)) -> C1 Underground Infrastructure | K73: =INDEX(APP_A!$A$3:$A$24,MATCH(DATA!J73,CATEGORY_LISTING,0)) -> Underground Infrastructure and Cable | L73: =VLOOKUP(C73,APP_E!A:D,4,FALSE) -> 1845_Underground Conductors and Devices
A74: Y | B74: EST21139_001 | C74: AC2262 | D74: 0 | E74: 648.962 | F74: 0 | G74: =VLOOKUP(C74,APP_E!A:C,2,FALSE) -> 2260_UG Dist Lines-Primary Cable duct (xLPE) | H74: =VLOOKUP(C74,APP_E!A:C,3,FALSE) -> 1845_Underground Conductors and Devices | I74: =VLOOKUP(B74,APP_F!A:C,2,FALSE) -> 21139_001 E13060 Galloway UG Rebuild Civil SCNA47M14 | J74: =INDEX(APP_B!A:A,MATCH(DATA!B74,APP_B!N:N,0)) -> C1 Underground Infrastructure | K74: =INDEX(APP_A!$A$3:$A$24,MATCH(DATA!J74,CATEGORY_LISTING,0)) -> Underground Infrastructure and Cable | L74: =VLOOKUP(C74,APP_E!A:D,4,FALSE) -> 1845_Underground Conductors and Devices
A75: Y | B75: EST21139_001 | C75: AC2263 | D75: 0 | E75: 1323.87688 | F75: 0 | G75: =VLOOKUP(C75,APP_E!A:C,2,FALSE) -> 2263_U/G Dist Lines And Feeders-Secondary Cable in duct | H75: =VLOOKUP(C75,APP_E!A:C,3,FALSE) -> 1845_Underground Conductors and Devices | I75: =VLOOKUP(B75,APP_F!A:C,2,FALSE) -> 21139_001 E13060 Galloway UG Rebuild Civil SCNA47M14 | J75: =INDEX(APP_B!A:A,MATCH(DATA!B75,APP_B!N:N,0)) -> C1 Underground Infrastructure | K75: =INDEX(APP_A!$A$3:$A$24,MATCH(DATA!J75,CATEGORY_LISTING,0)) -> Underground Infrastructure and Cable | L75: =VLOOKUP(C75,APP_E!A:D,4,FALSE) -> 1845_Underground Conductors and Devices
A76: Y | B76: EST21141_001 | C76: AC2160 | D76: 0 | E76: 4812.67551 | F76: 0 | G76: =VLOOKUP(C76,APP_E!A:C,2,FALSE) -> 2160_O/H Dist Lines And Feeders - Conductors | H76: =VLOOKUP(C76,APP_E!A:C,3,FALSE) -> 1835_Overhead Conductors and Devices | I76: =VLOOKUP(B76,APP_F!A:C,2,FALSE) -> 21141_001 E13061 Galloway UG Rebuild Electrical SCNA47M14 | J76: =INDEX(APP_B!A:A,MATCH(DATA!B76,APP_B!N:N,0)) -> C1 Underground Infrastructure | K76: =INDEX(APP_A!$A$3:$A$24,MATCH(DATA!J76,CATEGORY_LISTING,0)) -> Underground Infrastructure and Cable | L76: =VLOOKUP(C76,APP_E!A:D,4,FALSE) -> 1835_Overhead Conductors and Devices
A77: Y | B77: EST21141_001 | C77: AC2165 | D77: 0 | E77: 3499.37449 | F77: 0 | G77: =VLOOKUP(C77,APP_E!A:C,2,FALSE) -> 2165_O/H Secondary conductors | H77: =VLOOKUP(C77,APP_E!A:C,3,FALSE) -> 1835_Overhead Conductors and Devices | I77: =VLOOKUP(B77,APP_F!A:C,2,FALSE) -> 21141_001 E13061 Galloway UG Rebuild Electrical SCNA47M14 | J77: =INDEX(APP_B!A:A,MATCH(DATA!B77,APP_B!N:N,0)) -> C1 Underground Infrastructure | K77: =INDEX(APP_A!$A$3:$A$24,MATCH(DATA!J77,CATEGORY_LISTING,0)) -> Underground Infrastructure and Cable | L77: =VLOOKUP(C77,APP_E!A:D,4,FALSE) -> 1835_Overhead Conductors and Devices
A78: Y | B78: EST21141_001 | C78: AC2180 | D78: 0 | E78: 8855.37 | F78: 0 | G78: =VLOOKUP(C78,APP_E!A:C,2,FALSE) -> 2180_O/H Dist Lines And Feeders - Switches | H78: =VLOOKUP(C78,APP_E!A:C,3,FALSE) -> 1835_Overhead Conductors and Devices | I78: =VLOOKUP(B78,APP_F!A:C,2,FALSE) -> 21141_001 E13061 Galloway UG Rebuild Electrical SCNA47M14 | J78: =INDEX(APP_B!A:A,MATCH(DATA!B78,APP_B!N:N,0)) -> C1 Underground Infrastructure | K78: =INDEX(APP_A!$A$3:$A$24,MATCH(DATA!J78,CATEGORY_LISTING,0)) -> Underground Infrastructure and Cable | L78: =VLOOKUP(C78,APP_E!A:D,4,FALSE) -> 1835_Overhead Conductors and Devices - Switches
A79: Y | B79: EST21141_001 | C79: AC2241 | D79: 0 | E79: 3700.36 | F79: 0 | G79: =VLOOKUP(C79,APP_E!A:C,2,FALSE) -> 2241_U/G Conduit - Vault | H79: =VLOOKUP(C79,APP_E!A:C,3,FALSE) -> 1840_Underground Conduit | I79: =VLOOKUP(B79,APP_F!A:C,2,FALSE) -> 21141_001 E13061 Galloway UG Rebuild Electrical SCNA47M14 | J79: =INDEX(APP_B!A:A,MATCH(DATA!B79,APP_B!N:N,0)) -> C1 Underground Infrastructure | K79: =INDEX(APP_A!$A$3:$A$24,MATCH(DATA!J79,CATEGORY_LISTING,0)) -> Underground Infrastructure and Cable | L79: =VLOOKUP(C79,APP_E!A:D,4,FALSE) -> 1840_Underground Conduit - Vault
A80: Y | B80: EST21141_001 | C80: AC2260 | D80: 0 | E80: 122551.0834 | F80: 0 | G80: =VLOOKUP(C80,APP_E!A:C,2,FALSE) -> 2260_UG Dist Lines-Primary Cable duct (xLPE) | H80: =VLOOKUP(C80,APP_E!A:C,3,FALSE) -> 1845_Underground Conductors and Devices | I80: =VLOOKUP(B80,APP_F!A:C,2,FALSE) -> 21141_001 E13061 Galloway UG Rebuild Electrical SCNA47M14 | J80: =INDEX(APP_B!A:A,MATCH(DATA!B80,APP_B!N:N,0)) -> C1 Underground Infrastructure | K80: =INDEX(APP_A!$A$3:$A$24,MATCH(DATA!J80,CATEGORY_LISTING,0)) -> Underground Infrastructure and Cable | L80: =VLOOKUP(C80,APP_E!A:D,4,FALSE) -> 1845_Underground Conductors and Devices
A81: Y | B81: EST21141_001 | C81: AC2262 | D81: 0 | E81: 3315.77625 | F81: 0 | G81: =VLOOKUP(C81,APP_E!A:C,2,FALSE) -> 2260_UG Dist Lines-Primary Cable duct (xLPE) | H81: =VLOOKUP(C81,APP_E!A:C,3,FALSE) -> 1845_Underground Conductors and Devices | I81: =VLOOKUP(B81,APP_F!A:C,2,FALSE) -> 21141_001 E13061 Galloway UG Rebuild Electrical SCNA47M14 | J81: =INDEX(APP_B!A:A,MATCH(DATA!B81,APP_B!N:N,0)) -> C1 Underground Infrastructure | K81: =INDEX(APP_A!$A$3:$A$24,MATCH(DATA!J81,CATEGORY_LISTING,0)) -> Underground Infrastructure and Cable | L81: =VLOOKUP(C81,APP_E!A:D,4,FALSE) -> 1845_Underground Conductors and Devices
A82: Y | B82: EST21141_001 | C82: AC2263 | D82: 0 | E82: 6764.18035 | F82: 0 | G82: =VLOOKUP(C82,APP_E!A:C,2,FALSE) -> 2263_U/G Dist Lines And Feeders-Secondary Cable in duct | H82: =VLOOKUP(C82,APP_E!A:C,3,FALSE) -> 1845_Underground Conductors and Devices | I82: =VLOOKUP(B82,APP_F!A:C,2,FALSE) -> 21141_001 E13061 Galloway UG Rebuild Electrical SCNA47M14 | J82: =INDEX(APP_B!A:A,MATCH(DATA!B82,APP_B!N:N,0)) -> C1 Underground Infrastructure | K82: =INDEX(APP_A!$A$3:$A$24,MATCH(DATA!J82,CATEGORY_LISTING,0)) -> Underground Infrastructure and Cable | L82: =VLOOKUP(C82,APP_E!A:D,4,FALSE) -> 1845_Underground Conductors and Devices
A83: Y | B83: EST21141_001 | C83: AC2400 | D83: 0 | E83: 77770.29 | F83: 0 | G83: =VLOOKUP(C83,APP_E!A:C,2,FALSE) -> 2400_UG Distribution Transformers | H83: =VLOOKUP(C83,APP_E!A:C,3,FALSE) -> 1850_Line Transformers | I83: =VLOOKUP(B83,APP_F!A:C,2,FALSE) -> 21141_001 E13061 Galloway UG Rebuild Electrical SCNA47M14 | J83: =INDEX(APP_B!A:A,MATCH(DATA!B83,APP_B!N:N,0)) -> C1 Underground Infrastructure | K83: =INDEX(APP_A!$A$3:$A$24,MATCH(DATA!J83,CATEGORY_LISTING,0)) -> Underground Infrastructure and Cable | L83: =VLOOKUP(C83,APP_E!A:D,4,FALSE) -> 1850_Line Transformers - UG
A84: Y | B84: EST21202_001 | C84: AC2240 | E84: 0 | F84: 466149.25 | G84: =VLOOKUP(C84,APP_E!A:C,2,FALSE) -> 2240_U/G Conduit - Duct Bank | H84: =VLOOKUP(C84,APP_E!A:C,3,FALSE) -> 1840_Underground Conduit | I84: =VLOOKUP(B84,APP_F!A:C,2,FALSE) -> 21202_001 E13069 NY51M24 UG Rebuild North of Finch Off Don Mills Road - Civil | J84: =INDEX(APP_B!A:A,MATCH(DATA!B84,APP_B!N:N,0)) -> C1 Underground Infrastructure | K84: =INDEX(APP_A!$A$3:$A$24,MATCH(DATA!J84,CATEGORY_LISTING,0)) -> Underground Infrastructure and Cable | L84: =VLOOKUP(C84,APP_E!A:D,4,FALSE) -> 1840_Underground Conduit - Duct Bank
A85: Y | B85: EST21202_001 | C85: AC2241 | E85: 0 | F85: 26913.88 | G85: =VLOOKUP(C85,APP_E!A:C,2,FALSE) -> 2241_U/G Conduit - Vault | H85: =VLOOKUP(C85,APP_E!A:C,3,FALSE) -> 1840_Underground Conduit | I85: =VLOOKUP(B85,APP_F!A:C,2,FALSE) -> 21202_001 E13069 NY51M24 UG Rebuild North of Finch Off Don Mills Road - Civil | J85: =INDEX(APP_B!A:A,MATCH(DATA!B85,APP_B!N:N,0)) -> C1 Underground Infrastructure | K85: =INDEX(APP_A!$A$3:$A$24,MATCH(DATA!J85,CATEGORY_LISTING,0)) -> Underground Infrastructure and Cable | L85: =VLOOKUP(C85,APP_E!A:D,4,FALSE) -> 1840_Underground Conduit - Vault
A86: Y | B86: EST21202_001 | C86: AC2242 | E86: 0 | F86: 1998.11 | G86: =VLOOKUP(C86,APP_E!A:C,2,FALSE) -> 2242_U/G Conduit - Vault Roof | H86: =VLOOKUP(C86,APP_E!A:C,3,FALSE) -> 1840_Underground Conduit | I86: =VLOOKUP(B86,APP_F!A:C,2,FALSE) -> 21202_001 E13069 NY51M24 UG Rebuild North of Finch Off Don Mills Road - Civil | J86: =INDEX(APP_B!A:A,MATCH(DATA!B86,APP_B!N:N,0)) -> C1 Underground Infrastructure | K86: =INDEX(APP_A!$A$3:$A$24,MATCH(DATA!J86,CATEGORY_LISTING,0)) -> Underground Infrastructure and Cable | L86: =VLOOKUP(C86,APP_E!A:D,4,FALSE) -> 1840_Underground Conduit - Vault Roof
A87: Y | B87: EST21202_001 | C87: AC2243 | E87: 0 | F87: 11988.66 | G87: =VLOOKUP(C87,APP_E!A:C,2,FALSE) -> 2243_U/G Conduit - Cable Chamber | H87: =VLOOKUP(C87,APP_E!A:C,3,FALSE) -> 1840_Underground Conduit | I87: =VLOOKUP(B87,APP_F!A:C,2,FALSE) -> 21202_001 E13069 NY51M24 UG Rebuild North of Finch Off Don Mills Road - Civil | J87: =INDEX(APP_B!A:A,MATCH(DATA!B87,APP_B!N:N,0)) -> C1 Underground Infrastructure | K87: =INDEX(APP_A!$A$3:$A$24,MATCH(DATA!J87,CATEGORY_LISTING,0)) -> Underground Infrastructure and Cable | L87: =VLOOKUP(C87,APP_E!A:D,4,FALSE) -> 1840_Underground Conduit - Cable Chamber
A88: Y | B88: EST21297_001 | C88: AC2260 | E88: 0 | F88: 290972.927 | G88: =VLOOKUP(C88,APP_E!A:C,2,FALSE) -> 2260_UG Dist Lines-Primary Cable duct (xLPE) | H88: =VLOOKUP(C88,APP_E!A:C,3,FALSE) -> 1845_Underground Conductors and Devices | I88: =VLOOKUP(B88,APP_F!A:C,2,FALSE) -> 21297_001 E13077 UG Rehab of NY51M8 - Elec E13077 btn Leslie and Bayview | J88: =INDEX(APP_B!A:A,MATCH(DATA!B88,APP_B!N:N,0)) -> C1 Underground Infrastructure | K88: =INDEX(APP_A!$A$3:$A$24,MATCH(DATA!J88,CATEGORY_LISTING,0)) -> Underground Infrastructure and Cable | L88: =VLOOKUP(C88,APP_E!A:D,4,FALSE) -> 1845_Underground Conductors and Devices
A89: Y | B89: EST21297_001 | C89: AC2262 | E89: 0 | F89: 7872.6435 | G89: =VLOOKUP(C89,APP_E!A:C,2,FALSE) -> 2260_UG Dist Lines-Primary Cable duct (xLPE) | H89: =VLOOKUP(C89,APP_E!A:C,3,FALSE) -> 1845_Underground Conductors and Devices | I89: =VLOOKUP(B89,APP_F!A:C,2,FALSE) -> 21297_001 E13077 UG Rehab of NY51M8 - Elec E13077 btn Leslie and Bayview | J89: =INDEX(APP_B!A:A,MATCH(DATA!B89,APP_B!N:N,0)) -> C1 Underground Infrastructure | K89: =INDEX(APP_A!$A$3:$A$24,MATCH(DATA!J89,CATEGORY_LISTING,0)) -> Underground Infrastructure and Cable | L89: =VLOOKUP(C89,APP_E!A:D,4,FALSE) -> 1845_Underground Conductors and Devices
A90: Y | B90: EST21297_001 | C90: AC2263 | E90: 0 | F90: 16060.18954 | G90: =VLOOKUP(C90,APP_E!A:C,2,FALSE) -> 2263_U/G Dist Lines And Feeders-Secondary Cable in duct | H90: =VLOOKUP(C90,APP_E!A:C,3,FALSE) -> 1845_Underground Conductors and Devices | I90: =VLOOKUP(B90,APP_F!A:C,2,FALSE) -> 21297_001 E13077 UG Rehab of NY51M8 - Elec E13077 btn Leslie and Bayview | J90: =INDEX(APP_B!A:A,MATCH(DATA!B90,APP_B!N:N,0)) -> C1 Underground Infrastructure | K90: =INDEX(APP_A!$A$3:$A$24,MATCH(DATA!J90,CATEGORY_LISTING,0)) -> Underground Infrastructure and Cable | L90: =VLOOKUP(C90,APP_E!A:D,4,FALSE) -> 1845_Underground Conductors and Devices
A91: Y | B91: EST21297_001 | C91: AC2520 | E91: 0 | F91: 1677.02 | G91: =VLOOKUP(C91,APP_E!A:C,2,FALSE) -> 2520_Services - Underground - in duct | H91: =VLOOKUP(C91,APP_E!A:C,3,FALSE) -> 1855_Services | I91: =VLOOKUP(B91,APP_F!A:C,2,FALSE) -> 21297_001 E13077 UG Rehab of NY51M8 - Elec E13077 btn Leslie and Bayview | J91: =INDEX(APP_B!A:A,MATCH(DATA!B91,APP_B!N:N,0)) -> C1 Underground Infrastructure | K91: =INDEX(APP_A!$A$3:$A$24,MATCH(DATA!J91,CATEGORY_LISTING,0)) -> Underground Infrastructure and Cable | L91: =VLOOKUP(C91,APP_E!A:D,4,FALSE) -> 1855_Services - UG
A92: Y | B92: EST21298_001 | C92: AC2240 | E92: 1164321.91 | F92: 0 | G92: =VLOOKUP(C92,APP_E!A:C,2,FALSE) -> 2240_U/G Conduit - Duct Bank | H92: =VLOOKUP(C92,APP_E!A:C,3,FALSE) -> 1840_Underground Conduit | I92: =VLOOKUP(B92,APP_F!A:C,2,FALSE) -> 21298_001 E13078 UG Rehab of NY51M8 - Civil E13078 btn Leslie and Bayview | J92: =INDEX(APP_B!A:A,MATCH(DATA!B92,APP_B!N:N,0)) -> C1 Underground Infrastructure | K92: =INDEX(APP_A!$A$3:$A$24,MATCH(DATA!J92,CATEGORY_LISTING,0)) -> Underground Infrastructure and Cable | L92: =VLOOKUP(C92,APP_E!A:D,4,FALSE) -> 1840_Underground Conduit - Duct Bank
A93: Y | B93: EST21298_001 | C93: AC2241 | E93: 92851.63 | F93: 0 | G93: =VLOOKUP(C93,APP_E!A:C,2,FALSE) -> 2241_U/G Conduit - Vault | H93: =VLOOKUP(C93,APP_E!A:C,3,FALSE) -> 1840_Underground Conduit | I93: =VLOOKUP(B93,APP_F!A:C,2,FALSE) -> 21298_001 E13078 UG Rehab of NY51M8 - Civil E13078 btn Leslie and Bayview | J93: =INDEX(APP_B!A:A,MATCH(DATA!B93,APP_B!N:N,0)) -> C1 Underground Infrastructure | K93: =INDEX(APP_A!$A$3:$A$24,MATCH(DATA!J93,CATEGORY_LISTING,0)) -> Underground Infrastructure and Cable | L93: =VLOOKUP(C93,APP_E!A:D,4,FALSE) -> 1840_Underground Conduit - Vault
A94: Y | B94: EST21298_001 | C94: AC2243 | E94: 3714.05 | F94: 0 | G94: =VLOOKUP(C94,APP_E!A:C,2,FALSE) -> 2243_U/G Conduit - Cable Chamber | H94: =VLOOKUP(C94,APP_E!A:C,3,FALSE) -> 1840_Underground Conduit | I94: =VLOOKUP(B94,APP_F!A:C,2,FALSE) -> 21298_001 E13078 UG Rehab of NY51M8 - Civil E13078 btn Leslie and Bayview | J94: =INDEX(APP_B!A:A,MATCH(DATA!B94,APP_B!N:N,0)) -> C1 Underground Infrastructure | K94: =INDEX(APP_A!$A$3:$A$24,MATCH(DATA!J94,CATEGORY_LISTING,0)) -> Underground Infrastructure and Cable | L94: =VLOOKUP(C94,APP_E!A:D,4,FALSE) -> 1840_Underground Conduit - Cable Chamber
A95: Y | B95: EST18652_002 | C95: AC2240 | D95: 2155538.31 | E95: 0 | F95: 0 | G95: =VLOOKUP(C95,APP_E!A:C,2,FALSE) -> 2240_U/G Conduit - Duct Bank | H95: =VLOOKUP(C95,APP_E!A:C,3,FALSE) -> 1840_Underground Conduit | I95: =VLOOKUP(B95,APP_F!A:C,2,FALSE) -> 18652_002 E11421 Dundalk NAE5-1M29 UG Reb (Civil) Deferred from 2011 | J95: =INDEX(APP_B!A:A,MATCH(DATA!B95,APP_B!N:N,0)) -> C1 Underground Infrastructure | K95: =INDEX(APP_A!$A$3:$A$24,MATCH(DATA!J95,CATEGORY_LISTING,0)) -> Underground Infrastructure and Cable | L95: =VLOOKUP(C95,APP_E!A:D,4,FALSE) -> 1840_Underground Conduit - Duct Bank
A96: Y | B96: EST18652_002 | C96: AC2241 | D96: 121267.98 | E96: 0 | F96: 0 | G96: =VLOOKUP(C96,APP_E!A:C,2,FALSE) -> 2241_U/G Conduit - Vault | H96: =VLOOKUP(C96,APP_E!A:C,3,FALSE) -> 1840_Underground Conduit | I96: =VLOOKUP(B96,APP_F!A:C,2,FALSE) -> 18652_002 E11421 Dundalk NAE5-1M29 UG Reb (Civil) Deferred from 2011 | J96: =INDEX(APP_B!A:A,MATCH(DATA!B96,APP_B!N:N,0)) -> C1 Underground Infrastructure | K96: =INDEX(APP_A!$A$3:$A$24,MATCH(DATA!J96,CATEGORY_LISTING,0)) -> Underground Infrastructure and Cable | L96: =VLOOKUP(C96,APP_E!A:D,4,FALSE) -> 1840_Underground Conduit - Vault
A97: Y | B97: EST18653_002 | C97: AC2240 | E97: 68634.56 | F97: 0 | G97: =VLOOKUP(C97,APP_E!A:C,2,FALSE) -> 2240_U/G Conduit - Duct Bank | H97: =VLOOKUP(C97,APP_E!A:C,3,FALSE) -> 1840_Underground Conduit | I97: =VLOOKUP(B97,APP_F!A:C,2,FALSE) -> 18653_002 E11421 Dundalk NAE5-1M29 UG Reb (Elec) Deferred from 2011 | J97: =INDEX(APP_B!A:A,MATCH(DATA!B97,APP_B!N:N,0)) -> C1 Underground Infrastructure | K97: =INDEX(APP_A!$A$3:$A$24,MATCH(DATA!J97,CATEGORY_LISTING,0)) -> Underground Infrastructure and Cable | L97: =VLOOKUP(C97,APP_E!A:D,4,FALSE) -> 1840_Underground Conduit - Duct Bank
A98: Y | B98: EST18653_002 | C98: AC2260 | E98: 1012126.808 | F98: 0 | G98: =VLOOKUP(C98,APP_E!A:C,2,FALSE) -> 2260_UG Dist Lines-Primary Cable duct (xLPE) | H98: =VLOOKUP(C98,APP_E!A:C,3,FALSE) -> 1845_Underground Conductors and Devices | I98: =VLOOKUP(B98,APP_F!A:C,2,FALSE) -> 18653_002 E11421 Dundalk NAE5-1M29 UG Reb (Elec) Deferred from 2011 | J98: =INDEX(APP_B!A:A,MATCH(DATA!B98,APP_B!N:N,0)) -> C1 Underground Infrastructure | K98: =INDEX(APP_A!$A$3:$A$24,MATCH(DATA!J98,CATEGORY_LISTING,0)) -> Underground Infrastructure and Cable | L98: =VLOOKUP(C98,APP_E!A:D,4,FALSE) -> 1845_Underground Conductors and Devices
A99: Y | B99: EST18653_002 | C99: AC2262 | E99: 27384.3855 | F99: 0 | G99: =VLOOKUP(C99,APP_E!A:C,2,FALSE) -> 2260_UG Dist Lines-Primary Cable duct (xLPE) | H99: =VLOOKUP(C99,APP_E!A:C,3,FALSE) -> 1845_Underground Conductors and Devices | I99: =VLOOKUP(B99,APP_F!A:C,2,FALSE) -> 18653_002 E11421 Dundalk NAE5-1M29 UG Reb (Elec) Deferred from 2011 | J99: =INDEX(APP_B!A:A,MATCH(DATA!B99,APP_B!N:N,0)) -> C1 Underground Infrastructure | K99: =INDEX(APP_A!$A$3:$A$24,MATCH(DATA!J99,CATEGORY_LISTING,0)) -> Underground Infrastructure and Cable | L99: =VLOOKUP(C99,APP_E!A:D,4,FALSE) -> 1845_Underground Conductors and Devices
A100: Y | B100: EST18653_002 | C100: AC2263 | E100: 55864.14682 | F100: 0 | G100: =VLOOKUP(C100,APP_E!A:C,2,FALSE) -> 2263_U/G Dist Lines And Feeders-Secondary Cable in duct | H100: =VLOOKUP(C100,APP_E!A:C,3,FALSE) -> 1845_Underground Conductors and Devices | I100: =VLOOKUP(B100,APP_F!A:C,2,FALSE) -> 18653_002 E11421 Dundalk NAE5-1M29 UG Reb (Elec) Deferred from 2011 | J100: =INDEX(APP_B!A:A,MATCH(DATA!B100,APP_B!N:N,0)) -> C1 Underground Infrastructure | K100: =INDEX(APP_A!$A$3:$A$24,MATCH(DATA!J100,CATEGORY_LISTING,0)) -> Underground Infrastructure and Cable | L100: =VLOOKUP(C100,APP_E!A:D,4,FALSE) -> 1845_Underground Conductors and Devices
A101: Y | B101: EST18653_002 | C101: AC2281 | E101: 128797.53 | F101: 0 | G101: =VLOOKUP(C101,APP_E!A:C,2,FALSE) -> 2281_UG Dist Lines - Switch installation | H101: =VLOOKUP(C101,APP_E!A:C,3,FALSE) -> 1845_Underground Conductors and Devices | I101: =VLOOKUP(B101,APP_F!A:C,2,FALSE) -> 18653_002 E11421 Dundalk NAE5-1M29 UG Reb (Elec) Deferred from 2011 | J101: =INDEX(APP_B!A:A,MATCH(DATA!B101,APP_B!N:N,0)) -> C1 Underground Infrastructure | K101: =INDEX(APP_A!$A$3:$A$24,MATCH(DATA!J101,CATEGORY_LISTING,0)) -> Underground Infrastructure and Cable | L101: =VLOOKUP(C101,APP_E!A:D,4,FALSE) -> 1845_Underground Conductors and Devices - Switch
A102: Y | B102: EST18653_002 | C102: AC2400 | E102: 341987.12 | F102: 0 | G102: =VLOOKUP(C102,APP_E!A:C,2,FALSE) -> 2400_UG Distribution Transformers | H102: =VLOOKUP(C102,APP_E!A:C,3,FALSE) -> 1850_Line Transformers | I102: =VLOOKUP(B102,APP_F!A:C,2,FALSE) -> 18653_002 E11421 Dundalk NAE5-1M29 UG Reb (Elec) Deferred from 2011 | J102: =INDEX(APP_B!A:A,MATCH(DATA!B102,APP_B!N:N,0)) -> C1 Underground Infrastructure | K102: =INDEX(APP_A!$A$3:$A$24,MATCH(DATA!J102,CATEGORY_LISTING,0)) -> Underground Infrastructure and Cable | L102: =VLOOKUP(C102,APP_E!A:D,4,FALSE) -> 1850_Line Transformers - UG
A103: Y | B103: EST19522_001 | C103: AC2120 | D103: 14718.20935 | E103: 0 | F103: 0 | G103: =VLOOKUP(C103,APP_E!A:C,2,FALSE) -> 2121_O/H Dist Lines And Feeders - Wooden Poles | H103: =VLOOKUP(C103,APP_E!A:C,3,FALSE) -> 1830_Poles Towers and Fixtures | I103: =VLOOKUP(B103,APP_F!A:C,2,FALSE) -> 19522_001 W12077 Donwoods Area DB Cable Replm | J103: =INDEX(APP_B!A:A,MATCH(DATA!B103,APP_B!N:N,0)) -> C1 Underground Infrastructure | K103: =INDEX(APP_A!$A$3:$A$24,MATCH(DATA!J103,CATEGORY_LISTING,0)) -> Underground Infrastructure and Cable | L103: =VLOOKUP(C103,APP_E!A:D,4,FALSE) -> 1830_Poles Towers and Fixtures
A104: Y | B104: EST19522_001 | C104: AC2121 | D104: 966495.9007 | E104: 0 | F104: 0 | G104: =VLOOKUP(C104,APP_E!A:C,2,FALSE) -> 2121_O/H Dist Lines And Feeders - Wooden Poles | H104: =VLOOKUP(C104,APP_E!A:C,3,FALSE) -> 1830_Poles Towers and Fixtures | I104: =VLOOKUP(B104,APP_F!A:C,2,FALSE) -> 19522_001 W12077 Donwoods Area DB Cable Replm | J104: =INDEX(APP_B!A:A,MATCH(DATA!B104,APP_B!N:N,0)) -> C1 Underground Infrastructure | K104: =INDEX(APP_A!$A$3:$A$24,MATCH(DATA!J104,CATEGORY_LISTING,0)) -> Underground Infrastructure and Cable | L104: =VLOOKUP(C104,APP_E!A:D,4,FALSE) -> 1830_Poles Towers and Fixtures
A105: Y | B105: EST19522_001 | C105: AC2160 | D105: 276111.612 | E105: 0 | F105: 0 | G105: =VLOOKUP(C105,APP_E!A:C,2,FALSE) -> 2160_O/H Dist Lines And Feeders - Conductors | H105: =VLOOKUP(C105,APP_E!A:C,3,FALSE) -> 1835_Overhead Conductors and Devices | I105: =VLOOKUP(B105,APP_F!A:C,2,FALSE) -> 19522_001 W12077 Donwoods Area DB Cable Replm | J105: =INDEX(APP_B!A:A,MATCH(DATA!B105,APP_B!N:N,0)) -> C1 Underground Infrastructure | K105: =INDEX(APP_A!$A$3:$A$24,MATCH(DATA!J105,CATEGORY_LISTING,0)) -> Underground Infrastructure and Cable | L105: =VLOOKUP(C105,APP_E!A:D,4,FALSE) -> 1835_Overhead Conductors and Devices
A106: Y | B106: EST19522_001 | C106: AC2165 | D106: 200765.098 | E106: 0 | F106: 0 | G106: =VLOOKUP(C106,APP_E!A:C,2,FALSE) -> 2165_O/H Secondary conductors | H106: =VLOOKUP(C106,APP_E!A:C,3,FALSE) -> 1835_Overhead Conductors and Devices | I106: =VLOOKUP(B106,APP_F!A:C,2,FALSE) -> 19522_001 W12077 Donwoods Area DB Cable Replm | J106: =INDEX(APP_B!A:A,MATCH(DATA!B106,APP_B!N:N,0)) -> C1 Underground Infrastructure | K106: =INDEX(APP_A!$A$3:$A$24,MATCH(DATA!J106,CATEGORY_LISTING,0)) -> Underground Infrastructure and Cable | L106: =VLOOKUP(C106,APP_E!A:D,4,FALSE) -> 1835_Overhead Conductors and Devices
A107: Y | B107: EST19522_001 | C107: AC2180 | D107: 9902.49 | E107: 0 | F107: 0 | G107: =VLOOKUP(C107,APP_E!A:C,2,FALSE) -> 2180_O/H Dist Lines And Feeders - Switches | H107: =VLOOKUP(C107,APP_E!A:C,3,FALSE) -> 1835_Overhead Conductors and Devices | I107: =VLOOKUP(B107,APP_F!A:C,2,FALSE) -> 19522_001 W12077 Donwoods Area DB Cable Replm | J107: =INDEX(APP_B!A:A,MATCH(DATA!B107,APP_B!N:N,0)) -> C1 Underground Infrastructure | K107: =INDEX(APP_A!$A$3:$A$24,MATCH(DATA!J107,CATEGORY_LISTING,0)) -> Underground Infrastructure and Cable | L107: =VLOOKUP(C107,APP_E!A:D,4,FALSE) -> 1835_Overhead Conductors and Devices - Switches
A108: Y | B108: EST19522_001 | C108: AC2240 | D108: 3431836.62 | E108: 0 | F108: 0 | G108: =VLOOKUP(C108,APP_E!A:C,2,FALSE) -> 2240_U/G Conduit - Duct Bank | H108: =VLOOKUP(C108,APP_E!A:C,3,FALSE) -> 1840_Underground Conduit | I108: =VLOOKUP(B108,APP_F!A:C,2,FALSE) -> 19522_001 W12077 Donwoods Area DB Cable Replm | J108: =INDEX(APP_B!A:A,MATCH(DATA!B108,APP_B!N:N,0)) -> C1 Underground Infrastructure | K108: =INDEX(APP_A!$A$3:$A$24,MATCH(DATA!J108,CATEGORY_LISTING,0)) -> Underground Infrastructure and Cable | L108: =VLOOKUP(C108,APP_E!A:D,4,FALSE) -> 1840_Underground Conduit - Duct Bank
A109: Y | B109: EST19522_001 | C109: AC2241 | D109: 122633.44 | E109: 0 | F109: 0 | G109: =VLOOKUP(C109,APP_E!A:C,2,FALSE) -> 2241_U/G Conduit - Vault | H109: =VLOOKUP(C109,APP_E!A:C,3,FALSE) -> 1840_Underground Conduit | I109: =VLOOKUP(B109,APP_F!A:C,2,FALSE) -> 19522_001 W12077 Donwoods Area DB Cable Replm | J109: =INDEX(APP_B!A:A,MATCH(DATA!B109,APP_B!N:N,0)) -> C1 Underground Infrastructure | K109: =INDEX(APP_A!$A$3:$A$24,MATCH(DATA!J109,CATEGORY_LISTING,0)) -> Underground Infrastructure and Cable | L109: =VLOOKUP(C109,APP_E!A:D,4,FALSE) -> 1840_Underground Conduit - Vault
A110: Y | B110: EST19522_001 | C110: AC2243 | D110: 458686.39 | E110: 0 | F110: 0 | G110: =VLOOKUP(C110,APP_E!A:C,2,FALSE) -> 2243_U/G Conduit - Cable Chamber | H110: =VLOOKUP(C110,APP_E!A:C,3,FALSE) -> 1840_Underground Conduit | I110: =VLOOKUP(B110,APP_F!A:C,2,FALSE) -> 19522_001 W12077 Donwoods Area DB Cable Replm | J110: =INDEX(APP_B!A:A,MATCH(DATA!B110,APP_B!N:N,0)) -> C1 Underground Infrastructure | K110: =INDEX(APP_A!$A$3:$A$24,MATCH(DATA!J110,CATEGORY_LISTING,0)) -> Underground Infrastructure and Cable | L110: =VLOOKUP(C110,APP_E!A:D,4,FALSE) -> 1840_Underground Conduit - Cable Chamber
A111: Y | B111: EST19522_001 | C111: AC2260 | D111: 707096.507 | E111: 0 | F111: 0 | G111: =VLOOKUP(C111,APP_E!A:C,2,FALSE) -> 2260_UG Dist Lines-Primary Cable duct (xLPE) | H111: =VLOOKUP(C111,APP_E!A:C,3,FALSE) -> 1845_Underground Conductors and Devices | I111: =VLOOKUP(B111,APP_F!A:C,2,FALSE) -> 19522_001 W12077 Donwoods Area DB Cable Replm | J111: =INDEX(APP_B!A:A,MATCH(DATA!B111,APP_B!N:N,0)) -> C1 Underground Infrastructure | K111: =INDEX(APP_A!$A$3:$A$24,MATCH(DATA!J111,CATEGORY_LISTING,0)) -> Underground Infrastructure and Cable | L111: =VLOOKUP(C111,APP_E!A:D,4,FALSE) -> 1845_Underground Conductors and Devices
A112: Y | B112: EST19522_001 | C112: AC2262 | D112: 19131.401 | E112: 0 | F112: 0 | G112: =VLOOKUP(C112,APP_E!A:C,2,FALSE) -> 2260_UG Dist Lines-Primary Cable duct (xLPE) | H112: =VLOOKUP(C112,APP_E!A:C,3,FALSE) -> 1845_Underground Conductors and Devices | I112: =VLOOKUP(B112,APP_F!A:C,2,FALSE) -> 19522_001 W12077 Donwoods Area DB Cable Replm | J112: =INDEX(APP_B!A:A,MATCH(DATA!B112,APP_B!N:N,0)) -> C1 Underground Infrastructure | K112: =INDEX(APP_A!$A$3:$A$24,MATCH(DATA!J112,CATEGORY_LISTING,0)) -> Underground Infrastructure and Cable | L112: =VLOOKUP(C112,APP_E!A:D,4,FALSE) -> 1845_Underground Conductors and Devices
A113: Y | B113: EST19522_001 | C113: AC2263 | D113: 39028.05204 | E113: 0 | F113: 0 | G113: =VLOOKUP(C113,APP_E!A:C,2,FALSE) -> 2263_U/G Dist Lines And Feeders-Secondary Cable in duct | H113: =VLOOKUP(C113,APP_E!A:C,3,FALSE) -> 1845_Underground Conductors and Devices | I113: =VLOOKUP(B113,APP_F!A:C,2,FALSE) -> 19522_001 W12077 Donwoods Area DB Cable Replm | J113: =INDEX(APP_B!A:A,MATCH(DATA!B113,APP_B!N:N,0)) -> C1 Underground Infrastructure | K113: =INDEX(APP_A!$A$3:$A$24,MATCH(DATA!J113,CATEGORY_LISTING,0)) -> Underground Infrastructure and Cable | L113: =VLOOKUP(C113,APP_E!A:D,4,FALSE) -> 1845_Underground Conductors and Devices
A114: Y | B114: EST19522_001 | C114: AC2281 | D114: 35436.53 | E114: 0 | F114: 0 | G114: =VLOOKUP(C114,APP_E!A:C,2,FALSE) -> 2281_UG Dist Lines - Switch installation | H114: =VLOOKUP(C114,APP_E!A:C,3,FALSE) -> 1845_Underground Conductors and Devices | I114: =VLOOKUP(B114,APP_F!A:C,2,FALSE) -> 19522_001 W12077 Donwoods Area DB Cable Replm | J114: =INDEX(APP_B!A:A,MATCH(DATA!B114,APP_B!N:N,0)) -> C1 Underground Infrastructure | K114: =INDEX(APP_A!$A$3:$A$24,MATCH(DATA!J114,CATEGORY_LISTING,0)) -> Underground Infrastructure and Cable | L114: =VLOOKUP(C114,APP_E!A:D,4,FALSE) -> 1845_Underground Conductors and Devices - Switch
A115: Y | B115: EST19522_001 | C115: AC2360 | D115: 37746.84 | E115: 0 | F115: 0 | G115: =VLOOKUP(C115,APP_E!A:C,2,FALSE) -> 2360_Distribution Transformers - General Overhead | H115: =VLOOKUP(C115,APP_E!A:C,3,FALSE) -> 1850_Line Transformers | I115: =VLOOKUP(B115,APP_F!A:C,2,FALSE) -> 19522_001 W12077 Donwoods Area DB Cable Replm | J115: =INDEX(APP_B!A:A,MATCH(DATA!B115,APP_B!N:N,0)) -> C1 Underground Infrastructure | K115: =INDEX(APP_A!$A$3:$A$24,MATCH(DATA!J115,CATEGORY_LISTING,0)) -> Underground Infrastructure and Cable | L115: =VLOOKUP(C115,APP_E!A:D,4,FALSE) -> 1850_Line Transformers - OH
A116: Y | B116: EST19522_001 | C116: AC2400 | D116: 528006.05 | E116: 0 | F116: 0 | G116: =VLOOKUP(C116,APP_E!A:C,2,FALSE) -> 2400_UG Distribution Transformers | H116: =VLOOKUP(C116,APP_E!A:C,3,FALSE) -> 1850_Line Transformers | I116: =VLOOKUP(B116,APP_F!A:C,2,FALSE) -> 19522_001 W12077 Donwoods Area DB Cable Replm | J116: =INDEX(APP_B!A:A,MATCH(DATA!B116,APP_B!N:N,0)) -> C1 Underground Infrastructure | K116: =INDEX(APP_A!$A$3:$A$24,MATCH(DATA!J116,CATEGORY_LISTING,0)) -> Underground Infrastructure and Cable | L116: =VLOOKUP(C116,APP_E!A:D,4,FALSE) -> 1850_Line Transformers - UG
A117: Y | B117: EST19522_001 | C117: AC2500 | D117: 104271.65 | E117: 0 | F117: 0 | G117: =VLOOKUP(C117,APP_E!A:C,2,FALSE) -> 2500_Services - Overhead | H117: =VLOOKUP(C117,APP_E!A:C,3,FALSE) -> 1855_Services | I117: =VLOOKUP(B117,APP_F!A:C,2,FALSE) -> 19522_001 W12077 Donwoods Area DB Cable Replm | J117: =INDEX(APP_B!A:A,MATCH(DATA!B117,APP_B!N:N,0)) -> C1 Underground Infrastructure | K117: =INDEX(APP_A!$A$3:$A$24,MATCH(DATA!J117,CATEGORY_LISTING,0)) -> Underground Infrastructure and Cable | L117: =VLOOKUP(C117,APP_E!A:D,4,FALSE) -> 1855_Services - OH
A118: Y | B118: EST19522_001 | C118: AC2520 | D118: 13469.79 | E118: 0 | F118: 0 | G118: =VLOOKUP(C118,APP_E!A:C,2,FALSE) -> 2520_Services - Underground - in duct | H118: =VLOOKUP(C118,APP_E!A:C,3,FALSE) -> 1855_Services | I118: =VLOOKUP(B118,APP_F!A:C,2,FALSE) -> 19522_001 W12077 Donwoods Area DB Cable Replm | J118: =INDEX(APP_B!A:A,MATCH(DATA!B118,APP_B!N:N,0)) -> C1 Underground Infrastructure | K118: =INDEX(APP_A!$A$3:$A$24,MATCH(DATA!J118,CATEGORY_LISTING,0)) -> Underground Infrastructure and Cable | L118: =VLOOKUP(C118,APP_E!A:D,4,FALSE) -> 1855_Services - UG
A119: Y | B119: EST19522_001 | C119: AC2640 | D119: 4001.98 | E119: 0 | F119: 0 | G119: =VLOOKUP(C119,APP_E!A:C,2,FALSE) -> 2640_Dist Meters - Smart Meters GS | H119: =VLOOKUP(C119,APP_E!A:C,3,FALSE) -> 1860_Meters | I119: =VLOOKUP(B119,APP_F!A:C,2,FALSE) -> 19522_001 W12077 Donwoods Area DB Cable Replm | J119: =INDEX(APP_B!A:A,MATCH(DATA!B119,APP_B!N:N,0)) -> C1 Underground Infrastructure | K119: =INDEX(APP_A!$A$3:$A$24,MATCH(DATA!J119,CATEGORY_LISTING,0)) -> Underground Infrastructure and Cable | L119: =VLOOKUP(C119,APP_E!A:D,4,FALSE) -> 1860_Meters - Smart Meters
A120: Y | B120: EST20051_009 | C120: AC2120 | F120: 45.9082 | G120: =VLOOKUP(C120,APP_E!A:C,2,FALSE) -> 2121_O/H Dist Lines And Feeders - Wooden Poles | H120: =VLOOKUP(C120,APP_E!A:C,3,FALSE) -> 1830_Poles Towers and Fixtures | I120: =VLOOKUP(B120,APP_F!A:C,2,FALSE) -> 20051_009 E12213 MORNINGSIDE ELECTRICAL DO NOT PACKAGE for budget | J120: =INDEX(APP_B!A:A,MATCH(DATA!B120,APP_B!N:N,0)) -> C1 Underground Infrastructure | K120: =INDEX(APP_A!$A$3:$A$24,MATCH(DATA!J120,CATEGORY_LISTING,0)) -> Underground Infrastructure and Cable | L120: =VLOOKUP(C120,APP_E!A:D,4,FALSE) -> 1830_Poles Towers and Fixtures
A121: Y | B121: EST20051_009 | C121: AC2121 | F121: 3014.7918 | G121: =VLOOKUP(C121,APP_E!A:C,2,FALSE) -> 2121_O/H Dist Lines And Feeders - Wooden Poles | H121: =VLOOKUP(C121,APP_E!A:C,3,FALSE) -> 1830_Poles Towers and Fixtures | I121: =VLOOKUP(B121,APP_F!A:C,2,FALSE) -> 20051_009 E12213 MORNINGSIDE ELECTRICAL DO NOT PACKAGE for budget | J121: =INDEX(APP_B!A:A,MATCH(DATA!B121,APP_B!N:N,0)) -> C1 Underground Infrastructure | K121: =INDEX(APP_A!$A$3:$A$24,MATCH(DATA!J121,CATEGORY_LISTING,0)) -> Underground Infrastructure and Cable | L121: =VLOOKUP(C121,APP_E!A:D,4,FALSE) -> 1830_Poles Towers and Fixtures
A122: Y | B122: EST20051_009 | C122: AC2160 | F122: 3693.03372 | G122: =VLOOKUP(C122,APP_E!A:C,2,FALSE) -> 2160_O/H Dist Lines And Feeders - Conductors | H122: =VLOOKUP(C122,APP_E!A:C,3,FALSE) -> 1835_Overhead Conductors and Devices | I122: =VLOOKUP(B122,APP_F!A:C,2,FALSE) -> 20051_009 E12213 MORNINGSIDE ELECTRICAL DO NOT PACKAGE for budget | J122: =INDEX(APP_B!A:A,MATCH(DATA!B122,APP_B!N:N,0)) -> C1 Underground Infrastructure | K122: =INDEX(APP_A!$A$3:$A$24,MATCH(DATA!J122,CATEGORY_LISTING,0)) -> Underground Infrastructure and Cable | L122: =VLOOKUP(C122,APP_E!A:D,4,FALSE) -> 1835_Overhead Conductors and Devices
A123: Y | B123: EST20051_009 | C123: AC2165 | F123: 2685.26628 | G123: =VLOOKUP(C123,APP_E!A:C,2,FALSE) -> 2165_O/H Secondary conductors | H123: =VLOOKUP(C123,APP_E!A:C,3,FALSE) -> 1835_Overhead Conductors and Devices | I123: =VLOOKUP(B123,APP_F!A:C,2,FALSE) -> 20051_009 E12213 MORNINGSIDE ELECTRICAL DO NOT PACKAGE for budget | J123: =INDEX(APP_B!A:A,MATCH(DATA!B123,APP_B!N:N,0)) -> C1 Underground Infrastructure | K123: =INDEX(APP_A!$A$3:$A$24,MATCH(DATA!J123,CATEGORY_LISTING,0)) -> Underground Infrastructure and Cable | L123: =VLOOKUP(C123,APP_E!A:D,4,FALSE) -> 1835_Overhead Conductors and Devices
A124: Y | B124: EST20051_009 | C124: AC2180 | F124: 68333.26 | G124: =VLOOKUP(C124,APP_E!A:C,2,FALSE) -> 2180_O/H Dist Lines And Feeders - Switches | H124: =VLOOKUP(C124,APP_E!A:C,3,FALSE) -> 1835_Overhead Conductors and Devices | I124: =VLOOKUP(B124,APP_F!A:C,2,FALSE) -> 20051_009 E12213 MORNINGSIDE ELECTRICAL DO NOT PACKAGE for budget | J124: =INDEX(APP_B!A:A,MATCH(DATA!B124,APP_B!N:N,0)) -> C1 Underground Infrastructure | K124: =INDEX(APP_A!$A$3:$A$24,MATCH(DATA!J124,CATEGORY_LISTING,0)) -> Underground Infrastructure and Cable | L124: =VLOOKUP(C124,APP_E!A:D,4,FALSE) -> 1835_Overhead Conductors and Devices - Switches
A125: Y | B125: EST20051_009 | C125: AC2240 | F125: 51109.02 | G125: =VLOOKUP(C125,APP_E!A:C,2,FALSE) -> 2240_U/G Conduit - Duct Bank | H125: =VLOOKUP(C125,APP_E!A:C,3,FALSE) -> 1840_Underground Conduit | I125: =VLOOKUP(B125,APP_F!A:C,2,FALSE) -> 20051_009 E12213 MORNINGSIDE ELECTRICAL DO NOT PACKAGE for budget | J125: =INDEX(APP_B!A:A,MATCH(DATA!B125,APP_B!N:N,0)) -> C1 Underground Infrastructure | K125: =INDEX(APP_A!$A$3:$A$24,MATCH(DATA!J125,CATEGORY_LISTING,0)) -> Underground Infrastructure and Cable | L125: =VLOOKUP(C125,APP_E!A:D,4,FALSE) -> 1840_Underground Conduit - Duct Bank
A126: Y | B126: EST20051_009 | C126: AC2241 | F126: 3931.46 | G126: =VLOOKUP(C126,APP_E!A:C,2,FALSE) -> 2241_U/G Conduit - Vault | H126: =VLOOKUP(C126,APP_E!A:C,3,FALSE) -> 1840_Underground Conduit | I126: =VLOOKUP(B126,APP_F!A:C,2,FALSE) -> 20051_009 E12213 MORNINGSIDE ELECTRICAL DO NOT PACKAGE for budget | J126: =INDEX(APP_B!A:A,MATCH(DATA!B126,APP_B!N:N,0)) -> C1 Underground Infrastructure | K126: =INDEX(APP_A!$A$3:$A$24,MATCH(DATA!J126,CATEGORY_LISTING,0)) -> Underground Infrastructure and Cable | L126: =VLOOKUP(C126,APP_E!A:D,4,FALSE) -> 1840_Underground Conduit - Vault
A127: Y | B127: EST20051_009 | C127: AC2243 | F127: 198999.85 | G127: =VLOOKUP(C127,APP_E!A:C,2,FALSE) -> 2243_U/G Conduit - Cable Chamber | H127: =VLOOKUP(C127,APP_E!A:C,3,FALSE) -> 1840_Underground Conduit | I127: =VLOOKUP(B127,APP_F!A:C,2,FALSE) -> 20051_009 E12213 MORNINGSIDE ELECTRICAL DO NOT PACKAGE for budget | J127: =INDEX(APP_B!A:A,MATCH(DATA!B127,APP_B!N:N,0)) -> C1 Underground Infrastructure | K127: =INDEX(APP_A!$A$3:$A$24,MATCH(DATA!J127,CATEGORY_LISTING,0)) -> Underground Infrastructure and Cable | L127: =VLOOKUP(C127,APP_E!A:D,4,FALSE) -> 1840_Underground Conduit - Cable Chamber
A128: Y | B128: EST20051_009 | C128: AC2260 | F128: 294010.0175 | G128: =VLOOKUP(C128,APP_E!A:C,2,FALSE) -> 2260_UG Dist Lines-Primary Cable duct (xLPE) | H128: =VLOOKUP(C128,APP_E!A:C,3,FALSE) -> 1845_Underground Conductors and Devices | I128: =VLOOKUP(B128,APP_F!A:C,2,FALSE) -> 20051_009 E12213 MORNINGSIDE ELECTRICAL DO NOT PACKAGE for budget | J128: =INDEX(APP_B!A:A,MATCH(DATA!B128,APP_B!N:N,0)) -> C1 Underground Infrastructure | K128: =INDEX(APP_A!$A$3:$A$24,MATCH(DATA!J128,CATEGORY_LISTING,0)) -> Underground Infrastructure and Cable | L128: =VLOOKUP(C128,APP_E!A:D,4,FALSE) -> 1845_Underground Conductors and Devices
A129: Y | B129: EST20051_009 | C129: AC2262 | F129: 7954.81925 | G129: =VLOOKUP(C129,APP_E!A:C,2,FALSE) -> 2260_UG Dist Lines-Primary Cable duct (xLPE) | H129: =VLOOKUP(C129,APP_E!A:C,3,FALSE) -> 1845_Underground Conductors and Devices | I129: =VLOOKUP(B129,APP_F!A:C,2,FALSE) -> 20051_009 E12213 MORNINGSIDE ELECTRICAL DO NOT PACKAGE for budget | J129: =INDEX(APP_B!A:A,MATCH(DATA!B129,APP_B!N:N,0)) -> C1 Underground Infrastructure | K129: =INDEX(APP_A!$A$3:$A$24,MATCH(DATA!J129,CATEGORY_LISTING,0)) -> Underground Infrastructure and Cable | L129: =VLOOKUP(C129,APP_E!A:D,4,FALSE) -> 1845_Underground Conductors and Devices
A130: Y | B130: EST20051_009 | C130: AC2263 | F130: 16227.82327 | G130: =VLOOKUP(C130,APP_E!A:C,2,FALSE) -> 2263_U/G Dist Lines And Feeders-Secondary Cable in duct | H130: =VLOOKUP(C130,APP_E!A:C,3,FALSE) -> 1845_Underground Conductors and Devices | I130: =VLOOKUP(B130,APP_F!A:C,2,FALSE) -> 20051_009 E12213 MORNINGSIDE ELECTRICAL DO NOT PACKAGE for budget | J130: =INDEX(APP_B!A:A,MATCH(DATA!B130,APP_B!N:N,0)) -> C1 Underground Infrastructure | K130: =INDEX(APP_A!$A$3:$A$24,MATCH(DATA!J130,CATEGORY_LISTING,0)) -> Underground Infrastructure and Cable | L130: =VLOOKUP(C130,APP_E!A:D,4,FALSE) -> 1845_Underground Conductors and Devices
A131: Y | B131: EST20051_009 | C131: AC2281 | F131: 1392105.44 | G131: =VLOOKUP(C131,APP_E!A:C,2,FALSE) -> 2281_UG Dist Lines - Switch installation | H131: =VLOOKUP(C131,APP_E!A:C,3,FALSE) -> 1845_Underground Conductors and Devices | I131: =VLOOKUP(B131,APP_F!A:C,2,FALSE) -> 20051_009 E12213 MORNINGSIDE ELECTRICAL DO NOT PACKAGE for budget | J131: =INDEX(APP_B!A:A,MATCH(DATA!B131,APP_B!N:N,0)) -> C1 Underground Infrastructure | K131: =INDEX(APP_A!$A$3:$A$24,MATCH(DATA!J131,CATEGORY_LISTING,0)) -> Underground Infrastructure and Cable | L131: =VLOOKUP(C131,APP_E!A:D,4,FALSE) -> 1845_Underground Conductors and Devices - Switch
A132: Y | B132: EST20051_009 | C132: AC2400 | F132: 6906.54 | G132: =VLOOKUP(C132,APP_E!A:C,2,FALSE) -> 2400_UG Distribution Transformers | H132: =VLOOKUP(C132,APP_E!A:C,3,FALSE) -> 1850_Line Transformers | I132: =VLOOKUP(B132,APP_F!A:C,2,FALSE) -> 20051_009 E12213 MORNINGSIDE ELECTRICAL DO NOT PACKAGE for budget | J132: =INDEX(APP_B!A:A,MATCH(DATA!B132,APP_B!N:N,0)) -> C1 Underground Infrastructure | K132: =INDEX(APP_A!$A$3:$A$24,MATCH(DATA!J132,CATEGORY_LISTING,0)) -> Underground Infrastructure and Cable | L132: =VLOOKUP(C132,APP_E!A:D,4,FALSE) -> 1850_Line Transformers - UG
A133: Y | B133: EST20051_009 | C133: AC2520 | F133: 1681.67 | G133: =VLOOKUP(C133,APP_E!A:C,2,FALSE) -> 2520_Services - Underground - in duct | H133: =VLOOKUP(C133,APP_E!A:C,3,FALSE) -> 1855_Services | I133: =VLOOKUP(B133,APP_F!A:C,2,FALSE) -> 20051_009 E12213 MORNINGSIDE ELECTRICAL DO NOT PACKAGE for budget | J133: =INDEX(APP_B!A:A,MATCH(DATA!B133,APP_B!N:N,0)) -> C1 Underground Infrastructure | K133: =INDEX(APP_A!$A$3:$A$24,MATCH(DATA!J133,CATEGORY_LISTING,0)) -> Underground Infrastructure and Cable | L133: =VLOOKUP(C133,APP_E!A:D,4,FALSE) -> 1855_Services - UG
A134: Y | B134: EST24578_009 | C134: AC2120 | E134: 0 | F134: 172.9136 | G134: =VLOOKUP(C134,APP_E!A:C,2,FALSE) -> 2121_O/H Dist Lines And Feeders - Wooden Poles | H134: =VLOOKUP(C134,APP_E!A:C,3,FALSE) -> 1830_Poles Towers and Fixtures | I134: =VLOOKUP(B134,APP_F!A:C,2,FALSE) -> 24578_009 Bluffwood Saddletree UG Rebuild Civil for 2012 Budget | J134: =INDEX(APP_B!A:A,MATCH(DATA!B134,APP_B!N:N,0)) -> C1 Underground Infrastructure | K134: =INDEX(APP_A!$A$3:$A$24,MATCH(DATA!J134,CATEGORY_LISTING,0)) -> Underground Infrastructure and Cable | L134: =VLOOKUP(C134,APP_E!A:D,4,FALSE) -> 1830_Poles Towers and Fixtures
A135: Y | B135: EST24578_009 | C135: AC2121 | E135: 0 | F135: 11354.3664 | G135: =VLOOKUP(C135,APP_E!A:C,2,FALSE) -> 2121_O/H Dist Lines And Feeders - Wooden Poles | H135: =VLOOKUP(C135,APP_E!A:C,3,FALSE) -> 1830_Poles Towers and Fixtures | I135: =VLOOKUP(B135,APP_F!A:C,2,FALSE) -> 24578_009 Bluffwood Saddletree UG Rebuild Civil for 2012 Budget | J135: =INDEX(APP_B!A:A,MATCH(DATA!B135,APP_B!N:N,0)) -> C1 Underground Infrastructure | K135: =INDEX(APP_A!$A$3:$A$24,MATCH(DATA!J135,CATEGORY_LISTING,0)) -> Underground Infrastructure and Cable | L135: =VLOOKUP(C135,APP_E!A:D,4,FALSE) -> 1830_Poles Towers and Fixtures
A136: Y | B136: EST24578_009 | C136: AC2240 | E136: 0 | F136: 1339477.15 | G136: =VLOOKUP(C136,APP_E!A:C,2,FALSE) -> 2240_U/G Conduit - Duct Bank | H136: =VLOOKUP(C136,APP_E!A:C,3,FALSE) -> 1840_Underground Conduit | I136: =VLOOKUP(B136,APP_F!A:C,2,FALSE) -> 24578_009 Bluffwood Saddletree UG Rebuild Civil for 2012 Budget | J136: =INDEX(APP_B!A:A,MATCH(DATA!B136,APP_B!N:N,0)) -> C1 Underground Infrastructure | K136: =INDEX(APP_A!$A$3:$A$24,MATCH(DATA!J136,CATEGORY_LISTING,0)) -> Underground Infrastructure and Cable | L136: =VLOOKUP(C136,APP_E!A:D,4,FALSE) -> 1840_Underground Conduit - Duct Bank
A137: Y | B137: EST19442_009 | C137: AC2240 | E137: 22145.17 | F137: 0 | G137: =VLOOKUP(C137,APP_E!A:C,2,FALSE) -> 2240_U/G Conduit - Duct Bank | H137: =VLOOKUP(C137,APP_E!A:C,3,FALSE) -> 1840_Underground Conduit | I137: =VLOOKUP(B137,APP_F!A:C,2,FALSE) -> 19442_009 ICM - E12094 - INGLETON REBUILD PHASE 1 ELECT ONLY - 3110 | J137: =INDEX(APP_B!A:A,MATCH(DATA!B137,APP_B!N:N,0)) -> C1 Underground Infrastructure | K137: =INDEX(APP_A!$A$3:$A$24,MATCH(DATA!J137,CATEGORY_LISTING,0)) -> Underground Infrastructure and Cable | L137: =VLOOKUP(C137,APP_E!A:D,4,FALSE) -> 1840_Underground Conduit - Duct Bank
A138: Y | B138: EST19442_009 | C138: AC2241 | E138: 9628.33 | F138: 0 | G138: =VLOOKUP(C138,APP_E!A:C,2,FALSE) -> 2241_U/G Conduit - Vault | H138: =VLOOKUP(C138,APP_E!A:C,3,FALSE) -> 1840_Underground Conduit | I138: =VLOOKUP(B138,APP_F!A:C,2,FALSE) -> 19442_009 ICM - E12094 - INGLETON REBUILD PHASE 1 ELECT ONLY - 3110 | J138: =INDEX(APP_B!A:A,MATCH(DATA!B138,APP_B!N:N,0)) -> C1 Underground Infrastructure | K138: =INDEX(APP_A!$A$3:$A$24,MATCH(DATA!J138,CATEGORY_LISTING,0)) -> Underground Infrastructure and Cable | L138: =VLOOKUP(C138,APP_E!A:D,4,FALSE) -> 1840_Underground Conduit - Vault
A139: Y | B139: EST19442_009 | C139: AC2260 | E139: 369802.9862 | F139: 0 | G139: =VLOOKUP(C139,APP_E!A:C,2,FALSE) -> 2260_UG Dist Lines-Primary Cable duct (xLPE) | H139: =VLOOKUP(C139,APP_E!A:C,3,FALSE) -> 1845_Underground Conductors and Devices | I139: =VLOOKUP(B139,APP_F!A:C,2,FALSE) -> 19442_009 ICM - E12094 - INGLETON REBUILD PHASE 1 ELECT ONLY - 3110 | J139: =INDEX(APP_B!A:A,MATCH(DATA!B139,APP_B!N:N,0)) -> C1 Underground Infrastructure | K139: =INDEX(APP_A!$A$3:$A$24,MATCH(DATA!J139,CATEGORY_LISTING,0)) -> Underground Infrastructure and Cable | L139: =VLOOKUP(C139,APP_E!A:D,4,FALSE) -> 1845_Underground Conductors and Devices
A140: Y | B140: EST19442_009 | C140: AC2262 | E140: 10005.496 | F140: 0 | G140: =VLOOKUP(C140,APP_E!A:C,2,FALSE) -> 2260_UG Dist Lines-Primary Cable duct (xLPE) | H140: =VLOOKUP(C140,APP_E!A:C,3,FALSE) -> 1845_Underground Conductors and Devices | I140: =VLOOKUP(B140,APP_F!A:C,2,FALSE) -> 19442_009 ICM - E12094 - INGLETON REBUILD PHASE 1 ELECT ONLY - 3110 | J140: =INDEX(APP_B!A:A,MATCH(DATA!B140,APP_B!N:N,0)) -> C1 Underground Infrastructure | K140: =INDEX(APP_A!$A$3:$A$24,MATCH(DATA!J140,CATEGORY_LISTING,0)) -> Underground Infrastructure and Cable | L140: =VLOOKUP(C140,APP_E!A:D,4,FALSE) -> 1845_Underground Conductors and Devices
A141: Y | B141: EST19442_009 | C141: AC2263 | E141: 20411.20784 | F141: 0 | G141: =VLOOKUP(C141,APP_E!A:C,2,FALSE) -> 2263_U/G Dist Lines And Feeders-Secondary Cable in duct | H141: =VLOOKUP(C141,APP_E!A:C,3,FALSE) -> 1845_Underground Conductors and Devices | I141: =VLOOKUP(B141,APP_F!A:C,2,FALSE) -> 19442_009 ICM - E12094 - INGLETON REBUILD PHASE 1 ELECT ONLY - 3110 | J141: =INDEX(APP_B!A:A,MATCH(DATA!B141,APP_B!N:N,0)) -> C1 Underground Infrastructure | K141: =INDEX(APP_A!$A$3:$A$24,MATCH(DATA!J141,CATEGORY_LISTING,0)) -> Underground Infrastructure and Cable | L141: =VLOOKUP(C141,APP_E!A:D,4,FALSE) -> 1845_Underground Conductors and Devices
A142: Y | B142: EST19442_009 | C142: AC2281 | E142: 288413.17 | F142: 0 | G142: =VLOOKUP(C142,APP_E!A:C,2,FALSE) -> 2281_UG Dist Lines - Switch installation | H142: =VLOOKUP(C142,APP_E!A:C,3,FALSE) -> 1845_Underground Conductors and Devices | I142: =VLOOKUP(B142,APP_F!A:C,2,FALSE) -> 19442_009 ICM - E12094 - INGLETON REBUILD PHASE 1 ELECT ONLY - 3110 | J142: =INDEX(APP_B!A:A,MATCH(DATA!B142,APP_B!N:N,0)) -> C1 Underground Infrastructure | K142: =INDEX(APP_A!$A$3:$A$24,MATCH(DATA!J142,CATEGORY_LISTING,0)) -> Underground Infrastructure and Cable | L142: =VLOOKUP(C142,APP_E!A:D,4,FALSE) -> 1845_Underground Conductors and Devices - Switch
A143: Y | B143: EST19442_009 | C143: AC2400 | E143: 495266.93 | F143: 0 | G143: =VLOOKUP(C143,APP_E!A:C,2,FALSE) -> 2400_UG Distribution Transformers | H143: =VLOOKUP(C143,APP_E!A:C,3,FALSE) -> 1850_Line Transformers | I143: =VLOOKUP(B143,APP_F!A:C,2,FALSE) -> 19442_009 ICM - E12094 - INGLETON REBUILD PHASE 1 ELECT ONLY - 3110 | J143: =INDEX(APP_B!A:A,MATCH(DATA!B143,APP_B!N:N,0)) -> C1 Underground Infrastructure | K143: =INDEX(APP_A!$A$3:$A$24,MATCH(DATA!J143,CATEGORY_LISTING,0)) -> Underground Infrastructure and Cable | L143: =VLOOKUP(C143,APP_E!A:D,4,FALSE) -> 1850_Line Transformers - UG
A144: Y | B144: EST19448_009 | C144: AC2240 | D144: 11989.97 | E144: 0 | F144: 0 | G144: =VLOOKUP(C144,APP_E!A:C,2,FALSE) -> 2240_U/G Conduit - Duct Bank | H144: =VLOOKUP(C144,APP_E!A:C,3,FALSE) -> 1840_Underground Conduit | I144: =VLOOKUP(B144,APP_F!A:C,2,FALSE) -> 19448_009 E12095 Rebuild Ingleton PH 2 UG Elect DO NOT PACKAGE | J144: =INDEX(APP_B!A:A,MATCH(DATA!B144,APP_B!N:N,0)) -> C1 Underground Infrastructure | K144: =INDEX(APP_A!$A$3:$A$24,MATCH(DATA!J144,CATEGORY_LISTING,0)) -> Underground Infrastructure and Cable | L144: =VLOOKUP(C144,APP_E!A:D,4,FALSE) -> 1840_Underground Conduit - Duct Bank
A145: Y | B145: EST19448_009 | C145: AC2260 | D145: 182653.2295 | E145: 0 | F145: 0 | G145: =VLOOKUP(C145,APP_E!A:C,2,FALSE) -> 2260_UG Dist Lines-Primary Cable duct (xLPE) | H145: =VLOOKUP(C145,APP_E!A:C,3,FALSE) -> 1845_Underground Conductors and Devices | I145: =VLOOKUP(B145,APP_F!A:C,2,FALSE) -> 19448_009 E12095 Rebuild Ingleton PH 2 UG Elect DO NOT PACKAGE | J145: =INDEX(APP_B!A:A,MATCH(DATA!B145,APP_B!N:N,0)) -> C1 Underground Infrastructure | K145: =INDEX(APP_A!$A$3:$A$24,MATCH(DATA!J145,CATEGORY_LISTING,0)) -> Underground Infrastructure and Cable | L145: =VLOOKUP(C145,APP_E!A:D,4,FALSE) -> 1845_Underground Conductors and Devices
A146: Y | B146: EST19448_009 | C146: AC2262 | D146: 4941.912 | E146: 0 | F146: 0 | G146: =VLOOKUP(C146,APP_E!A:C,2,FALSE) -> 2260_UG Dist Lines-Primary Cable duct (xLPE) | H146: =VLOOKUP(C146,APP_E!A:C,3,FALSE) -> 1845_Underground Conductors and Devices | I146: =VLOOKUP(B146,APP_F!A:C,2,FALSE) -> 19448_009 E12095 Rebuild Ingleton PH 2 UG Elect DO NOT PACKAGE | J146: =INDEX(APP_B!A:A,MATCH(DATA!B146,APP_B!N:N,0)) -> C1 Underground Infrastructure | K146: =INDEX(APP_A!$A$3:$A$24,MATCH(DATA!J146,CATEGORY_LISTING,0)) -> Underground Infrastructure and Cable | L146: =VLOOKUP(C146,APP_E!A:D,4,FALSE) -> 1845_Underground Conductors and Devices
A147: Y | B147: EST19448_009 | C147: AC2263 | D147: 10081.50848 | E147: 0 | F147: 0 | G147: =VLOOKUP(C147,APP_E!A:C,2,FALSE) -> 2263_U/G Dist Lines And Feeders-Secondary Cable in duct | H147: =VLOOKUP(C147,APP_E!A:C,3,FALSE) -> 1845_Underground Conductors and Devices | I147: =VLOOKUP(B147,APP_F!A:C,2,FALSE) -> 19448_009 E12095 Rebuild Ingleton PH 2 UG Elect DO NOT PACKAGE | J147: =INDEX(APP_B!A:A,MATCH(DATA!B147,APP_B!N:N,0)) -> C1 Underground Infrastructure | K147: =INDEX(APP_A!$A$3:$A$24,MATCH(DATA!J147,CATEGORY_LISTING,0)) -> Underground Infrastructure and Cable | L147: =VLOOKUP(C147,APP_E!A:D,4,FALSE) -> 1845_Underground Conductors and Devices
A148: Y | B148: EST19448_009 | C148: AC2281 | D148: 147457.49 | E148: 0 | F148: 0 | G148: =VLOOKUP(C148,APP_E!A:C,2,FALSE) -> 2281_UG Dist Lines - Switch installation | H148: =VLOOKUP(C148,APP_E!A:C,3,FALSE) -> 1845_Underground Conductors and Devices | I148: =VLOOKUP(B148,APP_F!A:C,2,FALSE) -> 19448_009 E12095 Rebuild Ingleton PH 2 UG Elect DO NOT PACKAGE | J148: =INDEX(APP_B!A:A,MATCH(DATA!B148,APP_B!N:N,0)) -> C1 Underground Infrastructure | K148: =INDEX(APP_A!$A$3:$A$24,MATCH(DATA!J148,CATEGORY_LISTING,0)) -> Underground Infrastructure and Cable | L148: =VLOOKUP(C148,APP_E!A:D,4,FALSE) -> 1845_Underground Conductors and Devices - Switch
A149: Y | B149: EST19448_009 | C149: AC2400 | D149: 309772.83 | E149: 0 | F149: 0 | G149: =VLOOKUP(C149,APP_E!A:C,2,FALSE) -> 2400_UG Distribution Transformers | H149: =VLOOKUP(C149,APP_E!A:C,3,FALSE) -> 1850_Line Transformers | I149: =VLOOKUP(B149,APP_F!A:C,2,FALSE) -> 19448_009 E12095 Rebuild Ingleton PH 2 UG Elect DO NOT PACKAGE | J149: =INDEX(APP_B!A:A,MATCH(DATA!B149,APP_B!N:N,0)) -> C1 Underground Infrastructure | K149: =INDEX(APP_A!$A$3:$A$24,MATCH(DATA!J149,CATEGORY_LISTING,0)) -> Underground Infrastructure and Cable | L149: =VLOOKUP(C149,APP_E!A:D,4,FALSE) -> 1850_Line Transformers - UG
A150: Y | B150: EST22928_009 | C150: AC2240 | D150: 1500409.09 | E150: 0 | F150: 0 | G150: =VLOOKUP(C150,APP_E!A:C,2,FALSE) -> 2240_U/G Conduit - Duct Bank | H150: =VLOOKUP(C150,APP_E!A:C,3,FALSE) -> 1840_Underground Conduit | I150: =VLOOKUP(B150,APP_F!A:C,2,FALSE) -> 22928_009 ICM E11380 FES-12 EMPRINGHAM/MCLEVIN RC3110 2011 CapEx WBS Rev Nov 22_10 | J150: =INDEX(APP_B!A:A,MATCH(DATA!B150,APP_B!N:N,0)) -> C1 Underground Infrastructure | K150: =INDEX(APP_A!$A$3:$A$24,MATCH(DATA!J150,CATEGORY_LISTING,0)) -> Underground Infrastructure and Cable | L150: =VLOOKUP(C150,APP_E!A:D,4,FALSE) -> 1840_Underground Conduit - Duct Bank
A151: Y | B151: EST22928_009 | C151: AC2241 | D151: 4821.15 | E151: 0 | F151: 0 | G151: =VLOOKUP(C151,APP_E!A:C,2,FALSE) -> 2241_U/G Conduit - Vault | H151: =VLOOKUP(C151,APP_E!A:C,3,FALSE) -> 1840_Underground Conduit | I151: =VLOOKUP(B151,APP_F!A:C,2,FALSE) -> 22928_009 ICM E11380 FES-12 EMPRINGHAM/MCLEVIN RC3110 2011 CapEx WBS Rev Nov 22_10 | J151: =INDEX(APP_B!A:A,MATCH(DATA!B151,APP_B!N:N,0)) -> C1 Underground Infrastructure | K151: =INDEX(APP_A!$A$3:$A$24,MATCH(DATA!J151,CATEGORY_LISTING,0)) -> Underground Infrastructure and Cable | L151: =VLOOKUP(C151,APP_E!A:D,4,FALSE) -> 1840_Underground Conduit - Vault
A152: Y | B152: EST22928_009 | C152: AC2260 | D152: 189969.1886 | E152: 0 | F152: 0 | G152: =VLOOKUP(C152,APP_E!A:C,2,FALSE) -> 2260_UG Dist Lines-Primary Cable duct (xLPE) | H152: =VLOOKUP(C152,APP_E!A:C,3,FALSE) -> 1845_Underground Conductors and Devices | I152: =VLOOKUP(B152,APP_F!A:C,2,FALSE) -> 22928_009 ICM E11380 FES-12 EMPRINGHAM/MCLEVIN RC3110 2011 CapEx WBS Rev Nov 22_10 | J152: =INDEX(APP_B!A:A,MATCH(DATA!B152,APP_B!N:N,0)) -> C1 Underground Infrastructure | K152: =INDEX(APP_A!$A$3:$A$24,MATCH(DATA!J152,CATEGORY_LISTING,0)) -> Underground Infrastructure and Cable | L152: =VLOOKUP(C152,APP_E!A:D,4,FALSE) -> 1845_Underground Conductors and Devices
A153: Y | B153: EST22928_009 | C153: AC2262 | D153: 5139.856 | E153: 0 | F153: 0 | G153: =VLOOKUP(C153,APP_E!A:C,2,FALSE) -> 2260_UG Dist Lines-Primary Cable duct (xLPE) | H153: =VLOOKUP(C153,APP_E!A:C,3,FALSE) -> 1845_Underground Conductors and Devices | I153: =VLOOKUP(B153,APP_F!A:C,2,FALSE) -> 22928_009 ICM E11380 FES-12 EMPRINGHAM/MCLEVIN RC3110 2011 CapEx WBS Rev Nov 22_10 | J153: =INDEX(APP_B!A:A,MATCH(DATA!B153,APP_B!N:N,0)) -> C1 Underground Infrastructure | K153: =INDEX(APP_A!$A$3:$A$24,MATCH(DATA!J153,CATEGORY_LISTING,0)) -> Underground Infrastructure and Cable | L153: =VLOOKUP(C153,APP_E!A:D,4,FALSE) -> 1845_Underground Conductors and Devices
A154: Y | B154: EST22928_009 | C154: AC2263 | D154: 10485.31544 | E154: 0 | F154: 0 | G154: =VLOOKUP(C154,APP_E!A:C,2,FALSE) -> 2263_U/G Dist Lines And Feeders-Secondary Cable in duct | H154: =VLOOKUP(C154,APP_E!A:C,3,FALSE) -> 1845_Underground Conductors and Devices | I154: =VLOOKUP(B154,APP_F!A:C,2,FALSE) -> 22928_009 ICM E11380 FES-12 EMPRINGHAM/MCLEVIN RC3110 2011 CapEx WBS Rev Nov 22_10 | J154: =INDEX(APP_B!A:A,MATCH(DATA!B154,APP_B!N:N,0)) -> C1 Underground Infrastructure | K154: =INDEX(APP_A!$A$3:$A$24,MATCH(DATA!J154,CATEGORY_LISTING,0)) -> Underground Infrastructure and Cable | L154: =VLOOKUP(C154,APP_E!A:D,4,FALSE) -> 1845_Underground Conductors and Devices
A155: Y | B155: EST22928_009 | C155: AC2281 | D155: 21040.31 | E155: 0 | F155: 0 | G155: =VLOOKUP(C155,APP_E!A:C,2,FALSE) -> 2281_UG Dist Lines - Switch installation | H155: =VLOOKUP(C155,APP_E!A:C,3,FALSE) -> 1845_Underground Conductors and Devices | I155: =VLOOKUP(B155,APP_F!A:C,2,FALSE) -> 22928_009 ICM E11380 FES-12 EMPRINGHAM/MCLEVIN RC3110 2011 CapEx WBS Rev Nov 22_10 | J155: =INDEX(APP_B!A:A,MATCH(DATA!B155,APP_B!N:N,0)) -> C1 Underground Infrastructure | K155: =INDEX(APP_A!$A$3:$A$24,MATCH(DATA!J155,CATEGORY_LISTING,0)) -> Underground Infrastructure and Cable | L155: =VLOOKUP(C155,APP_E!A:D,4,FALSE) -> 1845_Underground Conductors and Devices - Switch
A156: Y | B156: EST22928_009 | C156: AC2520 | D156: 103440.9 | E156: 0 | F156: 0 | G156: =VLOOKUP(C156,APP_E!A:C,2,FALSE) -> 2520_Services - Underground - in duct | H156: =VLOOKUP(C156,APP_E!A:C,3,FALSE) -> 1855_Services | I156: =VLOOKUP(B156,APP_F!A:C,2,FALSE) -> 22928_009 ICM E11380 FES-12 EMPRINGHAM/MCLEVIN RC3110 2011 CapEx WBS Rev Nov 22_10 | J156: =INDEX(APP_B!A:A,MATCH(DATA!B156,APP_B!N:N,0)) -> C1 Underground Infrastructure | K156: =INDEX(APP_A!$A$3:$A$24,MATCH(DATA!J156,CATEGORY_LISTING,0)) -> Underground Infrastructure and Cable | L156: =VLOOKUP(C156,APP_E!A:D,4,FALSE) -> 1855_Services - UG
A157: Y | B157: EST22356_009 | C157: AC2240 | D157: 818121.74 | E157: 0 | F157: 0 | G157: =VLOOKUP(C157,APP_E!A:C,2,FALSE) -> 2240_U/G Conduit - Duct Bank | H157: =VLOOKUP(C157,APP_E!A:C,3,FALSE) -> 1840_Underground Conduit | I157: =VLOOKUP(B157,APP_F!A:C,2,FALSE) -> 22356_009 ICM E11356 FESI 47M3 PENNYHILL UG RBLD RC3110 2011 CapEx WBS Rev Nov 22_10 | J157: =INDEX(APP_B!A:A,MATCH(DATA!B157,APP_B!N:N,0)) -> C1 Underground Infrastructure | K157: =INDEX(APP_A!$A$3:$A$24,MATCH(DATA!J157,CATEGORY_LISTING,0)) -> Underground Infrastructure and Cable | L157: =VLOOKUP(C157,APP_E!A:D,4,FALSE) -> 1840_Underground Conduit - Duct Bank
A158: Y | B158: EST22356_009 | C158: AC2241 | D158: 1889.97 | E158: 0 | F158: 0 | G158: =VLOOKUP(C158,APP_E!A:C,2,FALSE) -> 2241_U/G Conduit - Vault | H158: =VLOOKUP(C158,APP_E!A:C,3,FALSE) -> 1840_Underground Conduit | I158: =VLOOKUP(B158,APP_F!A:C,2,FALSE) -> 22356_009 ICM E11356 FESI 47M3 PENNYHILL UG RBLD RC3110 2011 CapEx WBS Rev Nov 22_10 | J158: =INDEX(APP_B!A:A,MATCH(DATA!B158,APP_B!N:N,0)) -> C1 Underground Infrastructure | K158: =INDEX(APP_A!$A$3:$A$24,MATCH(DATA!J158,CATEGORY_LISTING,0)) -> Underground Infrastructure and Cable | L158: =VLOOKUP(C158,APP_E!A:D,4,FALSE) -> 1840_Underground Conduit - Vault
A159: Y | B159: EST22356_009 | C159: AC2260 | D159: 95195.69156 | E159: 0 | F159: 0 | G159: =VLOOKUP(C159,APP_E!A:C,2,FALSE) -> 2260_UG Dist Lines-Primary Cable duct (xLPE) | H159: =VLOOKUP(C159,APP_E!A:C,3,FALSE) -> 1845_Underground Conductors and Devices | I159: =VLOOKUP(B159,APP_F!A:C,2,FALSE) -> 22356_009 ICM E11356 FESI 47M3 PENNYHILL UG RBLD RC3110 2011 CapEx WBS Rev Nov 22_10 | J159: =INDEX(APP_B!A:A,MATCH(DATA!B159,APP_B!N:N,0)) -> C1 Underground Infrastructure | K159: =INDEX(APP_A!$A$3:$A$24,MATCH(DATA!J159,CATEGORY_LISTING,0)) -> Underground Infrastructure and Cable | L159: =VLOOKUP(C159,APP_E!A:D,4,FALSE) -> 1845_Underground Conductors and Devices
